Workbook

Sheet Release notes (hidden)
A1: Date | B1: Release Version | C1: Changes | K1: Version Update Keys
A2: 2007-10-05 | B2: 1 | C2: - FWallStreet excel downloaded | K2: 1.x.x > 2.x.x | L2: Big new updates
A3: 2007-11-15 | B3: 1.1 | C3: - Graham intrinsic value formula added to new tab - Company management questions added | K3: x.1.x > x.2.x | L3: Many changes
A4: 2007-12-01 | B4: 2 | C4: - Revenue growth, gross margin, operating margin, net margin, earnings growth, cash from ops, FCF growth multi year performance added. - Risk assessment tab added with conditional formatting | K4: x.x.1 > x.x.2 | L4: Minor fixes
A5: 2007-12-02 | B5: 2.1 | C5: - Auto morningstar reader implemented - Numerical valuation combined - Margins graph added to numerical valuation - Historical EPS graph added to Graham tab with auto updating 20yr corp rate - More details in risk assessment - Competitors tab included (manual mode) - Company analysis tab upgraded | K5: New Version Method
A6: 2007-12-19 | B6: 3 | C6: - Redesign of statements tab to match rest of excel theme - User input parameters bar included at top of valuation page - Automated competitors tab | K6: vYYYYMMDD | L6: of release date
A7: 2007-12-22 | B7: 3.2 | C7: - Created price vs value tab
A8: 2007-12-23 | B8: 4 | C8: - Reformulation of Graham formula and EPS graph - User input parameters tab added to Graham tab also
A9: 2007-12-24 | B9: 4.1 | C9: - More conservative FCF growth calculation. Also using CROIC growth rather than FCF growth
A10: 2008-01-02 | B10: 4.2 | C10: - Drop down list added to discount rate and MOS.
A11: 2008-01-05 | B11: 4.3 | C11: - FCF/Sales figure added to DCF valuation
A12: 2008-01-06 | B12: 4.4 | C12: - Inventory turnover included to DCF valuation - CROIC vs FCF/sales graph added - Sales vs Accts Receivables graph added - Release notes added
A13: 2008-01-07 | B13: 4.5 | C13: - Revenues and operating expenses shown as % in statement tab
A14: 2008-01-19 | B14: 4.6 | C14: - Changed Company and Management tab to Checklist. Updated questions and ordering - Net income % added to statements - Added Notes sheet
A15: 2008-01-26 | B15: 4.7 | C15: - Changed page layout of Price Vs Value. Historical prices are below the graph & not in the print area - Added today() function to update date automatically - Automated Price Vs Value tab
A16: 2008-02-07 | B16: 4.8 | C16: - Blog address added to notes - Changed growth rate back to FCF growth rate - Added user defined growth rate
A17: 2008-02-18 | B17: 4.9 | C17: - Graham intrinsic value formula modified to better incorporate growth rate into EPS projection - Graham intrinsic value page layout edited
A18: 2008-05-31 | B18: 4.1 | C18: - New cleaner design - ROE and ROA added to DCF tab - Book value per share error corrected in Graham tab - Equity value error corrected in Graham tab - Automatically retrieve Company name
A19: 2008-06-28 | B19: 5.01 | C19: - Added data label to EPS in Graham Tab - Added Data tab for chart generation - Data tab is hidden - Added Chart tabs from SMF yahoo page template - New competitors tab that allows user to directly enter competitors - 5 yr intrinsic value calculation combined to allow easier updates
A20: 2008-12-24 | B20: 5.2.1 | C20: - fixed multi year for DCF valuation and Graham in 5 yr spreadsheet - added extra MOS and discount rate. Discount rate includes 10 year T-bill for risk free rate - fixed statements rows so that currency row went to proper place and not in FCF area - included addtional notes in FCF and Graham spreadsheet - changed tab name to DCF Valuation - Locked cells to prevent accidental edit. Password to unprotect sheet is "osv-spreadsheet" - Replaced bookvalue in Graham tab with NNWC - Changed FCF formula to exclude "other" and deferred taxes - changed to tangible shareholder equity - re-added Risk Assessment and Checklist sheets and included points and user input - terminal rate now read 3% not 5% - used isblank() for user input
A21: 2008-12-30 | B21: 5.2.2 | C21: - included debt to equity ratio, capitalization ratio, FCF to debt ratio - replaced sales to accounts receivables graph with debt ratios
A22: 2009-02-15 | B22: 5.3.1 | C22: - included Assessment tab which includes checklist and points rating and spider graph - added macro clear all button in Assessment tab - added extra graphs in DCF valuation
A23: 3/8/2009 5/30/2009 | B23: 5.3.2 | C23: - use enterprise value for calculations - change terminal value calculation to user defined - fixed "growing at" rate - changed growth rate of Ben Graham formula to use median earnings growth with user override - add user override cell to FCF for 2008 - fixed FCF formula
A24: 2009-08-03 | B24: 5.4.2 | C24: - added and fixed macros for quick deletion - added Enterprise/EBITDA in DCF valuation - change to 10yr AA bond rate. Yahoo does not update 20yr rates anymore - changed EPS regression in Graham formula to use Median instead of Average - included 52 week high and low comparison in Competitors tab - fixed Enterprise value per share formula Graham Intrinsic Value tab - fixed the latest shares outstanding number for the Price vs Value tab - changed to multiple timeframe regression for Graham Intrinsic Value - hid rows - changed "Normal Earnings" in Graham tab to take median of more past earnings - included tax rate % in statements tab - conditional statements to replace Val and Div errors with 0 or null in all tabs - changed references in DCF valuation margins and ratios rather than re-calculate
A25: 8/31/2009 to 9/30/2009 | B25: 6.0.0 | C25: - new Asset Valuation & EPV valuation sheet - new Summary Tab and moved ticker input to Summary - fixed "figures in millions" text - add capex numbers in DCF tab - added header - put in iserror conditions to remove #VALUE and #NUM errors disrupting calculations - changed bond rate for Graham's formula to 20 yr A - included % change of from last year for sales, AR and inventory to statements tab - new disclaimer and instructions tab
A26: 2009-12-04 | B26: 6.1.0 | C26: - included both owner earnings and FCF - updated graph in DCF valuation to show owner earnings and FCF - corrected Graham formula and adjusted to =7(1.5xG) - updated new Reuters URL - included override box for Graham EPS
A27: 2009-12-06 | B27: 6.2.0 | C27: - changed layout and chart size of summary and DCF tab - hid price vs value graph - changed trendlines in graphs to use moving average - added navigation bar and buttons - fixed EPV maintenance capex so that -ve maintenance capex becomes total capex - FCF override added to each year - FCF yield included in valuation section in summary - added Yahoo headlines
A28: 12/14/2009 - 07/01/2010 | B28: v20100701 | C28: - New design, color scheme, graphs - each valuation has its own datasheet - added Stock DB sheet - change Graham EPS to use the projected next year number to use with the new Graham formula - added FCF inc/ working capital and growth to the DCF page - fixed EPV user adjusted EBIT - fixed clear buttons to use variable names - added clear all EPV button - added ticker form - clears all data and resizes spreadsheet to 85% - Updated graphs on summary page and DCF valuation - fixed EPV tab. MSN already accounts for stocks in cash and equiv so forced it to be 0 and summed cash and stocks - changed shares oustanding to include error handling - added NetNet tab - fixed EPV valuation to use EBIT (operating income) instead of EBT - include Piotroski, Altman Z and Beneish model - new competitor tab and charts - combined 10yr and 5yr growth and numbers in DCF valuation - made Graham bond rate into a list - statements now refers to ADVFN since morningstar has changed its website - help sheet
B29: v20100819 | C29: - Statements: changed data source to smartmoney - Statements: fixed equation for "% change from prev year" - Statements: include error checking for each cell because Smart money displays no data as NA and the formula divides by 1000 to make the value in millions which causes a VALUE error - Statements: changed the year at the top of the financial statements back to morningstar - NetNet: Added MSN, Statements, ADVFN drop down list in for NetNet - NetNet: Added Smartmoney Data source - CompData: Dividend Yield corrected - DCF: added micro chart to FCF/debt - DCF: changed DCF present value calculation to add Excess Cash instead of tangible shareholder equity - DCF: added yearly growth rates for DCF - DCF: added variable fields section in DCF - DCF: added discount rate sensitivity matrix - Dashboard: fixed Dashboard to keep main ticker data
B30: v20100821 | C30: - DCF data: fixed operating expense formula - DCF: removed discount rate sensitivity matrix and replaced with growth vs discount rate matrix - DCF: added a % of intangibles to DCF valuation - PriceValue: fixed PV formula for price to value graph - PriceValue: added sensitivity matrix and calculations - Dashboard: changed dashboard items to display the entered ticker only, even after sorting.
B31: v20110103 | C31: - NEW: Statements% added - NEW: StockDB - DCF Data: changed CROIC formula for denominator to be Total Equity not Tangible Equity to account for acquisitions leading to negative tangible equity - DCFData: Receivables turnover changed to COGS/avg inventory - DCFValuation: Fixed conditional formatting - DCFValuation: Manual discount rate - DCFValuation: MOS sensitivity matrix - DCFValuation: Added 2001-2010 multiyear timeframe data - Statements: Fixed TTM EPS and shares outstanding - NetNet: minor formula logic changes in Net Net - EPV: Fixed NCAV formula in EPV section - EPV: Added 2010 FCF/Owner Earnings value to list of normalized income - Graham Valuation: Change growth rate to average of the 3 growth rates - Competitors: Add No sort value - Dashboard: used VLOOKUP to display stats
B32: v20110410 | C32: - NEW: Ratios section - Graham Valuation: Added sensitivity matrix. Growth x EPS - EPVData: Removed unnecessary items from EPVData MSN Money line items - StockDB: Added hyperlink to ticker when stock is added - StockDB: Added valuation average to use as buy target for conditional formatting - DCFData: Fixed firm value for WACC calculation. Included long term debt. - Statements: Fixed quarterly income tax - Statements: Allow user defined shares outstanding - ChartsData: Changed MagicFormula ROC to EBIT/(NetFixed Assets + WorkingCapital) - AltmanData: Change EBITDA to EBIT (operating income)
B33: v20110905 | C33: - Statements: fixed EBT formula - DCFData: changed shares outstanding error handling check - DCF Valuation: Updated CROIC formula to subtract excess cash from denominator Invested Capital = Total Equity + Total Liabilities – Current Liabilities – Excess Cash - Ratios: Included ROIC, CROIC and Gross Profitability Margin - Ratios: Changed from PE to cash adjusted PE - Ratios: Added Days Payable Outstanding - Cleaned up the cell references for the formulas. No more cell pointing to cell point to cell. - Changed the MOS% display to show 0% if the intrinsic value is less than the stock price.
B34: vAA2 | C34: - RatiosData: Changed from IFERROR to IF(ISERROR) to support excel 2003 - Ratios: Included just regular P/E - DCFData: use ISNUMBER for error checking - DCFData: Changed shares outstanding to Google. improved shares oustanding error checking method and display method - Statements: fixed EPS data grabbing formula to check for "Error" instead of "NA" - GrahamValuation: changed intrinsic value from 1.5x growth rate to just 1x growth rate. 1.5 consistently provided exponential increasing intrinsic value. - ChartsData: fixed EBIT value. It was just EBT before. EBIT = EBT + Interest expense - Dashboard: Added dashData backend section to get company description. - Fixed the 10yr CAGR formula in DCFData. Was using 5yr CAGR for particular cells. - DCFData,EPV, EPVData: updated all references to old MSN URL. - DCFData, EPVData: there was a space in RCHgettablecell url.
B35: vAC1 | C35: - StatementsData added - Updated financial statement to use ADVFN - Requires stock exchange selection

Sheet Dashboard
B2: =Statements!$A$2 -> Caterpillar, Inc. Common Stock
B3: ="("&Ticker&")" -> (cat) | I3: =Statements!A4 -> 2012-05-22
M4: Figures in Millions except per share values | O4: Low Risk | P4: High Growth | Q4: Under Valued | R4: Well Managed | S4: Good Financials | T4: Strong Moat
B5: Company Overview | O5: 2 | P5: 2 | Q5: 3.5 | R5: 4 | S5: 4 | T5: 3.5
B6: =DashData!A19 -> Caterpillar Inc. (Caterpillar) is a manufacturer of construction and mining equipment, diesel and natural gas engines, industrial gas turbines and diesel-electric locomotives. The company is also a services provider through Caterpillar Financial Services Corporation (Cat Financial), Caterpillar Remanufacturing Services, Caterpillar Logistics Inc. (Cat Logistics) and Progress Rail Services Corporation (Progress Rail). Caterpillar is also a United States exporter. The Company operates in two segments: Machinery and Power Systems, and Financial Products. Machinery and Power Systems represents a total of Construction Industries, Resource Industries, Power Systems and All Other segments and related corporate items and eliminations. Financial Products includes the Company’s Financial Products Segment. This category includes Cat Financial, Caterpillar Insurance Holdings Inc. (Cat Insurance) and their respective subsidiaries. In October 2011, the Company acquired MWM Holding GmbH (MWM). On July 8, 2011, the Company acquired Bucyrus International, Inc. (Bucyrus). Effective March 1, 2012, the Company announced that Caterpillar Japan Ltd. (Caterpillar Japan) acquired Caterpillar Tohoku Ltd. (Cat Tohoku). In May 2012, Finning International Inc. completed the acquisition from Caterpillar of the former Bucyrus distribution and support business in portions of South America and in the United Kingdom. Construction Industries The Company’s Construction Industries segment is responsible for supporting customers using machinery in infrastructure and building construction applications. The machine sales in this segment are made in the heavy construction, general construction, mining and quarry and aggregates markets. The Construction Industries product portfolio includes backhoe loaders; small wheel loaders; small track-type tractors; skid steer loaders; multi-terrain loaders; mini excavators; compact wheel loaders; select work tools; small, medium and track excavators; wheel excavators; medium wheel loaders; medium track-type tractors; track-type loaders, motor graders and pipelayers. The Company competes with Komatsu Ltd., Volvo Group AB, CNH Global N.V., Deere & Co., Hitachi Construction Machinery Co., J.C. Bamford Ltd., Doosan Infracore Co., Ltd., Hyundai, LiuGong Machinery Co., Ltd., Longking Group, Sany Heavy Industry Co., Ltd, XiaGong Machinery Co. Ltd., and XCMG Group. Resource Industries The Resource Industries segment is responsible for supporting customers using machinery in mine and quarry applications. It also serves forestry, paving and tunneling customers. The Resource Industries product portfolio includes the machines and related parts, electric rope shovels, draglines, hydraulic shovels, drills, highwall miners, underground mining equipment, track-type tractors, mining trucks, electric drive mining trucks, tunnel boring equipment, wheel loaders, off-highway trucks, articulated trucks, wheel tractor scrapers, wheel dozers, compactors, select work tools, forestry products, paving products, machinery components, and electronics and control systems. The Company competes with Komatsu Ltd., Joy Global Inc., Hitachi Construction Machinery Co., Ltd., Volvo Group AB, Atlas Copco, Wirtgen and Deere & Co. Power Systems The Company’s Power Systems segment is responsible for supporting customers using reciprocating engines, turbines and related parts across industries serving electric power, industrial, petroleum and marine applications, as well as rail-related businesses. The Power Systems portfolio includes reciprocating engine powered generator sets; integrated systems used in the electric power generation industry; reciprocating engines and integrated systems and solutions for the marine and petroleum industries; reciprocating engines supplied to the industrial industry, as well as Caterpillar machinery; turbines and turbine-related services, and diesel-electric locomotives and components and other rail-related products and services. The Company competes with Cummins Inc., Tognum AG, GE Energy Infrastructure, Siemens Energy, Wartsila Corp., John Deere Power Systems, MAN Diesel & Turbo SE, Mitsubishi Heavy Industries Ltd., Volvo Group AB, Kawasaki Heavy Industries, Rolls Royce Group plc, Generac Power Systems, Inc., Kohler Co., GE Transportation, Vossloh AG, Siemens AG and Alstom Transport. Financial Products Segment The business of the Company’s Financial Products segment is conducted by Cat Financial, a wholly owned finance subsidiary of Caterpillar. Cat Financial’s business is to provide retail and wholesale financing alternatives for Caterpillar products to customers and dealers globally. Retail financing is consisted of the financing of Caterpillar equipment, machinery and engines. Cat Financial also provides financing for vehicles, power generation facilities and marine vessels, which incorporate Caterpillar products. In addition to retail financing, Cat Financial provides wholesale financing to Caterpillar dealers and purchases short-term receivables from Caterpillar and its subsidiaries. Cat Financial’s retail leases and installment sale contracts include tax leases, which are classified as either operating or finance leases for financial accounting purposes, depending on the characteristics of the lease. For tax purposes, Cat Financial is considered the owner of the equipment ; finance (non-tax) leases, where the lessee for tax purposes is considered to be the owner of the equipment during the term of the lease, which either require or allow the customer to purchase the equipment for a fixed price at the end of the term; installment sale contracts, which are equipment loans, which enable customers to purchase equipment with a down payment or trade-in and structure payments over time, and Governmental lease-purchase plans in the United States. Cat Financial’s wholesale notes receivable, finance leases and installment sale contracts include Inventory/rental programs, which provide assistance to dealers by financing their new Caterpillar inventory and rental fleets, and short-term receivables it purchases from Caterpillar at a discount. Cat Financial’s retail notes receivables include loans, which allows customers and dealers to use their Caterpillar equipment or other assets as collateral to obtain financing. Caterpillar Insurance Company, a wholly owned subsidiary of Caterpillar Insurance Holdings Inc., is an insurance company. Caterpillar Insurance Co. Ltd., a wholly owned subsidiary of Caterpillar Insurance Holdings Inc., is a captive insurance company. Caterpillar Product Services Corporation, a wholly owned subsidiary of Caterpillar, is a warranty company. It conducts a machine extended service contract program in Germany and France by providing machine extended warranty reimbursement protection to dealers in Germany and France. Caterpillar Insurance Services Corporation, a wholly owned subsidiary of Caterpillar Insurance Holdings Inc., is a Tennessee insurance brokerage company licensed in all 50 states and the District of Columbia. It provides brokerage services for all property and casualty and life and health lines of business. Caterpillar’s insurance group provides protection for claims for the programs, which include contractual liability insurance to Caterpillar and its affiliates, Caterpillar dealers and original equipment manufacturers (OEMs) for extended service contracts (parts and labor) offered by Caterpillar, third party dealers and OEMs; cargo insurance for the global cargo risks of Caterpillar products; contractors’ equipment physical damage insurance for equipment manufactured by Caterpillar or OEMs, which is leased, rented or sold by third party dealers to customers; general liability, employer’s liability, auto liability and property insurance for Caterpillar; retiree medical stop loss insurance for medical claims under the Voluntary Employees’ Beneficiary Association (VEBA), and brokerage services for property and casualty and life and health business. The Company competes with Wells Fargo Equipment Finance Inc., General Electric Capital Corporation, Volvo Financial Services, Komatsu Financial L.P. and John Deere Capital Corporation. <div class="moreLink"> <a href="/finance/stocks/overview?symbol=CAT">&#187; Full Overview of CAT</a>
B7: Valuation
B8: Current Price | C8: =DCFData!B2 -> 91.49 | E8: Margin of Safety
B9: NCAV | C9: =NCAV -> -44.03065134
B10: Total Net Reprod. Cost | C10: =EPV!C31 -> 93.84772336
B11: Earnings Power Value (EPV) | C11: =EPV!F7 -> 49.51151048
B12: Discounted Cash Flow (DCF) | C12: ='DCF Valuation'!E7 -> 268.6968709
B13: Ben Graham Formula | C13: ='Graham Valuation'!E7 -> 96.98034214
B15: Key Statistics | E15: Valuation Ratios
B16: Mkt Cap ($M) | C16: =VLOOKUP(B16,compTable,MATCH(Ticker,compValues,0)+1,FALSE) -> 59697.22 | E16: P/E(TTM) | F16: =VLOOKUP(E16,compTable,MATCH(Ticker,compValues,0)+1,FALSE) -> 11.6100001
B17: 52 Wk High | C17: =VLOOKUP(B17,compTable,MATCH(Ticker,compValues,0)+1,FALSE) -> 116.9500001 | E17: P/S(TTM) | F17: =VLOOKUP(E17,compTable,MATCH(Ticker,compValues,0)+1,FALSE) -> 0.9500001
B18: 52 Wk Low | C18: =VLOOKUP(B18,compTable,MATCH(Ticker,compValues,0)+1,FALSE) -> 67.5400001 | E18: EV/EBITDA(TTM) | F18: =VLOOKUP(E18,compTable,MATCH(Ticker,compValues,0)+1,FALSE) -> 9.1800001
B19: % off 52Wk Low | C19: =VLOOKUP(B19,compTable,MATCH(Ticker,compValues,0)+1,FALSE) -> 0.3618597387 | E19: P/Tang BV(MRQ) | F19: =VLOOKUP(E19,compTable,MATCH(Ticker,compValues,0)+1,FALSE) -> 16.6700001
E20: FCF/EV (TTM) | F20: =Statements!N129/DCFData!B108 -> 0.06245686394
B21: Cash Flows | E21: P/FCF(TTM) | F21: =VLOOKUP(E21,compTable,MATCH(Ticker,compValues,0)+1,FALSE) -> 54.2600001
B22: =DCFData!A30 -> Free Cash Flow | E22: Earnings Yld (TTM) | F22: =earnings_yield -> 0.1317481202
B23: 5 yr FCF Growth | C23: ='DCF Valuation'!K43 -> 0.04788322065 | E23: Piotroski (TTM) | F23: =piotroski_f -> 8
B24: 10 yr FCF Growth | C24: ='DCF Valuation'!K58 -> 0.3701260996 | E24: Altman (MRQ) | F24: =Altman -> 1.368282558
E25: Beneish (TTM) | F25: =PioAltZ!M73 -> -2.313849534 | H25: Balance Sheet
B26: Effectiveness | H26: Cash and Equiv | I26: =EPV!B36 -> 2864
B27: CROIC | E27: Margins & Profitability | H27: Short-Term Investments | I27: =EPV!B37 -> 0
B28: Avg | C28: =multi_croic -> 0.1059090479 | E28: Gross | H28: Accts Rec | I28: =EPV!B40 -> 18301
B29: FCF/S | E29: Gross Margin | H29: Inventory | I29: =EPV!B46 -> 16511
B30: Avg | C30: =multi_fcf_sales -> 0.09387620926 | E30: Operating | H30: Total Current Assets | I30: =EPV!B50 -> 41710
B31: ROA | E31: Operating Margin | H31: Net PP&E | I31: =EPV!E54 -> 14571
B32: Avg | C32: =multi_roa -> 0.05247705881 | E32: Net Profit | H32: Intangibles | I32: =EPV!B53 -> 11368
B33: ROE | E33: Net Margin | H33: Total Assets | I33: =EPV!B58 -> 85409
B34: Avg | C34: =multi_roe -> 0.3825195995
E35: Financial Strength (MRQ) | H35: Total Current Liabilities | I35: =EPV!K43 -> 28849
B36: Efficiency | E36: Quick Ratio(MRQ) | F36: =VLOOKUP(E36,compTable,MATCH(Ticker,compValues,0)+1,FALSE) -> 0.8200001 | H36: Long-Term Debt | I36: =EPV!K44 -> 25191
B37: Rec Turnover(TTM) | C37: =VLOOKUP(B37,compTable,MATCH(Ticker,compValues,0)+1,FALSE) -> 3.5500001 | E37: Current Ratio(MRQ) | F37: =VLOOKUP(E37,compTable,MATCH(Ticker,compValues,0)+1,FALSE) -> 1.3900001 | H37: Total Liabilities | I37: =EPV!K49 -> 68939
B38: Inv Turnover(TTM) | C38: =VLOOKUP(B38,compTable,MATCH(Ticker,compValues,0)+1,FALSE) -> 3.4300001 | E38: LTD/Eq(MRQ) | F38: =VLOOKUP(E38,compTable,MATCH(Ticker,compValues,0)+1,FALSE) -> 168.2900001
B39: Asset Turnover(TTM) | C39: =VLOOKUP(B39,compTable,MATCH(Ticker,compValues,0)+1,FALSE) -> 0.8400001 | E39: Tot D/Eq(MRQ) | F39: =VLOOKUP(E39,compTable,MATCH(Ticker,compValues,0)+1,FALSE) -> 240.1800001

Sheet DashData (hidden)
A1: Colors | B1: Positive | C1: Negative | D1: Line
A2: Varianace | B2: 6138689 | C2: 2772732 | D2: 8080899
A3: Gross | B3: 9362861 | C3: 5026558
A4: Operating | B4: 7980664 | C4: 3968509
A5: Net Profit | B5: 6138689 | C5: 2772732
B9: Prices | C9: MOS | D9: Normalized | E9: Output
A10: =Dashboard!B8 -> Current Price | B10: =Dashboard!C8 -> 91.49 | D10: 100
A11: =Dashboard!B9 -> NCAV | B11: =Dashboard!C9 -> -44.03065134 | C11: =IF(B11>0,1-($B$10/B11),($B$10/B11)-1) -> -3.077870693 | D11: =C11*$D$10 -> -307.7870693 | E11: =IF(D11<0,IF(ABS(D11)>50,-50,D11),IF(D11>50,50,D11)) -> -50
A12: =Dashboard!B10 -> Total Net Reprod. Cost | B12: =Dashboard!C10 -> 93.84772336 | C12: =IF(B12>0,1-($B$10/B12),($B$10/B12)-1) -> 0.02512286157 | D12: =C12*$D$10 -> 2.512286157 | E12: =IF(D12<0,IF(ABS(D12)>50,-50,D12),IF(D12>50,50,D12)) -> 2.512286157
A13: =Dashboard!B11 -> Earnings Power Value (EPV) | B13: =Dashboard!C11 -> 49.51151048 | C13: =IF(B13>0,1-($B$10/B13),($B$10/B13)-1) -> -0.8478531377 | D13: =C13*$D$10 -> -84.78531377 | E13: =IF(D13<0,IF(ABS(D13)>50,-50,D13),IF(D13>50,50,D13)) -> -50
A14: =Dashboard!B12 -> Discounted Cash Flow (DCF) | B14: =Dashboard!C12 -> 268.6968709 | C14: =IF(B14>0,1-($B$10/B14),($B$10/B14)-1) -> 0.6595047806 | D14: =C14*$D$10 -> 65.95047806 | E14: =IF(D14<0,IF(ABS(D14)>50,-50,D14),IF(D14>50,50,D14)) -> 50
A15: =Dashboard!B13 -> Ben Graham Formula | B15: =graham_price -> 96.98034214 | C15: =IF(B15>0,1-($B$10/B15),($B$10/B15)-1) -> 0.05661293842 | D15: =C15*$D$10 -> 5.661293842 | E15: =IF(D15<0,IF(ABS(D15)>50,-50,D15),IF(D15>50,50,D15)) -> 5.661293842
A18: Company Description
A19: =SUBSTITUTE(SUBSTITUTE([1]!smfGetTagContent("http://www.reuters.com/finance/stocks/companyProfile?symbol="&Ticker,"div",1,"Full Description"),"<p>",""),"</p>",CHAR(10)&CHAR(13)) -> Caterpillar Inc. (Caterpillar) is a manufacturer of construction and mining equipment, diesel and natural gas engines, industrial gas turbines and diesel-electric locomotives. The company is also a services provider through Caterpillar Financial Services Corporation (Cat Financial), Caterpillar Remanufacturing Services, Caterpillar Logistics Inc. (Cat Logistics) and Progress Rail Services Corporation (Progress Rail). Caterpillar is also a United States exporter. The Company operates in two segments: Machinery and Power Systems, and Financial Products. Machinery and Power Systems represents a total of Construction Industries, Resource Industries, Power Systems and All Other segments and related corporate items and eliminations. Financial Products includes the Company’s Financial Products Segment. This category includes Cat Financial, Caterpillar Insurance Holdings Inc. (Cat Insurance) and their respective subsidiaries. In October 2011, the Company acquired MWM Holding GmbH (MWM). On July 8, 2011, the Company acquired Bucyrus International, Inc. (Bucyrus). Effective March 1, 2012, the Company announced that Caterpillar Japan Ltd. (Caterpillar Japan) acquired Caterpillar Tohoku Ltd. (Cat Tohoku). In May 2012, Finning International Inc. completed the acquisition from Caterpillar of the former Bucyrus distribution and support business in portions of South America and in the United Kingdom. Construction Industries The Company’s Construction Industries segment is responsible for supporting customers using machinery in infrastructure and building construction applications. The machine sales in this segment are made in the heavy construction, general construction, mining and quarry and aggregates markets. The Construction Industries product portfolio includes backhoe loaders; small wheel loaders; small track-type tractors; skid steer loaders; multi-terrain loaders; mini excavators; compact wheel loaders; select work tools; small, medium and track excavators; wheel excavators; medium wheel loaders; medium track-type tractors; track-type loaders, motor graders and pipelayers. The Company competes with Komatsu Ltd., Volvo Group AB, CNH Global N.V., Deere & Co., Hitachi Construction Machinery Co., J.C. Bamford Ltd., Doosan Infracore Co., Ltd., Hyundai, LiuGong Machinery Co., Ltd., Longking Group, Sany Heavy Industry Co., Ltd, XiaGong Machinery Co. Ltd., and XCMG Group. Resource Industries The Resource Industries segment is responsible for supporting customers using machinery in mine and quarry applications. It also serves forestry, paving and tunneling customers. The Resource Industries product portfolio includes the machines and related parts, electric rope shovels, draglines, hydraulic shovels, drills, highwall miners, underground mining equipment, track-type tractors, mining trucks, electric drive mining trucks, tunnel boring equipment, wheel loaders, off-highway trucks, articulated trucks, wheel tractor scrapers, wheel dozers, compactors, select work tools, forestry products, paving products, machinery components, and electronics and control systems. The Company competes with Komatsu Ltd., Joy Global Inc., Hitachi Construction Machinery Co., Ltd., Volvo Group AB, Atlas Copco, Wirtgen and Deere & Co. Power Systems The Company’s Power Systems segment is responsible for supporting customers using reciprocating engines, turbines and related parts across industries serving electric power, industrial, petroleum and marine applications, as well as rail-related businesses. The Power Systems portfolio includes reciprocating engine powered generator sets; integrated systems used in the electric power generation industry; reciprocating engines and integrated systems and solutions for the marine and petroleum industries; reciprocating engines supplied to the industrial industry, as well as Caterpillar machinery; turbines and turbine-related services, and diesel-electric locomotives and components and other rail-related products and services. The Company competes with Cummins Inc., Tognum AG, GE Energy Infrastructure, Siemens Energy, Wartsila Corp., John Deere Power Systems, MAN Diesel & Turbo SE, Mitsubishi Heavy Industries Ltd., Volvo Group AB, Kawasaki Heavy Industries, Rolls Royce Group plc, Generac Power Systems, Inc., Kohler Co., GE Transportation, Vossloh AG, Siemens AG and Alstom Transport. Financial Products Segment The business of the Company’s Financial Products segment is conducted by Cat Financial, a wholly owned finance subsidiary of Caterpillar. Cat Financial’s business is to provide retail and wholesale financing alternatives for Caterpillar products to customers and dealers globally. Retail financing is consisted of the financing of Caterpillar equipment, machinery and engines. Cat Financial also provides financing for vehicles, power generation facilities and marine vessels, which incorporate Caterpillar products. In addition to retail financing, Cat Financial provides wholesale financing to Caterpillar dealers and purchases short-term receivables from Caterpillar and its subsidiaries. Cat Financial’s retail leases and installment sale contracts include tax leases, which are classified as either operating or finance leases for financial accounting purposes, depending on the characteristics of the lease. For tax purposes, Cat Financial is considered the owner of the equipment ; finance (non-tax) leases, where the lessee for tax purposes is considered to be the owner of the equipment during the term of the lease, which either require or allow the customer to purchase the equipment for a fixed price at the end of the term; installment sale contracts, which are equipment loans, which enable customers to purchase equipment with a down payment or trade-in and structure payments over time, and Governmental lease-purchase plans in the United States. Cat Financial’s wholesale notes receivable, finance leases and installment sale contracts include Inventory/rental programs, which provide assistance to dealers by financing their new Caterpillar inventory and rental fleets, and short-term receivables it purchases from Caterpillar at a discount. Cat Financial’s retail notes receivables include loans, which allows customers and dealers to use their Caterpillar equipment or other assets as collateral to obtain financing. Caterpillar Insurance Company, a wholly owned subsidiary of Caterpillar Insurance Holdings Inc., is an insurance company. Caterpillar Insurance Co. Ltd., a wholly owned subsidiary of Caterpillar Insurance Holdings Inc., is a captive insurance company. Caterpillar Product Services Corporation, a wholly owned subsidiary of Caterpillar, is a warranty company. It conducts a machine extended service contract program in Germany and France by providing machine extended warranty reimbursement protection to dealers in Germany and France. Caterpillar Insurance Services Corporation, a wholly owned subsidiary of Caterpillar Insurance Holdings Inc., is a Tennessee insurance brokerage company licensed in all 50 states and the District of Columbia. It provides brokerage services for all property and casualty and life and health lines of business. Caterpillar’s insurance group provides protection for claims for the programs, which include contractual liability insurance to Caterpillar and its affiliates, Caterpillar dealers and original equipment manufacturers (OEMs) for extended service contracts (parts and labor) offered by Caterpillar, third party dealers and OEMs; cargo insurance for the global cargo risks of Caterpillar products; contractors’ equipment physical damage insurance for equipment manufactured by Caterpillar or OEMs, which is leased, rented or sold by third party dealers to customers; general liability, employer’s liability, auto liability and property insurance for Caterpillar; retiree medical stop loss insurance for medical claims under the Voluntary Employees’ Beneficiary Association (VEBA), and brokerage services for property and casualty and life and health business. The Company competes with Wells Fargo Equipment Finance Inc., General Electric Capital Corporation, Volvo Financial Services, Komatsu Financial L.P. and John Deere Capital Corporation. <div class="moreLink"> <a href="/finance/stocks/overview?symbol=CAT">&#187; Full Overview of CAT</a>

Sheet Statements
A2: =[1]!RCHGetElementNumber(Ticker,13863) -> Caterpillar, Inc. Common Stock
A3: ="("&Ticker&")" -> (cat) | S3: Figures in Millions except per share values
A4: =TODAY() -> 2012-05-22
A5: cat | C5: 8006 | E5: =StatementsData!E5 -> 2002 | F5: =StatementsData!F5 -> 2003 | G5: =StatementsData!G5 -> 2004 | H5: =StatementsData!H5 -> 2005 | I5: =StatementsData!I5 -> 2006 | J5: =StatementsData!J5 -> 2007 | K5: =StatementsData!K5 -> 2008 | L5: =StatementsData!L5 -> 2009 | M5: =StatementsData!M5 -> 2010 | N5: =StatementsData!N5 -> 2011 | O5: =StatementsData!P5 -> 2011 Q2 | P5: =StatementsData!Q5 -> 2011 Q3 | Q5: =StatementsData!R5 -> 2011 Q4 | R5: =StatementsData!S5 -> 2012 Q1 | S5: TTM
A6: Income Statement | C6: QTR | D6: Annual | E6: 9 | F6: 8 | G6: 7 | H6: 6 | I6: 5 | J6: 4 | K6: 3 | L6: 2 | M6: 1 | N6: 0 | O6: 3 | P6: 2 | Q6: 1 | R6: 0 | S6: TTM
B7: Revenue | C7: 8206 | D7: 5296 | E7: =IF(ISERROR(StatementsData!E9),0,StatementsData!E9) -> 20152 | F7: =IF(ISERROR(StatementsData!F9),0,StatementsData!F9) -> 22763 | G7: =IF(ISERROR(StatementsData!G9),0,StatementsData!G9) -> 30251 | H7: =IF(ISERROR(StatementsData!H9),0,StatementsData!H9) -> 36339 | I7: =IF(ISERROR(StatementsData!I9),0,StatementsData!I9) -> 41517 | J7: =IF(ISERROR(StatementsData!J9),0,StatementsData!J9) -> 44958 | K7: =IF(ISERROR(StatementsData!K9),0,StatementsData!K9) -> 51324 | L7: =IF(ISERROR(StatementsData!L9),0,StatementsData!L9) -> 32396 | M7: =IF(ISERROR(StatementsData!M9),0,StatementsData!M9) -> 42588 | N7: =IF(ISERROR(StatementsData!N9),0,StatementsData!N9) -> 60138 | O7: =IF(ISERROR(StatementsData!P9),0,StatementsData!P9) -> 14230 | P7: =IF(ISERROR(StatementsData!Q9),0,StatementsData!Q9) -> 15716 | Q7: =IF(ISERROR(StatementsData!R9),0,StatementsData!R9) -> 17243 | R7: =IF(ISERROR(StatementsData!S9),0,StatementsData!S9) -> 15981 | S7: =StatementsData!T9 -> 63170
B8: % change from prev year | F8: =IF(OR(E7="",E7=0),0,(F7-E7)/E7) -> 0.1295653037 | G8: 0.3289548829 | H8: 0.2012495455 | I8: 0.142491538 | J8: 0.08288171111 | K8: 0.1415988256 | L8: -0.3687943262 | M8: 0.3146067416 | N8: 0.4120879121 | O8: =IF(OR(N7="",N7=0),0,(O7-N7)/N7) -> -0.7633775649 | P8: 0.1044272663 | Q8: 0.09716212777 | R8: -0.07318912022 | S8: =IF(OR(N7="",N7=0),0,(S7-N7)/N7) -> 0.05041737337
B9: Cost of Revenues | C9: 8266 | D9: 5326 | E9: =IF(ISERROR(StatementsData!E12),0,StatementsData!E12) -> 15125 | F9: =IF(ISERROR(StatementsData!F12),0,StatementsData!F12) -> 17466 | G9: =IF(ISERROR(StatementsData!G12),0,StatementsData!G12) -> 22420 | H9: =IF(ISERROR(StatementsData!H12),0,StatementsData!H12) -> 27513 | I9: =IF(ISERROR(StatementsData!I12),0,StatementsData!I12) -> 29549 | J9: =IF(ISERROR(StatementsData!J12),0,StatementsData!J12) -> 32626 | K9: =IF(ISERROR(StatementsData!K12),0,StatementsData!K12) -> 38415 | L9: =IF(ISERROR(StatementsData!L12),0,StatementsData!L12) -> 23886 | M9: =IF(ISERROR(StatementsData!M12),0,StatementsData!M12) -> 30367 | N9: =IF(ISERROR(StatementsData!N12),0,StatementsData!N12) -> 43578 | O9: =IF(ISERROR(StatementsData!P12),0,StatementsData!P12) -> 10303 | P9: =IF(ISERROR(StatementsData!Q12),0,StatementsData!Q12) -> 11455 | Q9: =IF(ISERROR(StatementsData!R12),0,StatementsData!R12) -> 12763 | R9: =IF(ISERROR(StatementsData!S12),0,StatementsData!S12) -> 11237 | S9: =StatementsData!T12 -> 45758
B10: COGS (%) | E10: =IF(OR(E7="",E7=0),0,E9/E7) -> 0.7505458515 | F10: 0.7672978078 | G10: 0.7411325245 | H10: 0.7571204491 | I10: 0.7117325433 | J10: 0.7256995418 | K10: 0.7484802432 | L10: 0.7373132485 | M10: 0.7130412323 | N10: 0.7246333433 | O10: 0.7240337316 | P10: 0.7288750318 | Q10: 0.7401844227 | R10: 0.7031474876 | S10: 0.7243628305
B11: Gross Profit | E11: =IF(OR(NOT(ISNUMBER(E7)),NOT(ISNUMBER(E9))),0,E7-E9) -> 5027 | F11: 5297 | G11: 7831 | H11: 8826 | I11: 11968 | J11: 12332 | K11: 12909 | L11: 8510 | M11: 12221 | N11: 16560 | O11: 3927 | P11: 4261 | Q11: 4480 | R11: 4744 | S11: =S7-S9 -> 17412
B12: Gross Profit (%) | E12: =IF(OR(E7="",E7=0),0,E11/E7) -> 0.2494541485 | F12: 0.2327021922 | G12: 0.2588674755 | H12: 0.2428795509 | I12: 0.2882674567 | J12: 0.2743004582 | K12: 0.2515197568 | L12: 0.2626867515 | M12: 0.2869587677 | N12: 0.2753666567 | O12: 0.2759662684 | P12: 0.2711249682 | Q12: 0.2598155773 | R12: 0.2968525124 | S12: 0.2756371695
B13: Operating Expenses
B14: Selling, General & Admin. Expenses | C14: 8346 | D14: 5366 | E14: =IF(ISERROR(StatementsData!E17),0,StatementsData!E17) -> 2531 | F14: =IF(ISERROR(StatementsData!F17),0,StatementsData!F17) -> 2470 | G14: =IF(ISERROR(StatementsData!G17),0,StatementsData!G17) -> 3650 | H14: =IF(ISERROR(StatementsData!H17),0,StatementsData!H17) -> 3190 | I14: =IF(ISERROR(StatementsData!I17),0,StatementsData!I17) -> 4677 | J14: =IF(ISERROR(StatementsData!J17),0,StatementsData!J17) -> 4875 | K14: =IF(ISERROR(StatementsData!K17),0,StatementsData!K17) -> 4399 | L14: =IF(ISERROR(StatementsData!L17),0,StatementsData!L17) -> 3645 | M14: =IF(ISERROR(StatementsData!M17),0,StatementsData!M17) -> 4248 | N14: =IF(ISERROR(StatementsData!N17),0,StatementsData!N17) -> 5203 | O14: =IF(ISERROR(StatementsData!P17),0,StatementsData!P17) -> 1257 | P14: =IF(ISERROR(StatementsData!Q17),0,StatementsData!Q17) -> 1360 | Q14: =IF(ISERROR(StatementsData!R17),0,StatementsData!R17) -> 1487 | R14: =IF(ISERROR(StatementsData!S17),0,StatementsData!S17) -> 1340 | S14: =SUM(O14:R14) -> 5444
B15: SG&A (%) | E15: =IF(OR(E7="",E7=0),0,E14/E7) -> 0.1255954744 | F15: =IF(OR(F7="",F7=0),0,F14/F7) -> 0.1085094232 | G15: 0.1206571684 | H15: 0.08778447398 | I15: 0.1126526483 | J15: 0.1084345389 | K15: 0.0857103889 | L15: 0.1125138906 | M15: 0.09974640744 | N15: 0.08651767601 | O15: 0.08833450457 | P15: 0.08653601425 | Q15: 0.08623789364 | R15: 0.08384957137 | S15: 0.0861801488
B16: Research & Development | C16: 8326 | D16: 5356 | E16: =IF(ISERROR(StatementsData!E16),0,StatementsData!E16) -> 656 | F16: =IF(ISERROR(StatementsData!F16),0,StatementsData!F16) -> 669 | G16: =IF(ISERROR(StatementsData!G16),0,StatementsData!G16) -> 928 | H16: =IF(ISERROR(StatementsData!H16),0,StatementsData!H16) -> 1084 | I16: =IF(ISERROR(StatementsData!I16),0,StatementsData!I16) -> 1347 | J16: =IF(ISERROR(StatementsData!J16),0,StatementsData!J16) -> 1404 | K16: =IF(ISERROR(StatementsData!K16),0,StatementsData!K16) -> 1728 | L16: =IF(ISERROR(StatementsData!L16),0,StatementsData!L16) -> 1421 | M16: =IF(ISERROR(StatementsData!M16),0,StatementsData!M16) -> 1905 | N16: =IF(ISERROR(StatementsData!N16),0,StatementsData!N16) -> 2297 | O16: =IF(ISERROR(StatementsData!P16),0,StatementsData!P16) -> 584 | P16: =IF(ISERROR(StatementsData!Q16),0,StatementsData!Q16) -> 584 | Q16: =IF(ISERROR(StatementsData!R16),0,StatementsData!R16) -> 604 | R16: =IF(ISERROR(StatementsData!S16),0,StatementsData!S16) -> 587 | S16: =SUM(O16:R16) -> 2359
B17: R&D (%) | E17: =IF(OR(E7="",E7=0),0,E16/E7) -> 0.03255260024 | F17: =IF(OR(F7="",F7=0),0,F16/F7) -> 0.02938979924 | G17: 0.03067667185 | H17: 0.02983020997 | I17: 0.03244454079 | J17: 0.0312291472 | K17: 0.0336684592 | L17: 0.04386343993 | M17: 0.04473091012 | N17: 0.03819548372 | O17: 0.04104005622 | P17: 0.03715958259 | Q17: 0.0350287073 | R17: 0.0367311182 | S17: 0.0373436758
B18: EBITDA | C18: 8606 | D18: 5496 | E18: =IF(ISERROR(StatementsData!E20),0,StatementsData!E20) -> 3060 | F18: =IF(ISERROR(StatementsData!F20),0,StatementsData!F20) -> 3505 | G18: =IF(ISERROR(StatementsData!G20),0,StatementsData!G20) -> 4650 | H18: =IF(ISERROR(StatementsData!H20),0,StatementsData!H20) -> 6029 | I18: =IF(ISERROR(StatementsData!I20),0,StatementsData!I20) -> 7546 | J18: =IF(ISERROR(StatementsData!J20),0,StatementsData!J20) -> 7850 | K18: =IF(ISERROR(StatementsData!K20),0,StatementsData!K20) -> 8762 | L18: =IF(ISERROR(StatementsData!L20),0,StatementsData!L20) -> 5780 | M18: =IF(ISERROR(StatementsData!M20),0,StatementsData!M20) -> 8364 | N18: =IF(ISERROR(StatementsData!N20),0,StatementsData!N20) -> 11587 | O18: =IF(ISERROR(StatementsData!P20),0,StatementsData!P20) -> 2685 | P18: =IF(ISERROR(StatementsData!Q20),0,StatementsData!Q20) -> 2975 | Q18: =IF(ISERROR(StatementsData!R20),0,StatementsData!R20) -> 3084 | R18: =IF(ISERROR(StatementsData!S20),0,StatementsData!S20) -> 3478 | S18: =SUM(O18:R18) -> 12222
B19: EBITDA (%) | C19: 8586 | D19: 5486 | E19: =IF(OR(E7="",E7=0),0,E18/E7) -> 0.1518459706 | F19: =IF(OR(F7="",F7=0),0,F18/F7) -> 0.1539779467 | G19: 0.1537139268 | H19: 0.165909904 | I19: 0.1817568707 | J19: 0.1746074114 | K19: 0.1707193516 | L19: 0.1784170885 | M19: 0.1963933502 | N19: 0.1926735176 | O19: 0.1886858749 | P19: 0.1892975312 | Q19: 0.1788551876 | R19: 0.2176334397 | S19: 0.1934779167
B20: Other Special Charges | C20: 8626 | D20: 5506 | E20: =IF(ISERROR(StatementsData!E29),0,StatementsData!E29) -> 0 | F20: =IF(ISERROR(StatementsData!F29),0,StatementsData!F29) -> -55 | G20: =IF(ISERROR(StatementsData!G29),0,StatementsData!G29) -> 0 | H20: =IF(ISERROR(StatementsData!H29),0,StatementsData!H29) -> 0 | I20: =IF(ISERROR(StatementsData!I29),0,StatementsData!I29) -> 0 | J20: =IF(ISERROR(StatementsData!J29),0,StatementsData!J29) -> 0 | K20: =IF(ISERROR(StatementsData!K29),0,StatementsData!K29) -> 0 | L20: =IF(ISERROR(StatementsData!L29),0,StatementsData!L29) -> 0 | M20: =IF(ISERROR(StatementsData!M29),0,StatementsData!M29) -> 0 | N20: =IF(ISERROR(StatementsData!N29),0,StatementsData!N29) -> 0 | O20: =IF(ISERROR(StatementsData!P29),0,StatementsData!P29) -> 0 | P20: =IF(ISERROR(StatementsData!Q29),0,StatementsData!Q29) -> 0 | Q20: =IF(ISERROR(StatementsData!R29),0,StatementsData!R29) -> 0 | R20: =IF(ISERROR(StatementsData!S29),0,StatementsData!S29) -> 0 | S20: =IF(ISNUMBER(T20),T20,SUM(O20:R20)) -> 0
B21: Depreciation & Amortization | E21: =IF(ISERROR(StatementsData!E21),0,StatementsData!E21) -> 1220 | F21: =IF(ISERROR(StatementsData!F21),0,StatementsData!F21) -> 1347 | G21: =IF(ISERROR(StatementsData!G21),0,StatementsData!G21) -> 1397 | H21: =IF(ISERROR(StatementsData!H21),0,StatementsData!H21) -> 1477 | I21: =IF(ISERROR(StatementsData!I21),0,StatementsData!I21) -> 1602 | J21: =IF(ISERROR(StatementsData!J21),0,StatementsData!J21) -> 1797 | K21: =IF(ISERROR(StatementsData!K21),0,StatementsData!K21) -> 1980 | L21: =IF(ISERROR(StatementsData!L21),0,StatementsData!L21) -> 2336 | M21: =IF(ISERROR(StatementsData!M21),0,StatementsData!M21) -> 2296 | N21: =IF(ISERROR(StatementsData!N21),0,StatementsData!N21) -> 2527 | O21: =IF(ISERROR(StatementsData!P21),0,StatementsData!P21) -> 599 | P21: =IF(ISERROR(StatementsData!Q21),0,StatementsData!Q21) -> 658 | Q21: =IF(ISERROR(StatementsData!R21),0,StatementsData!R21) -> 695 | R21: =IF(ISERROR(StatementsData!S21),0,StatementsData!S21) -> 661 | S21: =SUM(O21:R21) -> 2613
B22: D&A (%) | E22: =IF(OR(E7="",E7=0),0,E21/E7) -> 0.06053989678 | F22: =IF(OR(F7="",F7=0),0,F21/F7) -> 0.05917497694 | G22: 0.04618029156 | H22: 0.04064503701 | I22: 0.03858660308 | J22: 0.03997063926 | K22: 0.03857844283 | L22: 0.07210766761 | M22: 0.05391190007 | N22: 0.04202002062 | O22: 0.04209416725 | P22: 0.04186815984 | Q22: 0.04030621122 | R22: 0.04136161692 | S22: 0.04136457179
B23: Operating Income | C23: 8386 | D23: 5386 | E23: =IF(ISERROR(StatementsData!E25),0,StatementsData!E25) -> 1840 | F23: =IF(ISERROR(StatementsData!F25),0,StatementsData!F25) -> 2158 | G23: =IF(ISERROR(StatementsData!G25),0,StatementsData!G25) -> 3253 | H23: =IF(ISERROR(StatementsData!H25),0,StatementsData!H25) -> 4552 | I23: =IF(ISERROR(StatementsData!I25),0,StatementsData!I25) -> 5944 | J23: =IF(ISERROR(StatementsData!J25),0,StatementsData!J25) -> 6053 | K23: =IF(ISERROR(StatementsData!K25),0,StatementsData!K25) -> 6782 | L23: =IF(ISERROR(StatementsData!L25),0,StatementsData!L25) -> 3444 | M23: =IF(ISERROR(StatementsData!M25),0,StatementsData!M25) -> 6068 | N23: =IF(ISERROR(StatementsData!N25),0,StatementsData!N25) -> 9060 | O23: =IF(ISERROR(StatementsData!P25),0,StatementsData!P25) -> 2086 | P23: =IF(ISERROR(StatementsData!Q25),0,StatementsData!Q25) -> 2317 | Q23: =IF(ISERROR(StatementsData!R25),0,StatementsData!R25) -> 2389 | R23: =IF(ISERROR(StatementsData!S25),0,StatementsData!S25) -> 2817 | S23: =SUM(O23:R23) -> 9609
B24: Operating Income (%) | E24: =IF(OR(E7="",E7=0),0,E23/E7) -> 0.09130607384 | F24: =IF(OR(F7="",F7=0),0,F23/F7) -> 0.09480296973 | G24: 0.1075336353 | H24: 0.1252648669 | I24: 0.1431702676 | J24: 0.1346367721 | K24: 0.1321409087 | L24: 0.1063094209 | M24: 0.1424814502 | N24: 0.150653497 | O24: 0.1465917077 | P24: 0.1474293713 | Q24: 0.1385489764 | R24: 0.1762718228 | S24: 0.1521133449
B25: Other Income and Expense
B26: Interest Expense | C26: 8526 | D26: 5456 | E26: =IF(ISERROR(StatementsData!E32),0,StatementsData!E32) -> 800 | F26: =IF(ISERROR(StatementsData!F32),0,StatementsData!F32) -> 716 | G26: =IF(ISERROR(StatementsData!G32),0,StatementsData!G32) -> 750 | H26: =IF(ISERROR(StatementsData!H32),0,StatementsData!H32) -> 1028 | I26: =IF(ISERROR(StatementsData!I32),0,StatementsData!I32) -> 1297 | J26: =IF(ISERROR(StatementsData!J32),0,StatementsData!J32) -> 1420 | K26: =IF(ISERROR(StatementsData!K32),0,StatementsData!K32) -> 1427 | L26: =IF(ISERROR(StatementsData!L32),0,StatementsData!L32) -> 1434 | M26: =IF(ISERROR(StatementsData!M32),0,StatementsData!M32) -> 1257 | N26: =IF(ISERROR(StatementsData!N32),0,StatementsData!N32) -> 1222 | O26: =IF(ISERROR(StatementsData!P32),0,StatementsData!P32) -> 299 | P26: =IF(ISERROR(StatementsData!Q32),0,StatementsData!Q32) -> 323 | Q26: =IF(ISERROR(StatementsData!R32),0,StatementsData!R32) -> 310 | R26: =IF(ISERROR(StatementsData!S32),0,StatementsData!S32) -> 317 | S26: =SUM(O26:R26) -> 1249
B27: Interest Income | E27: =IF(ISERROR(StatementsData!E27),0,StatementsData!E27) -> 0 | F27: =IF(ISERROR(StatementsData!F27),0,StatementsData!F27) -> 0 | G27: =IF(ISERROR(StatementsData!G27),0,StatementsData!G27) -> 0 | H27: =IF(ISERROR(StatementsData!H27),0,StatementsData!H27) -> 0 | I27: =IF(ISERROR(StatementsData!I27),0,StatementsData!I27) -> 0 | J27: =IF(ISERROR(StatementsData!J27),0,StatementsData!J27) -> 99 | K27: =IF(ISERROR(StatementsData!K27),0,StatementsData!K27) -> 101 | L27: =IF(ISERROR(StatementsData!L27),0,StatementsData!L27) -> 98 | M27: =IF(ISERROR(StatementsData!M27),0,StatementsData!M27) -> 86 | N27: =IF(ISERROR(StatementsData!N27),0,StatementsData!N27) -> 0 | O27: =IF(ISERROR(StatementsData!P27),0,StatementsData!P27) -> 0 | P27: =IF(ISERROR(StatementsData!Q27),0,StatementsData!Q27) -> 0 | Q27: =IF(ISERROR(StatementsData!R27),0,StatementsData!R27) -> 0 | R27: =IF(ISERROR(StatementsData!S27),0,StatementsData!S27) -> 0 | S27: =SUM(O27:R27) -> 0
B28: Other Income | E28: =IF(ISERROR(StatementsData!E28),0,StatementsData!E28) -> 74 | F28: =IF(ISERROR(StatementsData!F28),0,StatementsData!F28) -> 90 | G28: =IF(ISERROR(StatementsData!G28),0,StatementsData!G28) -> 204 | H28: =IF(ISERROR(StatementsData!H28),0,StatementsData!H28) -> 377 | I28: =IF(ISERROR(StatementsData!I28),0,StatementsData!I28) -> 214 | J28: =IF(ISERROR(StatementsData!J28),0,StatementsData!J28) -> 221 | K28: =IF(ISERROR(StatementsData!K28),0,StatementsData!K28) -> -946 | L28: =IF(ISERROR(StatementsData!L28),0,StatementsData!L28) -> -1551 | M28: =IF(ISERROR(StatementsData!M28),0,StatementsData!M28) -> -1171 | N28: =IF(ISERROR(StatementsData!N28),0,StatementsData!N28) -> -1137 | O28: =IF(ISERROR(StatementsData!P28),0,StatementsData!P28) -> -447 | P28: =IF(ISERROR(StatementsData!Q28),0,StatementsData!Q28) -> -366 | Q28: =IF(ISERROR(StatementsData!R28),0,StatementsData!R28) -> -101 | R28: =IF(ISERROR(StatementsData!S28),0,StatementsData!S28) -> -1578 | S28: =SUM(O28:R28) -> -2492
B29: Total Other Income | C29: 8566 | D29: 5476 | E29: =IF(ISERROR(SUM(E27:E28)),0,SUM(E27:E28)) -> 74 | F29: =IF(ISERROR(SUM(F27:F28)),0,SUM(F27:F28)) -> 90 | G29: 204 | H29: 377 | I29: 214 | J29: 320 | K29: -845 | L29: -1453 | M29: -1085 | N29: -1137 | O29: -447 | P29: -366 | Q29: -101 | R29: -1578 | S29: =SUM(O29:R29) -> -2492
B30: Income Before Taxes | C30: 8706 | D30: 5546 | E30: =E23-E26+E29 -> 1114 | F30: =F23-F26+F29 -> 1532 | G30: 2707 | H30: 3901 | I30: 4861 | J30: 4953 | K30: 4510 | L30: 557 | M30: 3726 | N30: 6701 | O30: =O23-O26+O29 -> 1340 | P30: =P23-P26+P29 -> 1628 | Q30: 1978 | R30: 922 | S30: 5868
B31: Income Taxes/(Credit) | C31: 8726 | D31: 5556 | E31: =IF(ISERROR(StatementsData!E33),0,StatementsData!E33) -> 312 | F31: =IF(ISERROR(StatementsData!F33),0,StatementsData!F33) -> 398 | G31: =IF(ISERROR(StatementsData!G33),0,StatementsData!G33) -> 731 | H31: =IF(ISERROR(StatementsData!H33),0,StatementsData!H33) -> 1120 | I31: =IF(ISERROR(StatementsData!I33),0,StatementsData!I33) -> 1405 | J31: =IF(ISERROR(StatementsData!J33),0,StatementsData!J33) -> 1485 | K31: =IF(ISERROR(StatementsData!K33),0,StatementsData!K33) -> 953 | L31: =IF(ISERROR(StatementsData!L33),0,StatementsData!L33) -> -270 | M31: =IF(ISERROR(StatementsData!M33),0,StatementsData!M33) -> 968 | N31: =IF(ISERROR(StatementsData!N33),0,StatementsData!N33) -> 1720 | O31: =IF(ISERROR(StatementsData!P33),0,StatementsData!P33) -> 318 | P31: =IF(ISERROR(StatementsData!Q33),0,StatementsData!Q33) -> 474 | Q31: =IF(ISERROR(StatementsData!R33),0,StatementsData!R33) -> 416 | R31: =IF(ISERROR(StatementsData!S33),0,StatementsData!S33) -> -689 | S31: =SUM(O31:R31) -> 519
B32: Tax Rate % | E32: =IF(E30=0,"",E31/E30) -> 0.2800718133 | F32: =IF(F30=0,"",F31/F30) -> 0.2597911227 | G32: =IF(G30=0,"",G31/G30) -> 0.2700406354 | H32: 0.2871058703 | I32: 0.2890351779 | J32: 0.2998182919 | K32: 0.211308204 | L32: -0.4847396768 | M32: 0.2597960279 | N32: 0.2566781077 | O32: =IF(O30=0,"",O31/O30) -> 0.2373134328 | P32: =IF(P30=0,"",P31/P30) -> 0.2911547912 | Q32: =IF(Q30=0,"",Q31/Q30) -> 0.2103134479 | R32: =IF(R30=0,"",R31/R30) -> -0.7472885033 | S32: =IF(S30=0,"",S31/S30) -> 0.08844580777
B33: Earnings After Taxes | E33: =IF(E31>=0,E30-E31,E30+E31) -> 802 | F33: =IF(F31>=0,F30-F31,F30+F31) -> 1134 | G33: 1976 | H33: 2781 | I33: 3456 | J33: 3468 | K33: 3557 | L33: 287 | M33: 2758 | N33: 4981 | O33: 1022 | P33: 1154 | Q33: 1562 | R33: 233 | S33: =S30-S31 -> 5349
B34: Minority Interest | E34: =IF(ISERROR(StatementsData!E34),0,StatementsData!E34) -> 0 | F34: =IF(ISERROR(StatementsData!F34),0,StatementsData!F34) -> 0 | G34: =IF(ISERROR(StatementsData!G34),0,StatementsData!G34) -> 0 | H34: =IF(ISERROR(StatementsData!H34),0,StatementsData!H34) -> 0 | I34: =IF(ISERROR(StatementsData!I34),0,StatementsData!I34) -> 0 | J34: =IF(ISERROR(StatementsData!J34),0,StatementsData!J34) -> 0 | K34: =IF(ISERROR(StatementsData!K34),0,StatementsData!K34) -> 0 | L34: =IF(ISERROR(StatementsData!L34),0,StatementsData!L34) -> -68 | M34: =IF(ISERROR(StatementsData!M34),0,StatementsData!M34) -> 58 | N34: =IF(ISERROR(StatementsData!N34),0,StatementsData!N34) -> 53 | O34: =IF(ISERROR(StatementsData!P34),0,StatementsData!P34) -> 7 | P34: =IF(ISERROR(StatementsData!Q34),0,StatementsData!Q34) -> 13 | Q34: =IF(ISERROR(StatementsData!R34),0,StatementsData!R34) -> 15 | R34: =IF(ISERROR(StatementsData!S34),0,StatementsData!S34) -> 25 | S34: =StatementsData!T34 -> 60
B35: Net Income From Continuing Operations | C35: 8806 | D35: 5596 | E35: =IF(ISERROR(StatementsData!E36),0,StatementsData!E36) -> 798 | F35: =IF(ISERROR(StatementsData!F36),0,StatementsData!F36) -> 1099 | G35: =IF(ISERROR(StatementsData!G36),0,StatementsData!G36) -> 2035 | H35: =IF(ISERROR(StatementsData!H36),0,StatementsData!H36) -> 2854 | I35: =IF(ISERROR(StatementsData!I36),0,StatementsData!I36) -> 3537 | J35: =IF(ISERROR(StatementsData!J36),0,StatementsData!J36) -> 3541 | K35: =IF(ISERROR(StatementsData!K36),0,StatementsData!K36) -> 3557 | L35: =IF(ISERROR(StatementsData!L36),0,StatementsData!L36) -> 895 | M35: =IF(ISERROR(StatementsData!M36),0,StatementsData!M36) -> 2700 | N35: =IF(ISERROR(StatementsData!N36),0,StatementsData!N36) -> 4928 | O35: =IF(ISERROR(StatementsData!P36),0,StatementsData!P36) -> 1015 | P35: =IF(ISERROR(StatementsData!Q36),0,StatementsData!Q36) -> 1141 | Q35: =IF(ISERROR(StatementsData!R36),0,StatementsData!R36) -> 1547 | R35: =IF(ISERROR(StatementsData!S36),0,StatementsData!S36) -> 1586 | S35: =SUM(O35:R35) -> 5289
B36: Net Income From Discontinued Operations | E36: =IF(ISERROR(StatementsData!E37),0,StatementsData!E37) -> 0 | F36: =IF(ISERROR(StatementsData!F37),0,StatementsData!F37) -> 0 | G36: =IF(ISERROR(StatementsData!G37),0,StatementsData!G37) -> 0 | H36: =IF(ISERROR(StatementsData!H37),0,StatementsData!H37) -> 0 | I36: =IF(ISERROR(StatementsData!I37),0,StatementsData!I37) -> 0 | J36: =IF(ISERROR(StatementsData!J37),0,StatementsData!J37) -> 0 | K36: =IF(ISERROR(StatementsData!K37),0,StatementsData!K37) -> 0 | L36: =IF(ISERROR(StatementsData!L37),0,StatementsData!L37) -> 0 | M36: =IF(ISERROR(StatementsData!M37),0,StatementsData!M37) -> 0 | N36: =IF(ISERROR(StatementsData!N37),0,StatementsData!N37) -> 0 | O36: =IF(ISERROR(StatementsData!P37),0,StatementsData!P37) -> 0 | P36: =IF(ISERROR(StatementsData!Q37),0,StatementsData!Q37) -> 0 | Q36: =IF(ISERROR(StatementsData!R37),0,StatementsData!R37) -> 0 | R36: =IF(ISERROR(StatementsData!S37),0,StatementsData!S37) -> 0 | S36: =StatementsData!T37 -> 0
B37: Net Income From Total Operations | C37: 8946 | D37: 5666 | E37: =IF(ISERROR(StatementsData!E39),0,StatementsData!E39) -> 798 | F37: =IF(ISERROR(StatementsData!F39),0,StatementsData!F39) -> 1099 | G37: =IF(ISERROR(StatementsData!G39),0,StatementsData!G39) -> 2035 | H37: =IF(ISERROR(StatementsData!H39),0,StatementsData!H39) -> 2854 | I37: =IF(ISERROR(StatementsData!I39),0,StatementsData!I39) -> 3537 | J37: =IF(ISERROR(StatementsData!J39),0,StatementsData!J39) -> 3541 | K37: =IF(ISERROR(StatementsData!K39),0,StatementsData!K39) -> 3557 | L37: =IF(ISERROR(StatementsData!L39),0,StatementsData!L39) -> 895 | M37: =IF(ISERROR(StatementsData!M39),0,StatementsData!M39) -> 2700 | N37: =IF(ISERROR(StatementsData!N39),0,StatementsData!N39) -> 4928 | O37: =IF(ISERROR(StatementsData!P39),0,StatementsData!P39) -> 1015 | P37: =IF(ISERROR(StatementsData!Q39),0,StatementsData!Q39) -> 1141 | Q37: =IF(ISERROR(StatementsData!R39),0,StatementsData!R39) -> 1547 | R37: =IF(ISERROR(StatementsData!S39),0,StatementsData!S39) -> 1586 | S37: =SUM(O37:R37) -> 5289
B38: Net Income (%) | E38: =IF(OR(E7="",E7=0),0,E37/E7) -> 0.03959904724 | F38: =IF(OR(F7="",F7=0),0,F37/F7) -> 0.04828010368 | G38: 0.06727050345 | H38: 0.07853820964 | I38: 0.08519401691 | J38: 0.07876240046 | K38: 0.06930480867 | L38: 0.02762686751 | M38: 0.06339814032 | N38: 0.08194486015 | O38: 0.0713281799 | P38: 0.07260117078 | Q38: 0.08971756655 | R38: 0.09924285089 | S38: 0.08372645243
B39: Shares and EPS
B40: Total Basic EPS | C40: 9186 | D40: 5786 | E40: =IF(ISERROR(StatementsData!E42),0,StatementsData!E42) -> 1.16 | F40: =IF(ISERROR(StatementsData!F42),0,StatementsData!F42) -> 1.59 | G40: =IF(ISERROR(StatementsData!G42),0,StatementsData!G42) -> 2.98 | H40: =IF(ISERROR(StatementsData!H42),0,StatementsData!H42) -> 4.21 | I40: =IF(ISERROR(StatementsData!I42),0,StatementsData!I42) -> 5.37 | J40: =IF(ISERROR(StatementsData!J42),0,StatementsData!J42) -> 5.55 | K40: =IF(ISERROR(StatementsData!K42),0,StatementsData!K42) -> 5.83 | L40: =IF(ISERROR(StatementsData!L42),0,StatementsData!L42) -> 1.45 | M40: =IF(ISERROR(StatementsData!M42),0,StatementsData!M42) -> 4.28 | N40: =IF(ISERROR(StatementsData!N42),0,StatementsData!N42) -> 7.64 | O40: =IF(ISERROR(StatementsData!P42),0,StatementsData!P42) -> 1.57 | P40: =IF(ISERROR(StatementsData!Q42),0,StatementsData!Q42) -> 1.76 | Q40: =IF(ISERROR(StatementsData!R42),0,StatementsData!R42) -> 2.39 | R40: =IF(ISERROR(StatementsData!S42),0,StatementsData!S42) -> 2.44 | S40: =SUM(O40:R40) -> 8.16
B41: Fully Diluted EPS | C41: 9366 | D41: 5876 | E41: =IF(ISERROR(StatementsData!E43),0,StatementsData!E43) -> 1.15 | F41: =IF(ISERROR(StatementsData!F43),0,StatementsData!F43) -> 1.57 | G41: =IF(ISERROR(StatementsData!G43),0,StatementsData!G43) -> 2.88 | H41: =IF(ISERROR(StatementsData!H43),0,StatementsData!H43) -> 4.04 | I41: =IF(ISERROR(StatementsData!I43),0,StatementsData!I43) -> 5.17 | J41: =IF(ISERROR(StatementsData!J43),0,StatementsData!J43) -> 5.37 | K41: =IF(ISERROR(StatementsData!K43),0,StatementsData!K43) -> 5.66 | L41: =IF(ISERROR(StatementsData!L43),0,StatementsData!L43) -> 1.43 | M41: =IF(ISERROR(StatementsData!M43),0,StatementsData!M43) -> 4.15 | N41: =IF(ISERROR(StatementsData!N43),0,StatementsData!N43) -> 7.4 | O41: =IF(ISERROR(StatementsData!P43),0,StatementsData!P43) -> 1.52 | P41: =IF(ISERROR(StatementsData!Q43),0,StatementsData!Q43) -> 1.71 | Q41: =IF(ISERROR(StatementsData!R43),0,StatementsData!R43) -> 2.32 | R41: =IF(ISERROR(StatementsData!S43),0,StatementsData!S43) -> 2.37 | S41: =SUM(O41:R41) -> 7.92
B42: Basic Shares Outstanding | C42: 10946 | D42: 6666 | E42: =IF(ISERROR(StatementsData!E48),0,StatementsData!E48) -> 688 | F42: =IF(ISERROR(StatementsData!F48),0,StatementsData!F48) -> 690.4 | G42: =IF(ISERROR(StatementsData!G48),0,StatementsData!G48) -> 684.6 | H42: =IF(ISERROR(StatementsData!H48),0,StatementsData!H48) -> 678.4 | I42: =IF(ISERROR(StatementsData!I48),0,StatementsData!I48) -> 658.7 | J42: =IF(ISERROR(StatementsData!J48),0,StatementsData!J48) -> 638.2 | K42: =IF(ISERROR(StatementsData!K48),0,StatementsData!K48) -> 610.5 | L42: =IF(ISERROR(StatementsData!L48),0,StatementsData!L48) -> 615.2 | M42: =IF(ISERROR(StatementsData!M48),0,StatementsData!M48) -> 631.5 | N42: =IF(ISERROR(StatementsData!N48),0,StatementsData!N48) -> 645 | O42: =IF(ISERROR(StatementsData!P48),0,StatementsData!P48) -> 645.5 | P42: =IF(ISERROR(StatementsData!Q48),0,StatementsData!Q48) -> 646.6 | Q42: =IF(ISERROR(StatementsData!R48),0,StatementsData!R48) -> 645 | R42: =IF(ISERROR(StatementsData!S48),0,StatementsData!S48) -> 650 | S42: =shares -> 652.5
B43: Diluted Shares Outstanding | C43: 10966 | D43: 6676 | E43: =IF(ISERROR(StatementsData!E49),0,StatementsData!E49) -> 693.8 | F43: =IF(ISERROR(StatementsData!F49),0,StatementsData!F49) -> 702.8 | G43: =IF(ISERROR(StatementsData!G49),0,StatementsData!G49) -> 707.4 | H43: =IF(ISERROR(StatementsData!H49),0,StatementsData!H49) -> 705.8 | I43: =IF(ISERROR(StatementsData!I49),0,StatementsData!I49) -> 683.8 | J43: =IF(ISERROR(StatementsData!J49),0,StatementsData!J49) -> 659.5 | K43: =IF(ISERROR(StatementsData!K49),0,StatementsData!K49) -> 627.9 | L43: =IF(ISERROR(StatementsData!L49),0,StatementsData!L49) -> 626 | M43: =IF(ISERROR(StatementsData!M49),0,StatementsData!M49) -> 650.4 | N43: =IF(ISERROR(StatementsData!N49),0,StatementsData!N49) -> 666.1 | O43: =IF(ISERROR(StatementsData!P49),0,StatementsData!P49) -> 667.2 | P43: =IF(ISERROR(StatementsData!Q49),0,StatementsData!Q49) -> 666 | Q43: =IF(ISERROR(StatementsData!R49),0,StatementsData!R49) -> 666.1 | R43: =IF(ISERROR(StatementsData!S49),0,StatementsData!S49) -> 670.2 | S43: =IF(S42>R43,S42,R43) -> 670.2
B44: User Defined Shares Outstanding
A46: Balance Sheet | S46: MRQ
B47: Assets
B48: Cash & Equivalents | E48: =IF(ISERROR(StatementsData!E53),0,StatementsData!E53) -> 309 | F48: =IF(ISERROR(StatementsData!F53),0,StatementsData!F53) -> 342 | G48: =IF(ISERROR(StatementsData!G53),0,StatementsData!G53) -> 445 | H48: =IF(ISERROR(StatementsData!H53),0,StatementsData!H53) -> 1108 | I48: =IF(ISERROR(StatementsData!I53),0,StatementsData!I53) -> 530 | J48: =IF(ISERROR(StatementsData!J53),0,StatementsData!J53) -> 1122 | K48: =IF(ISERROR(StatementsData!K53),0,StatementsData!K53) -> 2736 | L48: =IF(ISERROR(StatementsData!L53),0,StatementsData!L53) -> 4867 | M48: =IF(ISERROR(StatementsData!M53),0,StatementsData!M53) -> 3592 | N48: =IF(ISERROR(StatementsData!N53),0,StatementsData!N53) -> 3057 | O48: =IF(ISERROR(StatementsData!P53),0,StatementsData!P53) -> 10715 | P48: =IF(ISERROR(StatementsData!Q53),0,StatementsData!Q53) -> 3229 | Q48: =IF(ISERROR(StatementsData!R53),0,StatementsData!R53) -> 3057 | R48: =IF(ISERROR(StatementsData!S53),0,StatementsData!S53) -> 2864 | S48: =R48 -> 2864
B49: Short-Term Investments | E49: =IF(ISERROR(StatementsData!E55),0,StatementsData!E55) -> 0 | F49: =IF(ISERROR(StatementsData!F55),0,StatementsData!F55) -> 0 | G49: =IF(ISERROR(StatementsData!G55),0,StatementsData!G55) -> 0 | H49: =IF(ISERROR(StatementsData!H55),0,StatementsData!H55) -> 0 | I49: =IF(ISERROR(StatementsData!I55),0,StatementsData!I55) -> 0 | J49: =IF(ISERROR(StatementsData!J55),0,StatementsData!J55) -> 0 | K49: =IF(ISERROR(StatementsData!K55),0,StatementsData!K55) -> 0 | L49: =IF(ISERROR(StatementsData!L55),0,StatementsData!L55) -> 0 | M49: =IF(ISERROR(StatementsData!M55),0,StatementsData!M55) -> 0 | N49: =IF(ISERROR(StatementsData!N55),0,StatementsData!N55) -> 0 | O49: =IF(ISERROR(StatementsData!P55),0,StatementsData!P55) -> 0 | P49: =IF(ISERROR(StatementsData!Q55),0,StatementsData!Q55) -> 0 | Q49: =IF(ISERROR(StatementsData!R55),0,StatementsData!R55) -> 0 | R49: =IF(ISERROR(StatementsData!S55),0,StatementsData!S55) -> 0 | S49: =R49 -> 0
B50: Net Receivables | E50: =IF(ISERROR(StatementsData!E58),0,StatementsData!E58) -> 9586 | F50: =IF(ISERROR(StatementsData!F58),0,StatementsData!F58) -> 11271 | G50: =IF(ISERROR(StatementsData!G58),0,StatementsData!G58) -> 14126 | H50: =IF(ISERROR(StatementsData!H58),0,StatementsData!H58) -> 13968 | I50: =IF(ISERROR(StatementsData!I58),0,StatementsData!I58) -> 14972 | J50: =IF(ISERROR(StatementsData!J58),0,StatementsData!J58) -> 15752 | K50: =IF(ISERROR(StatementsData!K58),0,StatementsData!K58) -> 18128 | L50: =IF(ISERROR(StatementsData!L58),0,StatementsData!L58) -> 13912 | M50: =IF(ISERROR(StatementsData!M58),0,StatementsData!M58) -> 16792 | N50: =IF(ISERROR(StatementsData!N58),0,StatementsData!N58) -> 17953 | O50: =IF(ISERROR(StatementsData!P58),0,StatementsData!P58) -> 17033 | P50: =IF(ISERROR(StatementsData!Q58),0,StatementsData!Q58) -> 17306 | Q50: =IF(ISERROR(StatementsData!R58),0,StatementsData!R58) -> 17953 | R50: =IF(ISERROR(StatementsData!S58),0,StatementsData!S58) -> 18301 | S50: 18301
B51: % change from prev year | F51: =IF(E50=0,"",(F50-E50)/E50) -> 0.175777175 | G51: =IF(F50=0,"",(G50-F50)/F50) -> 0.2533049419 | H51: =IF(G50=0,"",(H50-G50)/G50) -> -0.01118504885 | I51: 0.07187857961 | J51: 0.0520972482 | K51: 0.1508379888 | L51: -0.2325684025 | M51: 0.2070155262 | N51: 0.0691400667 | O51: =IF(N50=0,"",(O50-N50)/N50) -> -0.05124491728 | P51: 0.01602771091 | Q51: 0.03738587773 | R51: 0.01938394697 | S51: 0.01938394697
B52: Inventories | E52: =IF(ISERROR(StatementsData!E64),0,StatementsData!E64) -> 2763 | F52: =IF(ISERROR(StatementsData!F64),0,StatementsData!F64) -> 3047 | G52: =IF(ISERROR(StatementsData!G64),0,StatementsData!G64) -> 4675 | H52: =IF(ISERROR(StatementsData!H64),0,StatementsData!H64) -> 5224 | I52: =IF(ISERROR(StatementsData!I64),0,StatementsData!I64) -> 6351 | J52: =IF(ISERROR(StatementsData!J64),0,StatementsData!J64) -> 7204 | K52: =IF(ISERROR(StatementsData!K64),0,StatementsData!K64) -> 8781 | L52: =IF(ISERROR(StatementsData!L64),0,StatementsData!L64) -> 6360 | M52: =IF(ISERROR(StatementsData!M64),0,StatementsData!M64) -> 9587 | N52: =IF(ISERROR(StatementsData!N64),0,StatementsData!N64) -> 14544 | O52: =IF(ISERROR(StatementsData!P64),0,StatementsData!P64) -> 11359 | P52: =IF(ISERROR(StatementsData!Q64),0,StatementsData!Q64) -> 14412 | Q52: =IF(ISERROR(StatementsData!R64),0,StatementsData!R64) -> 14544 | R52: =IF(ISERROR(StatementsData!S64),0,StatementsData!S64) -> 16511 | S52: 16511
B53: % change from prev year | F53: =IF(E52=0,"",(F52-E52)/E52) -> 0.1027868259 | G53: 0.5342960289 | H53: 0.1174331551 | I53: 0.2157350689 | J53: 0.1343095575 | K53: 0.2189061632 | L53: -0.275708917 | M53: 0.5073899371 | N53: 0.5170543444 | O53: =IF(N52=0,"",(O52-N52)/N52) -> -0.2189906491 | P53: 0.2687736597 | Q53: 0.009159034138 | R53: 0.1352447745 | S53: 0.1352447745
B54: Prepaid Expenses | E54: =IF(ISERROR(StatementsData!E65),0,StatementsData!E65) -> 1328 | F54: =IF(ISERROR(StatementsData!F65),0,StatementsData!F65) -> 1424 | G54: =IF(ISERROR(StatementsData!G65),0,StatementsData!G65) -> 1369 | H54: =IF(ISERROR(StatementsData!H65),0,StatementsData!H65) -> 2146 | I54: =IF(ISERROR(StatementsData!I65),0,StatementsData!I65) -> 507 | J54: =IF(ISERROR(StatementsData!J65),0,StatementsData!J65) -> 583 | K54: =IF(ISERROR(StatementsData!K65),0,StatementsData!K65) -> 765 | L54: =IF(ISERROR(StatementsData!L65),0,StatementsData!L65) -> 434 | M54: =IF(ISERROR(StatementsData!M65),0,StatementsData!M65) -> 908 | N54: =IF(ISERROR(StatementsData!N65),0,StatementsData!N65) -> 994 | O54: =IF(ISERROR(StatementsData!P65),0,StatementsData!P65) -> 669 | P54: =IF(ISERROR(StatementsData!Q65),0,StatementsData!Q65) -> 795 | Q54: =IF(ISERROR(StatementsData!R65),0,StatementsData!R65) -> 994 | R54: =IF(ISERROR(StatementsData!S65),0,StatementsData!S65) -> 1032 | S54: 1032
B55: Current Deferred Income Taxes | E55: =IF(ISERROR(StatementsData!E66),0,StatementsData!E66) -> 642 | F55: =IF(ISERROR(StatementsData!F66),0,StatementsData!F66) -> 707 | G55: =IF(ISERROR(StatementsData!G66),0,StatementsData!G66) -> 398 | H55: =IF(ISERROR(StatementsData!H66),0,StatementsData!H66) -> 344 | I55: =IF(ISERROR(StatementsData!I66),0,StatementsData!I66) -> 733 | J55: =IF(ISERROR(StatementsData!J66),0,StatementsData!J66) -> 816 | K55: =IF(ISERROR(StatementsData!K66),0,StatementsData!K66) -> 1223 | L55: =IF(ISERROR(StatementsData!L66),0,StatementsData!L66) -> 1216 | M55: =IF(ISERROR(StatementsData!M66),0,StatementsData!M66) -> 931 | N55: =IF(ISERROR(StatementsData!N66),0,StatementsData!N66) -> 1580 | O55: =IF(ISERROR(StatementsData!P66),0,StatementsData!P66) -> 979 | P55: =IF(ISERROR(StatementsData!Q66),0,StatementsData!Q66) -> 1122 | Q55: =IF(ISERROR(StatementsData!R66),0,StatementsData!R66) -> 1580 | R55: =IF(ISERROR(StatementsData!S66),0,StatementsData!S66) -> 1501 | S55: 1501
B56: Other Current Assets | E56: =IF(ISERROR(StatementsData!E67),0,StatementsData!E67) -> 0 | F56: =IF(ISERROR(StatementsData!F67),0,StatementsData!F67) -> 0 | G56: =IF(ISERROR(StatementsData!G67),0,StatementsData!G67) -> -157 | H56: =IF(ISERROR(StatementsData!H67),0,StatementsData!H67) -> 0 | I56: =IF(ISERROR(StatementsData!I67),0,StatementsData!I67) -> 0 | J56: =IF(ISERROR(StatementsData!J67),0,StatementsData!J67) -> 0 | K56: =IF(ISERROR(StatementsData!K67),0,StatementsData!K67) -> 0 | L56: =IF(ISERROR(StatementsData!L67),0,StatementsData!L67) -> 0 | M56: =IF(ISERROR(StatementsData!M67),0,StatementsData!M67) -> 0 | N56: =IF(ISERROR(StatementsData!N67),0,StatementsData!N67) -> 0 | O56: =IF(ISERROR(StatementsData!P67),0,StatementsData!P67) -> 0 | P56: =IF(ISERROR(StatementsData!Q67),0,StatementsData!Q67) -> 0 | Q56: =IF(ISERROR(StatementsData!R67),0,StatementsData!R67) -> 0 | R56: =IF(ISERROR(StatementsData!S67),0,StatementsData!S67) -> 0 | S56: 0
B57: Total Current Assets | E57: =IF(ISERROR(StatementsData!E68),0,StatementsData!E68) -> 14628 | F57: =IF(ISERROR(StatementsData!F68),0,StatementsData!F68) -> 16791 | G57: =IF(ISERROR(StatementsData!G68),0,StatementsData!G68) -> 20856 | H57: =IF(ISERROR(StatementsData!H68),0,StatementsData!H68) -> 22790 | I57: =IF(ISERROR(StatementsData!I68),0,StatementsData!I68) -> 23093 | J57: =IF(ISERROR(StatementsData!J68),0,StatementsData!J68) -> 25477 | K57: =IF(ISERROR(StatementsData!K68),0,StatementsData!K68) -> 31633 | L57: =IF(ISERROR(StatementsData!L68),0,StatementsData!L68) -> 26789 | M57: =IF(ISERROR(StatementsData!M68),0,StatementsData!M68) -> 31810 | N57: =IF(ISERROR(StatementsData!N68),0,StatementsData!N68) -> 38128 | O57: =IF(ISERROR(StatementsData!P68),0,StatementsData!P68) -> 40755 | P57: =IF(ISERROR(StatementsData!Q68),0,StatementsData!Q68) -> 36864 | Q57: =IF(ISERROR(StatementsData!R68),0,StatementsData!R68) -> 38128 | R57: =IF(ISERROR(StatementsData!S68),0,StatementsData!S68) -> 40209 | S57: 40209
B58: Land and Improvements | E58: =IF(ISERROR(StatementsData!E69),0,StatementsData!E69) -> 149 | F58: =IF(ISERROR(StatementsData!F69),0,StatementsData!F69) -> 149 | G58: =IF(ISERROR(StatementsData!G69),0,StatementsData!G69) -> 152 | H58: =IF(ISERROR(StatementsData!H69),0,StatementsData!H69) -> 154 | I58: =IF(ISERROR(StatementsData!I69),0,StatementsData!I69) -> 184 | J58: =IF(ISERROR(StatementsData!J69),0,StatementsData!J69) -> 189 | K58: =IF(ISERROR(StatementsData!K69),0,StatementsData!K69) -> 575 | L58: =IF(ISERROR(StatementsData!L69),0,StatementsData!L69) -> 639 | M58: =IF(ISERROR(StatementsData!M69),0,StatementsData!M69) -> 682 | N58: =IF(ISERROR(StatementsData!N69),0,StatementsData!N69) -> 753 | O58: =IF(ISERROR(StatementsData!P69),0,StatementsData!P69) -> 0 | P58: =IF(ISERROR(StatementsData!Q69),0,StatementsData!Q69) -> 0 | Q58: =IF(ISERROR(StatementsData!R69),0,StatementsData!R69) -> 753 | R58: =IF(ISERROR(StatementsData!S69),0,StatementsData!S69) -> 0 | S58: 0
B59: Building and Improvements | E59: =IF(ISERROR(StatementsData!E70),0,StatementsData!E70) -> 3039 | F59: =IF(ISERROR(StatementsData!F70),0,StatementsData!F70) -> 3006 | G59: =IF(ISERROR(StatementsData!G70),0,StatementsData!G70) -> 3089 | H59: =IF(ISERROR(StatementsData!H70),0,StatementsData!H70) -> 3195 | I59: =IF(ISERROR(StatementsData!I70),0,StatementsData!I70) -> 3407 | J59: =IF(ISERROR(StatementsData!J70),0,StatementsData!J70) -> 3625 | K59: =IF(ISERROR(StatementsData!K70),0,StatementsData!K70) -> 4647 | L59: =IF(ISERROR(StatementsData!L70),0,StatementsData!L70) -> 4914 | M59: =IF(ISERROR(StatementsData!M70),0,StatementsData!M70) -> 5174 | N59: =IF(ISERROR(StatementsData!N70),0,StatementsData!N70) -> 5857 | O59: =IF(ISERROR(StatementsData!P70),0,StatementsData!P70) -> 0 | P59: =IF(ISERROR(StatementsData!Q70),0,StatementsData!Q70) -> 0 | Q59: =IF(ISERROR(StatementsData!R70),0,StatementsData!R70) -> 5857 | R59: =IF(ISERROR(StatementsData!S70),0,StatementsData!S70) -> 0 | S59: 0
B60: Machinery, Furniture & Equipment | E60: =IF(ISERROR(StatementsData!E71),0,StatementsData!E71) -> 10048 | F60: =IF(ISERROR(StatementsData!F71),0,StatementsData!F71) -> 10687 | G60: =IF(ISERROR(StatementsData!G71),0,StatementsData!G71) -> 11336 | H60: =IF(ISERROR(StatementsData!H71),0,StatementsData!H71) -> 11817 | I60: =IF(ISERROR(StatementsData!I71),0,StatementsData!I71) -> 12651 | J60: =IF(ISERROR(StatementsData!J71),0,StatementsData!J71) -> 14312 | K60: =IF(ISERROR(StatementsData!K71),0,StatementsData!K71) -> 16734 | L60: =IF(ISERROR(StatementsData!L71),0,StatementsData!L71) -> 17634 | M60: =IF(ISERROR(StatementsData!M71),0,StatementsData!M71) -> 17858 | N60: =IF(ISERROR(StatementsData!N71),0,StatementsData!N71) -> 18720 | O60: =IF(ISERROR(StatementsData!P71),0,StatementsData!P71) -> 0 | P60: =IF(ISERROR(StatementsData!Q71),0,StatementsData!Q71) -> 0 | Q60: =IF(ISERROR(StatementsData!R71),0,StatementsData!R71) -> 18720 | R60: =IF(ISERROR(StatementsData!S71),0,StatementsData!S71) -> 0 | S60: 0
B61: Construction in Progress | E61: =IF(ISERROR(StatementsData!E72),0,StatementsData!E72) -> 305 | F61: =IF(ISERROR(StatementsData!F72),0,StatementsData!F72) -> 487 | G61: =IF(ISERROR(StatementsData!G72),0,StatementsData!G72) -> 587 | H61: =IF(ISERROR(StatementsData!H72),0,StatementsData!H72) -> 696 | I61: =IF(ISERROR(StatementsData!I72),0,StatementsData!I72) -> 1036 | J61: =IF(ISERROR(StatementsData!J72),0,StatementsData!J72) -> 1082 | K61: =IF(ISERROR(StatementsData!K72),0,StatementsData!K72) -> 1531 | L61: =IF(ISERROR(StatementsData!L72),0,StatementsData!L72) -> 1034 | M61: =IF(ISERROR(StatementsData!M72),0,StatementsData!M72) -> 1192 | N61: =IF(ISERROR(StatementsData!N72),0,StatementsData!N72) -> 1996 | O61: =IF(ISERROR(StatementsData!P72),0,StatementsData!P72) -> 0 | P61: =IF(ISERROR(StatementsData!Q72),0,StatementsData!Q72) -> 0 | Q61: =IF(ISERROR(StatementsData!R72),0,StatementsData!R72) -> 1996 | R61: =IF(ISERROR(StatementsData!S72),0,StatementsData!S72) -> 0 | S61: 0
B62: Other Fixed Assets | E62: =IF(ISERROR(StatementsData!E73),0,StatementsData!E73) -> 0 | F62: =IF(ISERROR(StatementsData!F73),0,StatementsData!F73) -> 0 | G62: =IF(ISERROR(StatementsData!G73),0,StatementsData!G73) -> 0 | H62: =IF(ISERROR(StatementsData!H73),0,StatementsData!H73) -> 0 | I62: =IF(ISERROR(StatementsData!I73),0,StatementsData!I73) -> 0 | J62: =IF(ISERROR(StatementsData!J73),0,StatementsData!J73) -> 0 | K62: =IF(ISERROR(StatementsData!K73),0,StatementsData!K73) -> 0 | L62: =IF(ISERROR(StatementsData!L73),0,StatementsData!L73) -> 0 | M62: =IF(ISERROR(StatementsData!M73),0,StatementsData!M73) -> 0 | N62: =IF(ISERROR(StatementsData!N73),0,StatementsData!N73) -> 0 | O62: =IF(ISERROR(StatementsData!P73),0,StatementsData!P73) -> 12430 | P62: =IF(ISERROR(StatementsData!Q73),0,StatementsData!Q73) -> 13397 | Q62: =IF(ISERROR(StatementsData!R73),0,StatementsData!R73) -> 0 | R62: =IF(ISERROR(StatementsData!S73),0,StatementsData!S73) -> 14571 | S62: 14571
B63: Total Fixed Assets | E63: =IF(ISERROR(StatementsData!E74),0,StatementsData!E74) -> 13541 | F63: =IF(ISERROR(StatementsData!F74),0,StatementsData!F74) -> 14329 | G63: =IF(ISERROR(StatementsData!G74),0,StatementsData!G74) -> 15164 | H63: =IF(ISERROR(StatementsData!H74),0,StatementsData!H74) -> 15862 | I63: =IF(ISERROR(StatementsData!I74),0,StatementsData!I74) -> 17278 | J63: =IF(ISERROR(StatementsData!J74),0,StatementsData!J74) -> 19208 | K63: =IF(ISERROR(StatementsData!K74),0,StatementsData!K74) -> 23487 | L63: =IF(ISERROR(StatementsData!L74),0,StatementsData!L74) -> 24221 | M63: =IF(ISERROR(StatementsData!M74),0,StatementsData!M74) -> 24906 | N63: =IF(ISERROR(StatementsData!N74),0,StatementsData!N74) -> 27326 | O63: =IF(ISERROR(StatementsData!P74),0,StatementsData!P74) -> 12430 | P63: =IF(ISERROR(StatementsData!Q74),0,StatementsData!Q74) -> 13397 | Q63: =IF(ISERROR(StatementsData!R74),0,StatementsData!R74) -> 27326 | R63: =IF(ISERROR(StatementsData!S74),0,StatementsData!S74) -> 14571 | S63: 14571
B64: Net Fixed Assets | E64: =IF(ISERROR(StatementsData!E76),0,StatementsData!E76) -> 7046 | F64: =IF(ISERROR(StatementsData!F76),0,StatementsData!F76) -> 7290 | G64: =IF(ISERROR(StatementsData!G76),0,StatementsData!G76) -> 7682 | H64: =IF(ISERROR(StatementsData!H76),0,StatementsData!H76) -> 7988 | I64: =IF(ISERROR(StatementsData!I76),0,StatementsData!I76) -> 8851 | J64: =IF(ISERROR(StatementsData!J76),0,StatementsData!J76) -> 9997 | K64: =IF(ISERROR(StatementsData!K76),0,StatementsData!K76) -> 12524 | L64: =IF(ISERROR(StatementsData!L76),0,StatementsData!L76) -> 12386 | M64: =IF(ISERROR(StatementsData!M76),0,StatementsData!M76) -> 12539 | N64: =IF(ISERROR(StatementsData!N76),0,StatementsData!N76) -> 14395 | O64: =IF(ISERROR(StatementsData!P76),0,StatementsData!P76) -> 12430 | P64: =IF(ISERROR(StatementsData!Q76),0,StatementsData!Q76) -> 13397 | Q64: =IF(ISERROR(StatementsData!R76),0,StatementsData!R76) -> 14395 | R64: =IF(ISERROR(StatementsData!S76),0,StatementsData!S76) -> 14571 | S64: 14571
B65: Intangible Assets | E65: =IF(ISERROR(StatementsData!E77),0,StatementsData!E77) -> 1683 | F65: =IF(ISERROR(StatementsData!F77),0,StatementsData!F77) -> 1637 | G65: =IF(ISERROR(StatementsData!G77),0,StatementsData!G77) -> 1765 | H65: =IF(ISERROR(StatementsData!H77),0,StatementsData!H77) -> 1875 | I65: =IF(ISERROR(StatementsData!I77),0,StatementsData!I77) -> 387 | J65: =IF(ISERROR(StatementsData!J77),0,StatementsData!J77) -> 475 | K65: =IF(ISERROR(StatementsData!K77),0,StatementsData!K77) -> 511 | L65: =IF(ISERROR(StatementsData!L77),0,StatementsData!L77) -> 465 | M65: =IF(ISERROR(StatementsData!M77),0,StatementsData!M77) -> 805 | N65: =IF(ISERROR(StatementsData!N77),0,StatementsData!N77) -> 4368 | O65: =IF(ISERROR(StatementsData!P77),0,StatementsData!P77) -> 775 | P65: =IF(ISERROR(StatementsData!Q77),0,StatementsData!Q77) -> 4529 | Q65: =IF(ISERROR(StatementsData!R77),0,StatementsData!R77) -> 4368 | R65: =IF(ISERROR(StatementsData!S77),0,StatementsData!S77) -> 4287 | S65: 4287
B66: Other Long-Term Assets | E66: =IF(ISERROR(StatementsData!E78),0,StatementsData!E78) -> 8644 | F66: =IF(ISERROR(StatementsData!F78),0,StatementsData!F78) -> 10131 | G66: =IF(ISERROR(StatementsData!G78),0,StatementsData!G78) -> 12114 | H66: =IF(ISERROR(StatementsData!H78),0,StatementsData!H78) -> 13648 | I66: =IF(ISERROR(StatementsData!I78),0,StatementsData!I78) -> 14695 | J66: =IF(ISERROR(StatementsData!J78),0,StatementsData!J78) -> 16667 | K66: =IF(ISERROR(StatementsData!K78),0,StatementsData!K78) -> 17542 | L66: =IF(ISERROR(StatementsData!L78),0,StatementsData!L78) -> 15415 | M66: =IF(ISERROR(StatementsData!M78),0,StatementsData!M78) -> 13759 | N66: =IF(ISERROR(StatementsData!N78),0,StatementsData!N78) -> 15318 | O66: =IF(ISERROR(StatementsData!P78),0,StatementsData!P78) -> 14654 | P66: =IF(ISERROR(StatementsData!Q78),0,StatementsData!Q78) -> 14393 | Q66: =IF(ISERROR(StatementsData!R78),0,StatementsData!R78) -> 15318 | R66: =IF(ISERROR(StatementsData!S78),0,StatementsData!S78) -> 15678 | S66: 15678
B67: Total Long-Term Assets | E67: =IF(ISERROR(StatementsData!E79),0,StatementsData!E79) -> 18223 | F67: =IF(ISERROR(StatementsData!F79),0,StatementsData!F79) -> 19674 | G67: =IF(ISERROR(StatementsData!G79),0,StatementsData!G79) -> 22235 | H67: =IF(ISERROR(StatementsData!H79),0,StatementsData!H79) -> 24279 | I67: =IF(ISERROR(StatementsData!I79),0,StatementsData!I79) -> 27786 | J67: =IF(ISERROR(StatementsData!J79),0,StatementsData!J79) -> 30655 | K67: =IF(ISERROR(StatementsData!K79),0,StatementsData!K79) -> 36149 | L67: =IF(ISERROR(StatementsData!L79),0,StatementsData!L79) -> 33249 | M67: =IF(ISERROR(StatementsData!M79),0,StatementsData!M79) -> 32210 | N67: =IF(ISERROR(StatementsData!N79),0,StatementsData!N79) -> 43318 | O67: =IF(ISERROR(StatementsData!P79),0,StatementsData!P79) -> 32856 | P67: =IF(ISERROR(StatementsData!Q79),0,StatementsData!Q79) -> 40903 | Q67: =IF(ISERROR(StatementsData!R79),0,StatementsData!R79) -> 43318 | R67: =IF(ISERROR(StatementsData!S79),0,StatementsData!S79) -> 43699 | S67: 43699
B68: Total Assets | E68: =IF(ISERROR(StatementsData!E80),0,StatementsData!E80) -> 32851 | F68: =IF(ISERROR(StatementsData!F80),0,StatementsData!F80) -> 36465 | G68: =IF(ISERROR(StatementsData!G80),0,StatementsData!G80) -> 43091 | H68: =IF(ISERROR(StatementsData!H80),0,StatementsData!H80) -> 47069 | I68: =IF(ISERROR(StatementsData!I80),0,StatementsData!I80) -> 50879 | J68: =IF(ISERROR(StatementsData!J80),0,StatementsData!J80) -> 56132 | K68: =IF(ISERROR(StatementsData!K80),0,StatementsData!K80) -> 67782 | L68: =IF(ISERROR(StatementsData!L80),0,StatementsData!L80) -> 60038 | M68: =IF(ISERROR(StatementsData!M80),0,StatementsData!M80) -> 64020 | N68: =IF(ISERROR(StatementsData!N80),0,StatementsData!N80) -> 81446 | O68: =IF(ISERROR(StatementsData!P80),0,StatementsData!P80) -> 73611 | P68: =IF(ISERROR(StatementsData!Q80),0,StatementsData!Q80) -> 77767 | Q68: =IF(ISERROR(StatementsData!R80),0,StatementsData!R80) -> 81446 | R68: =IF(ISERROR(StatementsData!S80),0,StatementsData!S80) -> 83908 | S68: 83908
B69: Liabilities & Stockholders' Equity
B70: Accounts payable | E70: =IF(ISERROR(StatementsData!E82),0,StatementsData!E82) -> 2269 | F70: =IF(ISERROR(StatementsData!F82),0,StatementsData!F82) -> 3100 | G70: =IF(ISERROR(StatementsData!G82),0,StatementsData!G82) -> 3990 | H70: =IF(ISERROR(StatementsData!H82),0,StatementsData!H82) -> 3471 | I70: =IF(ISERROR(StatementsData!I82),0,StatementsData!I82) -> 4085 | J70: =IF(ISERROR(StatementsData!J82),0,StatementsData!J82) -> 4723 | K70: =IF(ISERROR(StatementsData!K82),0,StatementsData!K82) -> 4827 | L70: =IF(ISERROR(StatementsData!L82),0,StatementsData!L82) -> 2993 | M70: =IF(ISERROR(StatementsData!M82),0,StatementsData!M82) -> 5856 | N70: =IF(ISERROR(StatementsData!N82),0,StatementsData!N82) -> 8161 | O70: =IF(ISERROR(StatementsData!P82),0,StatementsData!P82) -> 6858 | P70: =IF(ISERROR(StatementsData!Q82),0,StatementsData!Q82) -> 7524 | Q70: =IF(ISERROR(StatementsData!R82),0,StatementsData!R82) -> 8161 | R70: =IF(ISERROR(StatementsData!S82),0,StatementsData!S82) -> 8360 | S70: =R70 -> 8360
B71: Short-Term Debt | E71: =IF(ISERROR(StatementsData!E84),0,StatementsData!E84) -> 6087 | F71: =IF(ISERROR(StatementsData!F84),0,StatementsData!F84) -> 5738 | G71: =IF(ISERROR(StatementsData!G84),0,StatementsData!G84) -> 7688 | H71: =IF(ISERROR(StatementsData!H84),0,StatementsData!H84) -> 10068 | I71: =IF(ISERROR(StatementsData!I84),0,StatementsData!I84) -> 9616 | J71: =IF(ISERROR(StatementsData!J84),0,StatementsData!J84) -> 10600 | K71: =IF(ISERROR(StatementsData!K84),0,StatementsData!K84) -> 12701 | L71: =IF(ISERROR(StatementsData!L84),0,StatementsData!L84) -> 9784 | M71: =IF(ISERROR(StatementsData!M84),0,StatementsData!M84) -> 7981 | N71: =IF(ISERROR(StatementsData!N84),0,StatementsData!N84) -> 9648 | O71: =IF(ISERROR(StatementsData!P84),0,StatementsData!P84) -> 8456 | P71: =IF(ISERROR(StatementsData!Q84),0,StatementsData!Q84) -> 7508 | Q71: =IF(ISERROR(StatementsData!R84),0,StatementsData!R84) -> 9648 | R71: =IF(ISERROR(StatementsData!S84),0,StatementsData!S84) -> 10762 | S71: =R71 -> 10762
B72: Taxes Payable | E72: =IF(ISERROR(StatementsData!E88),0,StatementsData!E88) -> 70 | F72: =IF(ISERROR(StatementsData!F88),0,StatementsData!F88) -> 216 | G72: =IF(ISERROR(StatementsData!G88),0,StatementsData!G88) -> 259 | H72: =IF(ISERROR(StatementsData!H88),0,StatementsData!H88) -> 528 | I72: =IF(ISERROR(StatementsData!I88),0,StatementsData!I88) -> 575 | J72: =IF(ISERROR(StatementsData!J88),0,StatementsData!J88) -> 0 | K72: =IF(ISERROR(StatementsData!K88),0,StatementsData!K88) -> 0 | L72: =IF(ISERROR(StatementsData!L88),0,StatementsData!L88) -> 0 | M72: =IF(ISERROR(StatementsData!M88),0,StatementsData!M88) -> 0 | N72: =IF(ISERROR(StatementsData!N88),0,StatementsData!N88) -> 0 | O72: =IF(ISERROR(StatementsData!P88),0,StatementsData!P88) -> 0 | P72: =IF(ISERROR(StatementsData!Q88),0,StatementsData!Q88) -> 0 | Q72: =IF(ISERROR(StatementsData!R88),0,StatementsData!R88) -> 0 | R72: =IF(ISERROR(StatementsData!S88),0,StatementsData!S88) -> 0 | S72: 0
B73: Accrued Liabilities | E73: =IF(ISERROR(StatementsData!E86),0,StatementsData!E86) -> 120 | F73: =IF(ISERROR(StatementsData!F86),0,StatementsData!F86) -> 1802 | G73: =IF(ISERROR(StatementsData!G86),0,StatementsData!G86) -> 1730 | H73: =IF(ISERROR(StatementsData!H86),0,StatementsData!H86) -> 1845 | I73: =IF(ISERROR(StatementsData!I86),0,StatementsData!I86) -> 938 | J73: =IF(ISERROR(StatementsData!J86),0,StatementsData!J86) -> 1126 | K73: =IF(ISERROR(StatementsData!K86),0,StatementsData!K86) -> 5363 | L73: =IF(ISERROR(StatementsData!L86),0,StatementsData!L86) -> 4148 | M73: =IF(ISERROR(StatementsData!M86),0,StatementsData!M86) -> 4550 | N73: =IF(ISERROR(StatementsData!N86),0,StatementsData!N86) -> 5796 | O73: =IF(ISERROR(StatementsData!P86),0,StatementsData!P86) -> 4447 | P73: =IF(ISERROR(StatementsData!Q86),0,StatementsData!Q86) -> 5248 | Q73: =IF(ISERROR(StatementsData!R86),0,StatementsData!R86) -> 5796 | R73: =IF(ISERROR(StatementsData!S86),0,StatementsData!S86) -> 4800 | S73: 4800
B74: Other Current Liabilities | E74: =IF(ISERROR(StatementsData!E89),0,StatementsData!E89) -> 1298 | F74: =IF(ISERROR(StatementsData!F89),0,StatementsData!F89) -> 127 | G74: =IF(ISERROR(StatementsData!G89),0,StatementsData!G89) -> 696 | H74: =IF(ISERROR(StatementsData!H89),0,StatementsData!H89) -> 563 | I74: =IF(ISERROR(StatementsData!I89),0,StatementsData!I89) -> 1115 | J74: =IF(ISERROR(StatementsData!J89),0,StatementsData!J89) -> 2618 | K74: =IF(ISERROR(StatementsData!K89),0,StatementsData!K89) -> 3178 | L74: =IF(ISERROR(StatementsData!L89),0,StatementsData!L89) -> 2367 | M74: =IF(ISERROR(StatementsData!M89),0,StatementsData!M89) -> 3633 | N74: =IF(ISERROR(StatementsData!N89),0,StatementsData!N89) -> 4956 | O74: =IF(ISERROR(StatementsData!P89),0,StatementsData!P89) -> 3749 | P74: =IF(ISERROR(StatementsData!Q89),0,StatementsData!Q89) -> 4938 | Q74: =IF(ISERROR(StatementsData!R89),0,StatementsData!R89) -> 4956 | R74: =IF(ISERROR(StatementsData!S89),0,StatementsData!S89) -> 4927 | S74: 4927
B75: Total Current Liabilities | E75: =IF(ISERROR(StatementsData!E90),0,StatementsData!E90) -> 11344 | F75: =IF(ISERROR(StatementsData!F90),0,StatementsData!F90) -> 12621 | G75: =IF(ISERROR(StatementsData!G90),0,StatementsData!G90) -> 16210 | H75: =IF(ISERROR(StatementsData!H90),0,StatementsData!H90) -> 19092 | I75: =IF(ISERROR(StatementsData!I90),0,StatementsData!I90) -> 19252 | J75: =IF(ISERROR(StatementsData!J90),0,StatementsData!J90) -> 22245 | K75: =IF(ISERROR(StatementsData!K90),0,StatementsData!K90) -> 26069 | L75: =IF(ISERROR(StatementsData!L90),0,StatementsData!L90) -> 19292 | M75: =IF(ISERROR(StatementsData!M90),0,StatementsData!M90) -> 22020 | N75: =IF(ISERROR(StatementsData!N90),0,StatementsData!N90) -> 28561 | O75: =IF(ISERROR(StatementsData!P90),0,StatementsData!P90) -> 23510 | P75: =IF(ISERROR(StatementsData!Q90),0,StatementsData!Q90) -> 25218 | Q75: =IF(ISERROR(StatementsData!R90),0,StatementsData!R90) -> 28561 | R75: =IF(ISERROR(StatementsData!S90),0,StatementsData!S90) -> 28849 | S75: 28849
B76: Long-Term Debt | E76: =IF(ISERROR(StatementsData!E91),0,StatementsData!E91) -> 11596 | F76: =IF(ISERROR(StatementsData!F91),0,StatementsData!F91) -> 14078 | G76: =IF(ISERROR(StatementsData!G91),0,StatementsData!G91) -> 15837 | H76: =IF(ISERROR(StatementsData!H91),0,StatementsData!H91) -> 15677 | I76: =IF(ISERROR(StatementsData!I91),0,StatementsData!I91) -> 17680 | J76: =IF(ISERROR(StatementsData!J91),0,StatementsData!J91) -> 17829 | K76: =IF(ISERROR(StatementsData!K91),0,StatementsData!K91) -> 22834 | L76: =IF(ISERROR(StatementsData!L91),0,StatementsData!L91) -> 21847 | M76: =IF(ISERROR(StatementsData!M91),0,StatementsData!M91) -> 20437 | N76: =IF(ISERROR(StatementsData!N91),0,StatementsData!N91) -> 24944 | O76: =IF(ISERROR(StatementsData!P91),0,StatementsData!P91) -> 25926 | P76: =IF(ISERROR(StatementsData!Q91),0,StatementsData!Q91) -> 26781 | Q76: =IF(ISERROR(StatementsData!R91),0,StatementsData!R91) -> 24944 | R76: =IF(ISERROR(StatementsData!S91),0,StatementsData!S91) -> 25191 | S76: 25191
B77: Other Non Current Liabilities | E77: =IF(ISERROR(StatementsData!E94),0,StatementsData!E94) -> 4038 | F77: =IF(ISERROR(StatementsData!F94),0,StatementsData!F94) -> 3172 | G77: =IF(ISERROR(StatementsData!G94),0,StatementsData!G94) -> 2986 | H77: =IF(ISERROR(StatementsData!H94),0,StatementsData!H94) -> 2991 | I77: =IF(ISERROR(StatementsData!I94),0,StatementsData!I94) -> 5879 | J77: =IF(ISERROR(StatementsData!J94),0,StatementsData!J94) -> 7175 | K77: =IF(ISERROR(StatementsData!K94),0,StatementsData!K94) -> 12792 | L77: =IF(ISERROR(StatementsData!L94),0,StatementsData!L94) -> 10076 | M77: =IF(ISERROR(StatementsData!M94),0,StatementsData!M94) -> 10699 | N77: =IF(ISERROR(StatementsData!N94),0,StatementsData!N94) -> 15012 | O77: =IF(ISERROR(StatementsData!P94),0,StatementsData!P94) -> 10739 | P77: =IF(ISERROR(StatementsData!Q94),0,StatementsData!Q94) -> 11555 | Q77: =IF(ISERROR(StatementsData!R94),0,StatementsData!R94) -> 15012 | R77: =IF(ISERROR(StatementsData!S94),0,StatementsData!S94) -> 14852 | S77: 14852
B78: Deferred Income Taxes | E78: =IF(ISERROR(StatementsData!E93),0,StatementsData!E93) -> 401 | F78: =IF(ISERROR(StatementsData!F93),0,StatementsData!F93) -> 516 | G78: =IF(ISERROR(StatementsData!G93),0,StatementsData!G93) -> 591 | H78: =IF(ISERROR(StatementsData!H93),0,StatementsData!H93) -> 877 | I78: =IF(ISERROR(StatementsData!I93),0,StatementsData!I93) -> 1209 | J78: =IF(ISERROR(StatementsData!J93),0,StatementsData!J93) -> 0 | K78: =IF(ISERROR(StatementsData!K93),0,StatementsData!K93) -> 0 | L78: =IF(ISERROR(StatementsData!L93),0,StatementsData!L93) -> 0 | M78: =IF(ISERROR(StatementsData!M93),0,StatementsData!M93) -> 0 | N78: =IF(ISERROR(StatementsData!N93),0,StatementsData!N93) -> 0 | O78: =IF(ISERROR(StatementsData!P93),0,StatementsData!P93) -> 0 | P78: =IF(ISERROR(StatementsData!Q93),0,StatementsData!Q93) -> 0 | Q78: =IF(ISERROR(StatementsData!R93),0,StatementsData!R93) -> 0 | R78: =IF(ISERROR(StatementsData!S93),0,StatementsData!S93) -> 0 | S78: 0
B79: Minority Interest (deleted) | S79: 0
B80: Total Long-Term Liabilities | E80: =IF(ISERROR(StatementsData!E96),0,StatementsData!E96) -> 16035 | F80: =IF(ISERROR(StatementsData!F96),0,StatementsData!F96) -> 17766 | G80: =IF(ISERROR(StatementsData!G96),0,StatementsData!G96) -> 19414 | H80: =IF(ISERROR(StatementsData!H96),0,StatementsData!H96) -> 19545 | I80: =IF(ISERROR(StatementsData!I96),0,StatementsData!I96) -> 24768 | J80: =IF(ISERROR(StatementsData!J96),0,StatementsData!J96) -> 25004 | K80: =IF(ISERROR(StatementsData!K96),0,StatementsData!K96) -> 35626 | L80: =IF(ISERROR(StatementsData!L96),0,StatementsData!L96) -> 32006 | M80: =IF(ISERROR(StatementsData!M96),0,StatementsData!M96) -> 31176 | N80: =IF(ISERROR(StatementsData!N96),0,StatementsData!N96) -> 40002 | O80: =IF(ISERROR(StatementsData!P96),0,StatementsData!P96) -> 36710 | P80: =IF(ISERROR(StatementsData!Q96),0,StatementsData!Q96) -> 38387 | Q80: =IF(ISERROR(StatementsData!R96),0,StatementsData!R96) -> 40002 | R80: =IF(ISERROR(StatementsData!S96),0,StatementsData!S96) -> 40090 | S80: 40090
B81: Total Liabilities | E81: =SUM(E75,E80) -> 27379 | F81: =SUM(F75,F80) -> 30387 | G81: 35624 | H81: 38637 | I81: 44020 | J81: 47249 | K81: 61695 | L81: 51298 | M81: 53196 | N81: 68563 | O81: =SUM(O75,O80) -> 60220 | P81: =SUM(P75,P80) -> 63605 | Q81: =SUM(Q75,Q80) -> 68563 | R81: =SUM(R75,R80) -> 68939 | S81: 68939
B82: Retained Earnings | E82: =IF(ISERROR(StatementsData!E99),0,StatementsData!E99) -> 7849 | F82: =IF(ISERROR(StatementsData!F99),0,StatementsData!F99) -> 8450 | G82: =IF(ISERROR(StatementsData!G99),0,StatementsData!G99) -> 9937 | H82: =IF(ISERROR(StatementsData!H99),0,StatementsData!H99) -> 11808 | I82: =IF(ISERROR(StatementsData!I99),0,StatementsData!I99) -> 14593 | J82: =IF(ISERROR(StatementsData!J99),0,StatementsData!J99) -> 17398 | K82: =IF(ISERROR(StatementsData!K99),0,StatementsData!K99) -> 19826 | L82: =IF(ISERROR(StatementsData!L99),0,StatementsData!L99) -> 19711 | M82: =IF(ISERROR(StatementsData!M99),0,StatementsData!M99) -> 21384 | N82: =IF(ISERROR(StatementsData!N99),0,StatementsData!N99) -> 25219 | O82: =IF(ISERROR(StatementsData!P99),0,StatementsData!P99) -> 23081 | P82: =IF(ISERROR(StatementsData!Q99),0,StatementsData!Q99) -> 24251 | Q82: =IF(ISERROR(StatementsData!R99),0,StatementsData!R99) -> 25219 | R82: =IF(ISERROR(StatementsData!S99),0,StatementsData!S99) -> 26815 | S82: 26815
B83: Preferred Equity | E83: =IF(ISERROR(StatementsData!E97),0,StatementsData!E97) -> 0 | F83: =IF(ISERROR(StatementsData!F97),0,StatementsData!F97) -> 0 | G83: =IF(ISERROR(StatementsData!G97),0,StatementsData!G97) -> 0 | H83: =IF(ISERROR(StatementsData!H97),0,StatementsData!H97) -> 0 | I83: =IF(ISERROR(StatementsData!I97),0,StatementsData!I97) -> 0 | J83: =IF(ISERROR(StatementsData!J97),0,StatementsData!J97) -> 0 | K83: =IF(ISERROR(StatementsData!K97),0,StatementsData!K97) -> 0 | L83: =IF(ISERROR(StatementsData!L97),0,StatementsData!L97) -> 0 | M83: =IF(ISERROR(StatementsData!M97),0,StatementsData!M97) -> 0 | N83: =IF(ISERROR(StatementsData!N97),0,StatementsData!N97) -> 0 | O83: =IF(ISERROR(StatementsData!P97),0,StatementsData!P97) -> 0 | P83: =IF(ISERROR(StatementsData!Q97),0,StatementsData!Q97) -> 0 | Q83: =IF(ISERROR(StatementsData!R97),0,StatementsData!R97) -> 0 | R83: =IF(ISERROR(StatementsData!S97),0,StatementsData!S97) -> 0 | S83: 0
B84: Total Equity | E84: =IF(ISERROR(StatementsData!E101),0,StatementsData!E101) -> 5472 | F84: =IF(ISERROR(StatementsData!F101),0,StatementsData!F101) -> 6078 | G84: =IF(ISERROR(StatementsData!G101),0,StatementsData!G101) -> 7467 | H84: =IF(ISERROR(StatementsData!H101),0,StatementsData!H101) -> 8432 | I84: =IF(ISERROR(StatementsData!I101),0,StatementsData!I101) -> 6859 | J84: =IF(ISERROR(StatementsData!J101),0,StatementsData!J101) -> 8883 | K84: =IF(ISERROR(StatementsData!K101),0,StatementsData!K101) -> 6087 | L84: =IF(ISERROR(StatementsData!L101),0,StatementsData!L101) -> 8740 | M84: =IF(ISERROR(StatementsData!M101),0,StatementsData!M101) -> 10824 | N84: =IF(ISERROR(StatementsData!N101),0,StatementsData!N101) -> 12883 | O84: =IF(ISERROR(StatementsData!P101),0,StatementsData!P101) -> 13391 | P84: =IF(ISERROR(StatementsData!Q101),0,StatementsData!Q101) -> 14162 | Q84: =IF(ISERROR(StatementsData!R101),0,StatementsData!R101) -> 12883 | R84: =IF(ISERROR(StatementsData!S101),0,StatementsData!S101) -> 14969 | S84: 14969
B85: Total Liabilities & Equity | E85: =IF(ISERROR(StatementsData!E102),0,StatementsData!E102) -> 32851 | F85: =IF(ISERROR(StatementsData!F102),0,StatementsData!F102) -> 36465 | G85: =IF(ISERROR(StatementsData!G102),0,StatementsData!G102) -> 43091 | H85: =IF(ISERROR(StatementsData!H102),0,StatementsData!H102) -> 47069 | I85: =IF(ISERROR(StatementsData!I102),0,StatementsData!I102) -> 50879 | J85: =IF(ISERROR(StatementsData!J102),0,StatementsData!J102) -> 56132 | K85: =IF(ISERROR(StatementsData!K102),0,StatementsData!K102) -> 67782 | L85: =IF(ISERROR(StatementsData!L102),0,StatementsData!L102) -> 60038 | M85: =IF(ISERROR(StatementsData!M102),0,StatementsData!M102) -> 64020 | N85: =IF(ISERROR(StatementsData!N102),0,StatementsData!N102) -> 81446 | O85: =IF(ISERROR(StatementsData!P102),0,StatementsData!P102) -> 73611 | P85: =IF(ISERROR(StatementsData!Q102),0,StatementsData!Q102) -> 77767 | Q85: =IF(ISERROR(StatementsData!R102),0,StatementsData!R102) -> 81446 | R85: =IF(ISERROR(StatementsData!S102),0,StatementsData!S102) -> 83908 | S85: 83908
A87: Cash Flows Statement | S87: TTM
B88: Cash Flows From Operating Activities
B89: Net Income | E89: =IF(ISERROR(StatementsData!E109),0,StatementsData!E109) -> 798 | F89: =IF(ISERROR(StatementsData!F109),0,StatementsData!F109) -> 1099 | G89: =IF(ISERROR(StatementsData!G109),0,StatementsData!G109) -> 2035 | H89: =IF(ISERROR(StatementsData!H109),0,StatementsData!H109) -> 2854 | I89: =IF(ISERROR(StatementsData!I109),0,StatementsData!I109) -> 3537 | J89: =IF(ISERROR(StatementsData!J109),0,StatementsData!J109) -> 3541 | K89: =IF(ISERROR(StatementsData!K109),0,StatementsData!K109) -> 3557 | L89: =IF(ISERROR(StatementsData!L109),0,StatementsData!L109) -> 827 | M89: =IF(ISERROR(StatementsData!M109),0,StatementsData!M109) -> 2758 | N89: =IF(ISERROR(StatementsData!N109),0,StatementsData!N109) -> 4981 | O89: =IF(ISERROR(StatementsData!P109),0,StatementsData!P109) -> 2265 | P89: =IF(ISERROR(StatementsData!Q109),0,StatementsData!Q109) -> 3419 | Q89: =IF(ISERROR(StatementsData!R109),0,StatementsData!R109) -> 4981 | R89: =IF(ISERROR(StatementsData!S109),0,StatementsData!S109) -> 1611 | S89: =StatementsData!T109 -> 5349
B90: Depreciation & Amortization | E90: =IF(ISERROR(StatementsData!E110),0,StatementsData!E110) -> 1220 | F90: =IF(ISERROR(StatementsData!F110),0,StatementsData!F110) -> 1347 | G90: =IF(ISERROR(StatementsData!G110),0,StatementsData!G110) -> 1397 | H90: =IF(ISERROR(StatementsData!H110),0,StatementsData!H110) -> 1477 | I90: =IF(ISERROR(StatementsData!I110),0,StatementsData!I110) -> 1602 | J90: =IF(ISERROR(StatementsData!J110),0,StatementsData!J110) -> 1797 | K90: =IF(ISERROR(StatementsData!K110),0,StatementsData!K110) -> 1980 | L90: =IF(ISERROR(StatementsData!L110),0,StatementsData!L110) -> 2336 | M90: =IF(ISERROR(StatementsData!M110),0,StatementsData!M110) -> 2296 | N90: =IF(ISERROR(StatementsData!N110),0,StatementsData!N110) -> 2527 | O90: =IF(ISERROR(StatementsData!P110),0,StatementsData!P110) -> 599 | P90: =IF(ISERROR(StatementsData!Q110),0,StatementsData!Q110) -> 658 | Q90: =IF(ISERROR(StatementsData!R110),0,StatementsData!R110) -> 695 | R90: =IF(ISERROR(StatementsData!S110),0,StatementsData!S110) -> 661 | S90: =StatementsData!T110 -> 781
B91: Deferred Income Taxes | E91: =IF(ISERROR(StatementsData!E113),0,StatementsData!E113) -> 0 | F91: =IF(ISERROR(StatementsData!F113),0,StatementsData!F113) -> 0 | G91: =IF(ISERROR(StatementsData!G113),0,StatementsData!G113) -> 0 | H91: =IF(ISERROR(StatementsData!H113),0,StatementsData!H113) -> 0 | I91: =IF(ISERROR(StatementsData!I113),0,StatementsData!I113) -> 0 | J91: =IF(ISERROR(StatementsData!J113),0,StatementsData!J113) -> 0 | K91: =IF(ISERROR(StatementsData!K113),0,StatementsData!K113) -> 0 | L91: =IF(ISERROR(StatementsData!L113),0,StatementsData!L113) -> 0 | M91: =IF(ISERROR(StatementsData!M113),0,StatementsData!M113) -> 0 | N91: =IF(ISERROR(StatementsData!N113),0,StatementsData!N113) -> 0 | O91: =IF(ISERROR(StatementsData!P113),0,StatementsData!P113) -> 0 | P91: =IF(ISERROR(StatementsData!Q113),0,StatementsData!Q113) -> 0 | Q91: =IF(ISERROR(StatementsData!R113),0,StatementsData!R113) -> 0 | R91: =IF(ISERROR(StatementsData!S113),0,StatementsData!S113) -> 0 | S91: =StatementsData!T113 -> 0
B92: Operating Gains | E92: =IF(ISERROR(StatementsData!E114),0,StatementsData!E114) -> 306 | F92: =IF(ISERROR(StatementsData!F114),0,StatementsData!F114) -> -15 | G92: =IF(ISERROR(StatementsData!G114),0,StatementsData!G114) -> -113 | H92: =IF(ISERROR(StatementsData!H114),0,StatementsData!H114) -> -20 | I92: =IF(ISERROR(StatementsData!I114),0,StatementsData!I114) -> 197 | J92: =IF(ISERROR(StatementsData!J114),0,StatementsData!J114) -> 199 | K92: =IF(ISERROR(StatementsData!K114),0,StatementsData!K114) -> 0 | L92: =IF(ISERROR(StatementsData!L114),0,StatementsData!L114) -> 0 | M92: =IF(ISERROR(StatementsData!M114),0,StatementsData!M114) -> 0 | N92: =IF(ISERROR(StatementsData!N114),0,StatementsData!N114) -> 0 | O92: =IF(ISERROR(StatementsData!P114),0,StatementsData!P114) -> 0 | P92: =IF(ISERROR(StatementsData!Q114),0,StatementsData!Q114) -> 0 | Q92: =IF(ISERROR(StatementsData!R114),0,StatementsData!R114) -> 0 | R92: =IF(ISERROR(StatementsData!S114),0,StatementsData!S114) -> 0 | S92: =StatementsData!T114 -> 0
B93: Extraordinary Gains | E93: =IF(ISERROR(StatementsData!E115),0,StatementsData!E115) -> 0 | F93: =IF(ISERROR(StatementsData!F115),0,StatementsData!F115) -> 0 | G93: =IF(ISERROR(StatementsData!G115),0,StatementsData!G115) -> 0 | H93: =IF(ISERROR(StatementsData!H115),0,StatementsData!H115) -> 0 | I93: =IF(ISERROR(StatementsData!I115),0,StatementsData!I115) -> 0 | J93: =IF(ISERROR(StatementsData!J115),0,StatementsData!J115) -> 0 | K93: =IF(ISERROR(StatementsData!K115),0,StatementsData!K115) -> 0 | L93: =IF(ISERROR(StatementsData!L115),0,StatementsData!L115) -> 0 | M93: =IF(ISERROR(StatementsData!M115),0,StatementsData!M115) -> 0 | N93: =IF(ISERROR(StatementsData!N115),0,StatementsData!N115) -> 0 | O93: =IF(ISERROR(StatementsData!P115),0,StatementsData!P115) -> 0 | P93: =IF(ISERROR(StatementsData!Q115),0,StatementsData!Q115) -> 0 | Q93: =IF(ISERROR(StatementsData!R115),0,StatementsData!R115) -> 0 | R93: =IF(ISERROR(StatementsData!S115),0,StatementsData!S115) -> 0 | S93: =StatementsData!T115 -> 0
B94: (Incr) Decr. in Receivables | E94: =IF(ISERROR(StatementsData!E116),0,StatementsData!E116) -> -50 | F94: =IF(ISERROR(StatementsData!F116),0,StatementsData!F116) -> -521 | G94: =IF(ISERROR(StatementsData!G116),0,StatementsData!G116) -> -7616 | H94: =IF(ISERROR(StatementsData!H116),0,StatementsData!H116) -> -908 | I94: =IF(ISERROR(StatementsData!I116),0,StatementsData!I116) -> -89 | J94: =IF(ISERROR(StatementsData!J116),0,StatementsData!J116) -> 899 | K94: =IF(ISERROR(StatementsData!K116),0,StatementsData!K116) -> -545 | L94: =IF(ISERROR(StatementsData!L116),0,StatementsData!L116) -> 4014 | M94: =IF(ISERROR(StatementsData!M116),0,StatementsData!M116) -> -2320 | N94: =IF(ISERROR(StatementsData!N116),0,StatementsData!N116) -> -1345 | O94: =IF(ISERROR(StatementsData!P116),0,StatementsData!P116) -> 45 | P94: =IF(ISERROR(StatementsData!Q116),0,StatementsData!Q116) -> -254 | Q94: =IF(ISERROR(StatementsData!R116),0,StatementsData!R116) -> -1345 | R94: =IF(ISERROR(StatementsData!S116),0,StatementsData!S116) -> 150 | S94: =StatementsData!T116 -> -1178
B95: (Incr) Decr. in Inventories | E95: =IF(ISERROR(StatementsData!E117),0,StatementsData!E117) -> 162 | F95: =IF(ISERROR(StatementsData!F117),0,StatementsData!F117) -> -286 | G95: =IF(ISERROR(StatementsData!G117),0,StatementsData!G117) -> -1391 | H95: =IF(ISERROR(StatementsData!H117),0,StatementsData!H117) -> -568 | I95: =IF(ISERROR(StatementsData!I117),0,StatementsData!I117) -> -827 | J95: =IF(ISERROR(StatementsData!J117),0,StatementsData!J117) -> -745 | K95: =IF(ISERROR(StatementsData!K117),0,StatementsData!K117) -> -833 | L95: =IF(ISERROR(StatementsData!L117),0,StatementsData!L117) -> 2501 | M95: =IF(ISERROR(StatementsData!M117),0,StatementsData!M117) -> -2667 | N95: =IF(ISERROR(StatementsData!N117),0,StatementsData!N117) -> -2927 | O95: =IF(ISERROR(StatementsData!P117),0,StatementsData!P117) -> -1850 | P95: =IF(ISERROR(StatementsData!Q117),0,StatementsData!Q117) -> -2716 | Q95: =IF(ISERROR(StatementsData!R117),0,StatementsData!R117) -> -2927 | R95: =IF(ISERROR(StatementsData!S117),0,StatementsData!S117) -> -2038 | S95: =StatementsData!T117 -> -3780
B96: (Incr) Decr. in Prepaid Expenses | E96: =IF(ISERROR(StatementsData!E118),0,StatementsData!E118) -> 0 | F96: =IF(ISERROR(StatementsData!F118),0,StatementsData!F118) -> 0 | G96: =IF(ISERROR(StatementsData!G118),0,StatementsData!G118) -> 0 | H96: =IF(ISERROR(StatementsData!H118),0,StatementsData!H118) -> 0 | I96: =IF(ISERROR(StatementsData!I118),0,StatementsData!I118) -> 0 | J96: =IF(ISERROR(StatementsData!J118),0,StatementsData!J118) -> 0 | K96: =IF(ISERROR(StatementsData!K118),0,StatementsData!K118) -> 0 | L96: =IF(ISERROR(StatementsData!L118),0,StatementsData!L118) -> 0 | M96: =IF(ISERROR(StatementsData!M118),0,StatementsData!M118) -> 0 | N96: =IF(ISERROR(StatementsData!N118),0,StatementsData!N118) -> 0 | O96: =IF(ISERROR(StatementsData!P118),0,StatementsData!P118) -> 0 | P96: =IF(ISERROR(StatementsData!Q118),0,StatementsData!Q118) -> 0 | Q96: =IF(ISERROR(StatementsData!R118),0,StatementsData!R118) -> 0 | R96: =IF(ISERROR(StatementsData!S118),0,StatementsData!S118) -> 0 | S96: =StatementsData!T118 -> 0
B97: (Incr) Decr. in Other Current Assets | E97: =IF(ISERROR(StatementsData!E119),0,StatementsData!E119) -> 0 | F97: =IF(ISERROR(StatementsData!F119),0,StatementsData!F119) -> 0 | G97: =IF(ISERROR(StatementsData!G119),0,StatementsData!G119) -> 0 | H97: =IF(ISERROR(StatementsData!H119),0,StatementsData!H119) -> 0 | I97: =IF(ISERROR(StatementsData!I119),0,StatementsData!I119) -> 0 | J97: =IF(ISERROR(StatementsData!J119),0,StatementsData!J119) -> 0 | K97: =IF(ISERROR(StatementsData!K119),0,StatementsData!K119) -> 0 | L97: =IF(ISERROR(StatementsData!L119),0,StatementsData!L119) -> 0 | M97: =IF(ISERROR(StatementsData!M119),0,StatementsData!M119) -> 0 | N97: =IF(ISERROR(StatementsData!N119),0,StatementsData!N119) -> 0 | O97: =IF(ISERROR(StatementsData!P119),0,StatementsData!P119) -> 0 | P97: =IF(ISERROR(StatementsData!Q119),0,StatementsData!Q119) -> 0 | Q97: =IF(ISERROR(StatementsData!R119),0,StatementsData!R119) -> 0 | R97: =IF(ISERROR(StatementsData!S119),0,StatementsData!S119) -> 0 | S97: =StatementsData!T119 -> 0
B98: Decr. (Incr) in payables | E98: =IF(ISERROR(StatementsData!E120),0,StatementsData!E120) -> 164 | F98: =IF(ISERROR(StatementsData!F120),0,StatementsData!F120) -> 617 | G98: =IF(ISERROR(StatementsData!G120),0,StatementsData!G120) -> 1457 | H98: =IF(ISERROR(StatementsData!H120),0,StatementsData!H120) -> 532 | I98: =IF(ISERROR(StatementsData!I120),0,StatementsData!I120) -> 670 | J98: =IF(ISERROR(StatementsData!J120),0,StatementsData!J120) -> 618 | K98: =IF(ISERROR(StatementsData!K120),0,StatementsData!K120) -> 656 | L98: =IF(ISERROR(StatementsData!L120),0,StatementsData!L120) -> -2034 | M98: =IF(ISERROR(StatementsData!M120),0,StatementsData!M120) -> 2570 | N98: =IF(ISERROR(StatementsData!N120),0,StatementsData!N120) -> 1555 | O98: =IF(ISERROR(StatementsData!P120),0,StatementsData!P120) -> 1056 | P98: =IF(ISERROR(StatementsData!Q120),0,StatementsData!Q120) -> 1308 | Q98: =IF(ISERROR(StatementsData!R120),0,StatementsData!R120) -> 1555 | R98: =IF(ISERROR(StatementsData!S120),0,StatementsData!S120) -> 517 | S98: =StatementsData!T120 -> 1708
B99: Decr. (Incr) in Other Current Liabilities | E99: =IF(ISERROR(StatementsData!E121),0,StatementsData!E121) -> 0 | F99: =IF(ISERROR(StatementsData!F121),0,StatementsData!F121) -> 0 | G99: =IF(ISERROR(StatementsData!G121),0,StatementsData!G121) -> 0 | H99: =IF(ISERROR(StatementsData!H121),0,StatementsData!H121) -> 0 | I99: =IF(ISERROR(StatementsData!I121),0,StatementsData!I121) -> 0 | J99: =IF(ISERROR(StatementsData!J121),0,StatementsData!J121) -> 576 | K99: =IF(ISERROR(StatementsData!K121),0,StatementsData!K121) -> 286 | L99: =IF(ISERROR(StatementsData!L121),0,StatementsData!L121) -> -1151 | M99: =IF(ISERROR(StatementsData!M121),0,StatementsData!M121) -> 1568 | N99: =IF(ISERROR(StatementsData!N121),0,StatementsData!N121) -> 1100 | O99: =IF(ISERROR(StatementsData!P121),0,StatementsData!P121) -> -118 | P99: =IF(ISERROR(StatementsData!Q121),0,StatementsData!Q121) -> 742 | Q99: =IF(ISERROR(StatementsData!R121),0,StatementsData!R121) -> 1100 | R99: =IF(ISERROR(StatementsData!S121),0,StatementsData!S121) -> -792 | S99: =StatementsData!T121 -> 914
B100: Decr. (Incr) in Other Working Capital | E100: =IF(ISERROR(StatementsData!E122),0,StatementsData!E122) -> -234 | F100: =IF(ISERROR(StatementsData!F122),0,StatementsData!F122) -> -175 | G100: =IF(ISERROR(StatementsData!G122),0,StatementsData!G122) -> 240 | H100: =IF(ISERROR(StatementsData!H122),0,StatementsData!H122) -> -254 | I100: =IF(ISERROR(StatementsData!I122),0,StatementsData!I122) -> 709 | J100: =IF(ISERROR(StatementsData!J122),0,StatementsData!J122) -> 1050 | K100: =IF(ISERROR(StatementsData!K122),0,StatementsData!K122) -> -697 | L100: =IF(ISERROR(StatementsData!L122),0,StatementsData!L122) -> -287 | M100: =IF(ISERROR(StatementsData!M122),0,StatementsData!M122) -> 335 | N100: =IF(ISERROR(StatementsData!N122),0,StatementsData!N122) -> 662 | O100: =IF(ISERROR(StatementsData!P122),0,StatementsData!P122) -> 385 | P100: =IF(ISERROR(StatementsData!Q122),0,StatementsData!Q122) -> 626 | Q100: =IF(ISERROR(StatementsData!R122),0,StatementsData!R122) -> 662 | R100: =IF(ISERROR(StatementsData!S122),0,StatementsData!S122) -> 239 | S100: =StatementsData!T122 -> 605
B101: Other Non Cash Items | E101: =IF(ISERROR(StatementsData!E123),0,StatementsData!E123) -> 0 | F101: =IF(ISERROR(StatementsData!F123),0,StatementsData!F123) -> 0 | G101: =IF(ISERROR(StatementsData!G123),0,StatementsData!G123) -> 0 | H101: =IF(ISERROR(StatementsData!H123),0,StatementsData!H123) -> 0 | I101: =IF(ISERROR(StatementsData!I123),0,StatementsData!I123) -> 0 | J101: =IF(ISERROR(StatementsData!J123),0,StatementsData!J123) -> 0 | K101: =IF(ISERROR(StatementsData!K123),0,StatementsData!K123) -> 383 | L101: =IF(ISERROR(StatementsData!L123),0,StatementsData!L123) -> 137 | M101: =IF(ISERROR(StatementsData!M123),0,StatementsData!M123) -> 469 | N101: =IF(ISERROR(StatementsData!N123),0,StatementsData!N123) -> 457 | O101: =IF(ISERROR(StatementsData!P123),0,StatementsData!P123) -> 337 | P101: =IF(ISERROR(StatementsData!Q123),0,StatementsData!Q123) -> 558 | Q101: =IF(ISERROR(StatementsData!R123),0,StatementsData!R123) -> 457 | R101: =IF(ISERROR(StatementsData!S123),0,StatementsData!S123) -> -18 | S101: =StatementsData!T123 -> 344
B102: Net Cash From Operating Activities | E102: =IF(ISERROR(StatementsData!E126),0,StatementsData!E126) -> 2366 | F102: =IF(ISERROR(StatementsData!F126),0,StatementsData!F126) -> 2066 | G102: =IF(ISERROR(StatementsData!G126),0,StatementsData!G126) -> -3991 | H102: =IF(ISERROR(StatementsData!H126),0,StatementsData!H126) -> 3113 | I102: =IF(ISERROR(StatementsData!I126),0,StatementsData!I126) -> 5799 | J102: =IF(ISERROR(StatementsData!J126),0,StatementsData!J126) -> 7935 | K102: =IF(ISERROR(StatementsData!K126),0,StatementsData!K126) -> 4787 | L102: =IF(ISERROR(StatementsData!L126),0,StatementsData!L126) -> 6343 | M102: =IF(ISERROR(StatementsData!M126),0,StatementsData!M126) -> 5009 | N102: =IF(ISERROR(StatementsData!N126),0,StatementsData!N126) -> 7010 | O102: =IF(ISERROR(StatementsData!P126),0,StatementsData!P126) -> 3294 | P102: =IF(ISERROR(StatementsData!Q126),0,StatementsData!Q126) -> 5515 | Q102: =IF(ISERROR(StatementsData!R126),0,StatementsData!R126) -> 7010 | R102: =IF(ISERROR(StatementsData!S126),0,StatementsData!S126) -> 330 | S102: =StatementsData!T126 -> 6575
B103: Cash Flows From Investing Activities
B104: Sale of Long-term Investments | E104: =IF(ISERROR(StatementsData!E129),0,StatementsData!E129) -> 0 | F104: =IF(ISERROR(StatementsData!F129),0,StatementsData!F129) -> 0 | G104: =IF(ISERROR(StatementsData!G129),0,StatementsData!G129) -> 0 | H104: =IF(ISERROR(StatementsData!H129),0,StatementsData!H129) -> 0 | I104: =IF(ISERROR(StatementsData!I129),0,StatementsData!I129) -> 0 | J104: =IF(ISERROR(StatementsData!J129),0,StatementsData!J129) -> 0 | K104: =IF(ISERROR(StatementsData!K129),0,StatementsData!K129) -> 357 | L104: =IF(ISERROR(StatementsData!L129),0,StatementsData!L129) -> 291 | M104: =IF(ISERROR(StatementsData!M129),0,StatementsData!M129) -> 0 | N104: =IF(ISERROR(StatementsData!N129),0,StatementsData!N129) -> 9081 | O104: =IF(ISERROR(StatementsData!P129),0,StatementsData!P129) -> 4085 | P104: =IF(ISERROR(StatementsData!Q129),0,StatementsData!Q129) -> 6609 | Q104: =IF(ISERROR(StatementsData!R129),0,StatementsData!R129) -> 9081 | R104: =IF(ISERROR(StatementsData!S129),0,StatementsData!S129) -> 2111 | S104: =StatementsData!T129 -> 9197
B105: Sale of Short-term Investments | E105: =IF(ISERROR(StatementsData!E130),0,StatementsData!E130) -> 0 | F105: =IF(ISERROR(StatementsData!F130),0,StatementsData!F130) -> 0 | G105: =IF(ISERROR(StatementsData!G130),0,StatementsData!G130) -> 0 | H105: =IF(ISERROR(StatementsData!H130),0,StatementsData!H130) -> 257 | I105: =IF(ISERROR(StatementsData!I130),0,StatementsData!I130) -> 539 | J105: =IF(ISERROR(StatementsData!J130),0,StatementsData!J130) -> 572 | K105: =IF(ISERROR(StatementsData!K130),0,StatementsData!K130) -> 10666 | L105: =IF(ISERROR(StatementsData!L130),0,StatementsData!L130) -> 9388 | M105: =IF(ISERROR(StatementsData!M130),0,StatementsData!M130) -> 228 | N105: =IF(ISERROR(StatementsData!N130),0,StatementsData!N130) -> 247 | O105: =IF(ISERROR(StatementsData!P130),0,StatementsData!P130) -> 122 | P105: =IF(ISERROR(StatementsData!Q130),0,StatementsData!Q130) -> 180 | Q105: =IF(ISERROR(StatementsData!R130),0,StatementsData!R130) -> 247 | R105: =IF(ISERROR(StatementsData!S130),0,StatementsData!S130) -> 112 | S105: =StatementsData!T130 -> 293
B106: Capital Expenditures | E106: =IF(ISERROR(StatementsData!E131),0,StatementsData!E131) -> -1773 | F106: =IF(ISERROR(StatementsData!F131),0,StatementsData!F131) -> -1765 | G106: =IF(ISERROR(StatementsData!G131),0,StatementsData!G131) -> -2114 | H106: =IF(ISERROR(StatementsData!H131),0,StatementsData!H131) -> -2415 | I106: =IF(ISERROR(StatementsData!I131),0,StatementsData!I131) -> -2675 | J106: =IF(ISERROR(StatementsData!J131),0,StatementsData!J131) -> -3040 | K106: =IF(ISERROR(StatementsData!K131),0,StatementsData!K131) -> -1566 | L106: =IF(ISERROR(StatementsData!L131),0,StatementsData!L131) -> -968 | M106: =IF(ISERROR(StatementsData!M131),0,StatementsData!M131) -> -1011 | N106: =IF(ISERROR(StatementsData!N131),0,StatementsData!N131) -> -1409 | O106: =IF(ISERROR(StatementsData!P131),0,StatementsData!P131) -> -580 | P106: =IF(ISERROR(StatementsData!Q131),0,StatementsData!Q131) -> -984 | Q106: =IF(ISERROR(StatementsData!R131),0,StatementsData!R131) -> -1409 | R106: =IF(ISERROR(StatementsData!S131),0,StatementsData!S131) -> -285 | S106: =StatementsData!T131 -> -1477
B107: Acquisitions | E107: =IF(ISERROR(StatementsData!E132),0,StatementsData!E132) -> 0 | F107: =IF(ISERROR(StatementsData!F132),0,StatementsData!F132) -> 0 | G107: =IF(ISERROR(StatementsData!G132),0,StatementsData!G132) -> 0 | H107: =IF(ISERROR(StatementsData!H132),0,StatementsData!H132) -> 0 | I107: =IF(ISERROR(StatementsData!I132),0,StatementsData!I132) -> -513 | J107: =IF(ISERROR(StatementsData!J132),0,StatementsData!J132) -> -229 | K107: =IF(ISERROR(StatementsData!K132),0,StatementsData!K132) -> -117 | L107: =IF(ISERROR(StatementsData!L132),0,StatementsData!L132) -> -19 | M107: =IF(ISERROR(StatementsData!M132),0,StatementsData!M132) -> -1126 | N107: =IF(ISERROR(StatementsData!N132),0,StatementsData!N132) -> -7808 | O107: =IF(ISERROR(StatementsData!P132),0,StatementsData!P132) -> -47 | P107: =IF(ISERROR(StatementsData!Q132),0,StatementsData!Q132) -> -7392 | Q107: =IF(ISERROR(StatementsData!R132),0,StatementsData!R132) -> -7808 | R107: =IF(ISERROR(StatementsData!S132),0,StatementsData!S132) -> -63 | S107: =StatementsData!T132 -> -7884
B108: Sale of Assets | E108: =IF(ISERROR(StatementsData!E128),0,StatementsData!E128) -> 561 | F108: =IF(ISERROR(StatementsData!F128),0,StatementsData!F128) -> 761 | G108: =IF(ISERROR(StatementsData!G128),0,StatementsData!G128) -> 673 | H108: =IF(ISERROR(StatementsData!H128),0,StatementsData!H128) -> 637 | I108: =IF(ISERROR(StatementsData!I128),0,StatementsData!I128) -> 572 | J108: =IF(ISERROR(StatementsData!J128),0,StatementsData!J128) -> 408 | K108: =IF(ISERROR(StatementsData!K128),0,StatementsData!K128) -> 982 | L108: =IF(ISERROR(StatementsData!L128),0,StatementsData!L128) -> 1242 | M108: =IF(ISERROR(StatementsData!M128),0,StatementsData!M128) -> 1469 | N108: =IF(ISERROR(StatementsData!N128),0,StatementsData!N128) -> 1354 | O108: =IF(ISERROR(StatementsData!P128),0,StatementsData!P128) -> 621 | P108: =IF(ISERROR(StatementsData!Q128),0,StatementsData!Q128) -> 922 | Q108: =IF(ISERROR(StatementsData!R128),0,StatementsData!R128) -> 1354 | R108: =IF(ISERROR(StatementsData!S128),0,StatementsData!S128) -> 245 | S108: =StatementsData!T128 -> 1297
B109: Purchase of Long-term Investments | E109: =IF(ISERROR(StatementsData!E133),0,StatementsData!E133) -> 0 | F109: =IF(ISERROR(StatementsData!F133),0,StatementsData!F133) -> 0 | G109: =IF(ISERROR(StatementsData!G133),0,StatementsData!G133) -> 0 | H109: =IF(ISERROR(StatementsData!H133),0,StatementsData!H133) -> 0 | I109: =IF(ISERROR(StatementsData!I133),0,StatementsData!I133) -> 0 | J109: =IF(ISERROR(StatementsData!J133),0,StatementsData!J133) -> 0 | K109: =IF(ISERROR(StatementsData!K133),0,StatementsData!K133) -> -339 | L109: =IF(ISERROR(StatementsData!L133),0,StatementsData!L133) -> -349 | M109: =IF(ISERROR(StatementsData!M133),0,StatementsData!M133) -> 0 | N109: =IF(ISERROR(StatementsData!N133),0,StatementsData!N133) -> -10001 | O109: =IF(ISERROR(StatementsData!P133),0,StatementsData!P133) -> -4294 | P109: =IF(ISERROR(StatementsData!Q133),0,StatementsData!Q133) -> -7091 | Q109: =IF(ISERROR(StatementsData!R133),0,StatementsData!R133) -> -10001 | R109: =IF(ISERROR(StatementsData!S133),0,StatementsData!S133) -> -2727 | S109: =StatementsData!T133 -> -10720
B110: Purchase of Short-term Investments | E110: =IF(ISERROR(StatementsData!E134),0,StatementsData!E134) -> 0 | F110: =IF(ISERROR(StatementsData!F134),0,StatementsData!F134) -> 0 | G110: =IF(ISERROR(StatementsData!G134),0,StatementsData!G134) -> 0 | H110: =IF(ISERROR(StatementsData!H134),0,StatementsData!H134) -> -338 | I110: =IF(ISERROR(StatementsData!I134),0,StatementsData!I134) -> -681 | J110: =IF(ISERROR(StatementsData!J134),0,StatementsData!J134) -> -714 | K110: =IF(ISERROR(StatementsData!K134),0,StatementsData!K134) -> -14031 | L110: =IF(ISERROR(StatementsData!L134),0,StatementsData!L134) -> -7107 | M110: =IF(ISERROR(StatementsData!M134),0,StatementsData!M134) -> -217 | N110: =IF(ISERROR(StatementsData!N134),0,StatementsData!N134) -> -336 | O110: =IF(ISERROR(StatementsData!P134),0,StatementsData!P134) -> -131 | P110: =IF(ISERROR(StatementsData!Q134),0,StatementsData!Q134) -> -216 | Q110: =IF(ISERROR(StatementsData!R134),0,StatementsData!R134) -> -336 | R110: =IF(ISERROR(StatementsData!S134),0,StatementsData!S134) -> -123 | S110: =StatementsData!T134 -> -387
B111: Other Investing Changes, Net | E111: =IF(ISERROR(StatementsData!E135),0,StatementsData!E135) -> -1496 | F111: =IF(ISERROR(StatementsData!F135),0,StatementsData!F135) -> -1557 | G111: =IF(ISERROR(StatementsData!G135),0,StatementsData!G135) -> 3518 | H111: =IF(ISERROR(StatementsData!H135),0,StatementsData!H135) -> -1666 | I111: =IF(ISERROR(StatementsData!I135),0,StatementsData!I135) -> -1038 | J111: =IF(ISERROR(StatementsData!J135),0,StatementsData!J135) -> -1405 | K111: =IF(ISERROR(StatementsData!K135),0,StatementsData!K135) -> -2248 | L111: =IF(ISERROR(StatementsData!L135),0,StatementsData!L135) -> -1476 | M111: =IF(ISERROR(StatementsData!M135),0,StatementsData!M135) -> -938 | N111: =IF(ISERROR(StatementsData!N135),0,StatementsData!N135) -> -2555 | O111: =IF(ISERROR(StatementsData!P135),0,StatementsData!P135) -> -962 | P111: =IF(ISERROR(StatementsData!Q135),0,StatementsData!Q135) -> -1478 | Q111: =IF(ISERROR(StatementsData!R135),0,StatementsData!R135) -> -2555 | R111: =IF(ISERROR(StatementsData!S135),0,StatementsData!S135) -> -806 | S111: =StatementsData!T135 -> -2848
B112: Net Cash From Investing Activities | E112: =IF(ISERROR(StatementsData!E137),0,StatementsData!E137) -> -2708 | F112: =IF(ISERROR(StatementsData!F137),0,StatementsData!F137) -> -2561 | G112: =IF(ISERROR(StatementsData!G137),0,StatementsData!G137) -> 2077 | H112: =IF(ISERROR(StatementsData!H137),0,StatementsData!H137) -> -3525 | I112: =IF(ISERROR(StatementsData!I137),0,StatementsData!I137) -> -3796 | J112: =IF(ISERROR(StatementsData!J137),0,StatementsData!J137) -> -4408 | K112: =IF(ISERROR(StatementsData!K137),0,StatementsData!K137) -> -6296 | L112: =IF(ISERROR(StatementsData!L137),0,StatementsData!L137) -> 1002 | M112: =IF(ISERROR(StatementsData!M137),0,StatementsData!M137) -> -1595 | N112: =IF(ISERROR(StatementsData!N137),0,StatementsData!N137) -> -11427 | O112: =IF(ISERROR(StatementsData!P137),0,StatementsData!P137) -> -1186 | P112: =IF(ISERROR(StatementsData!Q137),0,StatementsData!Q137) -> -9450 | Q112: =IF(ISERROR(StatementsData!R137),0,StatementsData!R137) -> -11427 | R112: =IF(ISERROR(StatementsData!S137),0,StatementsData!S137) -> -1536 | S112: =StatementsData!T137 -> -12529
B113: Cash Flows From Financing Activities
B114: Issuance of Capital Stock | E114: =IF(ISERROR(StatementsData!E140),0,StatementsData!E140) -> 10 | F114: =IF(ISERROR(StatementsData!F140),0,StatementsData!F140) -> 157 | G114: =IF(ISERROR(StatementsData!G140),0,StatementsData!G140) -> 317 | H114: =IF(ISERROR(StatementsData!H140),0,StatementsData!H140) -> 482 | I114: =IF(ISERROR(StatementsData!I140),0,StatementsData!I140) -> 414 | J114: =IF(ISERROR(StatementsData!J140),0,StatementsData!J140) -> 328 | K114: =IF(ISERROR(StatementsData!K140),0,StatementsData!K140) -> 135 | L114: =IF(ISERROR(StatementsData!L140),0,StatementsData!L140) -> 89 | M114: =IF(ISERROR(StatementsData!M140),0,StatementsData!M140) -> 296 | N114: =IF(ISERROR(StatementsData!N140),0,StatementsData!N140) -> 123 | O114: =IF(ISERROR(StatementsData!P140),0,StatementsData!P140) -> 96 | P114: =IF(ISERROR(StatementsData!Q140),0,StatementsData!Q140) -> 110 | Q114: =IF(ISERROR(StatementsData!R140),0,StatementsData!R140) -> 123 | R114: =IF(ISERROR(StatementsData!S140),0,StatementsData!S140) -> 7 | S114: =StatementsData!T140 -> 72
B115: Repurchase of Capital Stock | E115: =IF(ISERROR(StatementsData!E142),0,StatementsData!E142) -> 0 | F115: =IF(ISERROR(StatementsData!F142),0,StatementsData!F142) -> -405 | G115: =IF(ISERROR(StatementsData!G142),0,StatementsData!G142) -> -539 | H115: =IF(ISERROR(StatementsData!H142),0,StatementsData!H142) -> -1684 | I115: =IF(ISERROR(StatementsData!I142),0,StatementsData!I142) -> -3208 | J115: =IF(ISERROR(StatementsData!J142),0,StatementsData!J142) -> -2461 | K115: =IF(ISERROR(StatementsData!K142),0,StatementsData!K142) -> -1838 | L115: =IF(ISERROR(StatementsData!L142),0,StatementsData!L142) -> -6 | M115: =IF(ISERROR(StatementsData!M142),0,StatementsData!M142) -> -132 | N115: =IF(ISERROR(StatementsData!N142),0,StatementsData!N142) -> -8 | O115: =IF(ISERROR(StatementsData!P142),0,StatementsData!P142) -> 0 | P115: =IF(ISERROR(StatementsData!Q142),0,StatementsData!Q142) -> 0 | Q115: =IF(ISERROR(StatementsData!R142),0,StatementsData!R142) -> -8 | R115: =IF(ISERROR(StatementsData!S142),0,StatementsData!S142) -> 0 | S115: =StatementsData!T142 -> -8
B116: Net Issuance of Stock | E116: =E114+E115 -> 10 | F116: =F114+F115 -> -248 | G116: -222 | H116: -1202 | I116: -2794 | J116: -2133 | K116: -1703 | L116: 83 | M116: 164 | N116: 115 | O116: 96 | P116: 110 | Q116: 115 | R116: 7 | S116: 64
B117: Issuance of Debt | E117: =IF(ISERROR(StatementsData!E139),0,StatementsData!E139) -> 4137 | F117: =IF(ISERROR(StatementsData!F139),0,StatementsData!F139) -> 5489 | G117: =IF(ISERROR(StatementsData!G139),0,StatementsData!G139) -> 5638 | H117: =IF(ISERROR(StatementsData!H139),0,StatementsData!H139) -> 14593 | I117: =IF(ISERROR(StatementsData!I139),0,StatementsData!I139) -> 11269 | J117: =IF(ISERROR(StatementsData!J139),0,StatementsData!J139) -> 11039 | K117: =IF(ISERROR(StatementsData!K139),0,StatementsData!K139) -> 20004 | L117: =IF(ISERROR(StatementsData!L139),0,StatementsData!L139) -> 12291 | M117: =IF(ISERROR(StatementsData!M139),0,StatementsData!M139) -> 8324 | N117: =IF(ISERROR(StatementsData!N139),0,StatementsData!N139) -> 15460 | O117: =IF(ISERROR(StatementsData!P139),0,StatementsData!P139) -> 10329 | P117: =IF(ISERROR(StatementsData!Q139),0,StatementsData!Q139) -> 13247 | Q117: =IF(ISERROR(StatementsData!R139),0,StatementsData!R139) -> 15460 | R117: =IF(ISERROR(StatementsData!S139),0,StatementsData!S139) -> 2502 | S117: =StatementsData!T139 -> 16657
B118: Repayment of Debt | E118: =IF(ISERROR(StatementsData!E141),0,StatementsData!E141) -> -3441 | F118: =IF(ISERROR(StatementsData!F141),0,StatementsData!F141) -> -4237 | G118: =IF(ISERROR(StatementsData!G141),0,StatementsData!G141) -> -3008 | H118: =IF(ISERROR(StatementsData!H141),0,StatementsData!H141) -> -11620 | I118: =IF(ISERROR(StatementsData!I141),0,StatementsData!I141) -> -10511 | J118: =IF(ISERROR(StatementsData!J141),0,StatementsData!J141) -> -11185 | K118: =IF(ISERROR(StatementsData!K141),0,StatementsData!K141) -> -14439 | L118: =IF(ISERROR(StatementsData!L141),0,StatementsData!L141) -> -16571 | M118: =IF(ISERROR(StatementsData!M141),0,StatementsData!M141) -> -12170 | N118: =IF(ISERROR(StatementsData!N141),0,StatementsData!N141) -> -10636 | O118: =IF(ISERROR(StatementsData!P141),0,StatementsData!P141) -> -5125 | P118: =IF(ISERROR(StatementsData!Q141),0,StatementsData!Q141) -> -9049 | Q118: =IF(ISERROR(StatementsData!R141),0,StatementsData!R141) -> -10636 | R118: =IF(ISERROR(StatementsData!S141),0,StatementsData!S141) -> -1372 | S118: =StatementsData!T141 -> -10233
B119: Net Issuance of Debt | E119: =E117+E118 -> 696 | F119: =F117+F118 -> 1252 | G119: 2630 | H119: 2973 | I119: 758 | J119: -146 | K119: 5565 | L119: -4280 | M119: -3846 | N119: 4824 | O119: 5204 | P119: 4198 | Q119: 4824 | R119: 1130 | S119: 6424
B120: Dividends Paid | E120: =IF(ISERROR(StatementsData!E143),0,StatementsData!E143) -> -481 | F120: =IF(ISERROR(StatementsData!F143),0,StatementsData!F143) -> -491 | G120: =IF(ISERROR(StatementsData!G143),0,StatementsData!G143) -> -534 | H120: =IF(ISERROR(StatementsData!H143),0,StatementsData!H143) -> -618 | I120: =IF(ISERROR(StatementsData!I143),0,StatementsData!I143) -> -726 | J120: =IF(ISERROR(StatementsData!J143),0,StatementsData!J143) -> -845 | K120: =IF(ISERROR(StatementsData!K143),0,StatementsData!K143) -> -953 | L120: =IF(ISERROR(StatementsData!L143),0,StatementsData!L143) -> -1039 | M120: =IF(ISERROR(StatementsData!M143),0,StatementsData!M143) -> -1084 | N120: =IF(ISERROR(StatementsData!N143),0,StatementsData!N143) -> -1162 | O120: =IF(ISERROR(StatementsData!P143),0,StatementsData!P143) -> -567 | P120: =IF(ISERROR(StatementsData!Q143),0,StatementsData!Q143) -> -865 | Q120: =IF(ISERROR(StatementsData!R143),0,StatementsData!R143) -> -1162 | R120: =IF(ISERROR(StatementsData!S143),0,StatementsData!S143) -> -302 | S120: =StatementsData!T143 -> -1183
B121: Cash from Financing | E121: =IF(ISERROR(StatementsData!E146),0,StatementsData!E146) -> 225 | F121: =IF(ISERROR(StatementsData!F146),0,StatementsData!F146) -> 513 | G121: =IF(ISERROR(StatementsData!G146),0,StatementsData!G146) -> 1874 | H121: =IF(ISERROR(StatementsData!H146),0,StatementsData!H146) -> 1153 | I121: =IF(ISERROR(StatementsData!I146),0,StatementsData!I146) -> -2593 | J121: =IF(ISERROR(StatementsData!J146),0,StatementsData!J146) -> -2969 | K121: =IF(ISERROR(StatementsData!K146),0,StatementsData!K146) -> 2965 | L121: =IF(ISERROR(StatementsData!L146),0,StatementsData!L146) -> -5215 | M121: =IF(ISERROR(StatementsData!M146),0,StatementsData!M146) -> -4613 | N121: =IF(ISERROR(StatementsData!N146),0,StatementsData!N146) -> 3966 | O121: =IF(ISERROR(StatementsData!P146),0,StatementsData!P146) -> 4928 | P121: =IF(ISERROR(StatementsData!Q146),0,StatementsData!Q146) -> 3612 | Q121: =IF(ISERROR(StatementsData!R146),0,StatementsData!R146) -> 3966 | R121: =IF(ISERROR(StatementsData!S146),0,StatementsData!S146) -> 976 | S121: =StatementsData!T146 -> 4052
B122: Cash at Beginning of the Period | E122: =IF(ISERROR(StatementsData!E150),0,StatementsData!E150) -> 400 | F122: =IF(ISERROR(StatementsData!F150),0,StatementsData!F150) -> 309 | G122: =IF(ISERROR(StatementsData!G150),0,StatementsData!G150) -> 342 | H122: =IF(ISERROR(StatementsData!H150),0,StatementsData!H150) -> 445 | I122: =IF(ISERROR(StatementsData!I150),0,StatementsData!I150) -> 1108 | J122: =IF(ISERROR(StatementsData!J150),0,StatementsData!J150) -> 530 | K122: =IF(ISERROR(StatementsData!K150),0,StatementsData!K150) -> 1122 | L122: =IF(ISERROR(StatementsData!L150),0,StatementsData!L150) -> 2736 | M122: =IF(ISERROR(StatementsData!M150),0,StatementsData!M150) -> 4867 | N122: =IF(ISERROR(StatementsData!N150),0,StatementsData!N150) -> 3592 | O122: =IF(ISERROR(StatementsData!P150),0,StatementsData!P150) -> 3592 | P122: =IF(ISERROR(StatementsData!Q150),0,StatementsData!Q150) -> 3592 | Q122: =IF(ISERROR(StatementsData!R150),0,StatementsData!R150) -> 3592 | R122: =IF(ISERROR(StatementsData!S150),0,StatementsData!S150) -> 3057 | S122: =StatementsData!T150 -> 3057
B123: Cash at End of the Period | E123: =IF(ISERROR(StatementsData!E151),0,StatementsData!E151) -> 309 | F123: =IF(ISERROR(StatementsData!F151),0,StatementsData!F151) -> 342 | G123: =IF(ISERROR(StatementsData!G151),0,StatementsData!G151) -> 445 | H123: =IF(ISERROR(StatementsData!H151),0,StatementsData!H151) -> 1108 | I123: =IF(ISERROR(StatementsData!I151),0,StatementsData!I151) -> 530 | J123: =IF(ISERROR(StatementsData!J151),0,StatementsData!J151) -> 1122 | K123: =IF(ISERROR(StatementsData!K151),0,StatementsData!K151) -> 2736 | L123: =IF(ISERROR(StatementsData!L151),0,StatementsData!L151) -> 4867 | M123: =IF(ISERROR(StatementsData!M151),0,StatementsData!M151) -> 3592 | N123: =IF(ISERROR(StatementsData!N151),0,StatementsData!N151) -> 3057 | O123: =IF(ISERROR(StatementsData!P151),0,StatementsData!P151) -> 10715 | P123: =IF(ISERROR(StatementsData!Q151),0,StatementsData!Q151) -> 3229 | Q123: =IF(ISERROR(StatementsData!R151),0,StatementsData!R151) -> 3057 | R123: =IF(ISERROR(StatementsData!S151),0,StatementsData!S151) -> 2864 | S123: =StatementsData!T151 -> 1052
B124: Change in Cash | E124: =IF(ISERROR(StatementsData!E149),0,StatementsData!E149) -> -91 | F124: =IF(ISERROR(StatementsData!F149),0,StatementsData!F149) -> 33 | G124: =IF(ISERROR(StatementsData!G149),0,StatementsData!G149) -> 103 | H124: =IF(ISERROR(StatementsData!H149),0,StatementsData!H149) -> 663 | I124: =IF(ISERROR(StatementsData!I149),0,StatementsData!I149) -> -578 | J124: =IF(ISERROR(StatementsData!J149),0,StatementsData!J149) -> 592 | K124: =IF(ISERROR(StatementsData!K149),0,StatementsData!K149) -> 1614 | L124: =IF(ISERROR(StatementsData!L149),0,StatementsData!L149) -> 2131 | M124: =IF(ISERROR(StatementsData!M149),0,StatementsData!M149) -> -1275 | N124: =IF(ISERROR(StatementsData!N149),0,StatementsData!N149) -> -535 | O124: =IF(ISERROR(StatementsData!P149),0,StatementsData!P149) -> 7123 | P124: =IF(ISERROR(StatementsData!Q149),0,StatementsData!Q149) -> -363 | Q124: =IF(ISERROR(StatementsData!R149),0,StatementsData!R149) -> -535 | R124: =IF(ISERROR(StatementsData!S149),0,StatementsData!S149) -> -193 | S124: =StatementsData!T149 -> -2005
B125: Free Cash Flow
B126: Cash from Operations | E126: =E102 -> 2366 | F126: 2066 | G126: -3991 | H126: 3113 | I126: 5799 | J126: 7935 | K126: 4787 | L126: 6343 | M126: 5009 | N126: 7010 | O126: 3294 | P126: 5515 | Q126: 7010 | R126: 330 | S126: 6575
B127: Cap Ex | E127: =-E106 -> 1773 | F127: =-F106 -> 1765 | G127: 2114 | H127: 2415 | I127: 2675 | J127: 3040 | K127: 1566 | L127: 968 | M127: 1011 | N127: 1409 | O127: 580 | P127: 984 | Q127: 1409 | R127: 285 | S127: 1477
B128: Free Cash Flow | E128: =E126-E127 -> 593 | F128: =F126-F127 -> 301 | G128: -6105 | H128: 698 | I128: 3124 | J128: 4895 | K128: 3221 | L128: 5375 | M128: 3998 | N128: 5601 | O128: 2714 | P128: 4531 | Q128: 5601 | R128: 45 | S128: 5098
B129: Owner Earnings FCF | E129: =IF(ISNUMBER(E130),E130,E89+E90+E101-SUM(E94:E100)-E127) -> 203 | F129: =IF(ISNUMBER(F130),F130,F89+F90+F101-SUM(F94:F100)-F127) -> 1046 | G129: 8628 | H129: 3114 | I129: 2001 | J129: -100 | K129: 5487 | L129: -711 | M129: 5026 | N129: 7511 | O129: 3103 | P129: 3945 | Q129: 5679 | R129: 3893 | S129: =IF(ISNUMBER(S130),S130,S89+S90+S101-SUM(S94:S100)-S127) -> 6728
B130: User Defined

Sheet StatementsData (hidden)
A1: Get exchange | B1: =TRIM([1]!RCHGetElementNumber(Ticker,3)) -> NYSE
A2: Stock Exchange | B2: =IF(B1="Other OTC Issues","USOTC",B1) -> NYSE
A3: TickerAdvfn | B3: =stockexchange&":"&Ticker -> NYSE:cat
C4: ADVFN Codes | E4: 9 | F4: 8 | G4: 7 | H4: 6 | I4: 5 | J4: 4 | K4: 3 | L4: 2 | M4: 1 | N4: 0 | O4: 4 | P4: 3 | Q4: 2 | R4: 1 | S4: 0
B5: Year End Date | C5: Annual | D5: Quarterly | E5: =LEFT(IF(UPPER(TickerAdvfn)="",0,[1]!smfGetADVFNElement(TickerAdvfn,E$7,COLUMNS(E:$N),">"&$B5&"<",,0)),4) -> 2002 | F5: =LEFT(IF(UPPER(TickerAdvfn)="",0,[1]!smfGetADVFNElement(TickerAdvfn,F$7,COLUMNS(F:$N),">"&$B5&"<",,0)),4) -> 2003 | G5: =LEFT(IF(UPPER(TickerAdvfn)="",0,[1]!smfGetADVFNElement(TickerAdvfn,G$7,COLUMNS(G:$N),">"&$B5&"<",,0)),4) -> 2004 | H5: =LEFT(IF(UPPER(TickerAdvfn)="",0,[1]!smfGetADVFNElement(TickerAdvfn,H$7,COLUMNS(H:$N),">"&$B5&"<",,0)),4) -> 2005 | I5: =LEFT(IF(UPPER(TickerAdvfn)="",0,[1]!smfGetADVFNElement(TickerAdvfn,I$7,COLUMNS(I:$N),">"&$B5&"<",,0)),4) -> 2006 | J5: =LEFT(IF(UPPER(TickerAdvfn)="",0,[1]!smfGetADVFNElement(TickerAdvfn,J$7,COLUMNS(J:$N),">"&$B5&"<",,0)),4) -> 2007 | K5: =LEFT(IF(UPPER(TickerAdvfn)="",0,[1]!smfGetADVFNElement(TickerAdvfn,K$7,COLUMNS(K:$N),">"&$B5&"<",,0)),4) -> 2008 | L5: =LEFT(IF(UPPER(TickerAdvfn)="",0,[1]!smfGetADVFNElement(TickerAdvfn,L$7,COLUMNS(L:$N),">"&$B5&"<",,0)),4) -> 2009 | M5: =LEFT(IF(UPPER(TickerAdvfn)="",0,[1]!smfGetADVFNElement(TickerAdvfn,M$7,COLUMNS(M:$N),">"&$B5&"<",,0)),4) -> 2010 | N5: =LEFT(IF(UPPER(TickerAdvfn)="",0,[1]!smfGetADVFNElement(TickerAdvfn,N$7,COLUMNS(N:$N),">"&$B5&"<",,0)),4) -> 2011 | O5: =[1]!RCHGetTableCell("http://investing.money.msn.com/investments/stock-income-statement?stmtView=Qtr&Symbol="&Ticker,6,">Interim",,,1) -> 2011 Q1 | P5: =[1]!RCHGetTableCell("http://investing.money.msn.com/investments/stock-income-statement?stmtView=Qtr&Symbol="&Ticker,5,">Interim",,,1) -> 2011 Q2 | Q5: =[1]!RCHGetTableCell("http://investing.money.msn.com/investments/stock-income-statement?stmtView=Qtr&Symbol="&Ticker,4,">Interim",,,1) -> 2011 Q3 | R5: =[1]!RCHGetTableCell("http://investing.money.msn.com/investments/stock-income-statement?stmtView=Qtr&Symbol="&Ticker, 3,">Interim",,,1) -> 2011 Q4 | S5: =[1]!RCHGetTableCell("http://investing.money.msn.com/investments/stock-income-statement?stmtView=Qtr&Symbol="&Ticker, 2,">Interim",,,1) -> 2012 Q1 | T5: TTM
B6: Quarterly Indicator | O6: =IF(UPPER(TickerAdvfn)="",0,[1]!smfGetADVFNElement(TickerAdvfn,O$7,COLUMNS(O:$S),">"&$B6&"<",,0)) -> 1 | P6: =IF(UPPER(TickerAdvfn)="",0,[1]!smfGetADVFNElement(TickerAdvfn,P$7,COLUMNS(P:$S),">"&$B6&"<",,0)) -> 2 | Q6: =IF(UPPER(TickerAdvfn)="",0,[1]!smfGetADVFNElement(TickerAdvfn,Q$7,COLUMNS(Q:$S),">"&$B6&"<",,0)) -> 3 | R6: =IF(UPPER(TickerAdvfn)="",0,[1]!smfGetADVFNElement(TickerAdvfn,R$7,COLUMNS(R:$S),">"&$B6&"<",,0)) -> 4 | S6: =IF(UPPER(TickerAdvfn)="",0,[1]!smfGetADVFNElement(TickerAdvfn,S$7,COLUMNS(S:$S),">"&$B6&"<",,0)) -> 1
A7: Income Statement | E7: A | F7: A | G7: A | H7: A | I7: A | J7: A | K7: A | L7: A | M7: A | N7: A | O7: Q | P7: Q | Q7: Q | R7: Q | S7: Q
B8: Operating Revenue | E8: =IF(UPPER(TickerAdvfn)="",0,[1]!smfGetADVFNElement(TickerAdvfn,E$7,COLUMNS(E:$N),">"&$B8&"<",,0)) -> 20152 | F8: =IF(UPPER(TickerAdvfn)="",0,[1]!smfGetADVFNElement(TickerAdvfn,F$7,COLUMNS(F:$N),">"&$B8&"<",,0)) -> 22763 | G8: =IF(UPPER(TickerAdvfn)="",0,[1]!smfGetADVFNElement(TickerAdvfn,G$7,COLUMNS(G:$N),">"&$B8&"<",,0)) -> 30251 | H8: =IF(UPPER(TickerAdvfn)="",0,[1]!smfGetADVFNElement(TickerAdvfn,H$7,COLUMNS(H:$N),">"&$B8&"<",,0)) -> 36339 | I8: =IF(UPPER(TickerAdvfn)="",0,[1]!smfGetADVFNElement(TickerAdvfn,I$7,COLUMNS(I:$N),">"&$B8&"<",,0)) -> 41517 | J8: =IF(UPPER(TickerAdvfn)="",0,[1]!smfGetADVFNElement(TickerAdvfn,J$7,COLUMNS(J:$N),">"&$B8&"<",,0)) -> 44958 | K8: =IF(UPPER(TickerAdvfn)="",0,[1]!smfGetADVFNElement(TickerAdvfn,K$7,COLUMNS(K:$N),">"&$B8&"<",,0)) -> 51324 | L8: =IF(UPPER(TickerAdvfn)="",0,[1]!smfGetADVFNElement(TickerAdvfn,L$7,COLUMNS(L:$N),">"&$B8&"<",,0)) -> 32396 | M8: =IF(UPPER(TickerAdvfn)="",0,[1]!smfGetADVFNElement(TickerAdvfn,M$7,COLUMNS(M:$N),">"&$B8&"<",,0)) -> 42588 | N8: =IF(UPPER(TickerAdvfn)="",0,[1]!smfGetADVFNElement(TickerAdvfn,N$7,COLUMNS(N:$N),">"&$B8&"<",,0)) -> 60138 | O8: =IF(UPPER(TickerAdvfn)="",0,[1]!smfGetADVFNElement(TickerAdvfn,O$7,COLUMNS(O:$S),">"&$B8&"<",,0)) -> 12949 | P8: =IF(UPPER(TickerAdvfn)="",0,[1]!smfGetADVFNElement(TickerAdvfn,P$7,COLUMNS(P:$S),">"&$B8&"<",,0)) -> 14230 | Q8: =IF(UPPER(TickerAdvfn)="",0,[1]!smfGetADVFNElement(TickerAdvfn,Q$7,COLUMNS(Q:$S),">"&$B8&"<",,0)) -> 15716 | R8: =IF(UPPER(TickerAdvfn)="",0,[1]!smfGetADVFNElement(TickerAdvfn,R$7,COLUMNS(R:$S),">"&$B8&"<",,0)) -> 17243 | S8: =IF(UPPER(TickerAdvfn)="",0,[1]!smfGetADVFNElement(TickerAdvfn,S$7,COLUMNS(S:$S),">"&$B8&"<",,0)) -> 15981 | T8: =SUM(P8:S8) -> 63170
B9: Total Revenue | E9: =IF(UPPER(TickerAdvfn)="",0,[1]!smfGetADVFNElement(TickerAdvfn,E$7,COLUMNS(E:$N),">"&$B9&"<",,0)) -> 20152 | F9: =IF(UPPER(TickerAdvfn)="",0,[1]!smfGetADVFNElement(TickerAdvfn,F$7,COLUMNS(F:$N),">"&$B9&"<",,0)) -> 22763 | G9: =IF(UPPER(TickerAdvfn)="",0,[1]!smfGetADVFNElement(TickerAdvfn,G$7,COLUMNS(G:$N),">"&$B9&"<",,0)) -> 30251 | H9: =IF(UPPER(TickerAdvfn)="",0,[1]!smfGetADVFNElement(TickerAdvfn,H$7,COLUMNS(H:$N),">"&$B9&"<",,0)) -> 36339 | I9: =IF(UPPER(TickerAdvfn)="",0,[1]!smfGetADVFNElement(TickerAdvfn,I$7,COLUMNS(I:$N),">"&$B9&"<",,0)) -> 41517 | J9: =IF(UPPER(TickerAdvfn)="",0,[1]!smfGetADVFNElement(TickerAdvfn,J$7,COLUMNS(J:$N),">"&$B9&"<",,0)) -> 44958 | K9: =IF(UPPER(TickerAdvfn)="",0,[1]!smfGetADVFNElement(TickerAdvfn,K$7,COLUMNS(K:$N),">"&$B9&"<",,0)) -> 51324 | L9: =IF(UPPER(TickerAdvfn)="",0,[1]!smfGetADVFNElement(TickerAdvfn,L$7,COLUMNS(L:$N),">"&$B9&"<",,0)) -> 32396 | M9: =IF(UPPER(TickerAdvfn)="",0,[1]!smfGetADVFNElement(TickerAdvfn,M$7,COLUMNS(M:$N),">"&$B9&"<",,0)) -> 42588 | N9: =IF(UPPER(TickerAdvfn)="",0,[1]!smfGetADVFNElement(TickerAdvfn,N$7,COLUMNS(N:$N),">"&$B9&"<",,0)) -> 60138 | O9: =IF(UPPER(TickerAdvfn)="",0,[1]!smfGetADVFNElement(TickerAdvfn,O$7,COLUMNS(O:$S),">"&$B9&"<",,0)) -> 12949 | P9: =IF(UPPER(TickerAdvfn)="",0,[1]!smfGetADVFNElement(TickerAdvfn,P$7,COLUMNS(P:$S),">"&$B9&"<",,0)) -> 14230 | Q9: =IF(UPPER(TickerAdvfn)="",0,[1]!smfGetADVFNElement(TickerAdvfn,Q$7,COLUMNS(Q:$S),">"&$B9&"<",,0)) -> 15716 | R9: =IF(UPPER(TickerAdvfn)="",0,[1]!smfGetADVFNElement(TickerAdvfn,R$7,COLUMNS(R:$S),">"&$B9&"<",,0)) -> 17243 | S9: =IF(UPPER(TickerAdvfn)="",0,[1]!smfGetADVFNElement(TickerAdvfn,S$7,COLUMNS(S:$S),">"&$B9&"<",,0)) -> 15981 | T9: =SUM(P9:S9) -> 63170
B10: adjustments to revenue | E10: =IF(UPPER(TickerAdvfn)="",0,[1]!smfGetADVFNElement(TickerAdvfn,E$7,COLUMNS(E:$N),">"&$B10&"<",,0)) -> 0 | F10: =IF(UPPER(TickerAdvfn)="",0,[1]!smfGetADVFNElement(TickerAdvfn,F$7,COLUMNS(F:$N),">"&$B10&"<",,0)) -> 0 | G10: =IF(UPPER(TickerAdvfn)="",0,[1]!smfGetADVFNElement(TickerAdvfn,G$7,COLUMNS(G:$N),">"&$B10&"<",,0)) -> 0 | H10: =IF(UPPER(TickerAdvfn)="",0,[1]!smfGetADVFNElement(TickerAdvfn,H$7,COLUMNS(H:$N),">"&$B10&"<",,0)) -> 0 | I10: =IF(UPPER(TickerAdvfn)="",0,[1]!smfGetADVFNElement(TickerAdvfn,I$7,COLUMNS(I:$N),">"&$B10&"<",,0)) -> 0 | J10: =IF(UPPER(TickerAdvfn)="",0,[1]!smfGetADVFNElement(TickerAdvfn,J$7,COLUMNS(J:$N),">"&$B10&"<",,0)) -> 0 | K10: =IF(UPPER(TickerAdvfn)="",0,[1]!smfGetADVFNElement(TickerAdvfn,K$7,COLUMNS(K:$N),">"&$B10&"<",,0)) -> 0 | L10: =IF(UPPER(TickerAdvfn)="",0,[1]!smfGetADVFNElement(TickerAdvfn,L$7,COLUMNS(L:$N),">"&$B10&"<",,0)) -> 0 | M10: =IF(UPPER(TickerAdvfn)="",0,[1]!smfGetADVFNElement(TickerAdvfn,M$7,COLUMNS(M:$N),">"&$B10&"<",,0)) -> 0 | N10: =IF(UPPER(TickerAdvfn)="",0,[1]!smfGetADVFNElement(TickerAdvfn,N$7,COLUMNS(N:$N),">"&$B10&"<",,0)) -> 0 | O10: =IF(UPPER(TickerAdvfn)="",0,[1]!smfGetADVFNElement(TickerAdvfn,O$7,COLUMNS(O:$S),">"&$B10&"<",,0)) -> 0 | P10: =IF(UPPER(TickerAdvfn)="",0,[1]!smfGetADVFNElement(TickerAdvfn,P$7,COLUMNS(P:$S),">"&$B10&"<",,0)) -> 0 | Q10: =IF(UPPER(TickerAdvfn)="",0,[1]!smfGetADVFNElement(TickerAdvfn,Q$7,COLUMNS(Q:$S),">"&$B10&"<",,0)) -> 0 | R10: =IF(UPPER(TickerAdvfn)="",0,[1]!smfGetADVFNElement(TickerAdvfn,R$7,COLUMNS(R:$S),">"&$B10&"<",,0)) -> 0 | S10: =IF(UPPER(TickerAdvfn)="",0,[1]!smfGetADVFNElement(TickerAdvfn,S$7,COLUMNS(S:$S),">"&$B10&"<",,0)) -> 0 | T10: =SUM(P10:S10) -> 0
B11: cost of sales | E11: =IF(UPPER(TickerAdvfn)="",0,[1]!smfGetADVFNElement(TickerAdvfn,E$7,COLUMNS(E:$N),">"&$B11&"<",,0)) -> 13905 | F11: =IF(UPPER(TickerAdvfn)="",0,[1]!smfGetADVFNElement(TickerAdvfn,F$7,COLUMNS(F:$N),">"&$B11&"<",,0)) -> 16119 | G11: =IF(UPPER(TickerAdvfn)="",0,[1]!smfGetADVFNElement(TickerAdvfn,G$7,COLUMNS(G:$N),">"&$B11&"<",,0)) -> 21023 | H11: =IF(UPPER(TickerAdvfn)="",0,[1]!smfGetADVFNElement(TickerAdvfn,H$7,COLUMNS(H:$N),">"&$B11&"<",,0)) -> 26036 | I11: =IF(UPPER(TickerAdvfn)="",0,[1]!smfGetADVFNElement(TickerAdvfn,I$7,COLUMNS(I:$N),">"&$B11&"<",,0)) -> 27947 | J11: =IF(UPPER(TickerAdvfn)="",0,[1]!smfGetADVFNElement(TickerAdvfn,J$7,COLUMNS(J:$N),">"&$B11&"<",,0)) -> 30829 | K11: =IF(UPPER(TickerAdvfn)="",0,[1]!smfGetADVFNElement(TickerAdvfn,K$7,COLUMNS(K:$N),">"&$B11&"<",,0)) -> 36435 | L11: =IF(UPPER(TickerAdvfn)="",0,[1]!smfGetADVFNElement(TickerAdvfn,L$7,COLUMNS(L:$N),">"&$B11&"<",,0)) -> 21550 | M11: =IF(UPPER(TickerAdvfn)="",0,[1]!smfGetADVFNElement(TickerAdvfn,M$7,COLUMNS(M:$N),">"&$B11&"<",,0)) -> 28071 | N11: =IF(UPPER(TickerAdvfn)="",0,[1]!smfGetADVFNElement(TickerAdvfn,N$7,COLUMNS(N:$N),">"&$B11&"<",,0)) -> 41051 | O11: =IF(UPPER(TickerAdvfn)="",0,[1]!smfGetADVFNElement(TickerAdvfn,O$7,COLUMNS(O:$S),">"&$B11&"<",,0)) -> 8482 | P11: =IF(UPPER(TickerAdvfn)="",0,[1]!smfGetADVFNElement(TickerAdvfn,P$7,COLUMNS(P:$S),">"&$B11&"<",,0)) -> 9704 | Q11: =IF(UPPER(TickerAdvfn)="",0,[1]!smfGetADVFNElement(TickerAdvfn,Q$7,COLUMNS(Q:$S),">"&$B11&"<",,0)) -> 10797 | R11: =IF(UPPER(TickerAdvfn)="",0,[1]!smfGetADVFNElement(TickerAdvfn,R$7,COLUMNS(R:$S),">"&$B11&"<",,0)) -> 12068 | S11: =IF(UPPER(TickerAdvfn)="",0,[1]!smfGetADVFNElement(TickerAdvfn,S$7,COLUMNS(S:$S),">"&$B11&"<",,0)) -> 10576 | T11: 43145
B12: cost of sales with depreciation | E12: =IF(UPPER(TickerAdvfn)="",0,[1]!smfGetADVFNElement(TickerAdvfn,E$7,COLUMNS(E:$N),">"&$B12&"<",,0)) -> 15125 | F12: =IF(UPPER(TickerAdvfn)="",0,[1]!smfGetADVFNElement(TickerAdvfn,F$7,COLUMNS(F:$N),">"&$B12&"<",,0)) -> 17466 | G12: =IF(UPPER(TickerAdvfn)="",0,[1]!smfGetADVFNElement(TickerAdvfn,G$7,COLUMNS(G:$N),">"&$B12&"<",,0)) -> 22420 | H12: =IF(UPPER(TickerAdvfn)="",0,[1]!smfGetADVFNElement(TickerAdvfn,H$7,COLUMNS(H:$N),">"&$B12&"<",,0)) -> 27513 | I12: =IF(UPPER(TickerAdvfn)="",0,[1]!smfGetADVFNElement(TickerAdvfn,I$7,COLUMNS(I:$N),">"&$B12&"<",,0)) -> 29549 | J12: =IF(UPPER(TickerAdvfn)="",0,[1]!smfGetADVFNElement(TickerAdvfn,J$7,COLUMNS(J:$N),">"&$B12&"<",,0)) -> 32626 | K12: =IF(UPPER(TickerAdvfn)="",0,[1]!smfGetADVFNElement(TickerAdvfn,K$7,COLUMNS(K:$N),">"&$B12&"<",,0)) -> 38415 | L12: =IF(UPPER(TickerAdvfn)="",0,[1]!smfGetADVFNElement(TickerAdvfn,L$7,COLUMNS(L:$N),">"&$B12&"<",,0)) -> 23886 | M12: =IF(UPPER(TickerAdvfn)="",0,[1]!smfGetADVFNElement(TickerAdvfn,M$7,COLUMNS(M:$N),">"&$B12&"<",,0)) -> 30367 | N12: =IF(UPPER(TickerAdvfn)="",0,[1]!smfGetADVFNElement(TickerAdvfn,N$7,COLUMNS(N:$N),">"&$B12&"<",,0)) -> 43578 | O12: =IF(UPPER(TickerAdvfn)="",0,[1]!smfGetADVFNElement(TickerAdvfn,O$7,COLUMNS(O:$S),">"&$B12&"<",,0)) -> 9057 | P12: =IF(UPPER(TickerAdvfn)="",0,[1]!smfGetADVFNElement(TickerAdvfn,P$7,COLUMNS(P:$S),">"&$B12&"<",,0)) -> 10303 | Q12: =IF(UPPER(TickerAdvfn)="",0,[1]!smfGetADVFNElement(TickerAdvfn,Q$7,COLUMNS(Q:$S),">"&$B12&"<",,0)) -> 11455 | R12: =IF(UPPER(TickerAdvfn)="",0,[1]!smfGetADVFNElement(TickerAdvfn,R$7,COLUMNS(R:$S),">"&$B12&"<",,0)) -> 12763 | S12: =IF(UPPER(TickerAdvfn)="",0,[1]!smfGetADVFNElement(TickerAdvfn,S$7,COLUMNS(S:$S),">"&$B12&"<",,0)) -> 11237 | T12: 45758
B13: gross margin | E13: =IF(UPPER(TickerAdvfn)="",0,[1]!smfGetADVFNElement(TickerAdvfn,E$7,COLUMNS(E:$N),">"&$B13&"<",,0)) -> 6247 | F13: =IF(UPPER(TickerAdvfn)="",0,[1]!smfGetADVFNElement(TickerAdvfn,F$7,COLUMNS(F:$N),">"&$B13&"<",,0)) -> 6644 | G13: =IF(UPPER(TickerAdvfn)="",0,[1]!smfGetADVFNElement(TickerAdvfn,G$7,COLUMNS(G:$N),">"&$B13&"<",,0)) -> 9228 | H13: =IF(UPPER(TickerAdvfn)="",0,[1]!smfGetADVFNElement(TickerAdvfn,H$7,COLUMNS(H:$N),">"&$B13&"<",,0)) -> 10303 | I13: =IF(UPPER(TickerAdvfn)="",0,[1]!smfGetADVFNElement(TickerAdvfn,I$7,COLUMNS(I:$N),">"&$B13&"<",,0)) -> 13570 | J13: =IF(UPPER(TickerAdvfn)="",0,[1]!smfGetADVFNElement(TickerAdvfn,J$7,COLUMNS(J:$N),">"&$B13&"<",,0)) -> 14129 | K13: =IF(UPPER(TickerAdvfn)="",0,[1]!smfGetADVFNElement(TickerAdvfn,K$7,COLUMNS(K:$N),">"&$B13&"<",,0)) -> 14889 | L13: =IF(UPPER(TickerAdvfn)="",0,[1]!smfGetADVFNElement(TickerAdvfn,L$7,COLUMNS(L:$N),">"&$B13&"<",,0)) -> 10846 | M13: =IF(UPPER(TickerAdvfn)="",0,[1]!smfGetADVFNElement(TickerAdvfn,M$7,COLUMNS(M:$N),">"&$B13&"<",,0)) -> 14517 | N13: =IF(UPPER(TickerAdvfn)="",0,[1]!smfGetADVFNElement(TickerAdvfn,N$7,COLUMNS(N:$N),">"&$B13&"<",,0)) -> 19087 | O13: =IF(UPPER(TickerAdvfn)="",0,[1]!smfGetADVFNElement(TickerAdvfn,O$7,COLUMNS(O:$S),">"&$B13&"<",,0)) -> 4467 | P13: =IF(UPPER(TickerAdvfn)="",0,[1]!smfGetADVFNElement(TickerAdvfn,P$7,COLUMNS(P:$S),">"&$B13&"<",,0)) -> 4526 | Q13: =IF(UPPER(TickerAdvfn)="",0,[1]!smfGetADVFNElement(TickerAdvfn,Q$7,COLUMNS(Q:$S),">"&$B13&"<",,0)) -> 4919 | R13: =IF(UPPER(TickerAdvfn)="",0,[1]!smfGetADVFNElement(TickerAdvfn,R$7,COLUMNS(R:$S),">"&$B13&"<",,0)) -> 5175 | S13: =IF(UPPER(TickerAdvfn)="",0,[1]!smfGetADVFNElement(TickerAdvfn,S$7,COLUMNS(S:$S),">"&$B13&"<",,0)) -> 5405 | T13: 20025
B14: gross operating profit | E14: =IF(UPPER(TickerAdvfn)="",0,[1]!smfGetADVFNElement(TickerAdvfn,E$7,COLUMNS(E:$N),">"&$B14&"<",,0)) -> 6247 | F14: =IF(UPPER(TickerAdvfn)="",0,[1]!smfGetADVFNElement(TickerAdvfn,F$7,COLUMNS(F:$N),">"&$B14&"<",,0)) -> 6644 | G14: =IF(UPPER(TickerAdvfn)="",0,[1]!smfGetADVFNElement(TickerAdvfn,G$7,COLUMNS(G:$N),">"&$B14&"<",,0)) -> 9228 | H14: =IF(UPPER(TickerAdvfn)="",0,[1]!smfGetADVFNElement(TickerAdvfn,H$7,COLUMNS(H:$N),">"&$B14&"<",,0)) -> 10303 | I14: =IF(UPPER(TickerAdvfn)="",0,[1]!smfGetADVFNElement(TickerAdvfn,I$7,COLUMNS(I:$N),">"&$B14&"<",,0)) -> 13570 | J14: =IF(UPPER(TickerAdvfn)="",0,[1]!smfGetADVFNElement(TickerAdvfn,J$7,COLUMNS(J:$N),">"&$B14&"<",,0)) -> 14129 | K14: =IF(UPPER(TickerAdvfn)="",0,[1]!smfGetADVFNElement(TickerAdvfn,K$7,COLUMNS(K:$N),">"&$B14&"<",,0)) -> 14889 | L14: =IF(UPPER(TickerAdvfn)="",0,[1]!smfGetADVFNElement(TickerAdvfn,L$7,COLUMNS(L:$N),">"&$B14&"<",,0)) -> 10846 | M14: =IF(UPPER(TickerAdvfn)="",0,[1]!smfGetADVFNElement(TickerAdvfn,M$7,COLUMNS(M:$N),">"&$B14&"<",,0)) -> 14517 | N14: =IF(UPPER(TickerAdvfn)="",0,[1]!smfGetADVFNElement(TickerAdvfn,N$7,COLUMNS(N:$N),">"&$B14&"<",,0)) -> 19087 | O14: =IF(UPPER(TickerAdvfn)="",0,[1]!smfGetADVFNElement(TickerAdvfn,O$7,COLUMNS(O:$S),">"&$B14&"<",,0)) -> 4467 | P14: =IF(UPPER(TickerAdvfn)="",0,[1]!smfGetADVFNElement(TickerAdvfn,P$7,COLUMNS(P:$S),">"&$B14&"<",,0)) -> 4526 | Q14: =IF(UPPER(TickerAdvfn)="",0,[1]!smfGetADVFNElement(TickerAdvfn,Q$7,COLUMNS(Q:$S),">"&$B14&"<",,0)) -> 4919 | R14: =IF(UPPER(TickerAdvfn)="",0,[1]!smfGetADVFNElement(TickerAdvfn,R$7,COLUMNS(R:$S),">"&$B14&"<",,0)) -> 5175 | S14: =IF(UPPER(TickerAdvfn)="",0,[1]!smfGetADVFNElement(TickerAdvfn,S$7,COLUMNS(S:$S),">"&$B14&"<",,0)) -> 5405 | T14: =T9-T12 -> 17412
A15: Operating Expense
B16: Research & Development (R&D) Expense | E16: =IF(UPPER(TickerAdvfn)="",0,[1]!smfGetADVFNElement(TickerAdvfn,E$7,COLUMNS(E:$N),">"&$B16&"<",,0)) -> 656 | F16: =IF(UPPER(TickerAdvfn)="",0,[1]!smfGetADVFNElement(TickerAdvfn,F$7,COLUMNS(F:$N),">"&$B16&"<",,0)) -> 669 | G16: =IF(UPPER(TickerAdvfn)="",0,[1]!smfGetADVFNElement(TickerAdvfn,G$7,COLUMNS(G:$N),">"&$B16&"<",,0)) -> 928 | H16: =IF(UPPER(TickerAdvfn)="",0,[1]!smfGetADVFNElement(TickerAdvfn,H$7,COLUMNS(H:$N),">"&$B16&"<",,0)) -> 1084 | I16: =IF(UPPER(TickerAdvfn)="",0,[1]!smfGetADVFNElement(TickerAdvfn,I$7,COLUMNS(I:$N),">"&$B16&"<",,0)) -> 1347 | J16: =IF(UPPER(TickerAdvfn)="",0,[1]!smfGetADVFNElement(TickerAdvfn,J$7,COLUMNS(J:$N),">"&$B16&"<",,0)) -> 1404 | K16: =IF(UPPER(TickerAdvfn)="",0,[1]!smfGetADVFNElement(TickerAdvfn,K$7,COLUMNS(K:$N),">"&$B16&"<",,0)) -> 1728 | L16: =IF(UPPER(TickerAdvfn)="",0,[1]!smfGetADVFNElement(TickerAdvfn,L$7,COLUMNS(L:$N),">"&$B16&"<",,0)) -> 1421 | M16: =IF(UPPER(TickerAdvfn)="",0,[1]!smfGetADVFNElement(TickerAdvfn,M$7,COLUMNS(M:$N),">"&$B16&"<",,0)) -> 1905 | N16: =IF(UPPER(TickerAdvfn)="",0,[1]!smfGetADVFNElement(TickerAdvfn,N$7,COLUMNS(N:$N),">"&$B16&"<",,0)) -> 2297 | O16: =IF(UPPER(TickerAdvfn)="",0,[1]!smfGetADVFNElement(TickerAdvfn,O$7,COLUMNS(O:$S),">"&$B16&"<",,0)) -> 525 | P16: =IF(UPPER(TickerAdvfn)="",0,[1]!smfGetADVFNElement(TickerAdvfn,P$7,COLUMNS(P:$S),">"&$B16&"<",,0)) -> 584 | Q16: =IF(UPPER(TickerAdvfn)="",0,[1]!smfGetADVFNElement(TickerAdvfn,Q$7,COLUMNS(Q:$S),">"&$B16&"<",,0)) -> 584 | R16: =IF(UPPER(TickerAdvfn)="",0,[1]!smfGetADVFNElement(TickerAdvfn,R$7,COLUMNS(R:$S),">"&$B16&"<",,0)) -> 604 | S16: =IF(UPPER(TickerAdvfn)="",0,[1]!smfGetADVFNElement(TickerAdvfn,S$7,COLUMNS(S:$S),">"&$B16&"<",,0)) -> 587 | T16: 2359
B17: Selling, General & Administrative (SG&A) Expense | E17: =IF(UPPER(TickerAdvfn)="",0,[1]!smfGetADVFNElement(TickerAdvfn,E$7,COLUMNS(E:$N),">"&$B17&"<",,0)) -> 2531 | F17: =IF(UPPER(TickerAdvfn)="",0,[1]!smfGetADVFNElement(TickerAdvfn,F$7,COLUMNS(F:$N),">"&$B17&"<",,0)) -> 2470 | G17: =IF(UPPER(TickerAdvfn)="",0,[1]!smfGetADVFNElement(TickerAdvfn,G$7,COLUMNS(G:$N),">"&$B17&"<",,0)) -> 3650 | H17: =IF(UPPER(TickerAdvfn)="",0,[1]!smfGetADVFNElement(TickerAdvfn,H$7,COLUMNS(H:$N),">"&$B17&"<",,0)) -> 3190 | I17: =IF(UPPER(TickerAdvfn)="",0,[1]!smfGetADVFNElement(TickerAdvfn,I$7,COLUMNS(I:$N),">"&$B17&"<",,0)) -> 4677 | J17: =IF(UPPER(TickerAdvfn)="",0,[1]!smfGetADVFNElement(TickerAdvfn,J$7,COLUMNS(J:$N),">"&$B17&"<",,0)) -> 4875 | K17: =IF(UPPER(TickerAdvfn)="",0,[1]!smfGetADVFNElement(TickerAdvfn,K$7,COLUMNS(K:$N),">"&$B17&"<",,0)) -> 4399 | L17: =IF(UPPER(TickerAdvfn)="",0,[1]!smfGetADVFNElement(TickerAdvfn,L$7,COLUMNS(L:$N),">"&$B17&"<",,0)) -> 3645 | M17: =IF(UPPER(TickerAdvfn)="",0,[1]!smfGetADVFNElement(TickerAdvfn,M$7,COLUMNS(M:$N),">"&$B17&"<",,0)) -> 4248 | N17: =IF(UPPER(TickerAdvfn)="",0,[1]!smfGetADVFNElement(TickerAdvfn,N$7,COLUMNS(N:$N),">"&$B17&"<",,0)) -> 5203 | O17: =IF(UPPER(TickerAdvfn)="",0,[1]!smfGetADVFNElement(TickerAdvfn,O$7,COLUMNS(O:$S),">"&$B17&"<",,0)) -> 1099 | P17: =IF(UPPER(TickerAdvfn)="",0,[1]!smfGetADVFNElement(TickerAdvfn,P$7,COLUMNS(P:$S),">"&$B17&"<",,0)) -> 1257 | Q17: =IF(UPPER(TickerAdvfn)="",0,[1]!smfGetADVFNElement(TickerAdvfn,Q$7,COLUMNS(Q:$S),">"&$B17&"<",,0)) -> 1360 | R17: =IF(UPPER(TickerAdvfn)="",0,[1]!smfGetADVFNElement(TickerAdvfn,R$7,COLUMNS(R:$S),">"&$B17&"<",,0)) -> 1487 | S17: =IF(UPPER(TickerAdvfn)="",0,[1]!smfGetADVFNElement(TickerAdvfn,S$7,COLUMNS(S:$S),">"&$B17&"<",,0)) -> 1340 | T17: 5444
B18: advertising | E18: =IF(UPPER(TickerAdvfn)="",0,[1]!smfGetADVFNElement(TickerAdvfn,E$7,COLUMNS(E:$N),">"&$B18&"<",,0)) -> 0 | F18: =IF(UPPER(TickerAdvfn)="",0,[1]!smfGetADVFNElement(TickerAdvfn,F$7,COLUMNS(F:$N),">"&$B18&"<",,0)) -> 0 | G18: =IF(UPPER(TickerAdvfn)="",0,[1]!smfGetADVFNElement(TickerAdvfn,G$7,COLUMNS(G:$N),">"&$B18&"<",,0)) -> 0 | H18: =IF(UPPER(TickerAdvfn)="",0,[1]!smfGetADVFNElement(TickerAdvfn,H$7,COLUMNS(H:$N),">"&$B18&"<",,0)) -> 0 | I18: =IF(UPPER(TickerAdvfn)="",0,[1]!smfGetADVFNElement(TickerAdvfn,I$7,COLUMNS(I:$N),">"&$B18&"<",,0)) -> 0 | J18: =IF(UPPER(TickerAdvfn)="",0,[1]!smfGetADVFNElement(TickerAdvfn,J$7,COLUMNS(J:$N),">"&$B18&"<",,0)) -> 0 | K18: =IF(UPPER(TickerAdvfn)="",0,[1]!smfGetADVFNElement(TickerAdvfn,K$7,COLUMNS(K:$N),">"&$B18&"<",,0)) -> 0 | L18: =IF(UPPER(TickerAdvfn)="",0,[1]!smfGetADVFNElement(TickerAdvfn,L$7,COLUMNS(L:$N),">"&$B18&"<",,0)) -> 0 | M18: =IF(UPPER(TickerAdvfn)="",0,[1]!smfGetADVFNElement(TickerAdvfn,M$7,COLUMNS(M:$N),">"&$B18&"<",,0)) -> 0 | N18: =IF(UPPER(TickerAdvfn)="",0,[1]!smfGetADVFNElement(TickerAdvfn,N$7,COLUMNS(N:$N),">"&$B18&"<",,0)) -> 0 | O18: =IF(UPPER(TickerAdvfn)="",0,[1]!smfGetADVFNElement(TickerAdvfn,O$7,COLUMNS(O:$S),">"&$B18&"<",,0)) -> 0 | P18: =IF(UPPER(TickerAdvfn)="",0,[1]!smfGetADVFNElement(TickerAdvfn,P$7,COLUMNS(P:$S),">"&$B18&"<",,0)) -> 0 | Q18: =IF(UPPER(TickerAdvfn)="",0,[1]!smfGetADVFNElement(TickerAdvfn,Q$7,COLUMNS(Q:$S),">"&$B18&"<",,0)) -> 0 | R18: =IF(UPPER(TickerAdvfn)="",0,[1]!smfGetADVFNElement(TickerAdvfn,R$7,COLUMNS(R:$S),">"&$B18&"<",,0)) -> 0 | S18: =IF(UPPER(TickerAdvfn)="",0,[1]!smfGetADVFNElement(TickerAdvfn,S$7,COLUMNS(S:$S),">"&$B18&"<",,0)) -> 0 | T18: 0
B19: operating income | E19: =IF(UPPER(TickerAdvfn)="",0,[1]!smfGetADVFNElement(TickerAdvfn,E$7,COLUMNS(E:$N),">"&$B19&"<",,0)) -> 1319 | F19: =IF(UPPER(TickerAdvfn)="",0,[1]!smfGetADVFNElement(TickerAdvfn,F$7,COLUMNS(F:$N),">"&$B19&"<",,0)) -> 1688 | G19: =IF(UPPER(TickerAdvfn)="",0,[1]!smfGetADVFNElement(TickerAdvfn,G$7,COLUMNS(G:$N),">"&$B19&"<",,0)) -> 2733 | H19: =IF(UPPER(TickerAdvfn)="",0,[1]!smfGetADVFNElement(TickerAdvfn,H$7,COLUMNS(H:$N),">"&$B19&"<",,0)) -> 3784 | I19: =IF(UPPER(TickerAdvfn)="",0,[1]!smfGetADVFNElement(TickerAdvfn,I$7,COLUMNS(I:$N),">"&$B19&"<",,0)) -> 4921 | J19: =IF(UPPER(TickerAdvfn)="",0,[1]!smfGetADVFNElement(TickerAdvfn,J$7,COLUMNS(J:$N),">"&$B19&"<",,0)) -> 4921 | K19: =IF(UPPER(TickerAdvfn)="",0,[1]!smfGetADVFNElement(TickerAdvfn,K$7,COLUMNS(K:$N),">"&$B19&"<",,0)) -> 4448 | L19: =IF(UPPER(TickerAdvfn)="",0,[1]!smfGetADVFNElement(TickerAdvfn,L$7,COLUMNS(L:$N),">"&$B19&"<",,0)) -> 577 | M19: =IF(UPPER(TickerAdvfn)="",0,[1]!smfGetADVFNElement(TickerAdvfn,M$7,COLUMNS(M:$N),">"&$B19&"<",,0)) -> 3963 | N19: =IF(UPPER(TickerAdvfn)="",0,[1]!smfGetADVFNElement(TickerAdvfn,N$7,COLUMNS(N:$N),">"&$B19&"<",,0)) -> 7153 | O19: =IF(UPPER(TickerAdvfn)="",0,[1]!smfGetADVFNElement(TickerAdvfn,O$7,COLUMNS(O:$S),">"&$B19&"<",,0)) -> 1833 | P19: =IF(UPPER(TickerAdvfn)="",0,[1]!smfGetADVFNElement(TickerAdvfn,P$7,COLUMNS(P:$S),">"&$B19&"<",,0)) -> 1601 | Q19: =IF(UPPER(TickerAdvfn)="",0,[1]!smfGetADVFNElement(TickerAdvfn,Q$7,COLUMNS(Q:$S),">"&$B19&"<",,0)) -> 1759 | R19: =IF(UPPER(TickerAdvfn)="",0,[1]!smfGetADVFNElement(TickerAdvfn,R$7,COLUMNS(R:$S),">"&$B19&"<",,0)) -> 1960 | S19: =IF(UPPER(TickerAdvfn)="",0,[1]!smfGetADVFNElement(TickerAdvfn,S$7,COLUMNS(S:$S),">"&$B19&"<",,0)) -> 2323 | T19: 7643
B20: EBITDA | E20: =IF(UPPER(TickerAdvfn)="",0,[1]!smfGetADVFNElement(TickerAdvfn,E$7,COLUMNS(E:$N),">"&$B20&"<",,0)) -> 3060 | F20: =IF(UPPER(TickerAdvfn)="",0,[1]!smfGetADVFNElement(TickerAdvfn,F$7,COLUMNS(F:$N),">"&$B20&"<",,0)) -> 3505 | G20: =IF(UPPER(TickerAdvfn)="",0,[1]!smfGetADVFNElement(TickerAdvfn,G$7,COLUMNS(G:$N),">"&$B20&"<",,0)) -> 4650 | H20: =IF(UPPER(TickerAdvfn)="",0,[1]!smfGetADVFNElement(TickerAdvfn,H$7,COLUMNS(H:$N),">"&$B20&"<",,0)) -> 6029 | I20: =IF(UPPER(TickerAdvfn)="",0,[1]!smfGetADVFNElement(TickerAdvfn,I$7,COLUMNS(I:$N),">"&$B20&"<",,0)) -> 7546 | J20: =IF(UPPER(TickerAdvfn)="",0,[1]!smfGetADVFNElement(TickerAdvfn,J$7,COLUMNS(J:$N),">"&$B20&"<",,0)) -> 7850 | K20: =IF(UPPER(TickerAdvfn)="",0,[1]!smfGetADVFNElement(TickerAdvfn,K$7,COLUMNS(K:$N),">"&$B20&"<",,0)) -> 8762 | L20: =IF(UPPER(TickerAdvfn)="",0,[1]!smfGetADVFNElement(TickerAdvfn,L$7,COLUMNS(L:$N),">"&$B20&"<",,0)) -> 5780 | M20: =IF(UPPER(TickerAdvfn)="",0,[1]!smfGetADVFNElement(TickerAdvfn,M$7,COLUMNS(M:$N),">"&$B20&"<",,0)) -> 8364 | N20: =IF(UPPER(TickerAdvfn)="",0,[1]!smfGetADVFNElement(TickerAdvfn,N$7,COLUMNS(N:$N),">"&$B20&"<",,0)) -> 11587 | O20: =IF(UPPER(TickerAdvfn)="",0,[1]!smfGetADVFNElement(TickerAdvfn,O$7,COLUMNS(O:$S),">"&$B20&"<",,0)) -> 2843 | P20: =IF(UPPER(TickerAdvfn)="",0,[1]!smfGetADVFNElement(TickerAdvfn,P$7,COLUMNS(P:$S),">"&$B20&"<",,0)) -> 2685 | Q20: =IF(UPPER(TickerAdvfn)="",0,[1]!smfGetADVFNElement(TickerAdvfn,Q$7,COLUMNS(Q:$S),">"&$B20&"<",,0)) -> 2975 | R20: =IF(UPPER(TickerAdvfn)="",0,[1]!smfGetADVFNElement(TickerAdvfn,R$7,COLUMNS(R:$S),">"&$B20&"<",,0)) -> 3084 | S20: =IF(UPPER(TickerAdvfn)="",0,[1]!smfGetADVFNElement(TickerAdvfn,S$7,COLUMNS(S:$S),">"&$B20&"<",,0)) -> 3478 | T20: 12222
B21: depreciation | E21: =IF(UPPER(TickerAdvfn)="",0,[1]!smfGetADVFNElement(TickerAdvfn,E$7,COLUMNS(E:$N),">"&$B21&"<",,0)) -> 1220 | F21: =IF(UPPER(TickerAdvfn)="",0,[1]!smfGetADVFNElement(TickerAdvfn,F$7,COLUMNS(F:$N),">"&$B21&"<",,0)) -> 1347 | G21: =IF(UPPER(TickerAdvfn)="",0,[1]!smfGetADVFNElement(TickerAdvfn,G$7,COLUMNS(G:$N),">"&$B21&"<",,0)) -> 1397 | H21: =IF(UPPER(TickerAdvfn)="",0,[1]!smfGetADVFNElement(TickerAdvfn,H$7,COLUMNS(H:$N),">"&$B21&"<",,0)) -> 1477 | I21: =IF(UPPER(TickerAdvfn)="",0,[1]!smfGetADVFNElement(TickerAdvfn,I$7,COLUMNS(I:$N),">"&$B21&"<",,0)) -> 1602 | J21: =IF(UPPER(TickerAdvfn)="",0,[1]!smfGetADVFNElement(TickerAdvfn,J$7,COLUMNS(J:$N),">"&$B21&"<",,0)) -> 1797 | K21: =IF(UPPER(TickerAdvfn)="",0,[1]!smfGetADVFNElement(TickerAdvfn,K$7,COLUMNS(K:$N),">"&$B21&"<",,0)) -> 1980 | L21: =IF(UPPER(TickerAdvfn)="",0,[1]!smfGetADVFNElement(TickerAdvfn,L$7,COLUMNS(L:$N),">"&$B21&"<",,0)) -> 2336 | M21: =IF(UPPER(TickerAdvfn)="",0,[1]!smfGetADVFNElement(TickerAdvfn,M$7,COLUMNS(M:$N),">"&$B21&"<",,0)) -> 2296 | N21: =IF(UPPER(TickerAdvfn)="",0,[1]!smfGetADVFNElement(TickerAdvfn,N$7,COLUMNS(N:$N),">"&$B21&"<",,0)) -> 2527 | O21: =IF(UPPER(TickerAdvfn)="",0,[1]!smfGetADVFNElement(TickerAdvfn,O$7,COLUMNS(O:$S),">"&$B21&"<",,0)) -> 575 | P21: =IF(UPPER(TickerAdvfn)="",0,[1]!smfGetADVFNElement(TickerAdvfn,P$7,COLUMNS(P:$S),">"&$B21&"<",,0)) -> 599 | Q21: =IF(UPPER(TickerAdvfn)="",0,[1]!smfGetADVFNElement(TickerAdvfn,Q$7,COLUMNS(Q:$S),">"&$B21&"<",,0)) -> 658 | R21: =IF(UPPER(TickerAdvfn)="",0,[1]!smfGetADVFNElement(TickerAdvfn,R$7,COLUMNS(R:$S),">"&$B21&"<",,0)) -> 695 | S21: =IF(UPPER(TickerAdvfn)="",0,[1]!smfGetADVFNElement(TickerAdvfn,S$7,COLUMNS(S:$S),">"&$B21&"<",,0)) -> 661 | T21: 2613
B22: depreciation (unrecognized) | E22: =IF(UPPER(TickerAdvfn)="",0,[1]!smfGetADVFNElement(TickerAdvfn,E$7,COLUMNS(E:$N),">"&$B22&"<",,0)) -> 0 | F22: =IF(UPPER(TickerAdvfn)="",0,[1]!smfGetADVFNElement(TickerAdvfn,F$7,COLUMNS(F:$N),">"&$B22&"<",,0)) -> 0 | G22: =IF(UPPER(TickerAdvfn)="",0,[1]!smfGetADVFNElement(TickerAdvfn,G$7,COLUMNS(G:$N),">"&$B22&"<",,0)) -> 0 | H22: =IF(UPPER(TickerAdvfn)="",0,[1]!smfGetADVFNElement(TickerAdvfn,H$7,COLUMNS(H:$N),">"&$B22&"<",,0)) -> 0 | I22: =IF(UPPER(TickerAdvfn)="",0,[1]!smfGetADVFNElement(TickerAdvfn,I$7,COLUMNS(I:$N),">"&$B22&"<",,0)) -> 0 | J22: =IF(UPPER(TickerAdvfn)="",0,[1]!smfGetADVFNElement(TickerAdvfn,J$7,COLUMNS(J:$N),">"&$B22&"<",,0)) -> 0 | K22: =IF(UPPER(TickerAdvfn)="",0,[1]!smfGetADVFNElement(TickerAdvfn,K$7,COLUMNS(K:$N),">"&$B22&"<",,0)) -> 0 | L22: =IF(UPPER(TickerAdvfn)="",0,[1]!smfGetADVFNElement(TickerAdvfn,L$7,COLUMNS(L:$N),">"&$B22&"<",,0)) -> 0 | M22: =IF(UPPER(TickerAdvfn)="",0,[1]!smfGetADVFNElement(TickerAdvfn,M$7,COLUMNS(M:$N),">"&$B22&"<",,0)) -> 0 | N22: =IF(UPPER(TickerAdvfn)="",0,[1]!smfGetADVFNElement(TickerAdvfn,N$7,COLUMNS(N:$N),">"&$B22&"<",,0)) -> 0 | O22: =IF(UPPER(TickerAdvfn)="",0,[1]!smfGetADVFNElement(TickerAdvfn,O$7,COLUMNS(O:$S),">"&$B22&"<",,0)) -> 0 | P22: =IF(UPPER(TickerAdvfn)="",0,[1]!smfGetADVFNElement(TickerAdvfn,P$7,COLUMNS(P:$S),">"&$B22&"<",,0)) -> 0 | Q22: =IF(UPPER(TickerAdvfn)="",0,[1]!smfGetADVFNElement(TickerAdvfn,Q$7,COLUMNS(Q:$S),">"&$B22&"<",,0)) -> 0 | R22: =IF(UPPER(TickerAdvfn)="",0,[1]!smfGetADVFNElement(TickerAdvfn,R$7,COLUMNS(R:$S),">"&$B22&"<",,0)) -> 0 | S22: =IF(UPPER(TickerAdvfn)="",0,[1]!smfGetADVFNElement(TickerAdvfn,S$7,COLUMNS(S:$S),">"&$B22&"<",,0)) -> 0 | T22: 0
B23: amortization | E23: =IF(UPPER(TickerAdvfn)="",0,[1]!smfGetADVFNElement(TickerAdvfn,E$7,COLUMNS(E:$N),">"&$B23&"<",,0)) -> 0 | F23: =IF(UPPER(TickerAdvfn)="",0,[1]!smfGetADVFNElement(TickerAdvfn,F$7,COLUMNS(F:$N),">"&$B23&"<",,0)) -> 0 | G23: =IF(UPPER(TickerAdvfn)="",0,[1]!smfGetADVFNElement(TickerAdvfn,G$7,COLUMNS(G:$N),">"&$B23&"<",,0)) -> 0 | H23: =IF(UPPER(TickerAdvfn)="",0,[1]!smfGetADVFNElement(TickerAdvfn,H$7,COLUMNS(H:$N),">"&$B23&"<",,0)) -> 0 | I23: =IF(UPPER(TickerAdvfn)="",0,[1]!smfGetADVFNElement(TickerAdvfn,I$7,COLUMNS(I:$N),">"&$B23&"<",,0)) -> 0 | J23: =IF(UPPER(TickerAdvfn)="",0,[1]!smfGetADVFNElement(TickerAdvfn,J$7,COLUMNS(J:$N),">"&$B23&"<",,0)) -> 0 | K23: =IF(UPPER(TickerAdvfn)="",0,[1]!smfGetADVFNElement(TickerAdvfn,K$7,COLUMNS(K:$N),">"&$B23&"<",,0)) -> 0 | L23: =IF(UPPER(TickerAdvfn)="",0,[1]!smfGetADVFNElement(TickerAdvfn,L$7,COLUMNS(L:$N),">"&$B23&"<",,0)) -> 0 | M23: =IF(UPPER(TickerAdvfn)="",0,[1]!smfGetADVFNElement(TickerAdvfn,M$7,COLUMNS(M:$N),">"&$B23&"<",,0)) -> 0 | N23: =IF(UPPER(TickerAdvfn)="",0,[1]!smfGetADVFNElement(TickerAdvfn,N$7,COLUMNS(N:$N),">"&$B23&"<",,0)) -> 0 | O23: =IF(UPPER(TickerAdvfn)="",0,[1]!smfGetADVFNElement(TickerAdvfn,O$7,COLUMNS(O:$S),">"&$B23&"<",,0)) -> 0 | P23: =IF(UPPER(TickerAdvfn)="",0,[1]!smfGetADVFNElement(TickerAdvfn,P$7,COLUMNS(P:$S),">"&$B23&"<",,0)) -> 0 | Q23: =IF(UPPER(TickerAdvfn)="",0,[1]!smfGetADVFNElement(TickerAdvfn,Q$7,COLUMNS(Q:$S),">"&$B23&"<",,0)) -> 0 | R23: =IF(UPPER(TickerAdvfn)="",0,[1]!smfGetADVFNElement(TickerAdvfn,R$7,COLUMNS(R:$S),">"&$B23&"<",,0)) -> 0 | S23: =IF(UPPER(TickerAdvfn)="",0,[1]!smfGetADVFNElement(TickerAdvfn,S$7,COLUMNS(S:$S),">"&$B23&"<",,0)) -> 0 | T23: 0
B24: amortization of intangibles | E24: =IF(UPPER(TickerAdvfn)="",0,[1]!smfGetADVFNElement(TickerAdvfn,E$7,COLUMNS(E:$N),">"&$B24&"<",,0)) -> 0 | F24: =IF(UPPER(TickerAdvfn)="",0,[1]!smfGetADVFNElement(TickerAdvfn,F$7,COLUMNS(F:$N),">"&$B24&"<",,0)) -> 0 | G24: =IF(UPPER(TickerAdvfn)="",0,[1]!smfGetADVFNElement(TickerAdvfn,G$7,COLUMNS(G:$N),">"&$B24&"<",,0)) -> 0 | H24: =IF(UPPER(TickerAdvfn)="",0,[1]!smfGetADVFNElement(TickerAdvfn,H$7,COLUMNS(H:$N),">"&$B24&"<",,0)) -> 0 | I24: =IF(UPPER(TickerAdvfn)="",0,[1]!smfGetADVFNElement(TickerAdvfn,I$7,COLUMNS(I:$N),">"&$B24&"<",,0)) -> 0 | J24: =IF(UPPER(TickerAdvfn)="",0,[1]!smfGetADVFNElement(TickerAdvfn,J$7,COLUMNS(J:$N),">"&$B24&"<",,0)) -> 0 | K24: =IF(UPPER(TickerAdvfn)="",0,[1]!smfGetADVFNElement(TickerAdvfn,K$7,COLUMNS(K:$N),">"&$B24&"<",,0)) -> 0 | L24: =IF(UPPER(TickerAdvfn)="",0,[1]!smfGetADVFNElement(TickerAdvfn,L$7,COLUMNS(L:$N),">"&$B24&"<",,0)) -> 0 | M24: =IF(UPPER(TickerAdvfn)="",0,[1]!smfGetADVFNElement(TickerAdvfn,M$7,COLUMNS(M:$N),">"&$B24&"<",,0)) -> 0 | N24: =IF(UPPER(TickerAdvfn)="",0,[1]!smfGetADVFNElement(TickerAdvfn,N$7,COLUMNS(N:$N),">"&$B24&"<",,0)) -> 0 | O24: =IF(UPPER(TickerAdvfn)="",0,[1]!smfGetADVFNElement(TickerAdvfn,O$7,COLUMNS(O:$S),">"&$B24&"<",,0)) -> 0 | P24: =IF(UPPER(TickerAdvfn)="",0,[1]!smfGetADVFNElement(TickerAdvfn,P$7,COLUMNS(P:$S),">"&$B24&"<",,0)) -> 0 | Q24: =IF(UPPER(TickerAdvfn)="",0,[1]!smfGetADVFNElement(TickerAdvfn,Q$7,COLUMNS(Q:$S),">"&$B24&"<",,0)) -> 0 | R24: =IF(UPPER(TickerAdvfn)="",0,[1]!smfGetADVFNElement(TickerAdvfn,R$7,COLUMNS(R:$S),">"&$B24&"<",,0)) -> 0 | S24: =IF(UPPER(TickerAdvfn)="",0,[1]!smfGetADVFNElement(TickerAdvfn,S$7,COLUMNS(S:$S),">"&$B24&"<",,0)) -> 0 | T24: 0
B25: operating profit after depreciation | E25: =IF(UPPER(TickerAdvfn)="",0,[1]!smfGetADVFNElement(TickerAdvfn,E$7,COLUMNS(E:$N),">"&$B25&"<",,0)) -> 1840 | F25: =IF(UPPER(TickerAdvfn)="",0,[1]!smfGetADVFNElement(TickerAdvfn,F$7,COLUMNS(F:$N),">"&$B25&"<",,0)) -> 2158 | G25: =IF(UPPER(TickerAdvfn)="",0,[1]!smfGetADVFNElement(TickerAdvfn,G$7,COLUMNS(G:$N),">"&$B25&"<",,0)) -> 3253 | H25: =IF(UPPER(TickerAdvfn)="",0,[1]!smfGetADVFNElement(TickerAdvfn,H$7,COLUMNS(H:$N),">"&$B25&"<",,0)) -> 4552 | I25: =IF(UPPER(TickerAdvfn)="",0,[1]!smfGetADVFNElement(TickerAdvfn,I$7,COLUMNS(I:$N),">"&$B25&"<",,0)) -> 5944 | J25: =IF(UPPER(TickerAdvfn)="",0,[1]!smfGetADVFNElement(TickerAdvfn,J$7,COLUMNS(J:$N),">"&$B25&"<",,0)) -> 6053 | K25: =IF(UPPER(TickerAdvfn)="",0,[1]!smfGetADVFNElement(TickerAdvfn,K$7,COLUMNS(K:$N),">"&$B25&"<",,0)) -> 6782 | L25: =IF(UPPER(TickerAdvfn)="",0,[1]!smfGetADVFNElement(TickerAdvfn,L$7,COLUMNS(L:$N),">"&$B25&"<",,0)) -> 3444 | M25: =IF(UPPER(TickerAdvfn)="",0,[1]!smfGetADVFNElement(TickerAdvfn,M$7,COLUMNS(M:$N),">"&$B25&"<",,0)) -> 6068 | N25: =IF(UPPER(TickerAdvfn)="",0,[1]!smfGetADVFNElement(TickerAdvfn,N$7,COLUMNS(N:$N),">"&$B25&"<",,0)) -> 9060 | O25: =IF(UPPER(TickerAdvfn)="",0,[1]!smfGetADVFNElement(TickerAdvfn,O$7,COLUMNS(O:$S),">"&$B25&"<",,0)) -> 2268 | P25: =IF(UPPER(TickerAdvfn)="",0,[1]!smfGetADVFNElement(TickerAdvfn,P$7,COLUMNS(P:$S),">"&$B25&"<",,0)) -> 2086 | Q25: =IF(UPPER(TickerAdvfn)="",0,[1]!smfGetADVFNElement(TickerAdvfn,Q$7,COLUMNS(Q:$S),">"&$B25&"<",,0)) -> 2317 | R25: =IF(UPPER(TickerAdvfn)="",0,[1]!smfGetADVFNElement(TickerAdvfn,R$7,COLUMNS(R:$S),">"&$B25&"<",,0)) -> 2389 | S25: =IF(UPPER(TickerAdvfn)="",0,[1]!smfGetADVFNElement(TickerAdvfn,S$7,COLUMNS(S:$S),">"&$B25&"<",,0)) -> 2817 | T25: 9609
A26: Other Income and Expense
B27: interest income | E27: =IF(UPPER(TickerAdvfn)="",0,[1]!smfGetADVFNElement(TickerAdvfn,E$7,COLUMNS(E:$N),">"&$B27&"<",,0)) -> 0 | F27: =IF(UPPER(TickerAdvfn)="",0,[1]!smfGetADVFNElement(TickerAdvfn,F$7,COLUMNS(F:$N),">"&$B27&"<",,0)) -> 0 | G27: =IF(UPPER(TickerAdvfn)="",0,[1]!smfGetADVFNElement(TickerAdvfn,G$7,COLUMNS(G:$N),">"&$B27&"<",,0)) -> 0 | H27: =IF(UPPER(TickerAdvfn)="",0,[1]!smfGetADVFNElement(TickerAdvfn,H$7,COLUMNS(H:$N),">"&$B27&"<",,0)) -> 0 | I27: =IF(UPPER(TickerAdvfn)="",0,[1]!smfGetADVFNElement(TickerAdvfn,I$7,COLUMNS(I:$N),">"&$B27&"<",,0)) -> 0 | J27: =IF(UPPER(TickerAdvfn)="",0,[1]!smfGetADVFNElement(TickerAdvfn,J$7,COLUMNS(J:$N),">"&$B27&"<",,0)) -> 99 | K27: =IF(UPPER(TickerAdvfn)="",0,[1]!smfGetADVFNElement(TickerAdvfn,K$7,COLUMNS(K:$N),">"&$B27&"<",,0)) -> 101 | L27: =IF(UPPER(TickerAdvfn)="",0,[1]!smfGetADVFNElement(TickerAdvfn,L$7,COLUMNS(L:$N),">"&$B27&"<",,0)) -> 98 | M27: =IF(UPPER(TickerAdvfn)="",0,[1]!smfGetADVFNElement(TickerAdvfn,M$7,COLUMNS(M:$N),">"&$B27&"<",,0)) -> 86 | N27: =IF(UPPER(TickerAdvfn)="",0,[1]!smfGetADVFNElement(TickerAdvfn,N$7,COLUMNS(N:$N),">"&$B27&"<",,0)) -> 0 | O27: =IF(UPPER(TickerAdvfn)="",0,[1]!smfGetADVFNElement(TickerAdvfn,O$7,COLUMNS(O:$S),">"&$B27&"<",,0)) -> 0 | P27: =IF(UPPER(TickerAdvfn)="",0,[1]!smfGetADVFNElement(TickerAdvfn,P$7,COLUMNS(P:$S),">"&$B27&"<",,0)) -> 0 | Q27: =IF(UPPER(TickerAdvfn)="",0,[1]!smfGetADVFNElement(TickerAdvfn,Q$7,COLUMNS(Q:$S),">"&$B27&"<",,0)) -> 0 | R27: =IF(UPPER(TickerAdvfn)="",0,[1]!smfGetADVFNElement(TickerAdvfn,R$7,COLUMNS(R:$S),">"&$B27&"<",,0)) -> 0 | S27: =IF(UPPER(TickerAdvfn)="",0,[1]!smfGetADVFNElement(TickerAdvfn,S$7,COLUMNS(S:$S),">"&$B27&"<",,0)) -> 0 | T27: 0
B28: other income net | E28: =IF(UPPER(TickerAdvfn)="",0,[1]!smfGetADVFNElement(TickerAdvfn,E$7,COLUMNS(E:$N),">"&$B28&"<",,0)) -> 74 | F28: =IF(UPPER(TickerAdvfn)="",0,[1]!smfGetADVFNElement(TickerAdvfn,F$7,COLUMNS(F:$N),">"&$B28&"<",,0)) -> 90 | G28: =IF(UPPER(TickerAdvfn)="",0,[1]!smfGetADVFNElement(TickerAdvfn,G$7,COLUMNS(G:$N),">"&$B28&"<",,0)) -> 204 | H28: =IF(UPPER(TickerAdvfn)="",0,[1]!smfGetADVFNElement(TickerAdvfn,H$7,COLUMNS(H:$N),">"&$B28&"<",,0)) -> 377 | I28: =IF(UPPER(TickerAdvfn)="",0,[1]!smfGetADVFNElement(TickerAdvfn,I$7,COLUMNS(I:$N),">"&$B28&"<",,0)) -> 214 | J28: =IF(UPPER(TickerAdvfn)="",0,[1]!smfGetADVFNElement(TickerAdvfn,J$7,COLUMNS(J:$N),">"&$B28&"<",,0)) -> 221 | K28: =IF(UPPER(TickerAdvfn)="",0,[1]!smfGetADVFNElement(TickerAdvfn,K$7,COLUMNS(K:$N),">"&$B28&"<",,0)) -> -946 | L28: =IF(UPPER(TickerAdvfn)="",0,[1]!smfGetADVFNElement(TickerAdvfn,L$7,COLUMNS(L:$N),">"&$B28&"<",,0)) -> -1551 | M28: =IF(UPPER(TickerAdvfn)="",0,[1]!smfGetADVFNElement(TickerAdvfn,M$7,COLUMNS(M:$N),">"&$B28&"<",,0)) -> -1171 | N28: =IF(UPPER(TickerAdvfn)="",0,[1]!smfGetADVFNElement(TickerAdvfn,N$7,COLUMNS(N:$N),">"&$B28&"<",,0)) -> -1137 | O28: =IF(UPPER(TickerAdvfn)="",0,[1]!smfGetADVFNElement(TickerAdvfn,O$7,COLUMNS(O:$S),">"&$B28&"<",,0)) -> -223 | P28: =IF(UPPER(TickerAdvfn)="",0,[1]!smfGetADVFNElement(TickerAdvfn,P$7,COLUMNS(P:$S),">"&$B28&"<",,0)) -> -447 | Q28: =IF(UPPER(TickerAdvfn)="",0,[1]!smfGetADVFNElement(TickerAdvfn,Q$7,COLUMNS(Q:$S),">"&$B28&"<",,0)) -> -366 | R28: =IF(UPPER(TickerAdvfn)="",0,[1]!smfGetADVFNElement(TickerAdvfn,R$7,COLUMNS(R:$S),">"&$B28&"<",,0)) -> -101 | S28: =IF(UPPER(TickerAdvfn)="",0,[1]!smfGetADVFNElement(TickerAdvfn,S$7,COLUMNS(S:$S),">"&$B28&"<",,0)) -> -1578 | T28: -2492
B29: other special charges | E29: =IF(UPPER(TickerAdvfn)="",0,[1]!smfGetADVFNElement(TickerAdvfn,E$7,COLUMNS(E:$N),">"&$B29&"<",,0)) -> 0 | F29: =IF(UPPER(TickerAdvfn)="",0,[1]!smfGetADVFNElement(TickerAdvfn,F$7,COLUMNS(F:$N),">"&$B29&"<",,0)) -> -55 | G29: =IF(UPPER(TickerAdvfn)="",0,[1]!smfGetADVFNElement(TickerAdvfn,G$7,COLUMNS(G:$N),">"&$B29&"<",,0)) -> 0 | H29: =IF(UPPER(TickerAdvfn)="",0,[1]!smfGetADVFNElement(TickerAdvfn,H$7,COLUMNS(H:$N),">"&$B29&"<",,0)) -> 0 | I29: =IF(UPPER(TickerAdvfn)="",0,[1]!smfGetADVFNElement(TickerAdvfn,I$7,COLUMNS(I:$N),">"&$B29&"<",,0)) -> 0 | J29: =IF(UPPER(TickerAdvfn)="",0,[1]!smfGetADVFNElement(TickerAdvfn,J$7,COLUMNS(J:$N),">"&$B29&"<",,0)) -> 0 | K29: =IF(UPPER(TickerAdvfn)="",0,[1]!smfGetADVFNElement(TickerAdvfn,K$7,COLUMNS(K:$N),">"&$B29&"<",,0)) -> 0 | L29: =IF(UPPER(TickerAdvfn)="",0,[1]!smfGetADVFNElement(TickerAdvfn,L$7,COLUMNS(L:$N),">"&$B29&"<",,0)) -> 0 | M29: =IF(UPPER(TickerAdvfn)="",0,[1]!smfGetADVFNElement(TickerAdvfn,M$7,COLUMNS(M:$N),">"&$B29&"<",,0)) -> 0 | N29: =IF(UPPER(TickerAdvfn)="",0,[1]!smfGetADVFNElement(TickerAdvfn,N$7,COLUMNS(N:$N),">"&$B29&"<",,0)) -> 0 | O29: =IF(UPPER(TickerAdvfn)="",0,[1]!smfGetADVFNElement(TickerAdvfn,O$7,COLUMNS(O:$S),">"&$B29&"<",,0)) -> 0 | P29: =IF(UPPER(TickerAdvfn)="",0,[1]!smfGetADVFNElement(TickerAdvfn,P$7,COLUMNS(P:$S),">"&$B29&"<",,0)) -> 0 | Q29: =IF(UPPER(TickerAdvfn)="",0,[1]!smfGetADVFNElement(TickerAdvfn,Q$7,COLUMNS(Q:$S),">"&$B29&"<",,0)) -> 0 | R29: =IF(UPPER(TickerAdvfn)="",0,[1]!smfGetADVFNElement(TickerAdvfn,R$7,COLUMNS(R:$S),">"&$B29&"<",,0)) -> 0 | S29: =IF(UPPER(TickerAdvfn)="",0,[1]!smfGetADVFNElement(TickerAdvfn,S$7,COLUMNS(S:$S),">"&$B29&"<",,0)) -> 0 | T29: 0
B30: special income charges | E30: =IF(UPPER(TickerAdvfn)="",0,[1]!smfGetADVFNElement(TickerAdvfn,E$7,COLUMNS(E:$N),">"&$B30&"<",,0)) -> 0 | F30: =IF(UPPER(TickerAdvfn)="",0,[1]!smfGetADVFNElement(TickerAdvfn,F$7,COLUMNS(F:$N),">"&$B30&"<",,0)) -> -55 | G30: =IF(UPPER(TickerAdvfn)="",0,[1]!smfGetADVFNElement(TickerAdvfn,G$7,COLUMNS(G:$N),">"&$B30&"<",,0)) -> 0 | H30: =IF(UPPER(TickerAdvfn)="",0,[1]!smfGetADVFNElement(TickerAdvfn,H$7,COLUMNS(H:$N),">"&$B30&"<",,0)) -> 0 | I30: =IF(UPPER(TickerAdvfn)="",0,[1]!smfGetADVFNElement(TickerAdvfn,I$7,COLUMNS(I:$N),">"&$B30&"<",,0)) -> 0 | J30: =IF(UPPER(TickerAdvfn)="",0,[1]!smfGetADVFNElement(TickerAdvfn,J$7,COLUMNS(J:$N),">"&$B30&"<",,0)) -> 0 | K30: =IF(UPPER(TickerAdvfn)="",0,[1]!smfGetADVFNElement(TickerAdvfn,K$7,COLUMNS(K:$N),">"&$B30&"<",,0)) -> 0 | L30: =IF(UPPER(TickerAdvfn)="",0,[1]!smfGetADVFNElement(TickerAdvfn,L$7,COLUMNS(L:$N),">"&$B30&"<",,0)) -> 0 | M30: =IF(UPPER(TickerAdvfn)="",0,[1]!smfGetADVFNElement(TickerAdvfn,M$7,COLUMNS(M:$N),">"&$B30&"<",,0)) -> 0 | N30: =IF(UPPER(TickerAdvfn)="",0,[1]!smfGetADVFNElement(TickerAdvfn,N$7,COLUMNS(N:$N),">"&$B30&"<",,0)) -> 0 | O30: =IF(UPPER(TickerAdvfn)="",0,[1]!smfGetADVFNElement(TickerAdvfn,O$7,COLUMNS(O:$S),">"&$B30&"<",,0)) -> 0 | P30: =IF(UPPER(TickerAdvfn)="",0,[1]!smfGetADVFNElement(TickerAdvfn,P$7,COLUMNS(P:$S),">"&$B30&"<",,0)) -> 0 | Q30: =IF(UPPER(TickerAdvfn)="",0,[1]!smfGetADVFNElement(TickerAdvfn,Q$7,COLUMNS(Q:$S),">"&$B30&"<",,0)) -> 0 | R30: =IF(UPPER(TickerAdvfn)="",0,[1]!smfGetADVFNElement(TickerAdvfn,R$7,COLUMNS(R:$S),">"&$B30&"<",,0)) -> 0 | S30: =IF(UPPER(TickerAdvfn)="",0,[1]!smfGetADVFNElement(TickerAdvfn,S$7,COLUMNS(S:$S),">"&$B30&"<",,0)) -> 0 | T30: 0
B31: EBIT | E31: =IF(UPPER(TickerAdvfn)="",0,[1]!smfGetADVFNElement(TickerAdvfn,E$7,COLUMNS(E:$N),">"&$B31&"<",,0)) -> 1910 | F31: =IF(UPPER(TickerAdvfn)="",0,[1]!smfGetADVFNElement(TickerAdvfn,F$7,COLUMNS(F:$N),">"&$B31&"<",,0)) -> 2213 | G31: =IF(UPPER(TickerAdvfn)="",0,[1]!smfGetADVFNElement(TickerAdvfn,G$7,COLUMNS(G:$N),">"&$B31&"<",,0)) -> 3516 | H31: =IF(UPPER(TickerAdvfn)="",0,[1]!smfGetADVFNElement(TickerAdvfn,H$7,COLUMNS(H:$N),">"&$B31&"<",,0)) -> 5002 | I31: =IF(UPPER(TickerAdvfn)="",0,[1]!smfGetADVFNElement(TickerAdvfn,I$7,COLUMNS(I:$N),">"&$B31&"<",,0)) -> 6239 | J31: =IF(UPPER(TickerAdvfn)="",0,[1]!smfGetADVFNElement(TickerAdvfn,J$7,COLUMNS(J:$N),">"&$B31&"<",,0)) -> 6446 | K31: =IF(UPPER(TickerAdvfn)="",0,[1]!smfGetADVFNElement(TickerAdvfn,K$7,COLUMNS(K:$N),">"&$B31&"<",,0)) -> 5937 | L31: =IF(UPPER(TickerAdvfn)="",0,[1]!smfGetADVFNElement(TickerAdvfn,L$7,COLUMNS(L:$N),">"&$B31&"<",,0)) -> 1991 | M31: =IF(UPPER(TickerAdvfn)="",0,[1]!smfGetADVFNElement(TickerAdvfn,M$7,COLUMNS(M:$N),">"&$B31&"<",,0)) -> 4983 | N31: =IF(UPPER(TickerAdvfn)="",0,[1]!smfGetADVFNElement(TickerAdvfn,N$7,COLUMNS(N:$N),">"&$B31&"<",,0)) -> 7923 | O31: =IF(UPPER(TickerAdvfn)="",0,[1]!smfGetADVFNElement(TickerAdvfn,O$7,COLUMNS(O:$S),">"&$B31&"<",,0)) -> 2045 | P31: =IF(UPPER(TickerAdvfn)="",0,[1]!smfGetADVFNElement(TickerAdvfn,P$7,COLUMNS(P:$S),">"&$B31&"<",,0)) -> 1639 | Q31: =IF(UPPER(TickerAdvfn)="",0,[1]!smfGetADVFNElement(TickerAdvfn,Q$7,COLUMNS(Q:$S),">"&$B31&"<",,0)) -> 1951 | R31: =IF(UPPER(TickerAdvfn)="",0,[1]!smfGetADVFNElement(TickerAdvfn,R$7,COLUMNS(R:$S),">"&$B31&"<",,0)) -> 2288 | S31: =IF(UPPER(TickerAdvfn)="",0,[1]!smfGetADVFNElement(TickerAdvfn,S$7,COLUMNS(S:$S),">"&$B31&"<",,0)) -> 1239 | T31: 7117
B32: interest expense | E32: =IF(UPPER(TickerAdvfn)="",0,[1]!smfGetADVFNElement(TickerAdvfn,E$7,COLUMNS(E:$N),">"&$B32&"<",,0)) -> 800 | F32: =IF(UPPER(TickerAdvfn)="",0,[1]!smfGetADVFNElement(TickerAdvfn,F$7,COLUMNS(F:$N),">"&$B32&"<",,0)) -> 716 | G32: =IF(UPPER(TickerAdvfn)="",0,[1]!smfGetADVFNElement(TickerAdvfn,G$7,COLUMNS(G:$N),">"&$B32&"<",,0)) -> 750 | H32: =IF(UPPER(TickerAdvfn)="",0,[1]!smfGetADVFNElement(TickerAdvfn,H$7,COLUMNS(H:$N),">"&$B32&"<",,0)) -> 1028 | I32: =IF(UPPER(TickerAdvfn)="",0,[1]!smfGetADVFNElement(TickerAdvfn,I$7,COLUMNS(I:$N),">"&$B32&"<",,0)) -> 1297 | J32: =IF(UPPER(TickerAdvfn)="",0,[1]!smfGetADVFNElement(TickerAdvfn,J$7,COLUMNS(J:$N),">"&$B32&"<",,0)) -> 1420 | K32: =IF(UPPER(TickerAdvfn)="",0,[1]!smfGetADVFNElement(TickerAdvfn,K$7,COLUMNS(K:$N),">"&$B32&"<",,0)) -> 1427 | L32: =IF(UPPER(TickerAdvfn)="",0,[1]!smfGetADVFNElement(TickerAdvfn,L$7,COLUMNS(L:$N),">"&$B32&"<",,0)) -> 1434 | M32: =IF(UPPER(TickerAdvfn)="",0,[1]!smfGetADVFNElement(TickerAdvfn,M$7,COLUMNS(M:$N),">"&$B32&"<",,0)) -> 1257 | N32: =IF(UPPER(TickerAdvfn)="",0,[1]!smfGetADVFNElement(TickerAdvfn,N$7,COLUMNS(N:$N),">"&$B32&"<",,0)) -> 1222 | O32: =IF(UPPER(TickerAdvfn)="",0,[1]!smfGetADVFNElement(TickerAdvfn,O$7,COLUMNS(O:$S),">"&$B32&"<",,0)) -> 290 | P32: =IF(UPPER(TickerAdvfn)="",0,[1]!smfGetADVFNElement(TickerAdvfn,P$7,COLUMNS(P:$S),">"&$B32&"<",,0)) -> 299 | Q32: =IF(UPPER(TickerAdvfn)="",0,[1]!smfGetADVFNElement(TickerAdvfn,Q$7,COLUMNS(Q:$S),">"&$B32&"<",,0)) -> 323 | R32: =IF(UPPER(TickerAdvfn)="",0,[1]!smfGetADVFNElement(TickerAdvfn,R$7,COLUMNS(R:$S),">"&$B32&"<",,0)) -> 310 | S32: =IF(UPPER(TickerAdvfn)="",0,[1]!smfGetADVFNElement(TickerAdvfn,S$7,COLUMNS(S:$S),">"&$B32&"<",,0)) -> 317 | T32: 1249
B33: income taxes | E33: =IF(UPPER(TickerAdvfn)="",0,[1]!smfGetADVFNElement(TickerAdvfn,E$7,COLUMNS(E:$N),">"&$B33&"<",,0)) -> 312 | F33: =IF(UPPER(TickerAdvfn)="",0,[1]!smfGetADVFNElement(TickerAdvfn,F$7,COLUMNS(F:$N),">"&$B33&"<",,0)) -> 398 | G33: =IF(UPPER(TickerAdvfn)="",0,[1]!smfGetADVFNElement(TickerAdvfn,G$7,COLUMNS(G:$N),">"&$B33&"<",,0)) -> 731 | H33: =IF(UPPER(TickerAdvfn)="",0,[1]!smfGetADVFNElement(TickerAdvfn,H$7,COLUMNS(H:$N),">"&$B33&"<",,0)) -> 1120 | I33: =IF(UPPER(TickerAdvfn)="",0,[1]!smfGetADVFNElement(TickerAdvfn,I$7,COLUMNS(I:$N),">"&$B33&"<",,0)) -> 1405 | J33: =IF(UPPER(TickerAdvfn)="",0,[1]!smfGetADVFNElement(TickerAdvfn,J$7,COLUMNS(J:$N),">"&$B33&"<",,0)) -> 1485 | K33: =IF(UPPER(TickerAdvfn)="",0,[1]!smfGetADVFNElement(TickerAdvfn,K$7,COLUMNS(K:$N),">"&$B33&"<",,0)) -> 953 | L33: =IF(UPPER(TickerAdvfn)="",0,[1]!smfGetADVFNElement(TickerAdvfn,L$7,COLUMNS(L:$N),">"&$B33&"<",,0)) -> -270 | M33: =IF(UPPER(TickerAdvfn)="",0,[1]!smfGetADVFNElement(TickerAdvfn,M$7,COLUMNS(M:$N),">"&$B33&"<",,0)) -> 968 | N33: =IF(UPPER(TickerAdvfn)="",0,[1]!smfGetADVFNElement(TickerAdvfn,N$7,COLUMNS(N:$N),">"&$B33&"<",,0)) -> 1720 | O33: =IF(UPPER(TickerAdvfn)="",0,[1]!smfGetADVFNElement(TickerAdvfn,O$7,COLUMNS(O:$S),">"&$B33&"<",,0)) -> 512 | P33: =IF(UPPER(TickerAdvfn)="",0,[1]!smfGetADVFNElement(TickerAdvfn,P$7,COLUMNS(P:$S),">"&$B33&"<",,0)) -> 318 | Q33: =IF(UPPER(TickerAdvfn)="",0,[1]!smfGetADVFNElement(TickerAdvfn,Q$7,COLUMNS(Q:$S),">"&$B33&"<",,0)) -> 474 | R33: =IF(UPPER(TickerAdvfn)="",0,[1]!smfGetADVFNElement(TickerAdvfn,R$7,COLUMNS(R:$S),">"&$B33&"<",,0)) -> 416 | S33: =IF(UPPER(TickerAdvfn)="",0,[1]!smfGetADVFNElement(TickerAdvfn,S$7,COLUMNS(S:$S),">"&$B33&"<",,0)) -> -689 | T33: 519
B34: minority interest | E34: =IF(UPPER(TickerAdvfn)="",0,[1]!smfGetADVFNElement(TickerAdvfn,E$7,COLUMNS(E:$N),">"&$B34&"<",,0)) -> 0 | F34: =IF(UPPER(TickerAdvfn)="",0,[1]!smfGetADVFNElement(TickerAdvfn,F$7,COLUMNS(F:$N),">"&$B34&"<",,0)) -> 0 | G34: =IF(UPPER(TickerAdvfn)="",0,[1]!smfGetADVFNElement(TickerAdvfn,G$7,COLUMNS(G:$N),">"&$B34&"<",,0)) -> 0 | H34: =IF(UPPER(TickerAdvfn)="",0,[1]!smfGetADVFNElement(TickerAdvfn,H$7,COLUMNS(H:$N),">"&$B34&"<",,0)) -> 0 | I34: =IF(UPPER(TickerAdvfn)="",0,[1]!smfGetADVFNElement(TickerAdvfn,I$7,COLUMNS(I:$N),">"&$B34&"<",,0)) -> 0 | J34: =IF(UPPER(TickerAdvfn)="",0,[1]!smfGetADVFNElement(TickerAdvfn,J$7,COLUMNS(J:$N),">"&$B34&"<",,0)) -> 0 | K34: =IF(UPPER(TickerAdvfn)="",0,[1]!smfGetADVFNElement(TickerAdvfn,K$7,COLUMNS(K:$N),">"&$B34&"<",,0)) -> 0 | L34: =IF(UPPER(TickerAdvfn)="",0,[1]!smfGetADVFNElement(TickerAdvfn,L$7,COLUMNS(L:$N),">"&$B34&"<",,0)) -> -68 | M34: =IF(UPPER(TickerAdvfn)="",0,[1]!smfGetADVFNElement(TickerAdvfn,M$7,COLUMNS(M:$N),">"&$B34&"<",,0)) -> 58 | N34: =IF(UPPER(TickerAdvfn)="",0,[1]!smfGetADVFNElement(TickerAdvfn,N$7,COLUMNS(N:$N),">"&$B34&"<",,0)) -> 53 | O34: =IF(UPPER(TickerAdvfn)="",0,[1]!smfGetADVFNElement(TickerAdvfn,O$7,COLUMNS(O:$S),">"&$B34&"<",,0)) -> 18 | P34: =IF(UPPER(TickerAdvfn)="",0,[1]!smfGetADVFNElement(TickerAdvfn,P$7,COLUMNS(P:$S),">"&$B34&"<",,0)) -> 7 | Q34: =IF(UPPER(TickerAdvfn)="",0,[1]!smfGetADVFNElement(TickerAdvfn,Q$7,COLUMNS(Q:$S),">"&$B34&"<",,0)) -> 13 | R34: =IF(UPPER(TickerAdvfn)="",0,[1]!smfGetADVFNElement(TickerAdvfn,R$7,COLUMNS(R:$S),">"&$B34&"<",,0)) -> 15 | S34: =IF(UPPER(TickerAdvfn)="",0,[1]!smfGetADVFNElement(TickerAdvfn,S$7,COLUMNS(S:$S),">"&$B34&"<",,0)) -> 25 | T34: 60
B35: income before income taxes | E35: =IF(UPPER(TickerAdvfn)="",0,[1]!smfGetADVFNElement(TickerAdvfn,E$7,COLUMNS(E:$N),">"&$B35&"<",,0)) -> 1114 | F35: =IF(UPPER(TickerAdvfn)="",0,[1]!smfGetADVFNElement(TickerAdvfn,F$7,COLUMNS(F:$N),">"&$B35&"<",,0)) -> 1477 | G35: =IF(UPPER(TickerAdvfn)="",0,[1]!smfGetADVFNElement(TickerAdvfn,G$7,COLUMNS(G:$N),">"&$B35&"<",,0)) -> 2707 | H35: =IF(UPPER(TickerAdvfn)="",0,[1]!smfGetADVFNElement(TickerAdvfn,H$7,COLUMNS(H:$N),">"&$B35&"<",,0)) -> 3901 | I35: =IF(UPPER(TickerAdvfn)="",0,[1]!smfGetADVFNElement(TickerAdvfn,I$7,COLUMNS(I:$N),">"&$B35&"<",,0)) -> 4861 | J35: =IF(UPPER(TickerAdvfn)="",0,[1]!smfGetADVFNElement(TickerAdvfn,J$7,COLUMNS(J:$N),">"&$B35&"<",,0)) -> 4953 | K35: =IF(UPPER(TickerAdvfn)="",0,[1]!smfGetADVFNElement(TickerAdvfn,K$7,COLUMNS(K:$N),">"&$B35&"<",,0)) -> 4473 | L35: =IF(UPPER(TickerAdvfn)="",0,[1]!smfGetADVFNElement(TickerAdvfn,L$7,COLUMNS(L:$N),">"&$B35&"<",,0)) -> 569 | M35: =IF(UPPER(TickerAdvfn)="",0,[1]!smfGetADVFNElement(TickerAdvfn,M$7,COLUMNS(M:$N),">"&$B35&"<",,0)) -> 3750 | N35: =IF(UPPER(TickerAdvfn)="",0,[1]!smfGetADVFNElement(TickerAdvfn,N$7,COLUMNS(N:$N),">"&$B35&"<",,0)) -> 6725 | O35: =IF(UPPER(TickerAdvfn)="",0,[1]!smfGetADVFNElement(TickerAdvfn,O$7,COLUMNS(O:$S),">"&$B35&"<",,0)) -> 1763 | P35: =IF(UPPER(TickerAdvfn)="",0,[1]!smfGetADVFNElement(TickerAdvfn,P$7,COLUMNS(P:$S),">"&$B35&"<",,0)) -> 1350 | Q35: =IF(UPPER(TickerAdvfn)="",0,[1]!smfGetADVFNElement(TickerAdvfn,Q$7,COLUMNS(Q:$S),">"&$B35&"<",,0)) -> 1634 | R35: =IF(UPPER(TickerAdvfn)="",0,[1]!smfGetADVFNElement(TickerAdvfn,R$7,COLUMNS(R:$S),">"&$B35&"<",,0)) -> 1978 | S35: =IF(UPPER(TickerAdvfn)="",0,[1]!smfGetADVFNElement(TickerAdvfn,S$7,COLUMNS(S:$S),">"&$B35&"<",,0)) -> 2298 | T35: 7260
B36: net income (continuing operations) | E36: =IF(UPPER(TickerAdvfn)="",0,[1]!smfGetADVFNElement(TickerAdvfn,E$7,COLUMNS(E:$N),">"&$B36&"<",,0)) -> 798 | F36: =IF(UPPER(TickerAdvfn)="",0,[1]!smfGetADVFNElement(TickerAdvfn,F$7,COLUMNS(F:$N),">"&$B36&"<",,0)) -> 1099 | G36: =IF(UPPER(TickerAdvfn)="",0,[1]!smfGetADVFNElement(TickerAdvfn,G$7,COLUMNS(G:$N),">"&$B36&"<",,0)) -> 2035 | H36: =IF(UPPER(TickerAdvfn)="",0,[1]!smfGetADVFNElement(TickerAdvfn,H$7,COLUMNS(H:$N),">"&$B36&"<",,0)) -> 2854 | I36: =IF(UPPER(TickerAdvfn)="",0,[1]!smfGetADVFNElement(TickerAdvfn,I$7,COLUMNS(I:$N),">"&$B36&"<",,0)) -> 3537 | J36: =IF(UPPER(TickerAdvfn)="",0,[1]!smfGetADVFNElement(TickerAdvfn,J$7,COLUMNS(J:$N),">"&$B36&"<",,0)) -> 3541 | K36: =IF(UPPER(TickerAdvfn)="",0,[1]!smfGetADVFNElement(TickerAdvfn,K$7,COLUMNS(K:$N),">"&$B36&"<",,0)) -> 3557 | L36: =IF(UPPER(TickerAdvfn)="",0,[1]!smfGetADVFNElement(TickerAdvfn,L$7,COLUMNS(L:$N),">"&$B36&"<",,0)) -> 895 | M36: =IF(UPPER(TickerAdvfn)="",0,[1]!smfGetADVFNElement(TickerAdvfn,M$7,COLUMNS(M:$N),">"&$B36&"<",,0)) -> 2700 | N36: =IF(UPPER(TickerAdvfn)="",0,[1]!smfGetADVFNElement(TickerAdvfn,N$7,COLUMNS(N:$N),">"&$B36&"<",,0)) -> 4928 | O36: =IF(UPPER(TickerAdvfn)="",0,[1]!smfGetADVFNElement(TickerAdvfn,O$7,COLUMNS(O:$S),">"&$B36&"<",,0)) -> 1225 | P36: =IF(UPPER(TickerAdvfn)="",0,[1]!smfGetADVFNElement(TickerAdvfn,P$7,COLUMNS(P:$S),">"&$B36&"<",,0)) -> 1015 | Q36: =IF(UPPER(TickerAdvfn)="",0,[1]!smfGetADVFNElement(TickerAdvfn,Q$7,COLUMNS(Q:$S),">"&$B36&"<",,0)) -> 1141 | R36: =IF(UPPER(TickerAdvfn)="",0,[1]!smfGetADVFNElement(TickerAdvfn,R$7,COLUMNS(R:$S),">"&$B36&"<",,0)) -> 1547 | S36: =IF(UPPER(TickerAdvfn)="",0,[1]!smfGetADVFNElement(TickerAdvfn,S$7,COLUMNS(S:$S),">"&$B36&"<",,0)) -> 1586 | T36: 5289
B37: net income (discontinued operations) | E37: =IF(UPPER(TickerAdvfn)="",0,[1]!smfGetADVFNElement(TickerAdvfn,E$7,COLUMNS(E:$N),">"&$B37&"<",,0)) -> 0 | F37: =IF(UPPER(TickerAdvfn)="",0,[1]!smfGetADVFNElement(TickerAdvfn,F$7,COLUMNS(F:$N),">"&$B37&"<",,0)) -> 0 | G37: =IF(UPPER(TickerAdvfn)="",0,[1]!smfGetADVFNElement(TickerAdvfn,G$7,COLUMNS(G:$N),">"&$B37&"<",,0)) -> 0 | H37: =IF(UPPER(TickerAdvfn)="",0,[1]!smfGetADVFNElement(TickerAdvfn,H$7,COLUMNS(H:$N),">"&$B37&"<",,0)) -> 0 | I37: =IF(UPPER(TickerAdvfn)="",0,[1]!smfGetADVFNElement(TickerAdvfn,I$7,COLUMNS(I:$N),">"&$B37&"<",,0)) -> 0 | J37: =IF(UPPER(TickerAdvfn)="",0,[1]!smfGetADVFNElement(TickerAdvfn,J$7,COLUMNS(J:$N),">"&$B37&"<",,0)) -> 0 | K37: =IF(UPPER(TickerAdvfn)="",0,[1]!smfGetADVFNElement(TickerAdvfn,K$7,COLUMNS(K:$N),">"&$B37&"<",,0)) -> 0 | L37: =IF(UPPER(TickerAdvfn)="",0,[1]!smfGetADVFNElement(TickerAdvfn,L$7,COLUMNS(L:$N),">"&$B37&"<",,0)) -> 0 | M37: =IF(UPPER(TickerAdvfn)="",0,[1]!smfGetADVFNElement(TickerAdvfn,M$7,COLUMNS(M:$N),">"&$B37&"<",,0)) -> 0 | N37: =IF(UPPER(TickerAdvfn)="",0,[1]!smfGetADVFNElement(TickerAdvfn,N$7,COLUMNS(N:$N),">"&$B37&"<",,0)) -> 0 | O37: =IF(UPPER(TickerAdvfn)="",0,[1]!smfGetADVFNElement(TickerAdvfn,O$7,COLUMNS(O:$S),">"&$B37&"<",,0)) -> 0 | P37: =IF(UPPER(TickerAdvfn)="",0,[1]!smfGetADVFNElement(TickerAdvfn,P$7,COLUMNS(P:$S),">"&$B37&"<",,0)) -> 0 | Q37: =IF(UPPER(TickerAdvfn)="",0,[1]!smfGetADVFNElement(TickerAdvfn,Q$7,COLUMNS(Q:$S),">"&$B37&"<",,0)) -> 0 | R37: =IF(UPPER(TickerAdvfn)="",0,[1]!smfGetADVFNElement(TickerAdvfn,R$7,COLUMNS(R:$S),">"&$B37&"<",,0)) -> 0 | S37: =IF(UPPER(TickerAdvfn)="",0,[1]!smfGetADVFNElement(TickerAdvfn,S$7,COLUMNS(S:$S),">"&$B37&"<",,0)) -> 0 | T37: 0
B38: other gains/losses | E38: =IF(UPPER(TickerAdvfn)="",0,[1]!smfGetADVFNElement(TickerAdvfn,E$7,COLUMNS(E:$N),">"&$B38&"<",,0)) -> 0 | F38: =IF(UPPER(TickerAdvfn)="",0,[1]!smfGetADVFNElement(TickerAdvfn,F$7,COLUMNS(F:$N),">"&$B38&"<",,0)) -> 0 | G38: =IF(UPPER(TickerAdvfn)="",0,[1]!smfGetADVFNElement(TickerAdvfn,G$7,COLUMNS(G:$N),">"&$B38&"<",,0)) -> 0 | H38: =IF(UPPER(TickerAdvfn)="",0,[1]!smfGetADVFNElement(TickerAdvfn,H$7,COLUMNS(H:$N),">"&$B38&"<",,0)) -> 0 | I38: =IF(UPPER(TickerAdvfn)="",0,[1]!smfGetADVFNElement(TickerAdvfn,I$7,COLUMNS(I:$N),">"&$B38&"<",,0)) -> 0 | J38: =IF(UPPER(TickerAdvfn)="",0,[1]!smfGetADVFNElement(TickerAdvfn,J$7,COLUMNS(J:$N),">"&$B38&"<",,0)) -> 0 | K38: =IF(UPPER(TickerAdvfn)="",0,[1]!smfGetADVFNElement(TickerAdvfn,K$7,COLUMNS(K:$N),">"&$B38&"<",,0)) -> 0 | L38: =IF(UPPER(TickerAdvfn)="",0,[1]!smfGetADVFNElement(TickerAdvfn,L$7,COLUMNS(L:$N),">"&$B38&"<",,0)) -> 0 | M38: =IF(UPPER(TickerAdvfn)="",0,[1]!smfGetADVFNElement(TickerAdvfn,M$7,COLUMNS(M:$N),">"&$B38&"<",,0)) -> 0 | N38: =IF(UPPER(TickerAdvfn)="",0,[1]!smfGetADVFNElement(TickerAdvfn,N$7,COLUMNS(N:$N),">"&$B38&"<",,0)) -> 0 | O38: =IF(UPPER(TickerAdvfn)="",0,[1]!smfGetADVFNElement(TickerAdvfn,O$7,COLUMNS(O:$S),">"&$B38&"<",,0)) -> 0 | P38: =IF(UPPER(TickerAdvfn)="",0,[1]!smfGetADVFNElement(TickerAdvfn,P$7,COLUMNS(P:$S),">"&$B38&"<",,0)) -> 0 | Q38: =IF(UPPER(TickerAdvfn)="",0,[1]!smfGetADVFNElement(TickerAdvfn,Q$7,COLUMNS(Q:$S),">"&$B38&"<",,0)) -> 0 | R38: =IF(UPPER(TickerAdvfn)="",0,[1]!smfGetADVFNElement(TickerAdvfn,R$7,COLUMNS(R:$S),">"&$B38&"<",,0)) -> 0 | S38: =IF(UPPER(TickerAdvfn)="",0,[1]!smfGetADVFNElement(TickerAdvfn,S$7,COLUMNS(S:$S),">"&$B38&"<",,0)) -> 0 | T38: 0
B39: total net income | E39: =IF(UPPER(TickerAdvfn)="",0,[1]!smfGetADVFNElement(TickerAdvfn,E$7,COLUMNS(E:$N),">"&$B39&"<",,0)) -> 798 | F39: =IF(UPPER(TickerAdvfn)="",0,[1]!smfGetADVFNElement(TickerAdvfn,F$7,COLUMNS(F:$N),">"&$B39&"<",,0)) -> 1099 | G39: =IF(UPPER(TickerAdvfn)="",0,[1]!smfGetADVFNElement(TickerAdvfn,G$7,COLUMNS(G:$N),">"&$B39&"<",,0)) -> 2035 | H39: =IF(UPPER(TickerAdvfn)="",0,[1]!smfGetADVFNElement(TickerAdvfn,H$7,COLUMNS(H:$N),">"&$B39&"<",,0)) -> 2854 | I39: =IF(UPPER(TickerAdvfn)="",0,[1]!smfGetADVFNElement(TickerAdvfn,I$7,COLUMNS(I:$N),">"&$B39&"<",,0)) -> 3537 | J39: =IF(UPPER(TickerAdvfn)="",0,[1]!smfGetADVFNElement(TickerAdvfn,J$7,COLUMNS(J:$N),">"&$B39&"<",,0)) -> 3541 | K39: =IF(UPPER(TickerAdvfn)="",0,[1]!smfGetADVFNElement(TickerAdvfn,K$7,COLUMNS(K:$N),">"&$B39&"<",,0)) -> 3557 | L39: =IF(UPPER(TickerAdvfn)="",0,[1]!smfGetADVFNElement(TickerAdvfn,L$7,COLUMNS(L:$N),">"&$B39&"<",,0)) -> 895 | M39: =IF(UPPER(TickerAdvfn)="",0,[1]!smfGetADVFNElement(TickerAdvfn,M$7,COLUMNS(M:$N),">"&$B39&"<",,0)) -> 2700 | N39: =IF(UPPER(TickerAdvfn)="",0,[1]!smfGetADVFNElement(TickerAdvfn,N$7,COLUMNS(N:$N),">"&$B39&"<",,0)) -> 4928 | O39: =IF(UPPER(TickerAdvfn)="",0,[1]!smfGetADVFNElement(TickerAdvfn,O$7,COLUMNS(O:$S),">"&$B39&"<",,0)) -> 1225 | P39: =IF(UPPER(TickerAdvfn)="",0,[1]!smfGetADVFNElement(TickerAdvfn,P$7,COLUMNS(P:$S),">"&$B39&"<",,0)) -> 1015 | Q39: =IF(UPPER(TickerAdvfn)="",0,[1]!smfGetADVFNElement(TickerAdvfn,Q$7,COLUMNS(Q:$S),">"&$B39&"<",,0)) -> 1141 | R39: =IF(UPPER(TickerAdvfn)="",0,[1]!smfGetADVFNElement(TickerAdvfn,R$7,COLUMNS(R:$S),">"&$B39&"<",,0)) -> 1547 | S39: =IF(UPPER(TickerAdvfn)="",0,[1]!smfGetADVFNElement(TickerAdvfn,S$7,COLUMNS(S:$S),">"&$B39&"<",,0)) -> 1586 | T39: 5289
B40: Dividends & EPS | E40: =IF(UPPER(TickerAdvfn)="",0,[1]!smfGetADVFNElement(TickerAdvfn,E$7,COLUMNS(E:$N),">"&$B40&"<",,0)) -> 0 | F40: =IF(UPPER(TickerAdvfn)="",0,[1]!smfGetADVFNElement(TickerAdvfn,F$7,COLUMNS(F:$N),">"&$B40&"<",,0)) -> 0 | G40: =IF(UPPER(TickerAdvfn)="",0,[1]!smfGetADVFNElement(TickerAdvfn,G$7,COLUMNS(G:$N),">"&$B40&"<",,0)) -> 0 | H40: =IF(UPPER(TickerAdvfn)="",0,[1]!smfGetADVFNElement(TickerAdvfn,H$7,COLUMNS(H:$N),">"&$B40&"<",,0)) -> 0 | I40: =IF(UPPER(TickerAdvfn)="",0,[1]!smfGetADVFNElement(TickerAdvfn,I$7,COLUMNS(I:$N),">"&$B40&"<",,0)) -> 0 | J40: =IF(UPPER(TickerAdvfn)="",0,[1]!smfGetADVFNElement(TickerAdvfn,J$7,COLUMNS(J:$N),">"&$B40&"<",,0)) -> 0 | K40: =IF(UPPER(TickerAdvfn)="",0,[1]!smfGetADVFNElement(TickerAdvfn,K$7,COLUMNS(K:$N),">"&$B40&"<",,0)) -> 0 | L40: =IF(UPPER(TickerAdvfn)="",0,[1]!smfGetADVFNElement(TickerAdvfn,L$7,COLUMNS(L:$N),">"&$B40&"<",,0)) -> 0 | M40: =IF(UPPER(TickerAdvfn)="",0,[1]!smfGetADVFNElement(TickerAdvfn,M$7,COLUMNS(M:$N),">"&$B40&"<",,0)) -> 0 | N40: =IF(UPPER(TickerAdvfn)="",0,[1]!smfGetADVFNElement(TickerAdvfn,N$7,COLUMNS(N:$N),">"&$B40&"<",,0)) -> 0 | O40: =IF(UPPER(TickerAdvfn)="",0,[1]!smfGetADVFNElement(TickerAdvfn,O$7,COLUMNS(O:$S),">"&$B40&"<",,0)) -> 0 | P40: =IF(UPPER(TickerAdvfn)="",0,[1]!smfGetADVFNElement(TickerAdvfn,P$7,COLUMNS(P:$S),">"&$B40&"<",,0)) -> 0 | Q40: =IF(UPPER(TickerAdvfn)="",0,[1]!smfGetADVFNElement(TickerAdvfn,Q$7,COLUMNS(Q:$S),">"&$B40&"<",,0)) -> 0 | R40: =IF(UPPER(TickerAdvfn)="",0,[1]!smfGetADVFNElement(TickerAdvfn,R$7,COLUMNS(R:$S),">"&$B40&"<",,0)) -> 0 | S40: =IF(UPPER(TickerAdvfn)="",0,[1]!smfGetADVFNElement(TickerAdvfn,S$7,COLUMNS(S:$S),">"&$B40&"<",,0)) -> 0 | T40: 0
B41: preferred dividends | E41: =IF(UPPER(TickerAdvfn)="",0,[1]!smfGetADVFNElement(TickerAdvfn,E$7,COLUMNS(E:$N),">"&$B41&"<",,0)) -> 0 | F41: =IF(UPPER(TickerAdvfn)="",0,[1]!smfGetADVFNElement(TickerAdvfn,F$7,COLUMNS(F:$N),">"&$B41&"<",,0)) -> 0 | G41: =IF(UPPER(TickerAdvfn)="",0,[1]!smfGetADVFNElement(TickerAdvfn,G$7,COLUMNS(G:$N),">"&$B41&"<",,0)) -> 0 | H41: =IF(UPPER(TickerAdvfn)="",0,[1]!smfGetADVFNElement(TickerAdvfn,H$7,COLUMNS(H:$N),">"&$B41&"<",,0)) -> 0 | I41: =IF(UPPER(TickerAdvfn)="",0,[1]!smfGetADVFNElement(TickerAdvfn,I$7,COLUMNS(I:$N),">"&$B41&"<",,0)) -> 0 | J41: =IF(UPPER(TickerAdvfn)="",0,[1]!smfGetADVFNElement(TickerAdvfn,J$7,COLUMNS(J:$N),">"&$B41&"<",,0)) -> 0 | K41: =IF(UPPER(TickerAdvfn)="",0,[1]!smfGetADVFNElement(TickerAdvfn,K$7,COLUMNS(K:$N),">"&$B41&"<",,0)) -> 0 | L41: =IF(UPPER(TickerAdvfn)="",0,[1]!smfGetADVFNElement(TickerAdvfn,L$7,COLUMNS(L:$N),">"&$B41&"<",,0)) -> 0 | M41: =IF(UPPER(TickerAdvfn)="",0,[1]!smfGetADVFNElement(TickerAdvfn,M$7,COLUMNS(M:$N),">"&$B41&"<",,0)) -> 0 | N41: =IF(UPPER(TickerAdvfn)="",0,[1]!smfGetADVFNElement(TickerAdvfn,N$7,COLUMNS(N:$N),">"&$B41&"<",,0)) -> 0 | O41: =IF(UPPER(TickerAdvfn)="",0,[1]!smfGetADVFNElement(TickerAdvfn,O$7,COLUMNS(O:$S),">"&$B41&"<",,0)) -> 0 | P41: =IF(UPPER(TickerAdvfn)="",0,[1]!smfGetADVFNElement(TickerAdvfn,P$7,COLUMNS(P:$S),">"&$B41&"<",,0)) -> 0 | Q41: =IF(UPPER(TickerAdvfn)="",0,[1]!smfGetADVFNElement(TickerAdvfn,Q$7,COLUMNS(Q:$S),">"&$B41&"<",,0)) -> 0 | R41: =IF(UPPER(TickerAdvfn)="",0,[1]!smfGetADVFNElement(TickerAdvfn,R$7,COLUMNS(R:$S),">"&$B41&"<",,0)) -> 0 | S41: =IF(UPPER(TickerAdvfn)="",0,[1]!smfGetADVFNElement(TickerAdvfn,S$7,COLUMNS(S:$S),">"&$B41&"<",,0)) -> 0 | T41: 0
B42: Basic EPS - Total | E42: =IF(UPPER(TickerAdvfn)="",0,[1]!smfGetADVFNElement(TickerAdvfn,E$7,COLUMNS(E:$N),">"&$B42&"<",,0)) -> 1.16 | F42: =IF(UPPER(TickerAdvfn)="",0,[1]!smfGetADVFNElement(TickerAdvfn,F$7,COLUMNS(F:$N),">"&$B42&"<",,0)) -> 1.59 | G42: =IF(UPPER(TickerAdvfn)="",0,[1]!smfGetADVFNElement(TickerAdvfn,G$7,COLUMNS(G:$N),">"&$B42&"<",,0)) -> 2.98 | H42: =IF(UPPER(TickerAdvfn)="",0,[1]!smfGetADVFNElement(TickerAdvfn,H$7,COLUMNS(H:$N),">"&$B42&"<",,0)) -> 4.21 | I42: =IF(UPPER(TickerAdvfn)="",0,[1]!smfGetADVFNElement(TickerAdvfn,I$7,COLUMNS(I:$N),">"&$B42&"<",,0)) -> 5.37 | J42: =IF(UPPER(TickerAdvfn)="",0,[1]!smfGetADVFNElement(TickerAdvfn,J$7,COLUMNS(J:$N),">"&$B42&"<",,0)) -> 5.55 | K42: =IF(UPPER(TickerAdvfn)="",0,[1]!smfGetADVFNElement(TickerAdvfn,K$7,COLUMNS(K:$N),">"&$B42&"<",,0)) -> 5.83 | L42: =IF(UPPER(TickerAdvfn)="",0,[1]!smfGetADVFNElement(TickerAdvfn,L$7,COLUMNS(L:$N),">"&$B42&"<",,0)) -> 1.45 | M42: =IF(UPPER(TickerAdvfn)="",0,[1]!smfGetADVFNElement(TickerAdvfn,M$7,COLUMNS(M:$N),">"&$B42&"<",,0)) -> 4.28 | N42: =IF(UPPER(TickerAdvfn)="",0,[1]!smfGetADVFNElement(TickerAdvfn,N$7,COLUMNS(N:$N),">"&$B42&"<",,0)) -> 7.64 | O42: =IF(UPPER(TickerAdvfn)="",0,[1]!smfGetADVFNElement(TickerAdvfn,O$7,COLUMNS(O:$S),">"&$B42&"<",,0)) -> 1.91 | P42: =IF(UPPER(TickerAdvfn)="",0,[1]!smfGetADVFNElement(TickerAdvfn,P$7,COLUMNS(P:$S),">"&$B42&"<",,0)) -> 1.57 | Q42: =IF(UPPER(TickerAdvfn)="",0,[1]!smfGetADVFNElement(TickerAdvfn,Q$7,COLUMNS(Q:$S),">"&$B42&"<",,0)) -> 1.76 | R42: =IF(UPPER(TickerAdvfn)="",0,[1]!smfGetADVFNElement(TickerAdvfn,R$7,COLUMNS(R:$S),">"&$B42&"<",,0)) -> 2.39 | S42: =IF(UPPER(TickerAdvfn)="",0,[1]!smfGetADVFNElement(TickerAdvfn,S$7,COLUMNS(S:$S),">"&$B42&"<",,0)) -> 2.44 | T42: 8.16
B43: Diluted EPS - Total | E43: =IF(UPPER(TickerAdvfn)="",0,[1]!smfGetADVFNElement(TickerAdvfn,E$7,COLUMNS(E:$N),">"&$B43&"<",,0)) -> 1.15 | F43: =IF(UPPER(TickerAdvfn)="",0,[1]!smfGetADVFNElement(TickerAdvfn,F$7,COLUMNS(F:$N),">"&$B43&"<",,0)) -> 1.57 | G43: =IF(UPPER(TickerAdvfn)="",0,[1]!smfGetADVFNElement(TickerAdvfn,G$7,COLUMNS(G:$N),">"&$B43&"<",,0)) -> 2.88 | H43: =IF(UPPER(TickerAdvfn)="",0,[1]!smfGetADVFNElement(TickerAdvfn,H$7,COLUMNS(H:$N),">"&$B43&"<",,0)) -> 4.04 | I43: =IF(UPPER(TickerAdvfn)="",0,[1]!smfGetADVFNElement(TickerAdvfn,I$7,COLUMNS(I:$N),">"&$B43&"<",,0)) -> 5.17 | J43: =IF(UPPER(TickerAdvfn)="",0,[1]!smfGetADVFNElement(TickerAdvfn,J$7,COLUMNS(J:$N),">"&$B43&"<",,0)) -> 5.37 | K43: =IF(UPPER(TickerAdvfn)="",0,[1]!smfGetADVFNElement(TickerAdvfn,K$7,COLUMNS(K:$N),">"&$B43&"<",,0)) -> 5.66 | L43: =IF(UPPER(TickerAdvfn)="",0,[1]!smfGetADVFNElement(TickerAdvfn,L$7,COLUMNS(L:$N),">"&$B43&"<",,0)) -> 1.43 | M43: =IF(UPPER(TickerAdvfn)="",0,[1]!smfGetADVFNElement(TickerAdvfn,M$7,COLUMNS(M:$N),">"&$B43&"<",,0)) -> 4.15 | N43: =IF(UPPER(TickerAdvfn)="",0,[1]!smfGetADVFNElement(TickerAdvfn,N$7,COLUMNS(N:$N),">"&$B43&"<",,0)) -> 7.4 | O43: =IF(UPPER(TickerAdvfn)="",0,[1]!smfGetADVFNElement(TickerAdvfn,O$7,COLUMNS(O:$S),">"&$B43&"<",,0)) -> 1.84 | P43: =IF(UPPER(TickerAdvfn)="",0,[1]!smfGetADVFNElement(TickerAdvfn,P$7,COLUMNS(P:$S),">"&$B43&"<",,0)) -> 1.52 | Q43: =IF(UPPER(TickerAdvfn)="",0,[1]!smfGetADVFNElement(TickerAdvfn,Q$7,COLUMNS(Q:$S),">"&$B43&"<",,0)) -> 1.71 | R43: =IF(UPPER(TickerAdvfn)="",0,[1]!smfGetADVFNElement(TickerAdvfn,R$7,COLUMNS(R:$S),">"&$B43&"<",,0)) -> 2.32 | S43: =IF(UPPER(TickerAdvfn)="",0,[1]!smfGetADVFNElement(TickerAdvfn,S$7,COLUMNS(S:$S),">"&$B43&"<",,0)) -> 2.37 | T43: 7.92
B44: Dividends Paid Per Share (DPS) | E44: =IF(UPPER(TickerAdvfn)="",0,[1]!smfGetADVFNElement(TickerAdvfn,E$7,COLUMNS(E:$N),">"&$B44&"<",,0)) -> 0.7 | F44: =IF(UPPER(TickerAdvfn)="",0,[1]!smfGetADVFNElement(TickerAdvfn,F$7,COLUMNS(F:$N),">"&$B44&"<",,0)) -> 0.71 | G44: =IF(UPPER(TickerAdvfn)="",0,[1]!smfGetADVFNElement(TickerAdvfn,G$7,COLUMNS(G:$N),">"&$B44&"<",,0)) -> 0.78 | H44: =IF(UPPER(TickerAdvfn)="",0,[1]!smfGetADVFNElement(TickerAdvfn,H$7,COLUMNS(H:$N),">"&$B44&"<",,0)) -> 0.91 | I44: =IF(UPPER(TickerAdvfn)="",0,[1]!smfGetADVFNElement(TickerAdvfn,I$7,COLUMNS(I:$N),">"&$B44&"<",,0)) -> 1.1 | J44: =IF(UPPER(TickerAdvfn)="",0,[1]!smfGetADVFNElement(TickerAdvfn,J$7,COLUMNS(J:$N),">"&$B44&"<",,0)) -> 1.32 | K44: =IF(UPPER(TickerAdvfn)="",0,[1]!smfGetADVFNElement(TickerAdvfn,K$7,COLUMNS(K:$N),">"&$B44&"<",,0)) -> 1.56 | L44: =IF(UPPER(TickerAdvfn)="",0,[1]!smfGetADVFNElement(TickerAdvfn,L$7,COLUMNS(L:$N),">"&$B44&"<",,0)) -> 1.68 | M44: =IF(UPPER(TickerAdvfn)="",0,[1]!smfGetADVFNElement(TickerAdvfn,M$7,COLUMNS(M:$N),">"&$B44&"<",,0)) -> 1.72 | N44: =IF(UPPER(TickerAdvfn)="",0,[1]!smfGetADVFNElement(TickerAdvfn,N$7,COLUMNS(N:$N),">"&$B44&"<",,0)) -> 1.8 | O44: =IF(UPPER(TickerAdvfn)="",0,[1]!smfGetADVFNElement(TickerAdvfn,O$7,COLUMNS(O:$S),">"&$B44&"<",,0)) -> 0.44 | P44: =IF(UPPER(TickerAdvfn)="",0,[1]!smfGetADVFNElement(TickerAdvfn,P$7,COLUMNS(P:$S),">"&$B44&"<",,0)) -> 0.44 | Q44: =IF(UPPER(TickerAdvfn)="",0,[1]!smfGetADVFNElement(TickerAdvfn,Q$7,COLUMNS(Q:$S),">"&$B44&"<",,0)) -> 0.46 | R44: =IF(UPPER(TickerAdvfn)="",0,[1]!smfGetADVFNElement(TickerAdvfn,R$7,COLUMNS(R:$S),">"&$B44&"<",,0)) -> 0.46 | S44: =IF(UPPER(TickerAdvfn)="",0,[1]!smfGetADVFNElement(TickerAdvfn,S$7,COLUMNS(S:$S),">"&$B44&"<",,0)) -> 0.46 | T44: 1.82
B45: Shares Outstanding
B46: shares out (common class only) | E46: =IF(UPPER(TickerAdvfn)="",0,[1]!smfGetADVFNElement(TickerAdvfn,E$7,COLUMNS(E:$N),">"&$B46&"<",,0)) -> 688.5 | F46: =IF(UPPER(TickerAdvfn)="",0,[1]!smfGetADVFNElement(TickerAdvfn,F$7,COLUMNS(F:$N),">"&$B46&"<",,0)) -> 687.5 | G46: =IF(UPPER(TickerAdvfn)="",0,[1]!smfGetADVFNElement(TickerAdvfn,G$7,COLUMNS(G:$N),">"&$B46&"<",,0)) -> 685.9 | H46: =IF(UPPER(TickerAdvfn)="",0,[1]!smfGetADVFNElement(TickerAdvfn,H$7,COLUMNS(H:$N),">"&$B46&"<",,0)) -> 670.9 | I46: =IF(UPPER(TickerAdvfn)="",0,[1]!smfGetADVFNElement(TickerAdvfn,I$7,COLUMNS(I:$N),">"&$B46&"<",,0)) -> 645.8 | J46: =IF(UPPER(TickerAdvfn)="",0,[1]!smfGetADVFNElement(TickerAdvfn,J$7,COLUMNS(J:$N),">"&$B46&"<",,0)) -> 624 | K46: =IF(UPPER(TickerAdvfn)="",0,[1]!smfGetADVFNElement(TickerAdvfn,K$7,COLUMNS(K:$N),">"&$B46&"<",,0)) -> 601.5 | L46: =IF(UPPER(TickerAdvfn)="",0,[1]!smfGetADVFNElement(TickerAdvfn,L$7,COLUMNS(L:$N),">"&$B46&"<",,0)) -> 624.7 | M46: =IF(UPPER(TickerAdvfn)="",0,[1]!smfGetADVFNElement(TickerAdvfn,M$7,COLUMNS(M:$N),">"&$B46&"<",,0)) -> 638.8 | N46: =IF(UPPER(TickerAdvfn)="",0,[1]!smfGetADVFNElement(TickerAdvfn,N$7,COLUMNS(N:$N),">"&$B46&"<",,0)) -> 647.5 | O46: =IF(UPPER(TickerAdvfn)="",0,[1]!smfGetADVFNElement(TickerAdvfn,O$7,COLUMNS(O:$S),">"&$B46&"<",,0)) -> 644.5 | P46: =IF(UPPER(TickerAdvfn)="",0,[1]!smfGetADVFNElement(TickerAdvfn,P$7,COLUMNS(P:$S),">"&$B46&"<",,0)) -> 646.1 | Q46: =IF(UPPER(TickerAdvfn)="",0,[1]!smfGetADVFNElement(TickerAdvfn,Q$7,COLUMNS(Q:$S),">"&$B46&"<",,0)) -> 646.6 | R46: =IF(UPPER(TickerAdvfn)="",0,[1]!smfGetADVFNElement(TickerAdvfn,R$7,COLUMNS(R:$S),">"&$B46&"<",,0)) -> 647.5 | S46: =IF(UPPER(TickerAdvfn)="",0,[1]!smfGetADVFNElement(TickerAdvfn,S$7,COLUMNS(S:$S),">"&$B46&"<",,0)) -> 652.3 | T46: 8390
B47: preferred shares | E47: =IF(UPPER(TickerAdvfn)="",0,[1]!smfGetADVFNElement(TickerAdvfn,E$7,COLUMNS(E:$N),">"&$B47&"<",,0)) -> 0 | F47: =IF(UPPER(TickerAdvfn)="",0,[1]!smfGetADVFNElement(TickerAdvfn,F$7,COLUMNS(F:$N),">"&$B47&"<",,0)) -> 0 | G47: =IF(UPPER(TickerAdvfn)="",0,[1]!smfGetADVFNElement(TickerAdvfn,G$7,COLUMNS(G:$N),">"&$B47&"<",,0)) -> 0 | H47: =IF(UPPER(TickerAdvfn)="",0,[1]!smfGetADVFNElement(TickerAdvfn,H$7,COLUMNS(H:$N),">"&$B47&"<",,0)) -> 0 | I47: =IF(UPPER(TickerAdvfn)="",0,[1]!smfGetADVFNElement(TickerAdvfn,I$7,COLUMNS(I:$N),">"&$B47&"<",,0)) -> 0 | J47: =IF(UPPER(TickerAdvfn)="",0,[1]!smfGetADVFNElement(TickerAdvfn,J$7,COLUMNS(J:$N),">"&$B47&"<",,0)) -> 0 | K47: =IF(UPPER(TickerAdvfn)="",0,[1]!smfGetADVFNElement(TickerAdvfn,K$7,COLUMNS(K:$N),">"&$B47&"<",,0)) -> 0 | L47: =IF(UPPER(TickerAdvfn)="",0,[1]!smfGetADVFNElement(TickerAdvfn,L$7,COLUMNS(L:$N),">"&$B47&"<",,0)) -> 0 | M47: =IF(UPPER(TickerAdvfn)="",0,[1]!smfGetADVFNElement(TickerAdvfn,M$7,COLUMNS(M:$N),">"&$B47&"<",,0)) -> 0 | N47: =IF(UPPER(TickerAdvfn)="",0,[1]!smfGetADVFNElement(TickerAdvfn,N$7,COLUMNS(N:$N),">"&$B47&"<",,0)) -> 0 | O47: =IF(UPPER(TickerAdvfn)="",0,[1]!smfGetADVFNElement(TickerAdvfn,O$7,COLUMNS(O:$S),">"&$B47&"<",,0)) -> 0 | P47: =IF(UPPER(TickerAdvfn)="",0,[1]!smfGetADVFNElement(TickerAdvfn,P$7,COLUMNS(P:$S),">"&$B47&"<",,0)) -> 0 | Q47: =IF(UPPER(TickerAdvfn)="",0,[1]!smfGetADVFNElement(TickerAdvfn,Q$7,COLUMNS(Q:$S),">"&$B47&"<",,0)) -> 0 | R47: =IF(UPPER(TickerAdvfn)="",0,[1]!smfGetADVFNElement(TickerAdvfn,R$7,COLUMNS(R:$S),">"&$B47&"<",,0)) -> 0 | S47: =IF(UPPER(TickerAdvfn)="",0,[1]!smfGetADVFNElement(TickerAdvfn,S$7,COLUMNS(S:$S),">"&$B47&"<",,0)) -> 0
B48: basic weighted shares | E48: =IF(UPPER(TickerAdvfn)="",0,[1]!smfGetADVFNElement(TickerAdvfn,E$7,COLUMNS(E:$N),">"&$B48&"<",,0)) -> 688 | F48: =IF(UPPER(TickerAdvfn)="",0,[1]!smfGetADVFNElement(TickerAdvfn,F$7,COLUMNS(F:$N),">"&$B48&"<",,0)) -> 690.4 | G48: =IF(UPPER(TickerAdvfn)="",0,[1]!smfGetADVFNElement(TickerAdvfn,G$7,COLUMNS(G:$N),">"&$B48&"<",,0)) -> 684.6 | H48: =IF(UPPER(TickerAdvfn)="",0,[1]!smfGetADVFNElement(TickerAdvfn,H$7,COLUMNS(H:$N),">"&$B48&"<",,0)) -> 678.4 | I48: =IF(UPPER(TickerAdvfn)="",0,[1]!smfGetADVFNElement(TickerAdvfn,I$7,COLUMNS(I:$N),">"&$B48&"<",,0)) -> 658.7 | J48: =IF(UPPER(TickerAdvfn)="",0,[1]!smfGetADVFNElement(TickerAdvfn,J$7,COLUMNS(J:$N),">"&$B48&"<",,0)) -> 638.2 | K48: =IF(UPPER(TickerAdvfn)="",0,[1]!smfGetADVFNElement(TickerAdvfn,K$7,COLUMNS(K:$N),">"&$B48&"<",,0)) -> 610.5 | L48: =IF(UPPER(TickerAdvfn)="",0,[1]!smfGetADVFNElement(TickerAdvfn,L$7,COLUMNS(L:$N),">"&$B48&"<",,0)) -> 615.2 | M48: =IF(UPPER(TickerAdvfn)="",0,[1]!smfGetADVFNElement(TickerAdvfn,M$7,COLUMNS(M:$N),">"&$B48&"<",,0)) -> 631.5 | N48: =IF(UPPER(TickerAdvfn)="",0,[1]!smfGetADVFNElement(TickerAdvfn,N$7,COLUMNS(N:$N),">"&$B48&"<",,0)) -> 645 | O48: =IF(UPPER(TickerAdvfn)="",0,[1]!smfGetADVFNElement(TickerAdvfn,O$7,COLUMNS(O:$S),">"&$B48&"<",,0)) -> 641.4 | P48: =IF(UPPER(TickerAdvfn)="",0,[1]!smfGetADVFNElement(TickerAdvfn,P$7,COLUMNS(P:$S),">"&$B48&"<",,0)) -> 645.5 | Q48: =IF(UPPER(TickerAdvfn)="",0,[1]!smfGetADVFNElement(TickerAdvfn,Q$7,COLUMNS(Q:$S),">"&$B48&"<",,0)) -> 646.6 | R48: =IF(UPPER(TickerAdvfn)="",0,[1]!smfGetADVFNElement(TickerAdvfn,R$7,COLUMNS(R:$S),">"&$B48&"<",,0)) -> 645 | S48: =IF(UPPER(TickerAdvfn)="",0,[1]!smfGetADVFNElement(TickerAdvfn,S$7,COLUMNS(S:$S),">"&$B48&"<",,0)) -> 650 | T48: =shares -> 652.5
B49: diluted weighted shares | E49: =IF(UPPER(TickerAdvfn)="",0,[1]!smfGetADVFNElement(TickerAdvfn,E$7,COLUMNS(E:$N),">"&$B49&"<",,0)) -> 693.8 | F49: =IF(UPPER(TickerAdvfn)="",0,[1]!smfGetADVFNElement(TickerAdvfn,F$7,COLUMNS(F:$N),">"&$B49&"<",,0)) -> 702.8 | G49: =IF(UPPER(TickerAdvfn)="",0,[1]!smfGetADVFNElement(TickerAdvfn,G$7,COLUMNS(G:$N),">"&$B49&"<",,0)) -> 707.4 | H49: =IF(UPPER(TickerAdvfn)="",0,[1]!smfGetADVFNElement(TickerAdvfn,H$7,COLUMNS(H:$N),">"&$B49&"<",,0)) -> 705.8 | I49: =IF(UPPER(TickerAdvfn)="",0,[1]!smfGetADVFNElement(TickerAdvfn,I$7,COLUMNS(I:$N),">"&$B49&"<",,0)) -> 683.8 | J49: =IF(UPPER(TickerAdvfn)="",0,[1]!smfGetADVFNElement(TickerAdvfn,J$7,COLUMNS(J:$N),">"&$B49&"<",,0)) -> 659.5 | K49: =IF(UPPER(TickerAdvfn)="",0,[1]!smfGetADVFNElement(TickerAdvfn,K$7,COLUMNS(K:$N),">"&$B49&"<",,0)) -> 627.9 | L49: =IF(UPPER(TickerAdvfn)="",0,[1]!smfGetADVFNElement(TickerAdvfn,L$7,COLUMNS(L:$N),">"&$B49&"<",,0)) -> 626 | M49: =IF(UPPER(TickerAdvfn)="",0,[1]!smfGetADVFNElement(TickerAdvfn,M$7,COLUMNS(M:$N),">"&$B49&"<",,0)) -> 650.4 | N49: =IF(UPPER(TickerAdvfn)="",0,[1]!smfGetADVFNElement(TickerAdvfn,N$7,COLUMNS(N:$N),">"&$B49&"<",,0)) -> 666.1 | O49: =IF(UPPER(TickerAdvfn)="",0,[1]!smfGetADVFNElement(TickerAdvfn,O$7,COLUMNS(O:$S),">"&$B49&"<",,0)) -> 664.9 | P49: =IF(UPPER(TickerAdvfn)="",0,[1]!smfGetADVFNElement(TickerAdvfn,P$7,COLUMNS(P:$S),">"&$B49&"<",,0)) -> 667.2 | Q49: =IF(UPPER(TickerAdvfn)="",0,[1]!smfGetADVFNElement(TickerAdvfn,Q$7,COLUMNS(Q:$S),">"&$B49&"<",,0)) -> 666 | R49: =IF(UPPER(TickerAdvfn)="",0,[1]!smfGetADVFNElement(TickerAdvfn,R$7,COLUMNS(R:$S),">"&$B49&"<",,0)) -> 666.1 | S49: =IF(UPPER(TickerAdvfn)="",0,[1]!smfGetADVFNElement(TickerAdvfn,S$7,COLUMNS(S:$S),">"&$B49&"<",,0)) -> 670.2 | T49: =S49 -> 670.2
A51: Balance Sheet | C51: =C5 -> Annual | D51: =D5 -> Quarterly
A52: Assets
B53: cash & equivalents | E53: =IF(UPPER(TickerAdvfn)="",0,[1]!smfGetADVFNElement(TickerAdvfn,E$7,COLUMNS(E:$N),">"&$B53&"<",,0)) -> 309 | F53: =IF(UPPER(TickerAdvfn)="",0,[1]!smfGetADVFNElement(TickerAdvfn,F$7,COLUMNS(F:$N),">"&$B53&"<",,0)) -> 342 | G53: =IF(UPPER(TickerAdvfn)="",0,[1]!smfGetADVFNElement(TickerAdvfn,G$7,COLUMNS(G:$N),">"&$B53&"<",,0)) -> 445 | H53: =IF(UPPER(TickerAdvfn)="",0,[1]!smfGetADVFNElement(TickerAdvfn,H$7,COLUMNS(H:$N),">"&$B53&"<",,0)) -> 1108 | I53: =IF(UPPER(TickerAdvfn)="",0,[1]!smfGetADVFNElement(TickerAdvfn,I$7,COLUMNS(I:$N),">"&$B53&"<",,0)) -> 530 | J53: =IF(UPPER(TickerAdvfn)="",0,[1]!smfGetADVFNElement(TickerAdvfn,J$7,COLUMNS(J:$N),">"&$B53&"<",,0)) -> 1122 | K53: =IF(UPPER(TickerAdvfn)="",0,[1]!smfGetADVFNElement(TickerAdvfn,K$7,COLUMNS(K:$N),">"&$B53&"<",,0)) -> 2736 | L53: =IF(UPPER(TickerAdvfn)="",0,[1]!smfGetADVFNElement(TickerAdvfn,L$7,COLUMNS(L:$N),">"&$B53&"<",,0)) -> 4867 | M53: =IF(UPPER(TickerAdvfn)="",0,[1]!smfGetADVFNElement(TickerAdvfn,M$7,COLUMNS(M:$N),">"&$B53&"<",,0)) -> 3592 | N53: =IF(UPPER(TickerAdvfn)="",0,[1]!smfGetADVFNElement(TickerAdvfn,N$7,COLUMNS(N:$N),">"&$B53&"<",,0)) -> 3057 | O53: =IF(UPPER(TickerAdvfn)="",0,[1]!smfGetADVFNElement(TickerAdvfn,O$7,COLUMNS(O:$S),">"&$B53&"<",,0)) -> 4869 | P53: =IF(UPPER(TickerAdvfn)="",0,[1]!smfGetADVFNElement(TickerAdvfn,P$7,COLUMNS(P:$S),">"&$B53&"<",,0)) -> 10715 | Q53: =IF(UPPER(TickerAdvfn)="",0,[1]!smfGetADVFNElement(TickerAdvfn,Q$7,COLUMNS(Q:$S),">"&$B53&"<",,0)) -> 3229 | R53: =IF(UPPER(TickerAdvfn)="",0,[1]!smfGetADVFNElement(TickerAdvfn,R$7,COLUMNS(R:$S),">"&$B53&"<",,0)) -> 3057 | S53: =IF(UPPER(TickerAdvfn)="",0,[1]!smfGetADVFNElement(TickerAdvfn,S$7,COLUMNS(S:$S),">"&$B53&"<",,0)) -> 2864 | T53: =S53 -> 2864
B54: restricted cash | E54: =IF(UPPER(TickerAdvfn)="",0,[1]!smfGetADVFNElement(TickerAdvfn,E$7,COLUMNS(E:$N),">"&$B54&"<",,0)) -> 0 | F54: =IF(UPPER(TickerAdvfn)="",0,[1]!smfGetADVFNElement(TickerAdvfn,F$7,COLUMNS(F:$N),">"&$B54&"<",,0)) -> 0 | G54: =IF(UPPER(TickerAdvfn)="",0,[1]!smfGetADVFNElement(TickerAdvfn,G$7,COLUMNS(G:$N),">"&$B54&"<",,0)) -> 0 | H54: =IF(UPPER(TickerAdvfn)="",0,[1]!smfGetADVFNElement(TickerAdvfn,H$7,COLUMNS(H:$N),">"&$B54&"<",,0)) -> 0 | I54: =IF(UPPER(TickerAdvfn)="",0,[1]!smfGetADVFNElement(TickerAdvfn,I$7,COLUMNS(I:$N),">"&$B54&"<",,0)) -> 0 | J54: =IF(UPPER(TickerAdvfn)="",0,[1]!smfGetADVFNElement(TickerAdvfn,J$7,COLUMNS(J:$N),">"&$B54&"<",,0)) -> 0 | K54: =IF(UPPER(TickerAdvfn)="",0,[1]!smfGetADVFNElement(TickerAdvfn,K$7,COLUMNS(K:$N),">"&$B54&"<",,0)) -> 0 | L54: =IF(UPPER(TickerAdvfn)="",0,[1]!smfGetADVFNElement(TickerAdvfn,L$7,COLUMNS(L:$N),">"&$B54&"<",,0)) -> 0 | M54: =IF(UPPER(TickerAdvfn)="",0,[1]!smfGetADVFNElement(TickerAdvfn,M$7,COLUMNS(M:$N),">"&$B54&"<",,0)) -> 0 | N54: =IF(UPPER(TickerAdvfn)="",0,[1]!smfGetADVFNElement(TickerAdvfn,N$7,COLUMNS(N:$N),">"&$B54&"<",,0)) -> 0 | O54: =IF(UPPER(TickerAdvfn)="",0,[1]!smfGetADVFNElement(TickerAdvfn,O$7,COLUMNS(O:$S),">"&$B54&"<",,0)) -> 0 | P54: =IF(UPPER(TickerAdvfn)="",0,[1]!smfGetADVFNElement(TickerAdvfn,P$7,COLUMNS(P:$S),">"&$B54&"<",,0)) -> 0 | Q54: =IF(UPPER(TickerAdvfn)="",0,[1]!smfGetADVFNElement(TickerAdvfn,Q$7,COLUMNS(Q:$S),">"&$B54&"<",,0)) -> 0 | R54: =IF(UPPER(TickerAdvfn)="",0,[1]!smfGetADVFNElement(TickerAdvfn,R$7,COLUMNS(R:$S),">"&$B54&"<",,0)) -> 0 | S54: =IF(UPPER(TickerAdvfn)="",0,[1]!smfGetADVFNElement(TickerAdvfn,S$7,COLUMNS(S:$S),">"&$B54&"<",,0)) -> 0 | T54: =S54 -> 0
B55: marketable securities | E55: =IF(UPPER(TickerAdvfn)="",0,[1]!smfGetADVFNElement(TickerAdvfn,E$7,COLUMNS(E:$N),">"&$B55&"<",,0)) -> 0 | F55: =IF(UPPER(TickerAdvfn)="",0,[1]!smfGetADVFNElement(TickerAdvfn,F$7,COLUMNS(F:$N),">"&$B55&"<",,0)) -> 0 | G55: =IF(UPPER(TickerAdvfn)="",0,[1]!smfGetADVFNElement(TickerAdvfn,G$7,COLUMNS(G:$N),">"&$B55&"<",,0)) -> 0 | H55: =IF(UPPER(TickerAdvfn)="",0,[1]!smfGetADVFNElement(TickerAdvfn,H$7,COLUMNS(H:$N),">"&$B55&"<",,0)) -> 0 | I55: =IF(UPPER(TickerAdvfn)="",0,[1]!smfGetADVFNElement(TickerAdvfn,I$7,COLUMNS(I:$N),">"&$B55&"<",,0)) -> 0 | J55: =IF(UPPER(TickerAdvfn)="",0,[1]!smfGetADVFNElement(TickerAdvfn,J$7,COLUMNS(J:$N),">"&$B55&"<",,0)) -> 0 | K55: =IF(UPPER(TickerAdvfn)="",0,[1]!smfGetADVFNElement(TickerAdvfn,K$7,COLUMNS(K:$N),">"&$B55&"<",,0)) -> 0 | L55: =IF(UPPER(TickerAdvfn)="",0,[1]!smfGetADVFNElement(TickerAdvfn,L$7,COLUMNS(L:$N),">"&$B55&"<",,0)) -> 0 | M55: =IF(UPPER(TickerAdvfn)="",0,[1]!smfGetADVFNElement(TickerAdvfn,M$7,COLUMNS(M:$N),">"&$B55&"<",,0)) -> 0 | N55: =IF(UPPER(TickerAdvfn)="",0,[1]!smfGetADVFNElement(TickerAdvfn,N$7,COLUMNS(N:$N),">"&$B55&"<",,0)) -> 0 | O55: =IF(UPPER(TickerAdvfn)="",0,[1]!smfGetADVFNElement(TickerAdvfn,O$7,COLUMNS(O:$S),">"&$B55&"<",,0)) -> 0 | P55: =IF(UPPER(TickerAdvfn)="",0,[1]!smfGetADVFNElement(TickerAdvfn,P$7,COLUMNS(P:$S),">"&$B55&"<",,0)) -> 0 | Q55: =IF(UPPER(TickerAdvfn)="",0,[1]!smfGetADVFNElement(TickerAdvfn,Q$7,COLUMNS(Q:$S),">"&$B55&"<",,0)) -> 0 | R55: =IF(UPPER(TickerAdvfn)="",0,[1]!smfGetADVFNElement(TickerAdvfn,R$7,COLUMNS(R:$S),">"&$B55&"<",,0)) -> 0 | S55: =IF(UPPER(TickerAdvfn)="",0,[1]!smfGetADVFNElement(TickerAdvfn,S$7,COLUMNS(S:$S),">"&$B55&"<",,0)) -> 0 | T55: 0
B56: accounts receivable | E56: =IF(UPPER(TickerAdvfn)="",0,[1]!smfGetADVFNElement(TickerAdvfn,E$7,COLUMNS(E:$N),">"&$B56&"<",,0)) -> 2838 | F56: =IF(UPPER(TickerAdvfn)="",0,[1]!smfGetADVFNElement(TickerAdvfn,F$7,COLUMNS(F:$N),">"&$B56&"<",,0)) -> 3666 | G56: =IF(UPPER(TickerAdvfn)="",0,[1]!smfGetADVFNElement(TickerAdvfn,G$7,COLUMNS(G:$N),">"&$B56&"<",,0)) -> 7616 | H56: =IF(UPPER(TickerAdvfn)="",0,[1]!smfGetADVFNElement(TickerAdvfn,H$7,COLUMNS(H:$N),">"&$B56&"<",,0)) -> 7526 | I56: =IF(UPPER(TickerAdvfn)="",0,[1]!smfGetADVFNElement(TickerAdvfn,I$7,COLUMNS(I:$N),">"&$B56&"<",,0)) -> 14972 | J56: =IF(UPPER(TickerAdvfn)="",0,[1]!smfGetADVFNElement(TickerAdvfn,J$7,COLUMNS(J:$N),">"&$B56&"<",,0)) -> 8249 | K56: =IF(UPPER(TickerAdvfn)="",0,[1]!smfGetADVFNElement(TickerAdvfn,K$7,COLUMNS(K:$N),">"&$B56&"<",,0)) -> 9397 | L56: =IF(UPPER(TickerAdvfn)="",0,[1]!smfGetADVFNElement(TickerAdvfn,L$7,COLUMNS(L:$N),">"&$B56&"<",,0)) -> 5611 | M56: =IF(UPPER(TickerAdvfn)="",0,[1]!smfGetADVFNElement(TickerAdvfn,M$7,COLUMNS(M:$N),">"&$B56&"<",,0)) -> 8494 | N56: =IF(UPPER(TickerAdvfn)="",0,[1]!smfGetADVFNElement(TickerAdvfn,N$7,COLUMNS(N:$N),">"&$B56&"<",,0)) -> 10285 | O56: =IF(UPPER(TickerAdvfn)="",0,[1]!smfGetADVFNElement(TickerAdvfn,O$7,COLUMNS(O:$S),">"&$B56&"<",,0)) -> 8830 | P56: =IF(UPPER(TickerAdvfn)="",0,[1]!smfGetADVFNElement(TickerAdvfn,P$7,COLUMNS(P:$S),">"&$B56&"<",,0)) -> 8916 | Q56: =IF(UPPER(TickerAdvfn)="",0,[1]!smfGetADVFNElement(TickerAdvfn,Q$7,COLUMNS(Q:$S),">"&$B56&"<",,0)) -> 9386 | R56: =IF(UPPER(TickerAdvfn)="",0,[1]!smfGetADVFNElement(TickerAdvfn,R$7,COLUMNS(R:$S),">"&$B56&"<",,0)) -> 10285 | S56: =IF(UPPER(TickerAdvfn)="",0,[1]!smfGetADVFNElement(TickerAdvfn,S$7,COLUMNS(S:$S),">"&$B56&"<",,0)) -> 10370 | T56: 10370
B57: other receivable | E57: =IF(UPPER(TickerAdvfn)="",0,[1]!smfGetADVFNElement(TickerAdvfn,E$7,COLUMNS(E:$N),">"&$B57&"<",,0)) -> 6748 | F57: =IF(UPPER(TickerAdvfn)="",0,[1]!smfGetADVFNElement(TickerAdvfn,F$7,COLUMNS(F:$N),">"&$B57&"<",,0)) -> 7605 | G57: =IF(UPPER(TickerAdvfn)="",0,[1]!smfGetADVFNElement(TickerAdvfn,G$7,COLUMNS(G:$N),">"&$B57&"<",,0)) -> 6510 | H57: =IF(UPPER(TickerAdvfn)="",0,[1]!smfGetADVFNElement(TickerAdvfn,H$7,COLUMNS(H:$N),">"&$B57&"<",,0)) -> 6442 | I57: =IF(UPPER(TickerAdvfn)="",0,[1]!smfGetADVFNElement(TickerAdvfn,I$7,COLUMNS(I:$N),">"&$B57&"<",,0)) -> 0 | J57: =IF(UPPER(TickerAdvfn)="",0,[1]!smfGetADVFNElement(TickerAdvfn,J$7,COLUMNS(J:$N),">"&$B57&"<",,0)) -> 7503 | K57: =IF(UPPER(TickerAdvfn)="",0,[1]!smfGetADVFNElement(TickerAdvfn,K$7,COLUMNS(K:$N),">"&$B57&"<",,0)) -> 8731 | L57: =IF(UPPER(TickerAdvfn)="",0,[1]!smfGetADVFNElement(TickerAdvfn,L$7,COLUMNS(L:$N),">"&$B57&"<",,0)) -> 8301 | M57: =IF(UPPER(TickerAdvfn)="",0,[1]!smfGetADVFNElement(TickerAdvfn,M$7,COLUMNS(M:$N),">"&$B57&"<",,0)) -> 8298 | N57: =IF(UPPER(TickerAdvfn)="",0,[1]!smfGetADVFNElement(TickerAdvfn,N$7,COLUMNS(N:$N),">"&$B57&"<",,0)) -> 7668 | O57: =IF(UPPER(TickerAdvfn)="",0,[1]!smfGetADVFNElement(TickerAdvfn,O$7,COLUMNS(O:$S),">"&$B57&"<",,0)) -> 8458 | P57: =IF(UPPER(TickerAdvfn)="",0,[1]!smfGetADVFNElement(TickerAdvfn,P$7,COLUMNS(P:$S),">"&$B57&"<",,0)) -> 8117 | Q57: =IF(UPPER(TickerAdvfn)="",0,[1]!smfGetADVFNElement(TickerAdvfn,Q$7,COLUMNS(Q:$S),">"&$B57&"<",,0)) -> 7920 | R57: =IF(UPPER(TickerAdvfn)="",0,[1]!smfGetADVFNElement(TickerAdvfn,R$7,COLUMNS(R:$S),">"&$B57&"<",,0)) -> 7668 | S57: =IF(UPPER(TickerAdvfn)="",0,[1]!smfGetADVFNElement(TickerAdvfn,S$7,COLUMNS(S:$S),">"&$B57&"<",,0)) -> 7931 | T57: 7931
B58: receivables | E58: =IF(UPPER(TickerAdvfn)="",0,[1]!smfGetADVFNElement(TickerAdvfn,E$7,COLUMNS(E:$N),">"&$B58&"<",,0)) -> 9586 | F58: =IF(UPPER(TickerAdvfn)="",0,[1]!smfGetADVFNElement(TickerAdvfn,F$7,COLUMNS(F:$N),">"&$B58&"<",,0)) -> 11271 | G58: =IF(UPPER(TickerAdvfn)="",0,[1]!smfGetADVFNElement(TickerAdvfn,G$7,COLUMNS(G:$N),">"&$B58&"<",,0)) -> 14126 | H58: =IF(UPPER(TickerAdvfn)="",0,[1]!smfGetADVFNElement(TickerAdvfn,H$7,COLUMNS(H:$N),">"&$B58&"<",,0)) -> 13968 | I58: =IF(UPPER(TickerAdvfn)="",0,[1]!smfGetADVFNElement(TickerAdvfn,I$7,COLUMNS(I:$N),">"&$B58&"<",,0)) -> 14972 | J58: =IF(UPPER(TickerAdvfn)="",0,[1]!smfGetADVFNElement(TickerAdvfn,J$7,COLUMNS(J:$N),">"&$B58&"<",,0)) -> 15752 | K58: =IF(UPPER(TickerAdvfn)="",0,[1]!smfGetADVFNElement(TickerAdvfn,K$7,COLUMNS(K:$N),">"&$B58&"<",,0)) -> 18128 | L58: =IF(UPPER(TickerAdvfn)="",0,[1]!smfGetADVFNElement(TickerAdvfn,L$7,COLUMNS(L:$N),">"&$B58&"<",,0)) -> 13912 | M58: =IF(UPPER(TickerAdvfn)="",0,[1]!smfGetADVFNElement(TickerAdvfn,M$7,COLUMNS(M:$N),">"&$B58&"<",,0)) -> 16792 | N58: =IF(UPPER(TickerAdvfn)="",0,[1]!smfGetADVFNElement(TickerAdvfn,N$7,COLUMNS(N:$N),">"&$B58&"<",,0)) -> 17953 | O58: =IF(UPPER(TickerAdvfn)="",0,[1]!smfGetADVFNElement(TickerAdvfn,O$7,COLUMNS(O:$S),">"&$B58&"<",,0)) -> 17288 | P58: =IF(UPPER(TickerAdvfn)="",0,[1]!smfGetADVFNElement(TickerAdvfn,P$7,COLUMNS(P:$S),">"&$B58&"<",,0)) -> 17033 | Q58: =IF(UPPER(TickerAdvfn)="",0,[1]!smfGetADVFNElement(TickerAdvfn,Q$7,COLUMNS(Q:$S),">"&$B58&"<",,0)) -> 17306 | R58: =IF(UPPER(TickerAdvfn)="",0,[1]!smfGetADVFNElement(TickerAdvfn,R$7,COLUMNS(R:$S),">"&$B58&"<",,0)) -> 17953 | S58: =IF(UPPER(TickerAdvfn)="",0,[1]!smfGetADVFNElement(TickerAdvfn,S$7,COLUMNS(S:$S),">"&$B58&"<",,0)) -> 18301 | T58: 18301
B59: inventories, raw materials | E59: =IF(UPPER(TickerAdvfn)="",0,[1]!smfGetADVFNElement(TickerAdvfn,E$7,COLUMNS(E:$N),">"&$B59&"<",,0)) -> 806 | F59: =IF(UPPER(TickerAdvfn)="",0,[1]!smfGetADVFNElement(TickerAdvfn,F$7,COLUMNS(F:$N),">"&$B59&"<",,0)) -> 1105 | G59: =IF(UPPER(TickerAdvfn)="",0,[1]!smfGetADVFNElement(TickerAdvfn,G$7,COLUMNS(G:$N),">"&$B59&"<",,0)) -> 1592 | H59: =IF(UPPER(TickerAdvfn)="",0,[1]!smfGetADVFNElement(TickerAdvfn,H$7,COLUMNS(H:$N),">"&$B59&"<",,0)) -> 1689 | I59: =IF(UPPER(TickerAdvfn)="",0,[1]!smfGetADVFNElement(TickerAdvfn,I$7,COLUMNS(I:$N),">"&$B59&"<",,0)) -> 2182 | J59: =IF(UPPER(TickerAdvfn)="",0,[1]!smfGetADVFNElement(TickerAdvfn,J$7,COLUMNS(J:$N),">"&$B59&"<",,0)) -> 2474 | K59: =IF(UPPER(TickerAdvfn)="",0,[1]!smfGetADVFNElement(TickerAdvfn,K$7,COLUMNS(K:$N),">"&$B59&"<",,0)) -> 3356 | L59: =IF(UPPER(TickerAdvfn)="",0,[1]!smfGetADVFNElement(TickerAdvfn,L$7,COLUMNS(L:$N),">"&$B59&"<",,0)) -> 1979 | M59: =IF(UPPER(TickerAdvfn)="",0,[1]!smfGetADVFNElement(TickerAdvfn,M$7,COLUMNS(M:$N),">"&$B59&"<",,0)) -> 2766 | N59: =IF(UPPER(TickerAdvfn)="",0,[1]!smfGetADVFNElement(TickerAdvfn,N$7,COLUMNS(N:$N),">"&$B59&"<",,0)) -> 3872 | O59: =IF(UPPER(TickerAdvfn)="",0,[1]!smfGetADVFNElement(TickerAdvfn,O$7,COLUMNS(O:$S),">"&$B59&"<",,0)) -> 3066 | P59: =IF(UPPER(TickerAdvfn)="",0,[1]!smfGetADVFNElement(TickerAdvfn,P$7,COLUMNS(P:$S),">"&$B59&"<",,0)) -> 3511 | Q59: =IF(UPPER(TickerAdvfn)="",0,[1]!smfGetADVFNElement(TickerAdvfn,Q$7,COLUMNS(Q:$S),">"&$B59&"<",,0)) -> 3649 | R59: =IF(UPPER(TickerAdvfn)="",0,[1]!smfGetADVFNElement(TickerAdvfn,R$7,COLUMNS(R:$S),">"&$B59&"<",,0)) -> 3872 | S59: =IF(UPPER(TickerAdvfn)="",0,[1]!smfGetADVFNElement(TickerAdvfn,S$7,COLUMNS(S:$S),">"&$B59&"<",,0)) -> 4094 | T59: 4094
B60: inventories, work in progress | E60: =IF(UPPER(TickerAdvfn)="",0,[1]!smfGetADVFNElement(TickerAdvfn,E$7,COLUMNS(E:$N),">"&$B60&"<",,0)) -> 316 | F60: =IF(UPPER(TickerAdvfn)="",0,[1]!smfGetADVFNElement(TickerAdvfn,F$7,COLUMNS(F:$N),">"&$B60&"<",,0)) -> 377 | G60: =IF(UPPER(TickerAdvfn)="",0,[1]!smfGetADVFNElement(TickerAdvfn,G$7,COLUMNS(G:$N),">"&$B60&"<",,0)) -> 664 | H60: =IF(UPPER(TickerAdvfn)="",0,[1]!smfGetADVFNElement(TickerAdvfn,H$7,COLUMNS(H:$N),">"&$B60&"<",,0)) -> 814 | I60: =IF(UPPER(TickerAdvfn)="",0,[1]!smfGetADVFNElement(TickerAdvfn,I$7,COLUMNS(I:$N),">"&$B60&"<",,0)) -> 977 | J60: =IF(UPPER(TickerAdvfn)="",0,[1]!smfGetADVFNElement(TickerAdvfn,J$7,COLUMNS(J:$N),">"&$B60&"<",,0)) -> 1215 | K60: =IF(UPPER(TickerAdvfn)="",0,[1]!smfGetADVFNElement(TickerAdvfn,K$7,COLUMNS(K:$N),">"&$B60&"<",,0)) -> 1107 | L60: =IF(UPPER(TickerAdvfn)="",0,[1]!smfGetADVFNElement(TickerAdvfn,L$7,COLUMNS(L:$N),">"&$B60&"<",,0)) -> 656 | M60: =IF(UPPER(TickerAdvfn)="",0,[1]!smfGetADVFNElement(TickerAdvfn,M$7,COLUMNS(M:$N),">"&$B60&"<",,0)) -> 1483 | N60: =IF(UPPER(TickerAdvfn)="",0,[1]!smfGetADVFNElement(TickerAdvfn,N$7,COLUMNS(N:$N),">"&$B60&"<",,0)) -> 2845 | O60: =IF(UPPER(TickerAdvfn)="",0,[1]!smfGetADVFNElement(TickerAdvfn,O$7,COLUMNS(O:$S),">"&$B60&"<",,0)) -> 1740 | P60: =IF(UPPER(TickerAdvfn)="",0,[1]!smfGetADVFNElement(TickerAdvfn,P$7,COLUMNS(P:$S),">"&$B60&"<",,0)) -> 1911 | Q60: =IF(UPPER(TickerAdvfn)="",0,[1]!smfGetADVFNElement(TickerAdvfn,Q$7,COLUMNS(Q:$S),">"&$B60&"<",,0)) -> 3020 | R60: =IF(UPPER(TickerAdvfn)="",0,[1]!smfGetADVFNElement(TickerAdvfn,R$7,COLUMNS(R:$S),">"&$B60&"<",,0)) -> 2845 | S60: =IF(UPPER(TickerAdvfn)="",0,[1]!smfGetADVFNElement(TickerAdvfn,S$7,COLUMNS(S:$S),">"&$B60&"<",,0)) -> 3345 | T60: 3345
B61: inventories, purchased components | E61: =IF(UPPER(TickerAdvfn)="",0,[1]!smfGetADVFNElement(TickerAdvfn,E$7,COLUMNS(E:$N),">"&$B61&"<",,0)) -> 0 | F61: =IF(UPPER(TickerAdvfn)="",0,[1]!smfGetADVFNElement(TickerAdvfn,F$7,COLUMNS(F:$N),">"&$B61&"<",,0)) -> 0 | G61: =IF(UPPER(TickerAdvfn)="",0,[1]!smfGetADVFNElement(TickerAdvfn,G$7,COLUMNS(G:$N),">"&$B61&"<",,0)) -> 0 | H61: =IF(UPPER(TickerAdvfn)="",0,[1]!smfGetADVFNElement(TickerAdvfn,H$7,COLUMNS(H:$N),">"&$B61&"<",,0)) -> 0 | I61: =IF(UPPER(TickerAdvfn)="",0,[1]!smfGetADVFNElement(TickerAdvfn,I$7,COLUMNS(I:$N),">"&$B61&"<",,0)) -> 0 | J61: =IF(UPPER(TickerAdvfn)="",0,[1]!smfGetADVFNElement(TickerAdvfn,J$7,COLUMNS(J:$N),">"&$B61&"<",,0)) -> 0 | K61: =IF(UPPER(TickerAdvfn)="",0,[1]!smfGetADVFNElement(TickerAdvfn,K$7,COLUMNS(K:$N),">"&$B61&"<",,0)) -> 296 | L61: =IF(UPPER(TickerAdvfn)="",0,[1]!smfGetADVFNElement(TickerAdvfn,L$7,COLUMNS(L:$N),">"&$B61&"<",,0)) -> 260 | M61: =IF(UPPER(TickerAdvfn)="",0,[1]!smfGetADVFNElement(TickerAdvfn,M$7,COLUMNS(M:$N),">"&$B61&"<",,0)) -> 240 | N61: =IF(UPPER(TickerAdvfn)="",0,[1]!smfGetADVFNElement(TickerAdvfn,N$7,COLUMNS(N:$N),">"&$B61&"<",,0)) -> 257 | O61: =IF(UPPER(TickerAdvfn)="",0,[1]!smfGetADVFNElement(TickerAdvfn,O$7,COLUMNS(O:$S),">"&$B61&"<",,0)) -> 242 | P61: =IF(UPPER(TickerAdvfn)="",0,[1]!smfGetADVFNElement(TickerAdvfn,P$7,COLUMNS(P:$S),">"&$B61&"<",,0)) -> 0 | Q61: =IF(UPPER(TickerAdvfn)="",0,[1]!smfGetADVFNElement(TickerAdvfn,Q$7,COLUMNS(Q:$S),">"&$B61&"<",,0)) -> 269 | R61: =IF(UPPER(TickerAdvfn)="",0,[1]!smfGetADVFNElement(TickerAdvfn,R$7,COLUMNS(R:$S),">"&$B61&"<",,0)) -> 257 | S61: =IF(UPPER(TickerAdvfn)="",0,[1]!smfGetADVFNElement(TickerAdvfn,S$7,COLUMNS(S:$S),">"&$B61&"<",,0)) -> 265 | T61: 265
B62: inventories, finished goods | E62: =IF(UPPER(TickerAdvfn)="",0,[1]!smfGetADVFNElement(TickerAdvfn,E$7,COLUMNS(E:$N),">"&$B62&"<",,0)) -> 1454 | F62: =IF(UPPER(TickerAdvfn)="",0,[1]!smfGetADVFNElement(TickerAdvfn,F$7,COLUMNS(F:$N),">"&$B62&"<",,0)) -> 1381 | G62: =IF(UPPER(TickerAdvfn)="",0,[1]!smfGetADVFNElement(TickerAdvfn,G$7,COLUMNS(G:$N),">"&$B62&"<",,0)) -> 2209 | H62: =IF(UPPER(TickerAdvfn)="",0,[1]!smfGetADVFNElement(TickerAdvfn,H$7,COLUMNS(H:$N),">"&$B62&"<",,0)) -> 2493 | I62: =IF(UPPER(TickerAdvfn)="",0,[1]!smfGetADVFNElement(TickerAdvfn,I$7,COLUMNS(I:$N),">"&$B62&"<",,0)) -> 2915 | J62: =IF(UPPER(TickerAdvfn)="",0,[1]!smfGetADVFNElement(TickerAdvfn,J$7,COLUMNS(J:$N),">"&$B62&"<",,0)) -> 3230 | K62: =IF(UPPER(TickerAdvfn)="",0,[1]!smfGetADVFNElement(TickerAdvfn,K$7,COLUMNS(K:$N),">"&$B62&"<",,0)) -> 4022 | L62: =IF(UPPER(TickerAdvfn)="",0,[1]!smfGetADVFNElement(TickerAdvfn,L$7,COLUMNS(L:$N),">"&$B62&"<",,0)) -> 3465 | M62: =IF(UPPER(TickerAdvfn)="",0,[1]!smfGetADVFNElement(TickerAdvfn,M$7,COLUMNS(M:$N),">"&$B62&"<",,0)) -> 5098 | N62: =IF(UPPER(TickerAdvfn)="",0,[1]!smfGetADVFNElement(TickerAdvfn,N$7,COLUMNS(N:$N),">"&$B62&"<",,0)) -> 7570 | O62: =IF(UPPER(TickerAdvfn)="",0,[1]!smfGetADVFNElement(TickerAdvfn,O$7,COLUMNS(O:$S),">"&$B62&"<",,0)) -> 5628 | P62: =IF(UPPER(TickerAdvfn)="",0,[1]!smfGetADVFNElement(TickerAdvfn,P$7,COLUMNS(P:$S),">"&$B62&"<",,0)) -> 5937 | Q62: =IF(UPPER(TickerAdvfn)="",0,[1]!smfGetADVFNElement(TickerAdvfn,Q$7,COLUMNS(Q:$S),">"&$B62&"<",,0)) -> 7474 | R62: =IF(UPPER(TickerAdvfn)="",0,[1]!smfGetADVFNElement(TickerAdvfn,R$7,COLUMNS(R:$S),">"&$B62&"<",,0)) -> 7570 | S62: =IF(UPPER(TickerAdvfn)="",0,[1]!smfGetADVFNElement(TickerAdvfn,S$7,COLUMNS(S:$S),">"&$B62&"<",,0)) -> 8807 | T62: 8807
B63: inventories, other | E63: =IF(UPPER(TickerAdvfn)="",0,[1]!smfGetADVFNElement(TickerAdvfn,E$7,COLUMNS(E:$N),">"&$B63&"<",,0)) -> 187 | F63: =IF(UPPER(TickerAdvfn)="",0,[1]!smfGetADVFNElement(TickerAdvfn,F$7,COLUMNS(F:$N),">"&$B63&"<",,0)) -> 184 | G63: =IF(UPPER(TickerAdvfn)="",0,[1]!smfGetADVFNElement(TickerAdvfn,G$7,COLUMNS(G:$N),">"&$B63&"<",,0)) -> 210 | H63: =IF(UPPER(TickerAdvfn)="",0,[1]!smfGetADVFNElement(TickerAdvfn,H$7,COLUMNS(H:$N),">"&$B63&"<",,0)) -> 228 | I63: =IF(UPPER(TickerAdvfn)="",0,[1]!smfGetADVFNElement(TickerAdvfn,I$7,COLUMNS(I:$N),">"&$B63&"<",,0)) -> 277 | J63: =IF(UPPER(TickerAdvfn)="",0,[1]!smfGetADVFNElement(TickerAdvfn,J$7,COLUMNS(J:$N),">"&$B63&"<",,0)) -> 285 | K63: =IF(UPPER(TickerAdvfn)="",0,[1]!smfGetADVFNElement(TickerAdvfn,K$7,COLUMNS(K:$N),">"&$B63&"<",,0)) -> 0 | L63: =IF(UPPER(TickerAdvfn)="",0,[1]!smfGetADVFNElement(TickerAdvfn,L$7,COLUMNS(L:$N),">"&$B63&"<",,0)) -> 0 | M63: =IF(UPPER(TickerAdvfn)="",0,[1]!smfGetADVFNElement(TickerAdvfn,M$7,COLUMNS(M:$N),">"&$B63&"<",,0)) -> 0 | N63: =IF(UPPER(TickerAdvfn)="",0,[1]!smfGetADVFNElement(TickerAdvfn,N$7,COLUMNS(N:$N),">"&$B63&"<",,0)) -> 0 | O63: =IF(UPPER(TickerAdvfn)="",0,[1]!smfGetADVFNElement(TickerAdvfn,O$7,COLUMNS(O:$S),">"&$B63&"<",,0)) -> 0 | P63: =IF(UPPER(TickerAdvfn)="",0,[1]!smfGetADVFNElement(TickerAdvfn,P$7,COLUMNS(P:$S),">"&$B63&"<",,0)) -> 0 | Q63: =IF(UPPER(TickerAdvfn)="",0,[1]!smfGetADVFNElement(TickerAdvfn,Q$7,COLUMNS(Q:$S),">"&$B63&"<",,0)) -> 0 | R63: =IF(UPPER(TickerAdvfn)="",0,[1]!smfGetADVFNElement(TickerAdvfn,R$7,COLUMNS(R:$S),">"&$B63&"<",,0)) -> 0 | S63: =IF(UPPER(TickerAdvfn)="",0,[1]!smfGetADVFNElement(TickerAdvfn,S$7,COLUMNS(S:$S),">"&$B63&"<",,0)) -> 0 | T63: 0
B64: inventories | E64: =IF(UPPER(TickerAdvfn)="",0,[1]!smfGetADVFNElement(TickerAdvfn,E$7,COLUMNS(E:$N),">"&$B64&"<",,0)) -> 2763 | F64: =IF(UPPER(TickerAdvfn)="",0,[1]!smfGetADVFNElement(TickerAdvfn,F$7,COLUMNS(F:$N),">"&$B64&"<",,0)) -> 3047 | G64: =IF(UPPER(TickerAdvfn)="",0,[1]!smfGetADVFNElement(TickerAdvfn,G$7,COLUMNS(G:$N),">"&$B64&"<",,0)) -> 4675 | H64: =IF(UPPER(TickerAdvfn)="",0,[1]!smfGetADVFNElement(TickerAdvfn,H$7,COLUMNS(H:$N),">"&$B64&"<",,0)) -> 5224 | I64: =IF(UPPER(TickerAdvfn)="",0,[1]!smfGetADVFNElement(TickerAdvfn,I$7,COLUMNS(I:$N),">"&$B64&"<",,0)) -> 6351 | J64: =IF(UPPER(TickerAdvfn)="",0,[1]!smfGetADVFNElement(TickerAdvfn,J$7,COLUMNS(J:$N),">"&$B64&"<",,0)) -> 7204 | K64: =IF(UPPER(TickerAdvfn)="",0,[1]!smfGetADVFNElement(TickerAdvfn,K$7,COLUMNS(K:$N),">"&$B64&"<",,0)) -> 8781 | L64: =IF(UPPER(TickerAdvfn)="",0,[1]!smfGetADVFNElement(TickerAdvfn,L$7,COLUMNS(L:$N),">"&$B64&"<",,0)) -> 6360 | M64: =IF(UPPER(TickerAdvfn)="",0,[1]!smfGetADVFNElement(TickerAdvfn,M$7,COLUMNS(M:$N),">"&$B64&"<",,0)) -> 9587 | N64: =IF(UPPER(TickerAdvfn)="",0,[1]!smfGetADVFNElement(TickerAdvfn,N$7,COLUMNS(N:$N),">"&$B64&"<",,0)) -> 14544 | O64: =IF(UPPER(TickerAdvfn)="",0,[1]!smfGetADVFNElement(TickerAdvfn,O$7,COLUMNS(O:$S),">"&$B64&"<",,0)) -> 10676 | P64: =IF(UPPER(TickerAdvfn)="",0,[1]!smfGetADVFNElement(TickerAdvfn,P$7,COLUMNS(P:$S),">"&$B64&"<",,0)) -> 11359 | Q64: =IF(UPPER(TickerAdvfn)="",0,[1]!smfGetADVFNElement(TickerAdvfn,Q$7,COLUMNS(Q:$S),">"&$B64&"<",,0)) -> 14412 | R64: =IF(UPPER(TickerAdvfn)="",0,[1]!smfGetADVFNElement(TickerAdvfn,R$7,COLUMNS(R:$S),">"&$B64&"<",,0)) -> 14544 | S64: =IF(UPPER(TickerAdvfn)="",0,[1]!smfGetADVFNElement(TickerAdvfn,S$7,COLUMNS(S:$S),">"&$B64&"<",,0)) -> 16511 | T64: 16511
B65: prepaid expenses | E65: =IF(UPPER(TickerAdvfn)="",0,[1]!smfGetADVFNElement(TickerAdvfn,E$7,COLUMNS(E:$N),">"&$B65&"<",,0)) -> 1328 | F65: =IF(UPPER(TickerAdvfn)="",0,[1]!smfGetADVFNElement(TickerAdvfn,F$7,COLUMNS(F:$N),">"&$B65&"<",,0)) -> 1424 | G65: =IF(UPPER(TickerAdvfn)="",0,[1]!smfGetADVFNElement(TickerAdvfn,G$7,COLUMNS(G:$N),">"&$B65&"<",,0)) -> 1369 | H65: =IF(UPPER(TickerAdvfn)="",0,[1]!smfGetADVFNElement(TickerAdvfn,H$7,COLUMNS(H:$N),">"&$B65&"<",,0)) -> 2146 | I65: =IF(UPPER(TickerAdvfn)="",0,[1]!smfGetADVFNElement(TickerAdvfn,I$7,COLUMNS(I:$N),">"&$B65&"<",,0)) -> 507 | J65: =IF(UPPER(TickerAdvfn)="",0,[1]!smfGetADVFNElement(TickerAdvfn,J$7,COLUMNS(J:$N),">"&$B65&"<",,0)) -> 583 | K65: =IF(UPPER(TickerAdvfn)="",0,[1]!smfGetADVFNElement(TickerAdvfn,K$7,COLUMNS(K:$N),">"&$B65&"<",,0)) -> 765 | L65: =IF(UPPER(TickerAdvfn)="",0,[1]!smfGetADVFNElement(TickerAdvfn,L$7,COLUMNS(L:$N),">"&$B65&"<",,0)) -> 434 | M65: =IF(UPPER(TickerAdvfn)="",0,[1]!smfGetADVFNElement(TickerAdvfn,M$7,COLUMNS(M:$N),">"&$B65&"<",,0)) -> 908 | N65: =IF(UPPER(TickerAdvfn)="",0,[1]!smfGetADVFNElement(TickerAdvfn,N$7,COLUMNS(N:$N),">"&$B65&"<",,0)) -> 994 | O65: =IF(UPPER(TickerAdvfn)="",0,[1]!smfGetADVFNElement(TickerAdvfn,O$7,COLUMNS(O:$S),">"&$B65&"<",,0)) -> 880 | P65: =IF(UPPER(TickerAdvfn)="",0,[1]!smfGetADVFNElement(TickerAdvfn,P$7,COLUMNS(P:$S),">"&$B65&"<",,0)) -> 669 | Q65: =IF(UPPER(TickerAdvfn)="",0,[1]!smfGetADVFNElement(TickerAdvfn,Q$7,COLUMNS(Q:$S),">"&$B65&"<",,0)) -> 795 | R65: =IF(UPPER(TickerAdvfn)="",0,[1]!smfGetADVFNElement(TickerAdvfn,R$7,COLUMNS(R:$S),">"&$B65&"<",,0)) -> 994 | S65: =IF(UPPER(TickerAdvfn)="",0,[1]!smfGetADVFNElement(TickerAdvfn,S$7,COLUMNS(S:$S),">"&$B65&"<",,0)) -> 1032 | T65: 1032
B66: current defered income taxes | E66: =IF(UPPER(TickerAdvfn)="",0,[1]!smfGetADVFNElement(TickerAdvfn,E$7,COLUMNS(E:$N),">"&$B66&"<",,0)) -> 642 | F66: =IF(UPPER(TickerAdvfn)="",0,[1]!smfGetADVFNElement(TickerAdvfn,F$7,COLUMNS(F:$N),">"&$B66&"<",,0)) -> 707 | G66: =IF(UPPER(TickerAdvfn)="",0,[1]!smfGetADVFNElement(TickerAdvfn,G$7,COLUMNS(G:$N),">"&$B66&"<",,0)) -> 398 | H66: =IF(UPPER(TickerAdvfn)="",0,[1]!smfGetADVFNElement(TickerAdvfn,H$7,COLUMNS(H:$N),">"&$B66&"<",,0)) -> 344 | I66: =IF(UPPER(TickerAdvfn)="",0,[1]!smfGetADVFNElement(TickerAdvfn,I$7,COLUMNS(I:$N),">"&$B66&"<",,0)) -> 733 | J66: =IF(UPPER(TickerAdvfn)="",0,[1]!smfGetADVFNElement(TickerAdvfn,J$7,COLUMNS(J:$N),">"&$B66&"<",,0)) -> 816 | K66: =IF(UPPER(TickerAdvfn)="",0,[1]!smfGetADVFNElement(TickerAdvfn,K$7,COLUMNS(K:$N),">"&$B66&"<",,0)) -> 1223 | L66: =IF(UPPER(TickerAdvfn)="",0,[1]!smfGetADVFNElement(TickerAdvfn,L$7,COLUMNS(L:$N),">"&$B66&"<",,0)) -> 1216 | M66: =IF(UPPER(TickerAdvfn)="",0,[1]!smfGetADVFNElement(TickerAdvfn,M$7,COLUMNS(M:$N),">"&$B66&"<",,0)) -> 931 | N66: =IF(UPPER(TickerAdvfn)="",0,[1]!smfGetADVFNElement(TickerAdvfn,N$7,COLUMNS(N:$N),">"&$B66&"<",,0)) -> 1580 | O66: =IF(UPPER(TickerAdvfn)="",0,[1]!smfGetADVFNElement(TickerAdvfn,O$7,COLUMNS(O:$S),">"&$B66&"<",,0)) -> 895 | P66: =IF(UPPER(TickerAdvfn)="",0,[1]!smfGetADVFNElement(TickerAdvfn,P$7,COLUMNS(P:$S),">"&$B66&"<",,0)) -> 979 | Q66: =IF(UPPER(TickerAdvfn)="",0,[1]!smfGetADVFNElement(TickerAdvfn,Q$7,COLUMNS(Q:$S),">"&$B66&"<",,0)) -> 1122 | R66: =IF(UPPER(TickerAdvfn)="",0,[1]!smfGetADVFNElement(TickerAdvfn,R$7,COLUMNS(R:$S),">"&$B66&"<",,0)) -> 1580 | S66: =IF(UPPER(TickerAdvfn)="",0,[1]!smfGetADVFNElement(TickerAdvfn,S$7,COLUMNS(S:$S),">"&$B66&"<",,0)) -> 1501 | T66: 1501
B67: other current assets | E67: =IF(UPPER(TickerAdvfn)="",0,[1]!smfGetADVFNElement(TickerAdvfn,E$7,COLUMNS(E:$N),">"&$B67&"<",,0)) -> 0 | F67: =IF(UPPER(TickerAdvfn)="",0,[1]!smfGetADVFNElement(TickerAdvfn,F$7,COLUMNS(F:$N),">"&$B67&"<",,0)) -> 0 | G67: =IF(UPPER(TickerAdvfn)="",0,[1]!smfGetADVFNElement(TickerAdvfn,G$7,COLUMNS(G:$N),">"&$B67&"<",,0)) -> -157 | H67: =IF(UPPER(TickerAdvfn)="",0,[1]!smfGetADVFNElement(TickerAdvfn,H$7,COLUMNS(H:$N),">"&$B67&"<",,0)) -> 0 | I67: =IF(UPPER(TickerAdvfn)="",0,[1]!smfGetADVFNElement(TickerAdvfn,I$7,COLUMNS(I:$N),">"&$B67&"<",,0)) -> 0 | J67: =IF(UPPER(TickerAdvfn)="",0,[1]!smfGetADVFNElement(TickerAdvfn,J$7,COLUMNS(J:$N),">"&$B67&"<",,0)) -> 0 | K67: =IF(UPPER(TickerAdvfn)="",0,[1]!smfGetADVFNElement(TickerAdvfn,K$7,COLUMNS(K:$N),">"&$B67&"<",,0)) -> 0 | L67: =IF(UPPER(TickerAdvfn)="",0,[1]!smfGetADVFNElement(TickerAdvfn,L$7,COLUMNS(L:$N),">"&$B67&"<",,0)) -> 0 | M67: =IF(UPPER(TickerAdvfn)="",0,[1]!smfGetADVFNElement(TickerAdvfn,M$7,COLUMNS(M:$N),">"&$B67&"<",,0)) -> 0 | N67: =IF(UPPER(TickerAdvfn)="",0,[1]!smfGetADVFNElement(TickerAdvfn,N$7,COLUMNS(N:$N),">"&$B67&"<",,0)) -> 0 | O67: =IF(UPPER(TickerAdvfn)="",0,[1]!smfGetADVFNElement(TickerAdvfn,O$7,COLUMNS(O:$S),">"&$B67&"<",,0)) -> 0 | P67: =IF(UPPER(TickerAdvfn)="",0,[1]!smfGetADVFNElement(TickerAdvfn,P$7,COLUMNS(P:$S),">"&$B67&"<",,0)) -> 0 | Q67: =IF(UPPER(TickerAdvfn)="",0,[1]!smfGetADVFNElement(TickerAdvfn,Q$7,COLUMNS(Q:$S),">"&$B67&"<",,0)) -> 0 | R67: =IF(UPPER(TickerAdvfn)="",0,[1]!smfGetADVFNElement(TickerAdvfn,R$7,COLUMNS(R:$S),">"&$B67&"<",,0)) -> 0 | S67: =IF(UPPER(TickerAdvfn)="",0,[1]!smfGetADVFNElement(TickerAdvfn,S$7,COLUMNS(S:$S),">"&$B67&"<",,0)) -> 0 | T67: 0
B68: total current assets | E68: =IF(UPPER(TickerAdvfn)="",0,[1]!smfGetADVFNElement(TickerAdvfn,E$7,COLUMNS(E:$N),">"&$B68&"<",,0)) -> 14628 | F68: =IF(UPPER(TickerAdvfn)="",0,[1]!smfGetADVFNElement(TickerAdvfn,F$7,COLUMNS(F:$N),">"&$B68&"<",,0)) -> 16791 | G68: =IF(UPPER(TickerAdvfn)="",0,[1]!smfGetADVFNElement(TickerAdvfn,G$7,COLUMNS(G:$N),">"&$B68&"<",,0)) -> 20856 | H68: =IF(UPPER(TickerAdvfn)="",0,[1]!smfGetADVFNElement(TickerAdvfn,H$7,COLUMNS(H:$N),">"&$B68&"<",,0)) -> 22790 | I68: =IF(UPPER(TickerAdvfn)="",0,[1]!smfGetADVFNElement(TickerAdvfn,I$7,COLUMNS(I:$N),">"&$B68&"<",,0)) -> 23093 | J68: =IF(UPPER(TickerAdvfn)="",0,[1]!smfGetADVFNElement(TickerAdvfn,J$7,COLUMNS(J:$N),">"&$B68&"<",,0)) -> 25477 | K68: =IF(UPPER(TickerAdvfn)="",0,[1]!smfGetADVFNElement(TickerAdvfn,K$7,COLUMNS(K:$N),">"&$B68&"<",,0)) -> 31633 | L68: =IF(UPPER(TickerAdvfn)="",0,[1]!smfGetADVFNElement(TickerAdvfn,L$7,COLUMNS(L:$N),">"&$B68&"<",,0)) -> 26789 | M68: =IF(UPPER(TickerAdvfn)="",0,[1]!smfGetADVFNElement(TickerAdvfn,M$7,COLUMNS(M:$N),">"&$B68&"<",,0)) -> 31810 | N68: =IF(UPPER(TickerAdvfn)="",0,[1]!smfGetADVFNElement(TickerAdvfn,N$7,COLUMNS(N:$N),">"&$B68&"<",,0)) -> 38128 | O68: =IF(UPPER(TickerAdvfn)="",0,[1]!smfGetADVFNElement(TickerAdvfn,O$7,COLUMNS(O:$S),">"&$B68&"<",,0)) -> 34608 | P68: =IF(UPPER(TickerAdvfn)="",0,[1]!smfGetADVFNElement(TickerAdvfn,P$7,COLUMNS(P:$S),">"&$B68&"<",,0)) -> 40755 | Q68: =IF(UPPER(TickerAdvfn)="",0,[1]!smfGetADVFNElement(TickerAdvfn,Q$7,COLUMNS(Q:$S),">"&$B68&"<",,0)) -> 36864 | R68: =IF(UPPER(TickerAdvfn)="",0,[1]!smfGetADVFNElement(TickerAdvfn,R$7,COLUMNS(R:$S),">"&$B68&"<",,0)) -> 38128 | S68: =IF(UPPER(TickerAdvfn)="",0,[1]!smfGetADVFNElement(TickerAdvfn,S$7,COLUMNS(S:$S),">"&$B68&"<",,0)) -> 40209 | T68: 40209
B69: land and improvements | E69: =IF(UPPER(TickerAdvfn)="",0,[1]!smfGetADVFNElement(TickerAdvfn,E$7,COLUMNS(E:$N),">"&$B69&"<",,0)) -> 149 | F69: =IF(UPPER(TickerAdvfn)="",0,[1]!smfGetADVFNElement(TickerAdvfn,F$7,COLUMNS(F:$N),">"&$B69&"<",,0)) -> 149 | G69: =IF(UPPER(TickerAdvfn)="",0,[1]!smfGetADVFNElement(TickerAdvfn,G$7,COLUMNS(G:$N),">"&$B69&"<",,0)) -> 152 | H69: =IF(UPPER(TickerAdvfn)="",0,[1]!smfGetADVFNElement(TickerAdvfn,H$7,COLUMNS(H:$N),">"&$B69&"<",,0)) -> 154 | I69: =IF(UPPER(TickerAdvfn)="",0,[1]!smfGetADVFNElement(TickerAdvfn,I$7,COLUMNS(I:$N),">"&$B69&"<",,0)) -> 184 | J69: =IF(UPPER(TickerAdvfn)="",0,[1]!smfGetADVFNElement(TickerAdvfn,J$7,COLUMNS(J:$N),">"&$B69&"<",,0)) -> 189 | K69: =IF(UPPER(TickerAdvfn)="",0,[1]!smfGetADVFNElement(TickerAdvfn,K$7,COLUMNS(K:$N),">"&$B69&"<",,0)) -> 575 | L69: =IF(UPPER(TickerAdvfn)="",0,[1]!smfGetADVFNElement(TickerAdvfn,L$7,COLUMNS(L:$N),">"&$B69&"<",,0)) -> 639 | M69: =IF(UPPER(TickerAdvfn)="",0,[1]!smfGetADVFNElement(TickerAdvfn,M$7,COLUMNS(M:$N),">"&$B69&"<",,0)) -> 682 | N69: =IF(UPPER(TickerAdvfn)="",0,[1]!smfGetADVFNElement(TickerAdvfn,N$7,COLUMNS(N:$N),">"&$B69&"<",,0)) -> 753 | O69: =IF(UPPER(TickerAdvfn)="",0,[1]!smfGetADVFNElement(TickerAdvfn,O$7,COLUMNS(O:$S),">"&$B69&"<",,0)) -> 0 | P69: =IF(UPPER(TickerAdvfn)="",0,[1]!smfGetADVFNElement(TickerAdvfn,P$7,COLUMNS(P:$S),">"&$B69&"<",,0)) -> 0 | Q69: =IF(UPPER(TickerAdvfn)="",0,[1]!smfGetADVFNElement(TickerAdvfn,Q$7,COLUMNS(Q:$S),">"&$B69&"<",,0)) -> 0 | R69: =IF(UPPER(TickerAdvfn)="",0,[1]!smfGetADVFNElement(TickerAdvfn,R$7,COLUMNS(R:$S),">"&$B69&"<",,0)) -> 753 | S69: =IF(UPPER(TickerAdvfn)="",0,[1]!smfGetADVFNElement(TickerAdvfn,S$7,COLUMNS(S:$S),">"&$B69&"<",,0)) -> 0 | T69: 0
B70: building and improvements | E70: =IF(UPPER(TickerAdvfn)="",0,[1]!smfGetADVFNElement(TickerAdvfn,E$7,COLUMNS(E:$N),">"&$B70&"<",,0)) -> 3039 | F70: =IF(UPPER(TickerAdvfn)="",0,[1]!smfGetADVFNElement(TickerAdvfn,F$7,COLUMNS(F:$N),">"&$B70&"<",,0)) -> 3006 | G70: =IF(UPPER(TickerAdvfn)="",0,[1]!smfGetADVFNElement(TickerAdvfn,G$7,COLUMNS(G:$N),">"&$B70&"<",,0)) -> 3089 | H70: =IF(UPPER(TickerAdvfn)="",0,[1]!smfGetADVFNElement(TickerAdvfn,H$7,COLUMNS(H:$N),">"&$B70&"<",,0)) -> 3195 | I70: =IF(UPPER(TickerAdvfn)="",0,[1]!smfGetADVFNElement(TickerAdvfn,I$7,COLUMNS(I:$N),">"&$B70&"<",,0)) -> 3407 | J70: =IF(UPPER(TickerAdvfn)="",0,[1]!smfGetADVFNElement(TickerAdvfn,J$7,COLUMNS(J:$N),">"&$B70&"<",,0)) -> 3625 | K70: =IF(UPPER(TickerAdvfn)="",0,[1]!smfGetADVFNElement(TickerAdvfn,K$7,COLUMNS(K:$N),">"&$B70&"<",,0)) -> 4647 | L70: =IF(UPPER(TickerAdvfn)="",0,[1]!smfGetADVFNElement(TickerAdvfn,L$7,COLUMNS(L:$N),">"&$B70&"<",,0)) -> 4914 | M70: =IF(UPPER(TickerAdvfn)="",0,[1]!smfGetADVFNElement(TickerAdvfn,M$7,COLUMNS(M:$N),">"&$B70&"<",,0)) -> 5174 | N70: =IF(UPPER(TickerAdvfn)="",0,[1]!smfGetADVFNElement(TickerAdvfn,N$7,COLUMNS(N:$N),">"&$B70&"<",,0)) -> 5857 | O70: =IF(UPPER(TickerAdvfn)="",0,[1]!smfGetADVFNElement(TickerAdvfn,O$7,COLUMNS(O:$S),">"&$B70&"<",,0)) -> 0 | P70: =IF(UPPER(TickerAdvfn)="",0,[1]!smfGetADVFNElement(TickerAdvfn,P$7,COLUMNS(P:$S),">"&$B70&"<",,0)) -> 0 | Q70: =IF(UPPER(TickerAdvfn)="",0,[1]!smfGetADVFNElement(TickerAdvfn,Q$7,COLUMNS(Q:$S),">"&$B70&"<",,0)) -> 0 | R70: =IF(UPPER(TickerAdvfn)="",0,[1]!smfGetADVFNElement(TickerAdvfn,R$7,COLUMNS(R:$S),">"&$B70&"<",,0)) -> 5857 | S70: =IF(UPPER(TickerAdvfn)="",0,[1]!smfGetADVFNElement(TickerAdvfn,S$7,COLUMNS(S:$S),">"&$B70&"<",,0)) -> 0 | T70: 0
B71: machinery, furniture & equipment | E71: =IF(UPPER(TickerAdvfn)="",0,[1]!smfGetADVFNElement(TickerAdvfn,E$7,COLUMNS(E:$N),">"&$B71&"<",,0)) -> 10048 | F71: =IF(UPPER(TickerAdvfn)="",0,[1]!smfGetADVFNElement(TickerAdvfn,F$7,COLUMNS(F:$N),">"&$B71&"<",,0)) -> 10687 | G71: =IF(UPPER(TickerAdvfn)="",0,[1]!smfGetADVFNElement(TickerAdvfn,G$7,COLUMNS(G:$N),">"&$B71&"<",,0)) -> 11336 | H71: =IF(UPPER(TickerAdvfn)="",0,[1]!smfGetADVFNElement(TickerAdvfn,H$7,COLUMNS(H:$N),">"&$B71&"<",,0)) -> 11817 | I71: =IF(UPPER(TickerAdvfn)="",0,[1]!smfGetADVFNElement(TickerAdvfn,I$7,COLUMNS(I:$N),">"&$B71&"<",,0)) -> 12651 | J71: =IF(UPPER(TickerAdvfn)="",0,[1]!smfGetADVFNElement(TickerAdvfn,J$7,COLUMNS(J:$N),">"&$B71&"<",,0)) -> 14312 | K71: =IF(UPPER(TickerAdvfn)="",0,[1]!smfGetADVFNElement(TickerAdvfn,K$7,COLUMNS(K:$N),">"&$B71&"<",,0)) -> 16734 | L71: =IF(UPPER(TickerAdvfn)="",0,[1]!smfGetADVFNElement(TickerAdvfn,L$7,COLUMNS(L:$N),">"&$B71&"<",,0)) -> 17634 | M71: =IF(UPPER(TickerAdvfn)="",0,[1]!smfGetADVFNElement(TickerAdvfn,M$7,COLUMNS(M:$N),">"&$B71&"<",,0)) -> 17858 | N71: =IF(UPPER(TickerAdvfn)="",0,[1]!smfGetADVFNElement(TickerAdvfn,N$7,COLUMNS(N:$N),">"&$B71&"<",,0)) -> 18720 | O71: =IF(UPPER(TickerAdvfn)="",0,[1]!smfGetADVFNElement(TickerAdvfn,O$7,COLUMNS(O:$S),">"&$B71&"<",,0)) -> 0 | P71: =IF(UPPER(TickerAdvfn)="",0,[1]!smfGetADVFNElement(TickerAdvfn,P$7,COLUMNS(P:$S),">"&$B71&"<",,0)) -> 0 | Q71: =IF(UPPER(TickerAdvfn)="",0,[1]!smfGetADVFNElement(TickerAdvfn,Q$7,COLUMNS(Q:$S),">"&$B71&"<",,0)) -> 0 | R71: =IF(UPPER(TickerAdvfn)="",0,[1]!smfGetADVFNElement(TickerAdvfn,R$7,COLUMNS(R:$S),">"&$B71&"<",,0)) -> 18720 | S71: =IF(UPPER(TickerAdvfn)="",0,[1]!smfGetADVFNElement(TickerAdvfn,S$7,COLUMNS(S:$S),">"&$B71&"<",,0)) -> 0 | T71: 0
B72: construction in progress | E72: =IF(UPPER(TickerAdvfn)="",0,[1]!smfGetADVFNElement(TickerAdvfn,E$7,COLUMNS(E:$N),">"&$B72&"<",,0)) -> 305 | F72: =IF(UPPER(TickerAdvfn)="",0,[1]!smfGetADVFNElement(TickerAdvfn,F$7,COLUMNS(F:$N),">"&$B72&"<",,0)) -> 487 | G72: =IF(UPPER(TickerAdvfn)="",0,[1]!smfGetADVFNElement(TickerAdvfn,G$7,COLUMNS(G:$N),">"&$B72&"<",,0)) -> 587 | H72: =IF(UPPER(TickerAdvfn)="",0,[1]!smfGetADVFNElement(TickerAdvfn,H$7,COLUMNS(H:$N),">"&$B72&"<",,0)) -> 696 | I72: =IF(UPPER(TickerAdvfn)="",0,[1]!smfGetADVFNElement(TickerAdvfn,I$7,COLUMNS(I:$N),">"&$B72&"<",,0)) -> 1036 | J72: =IF(UPPER(TickerAdvfn)="",0,[1]!smfGetADVFNElement(TickerAdvfn,J$7,COLUMNS(J:$N),">"&$B72&"<",,0)) -> 1082 | K72: =IF(UPPER(TickerAdvfn)="",0,[1]!smfGetADVFNElement(TickerAdvfn,K$7,COLUMNS(K:$N),">"&$B72&"<",,0)) -> 1531 | L72: =IF(UPPER(TickerAdvfn)="",0,[1]!smfGetADVFNElement(TickerAdvfn,L$7,COLUMNS(L:$N),">"&$B72&"<",,0)) -> 1034 | M72: =IF(UPPER(TickerAdvfn)="",0,[1]!smfGetADVFNElement(TickerAdvfn,M$7,COLUMNS(M:$N),">"&$B72&"<",,0)) -> 1192 | N72: =IF(UPPER(TickerAdvfn)="",0,[1]!smfGetADVFNElement(TickerAdvfn,N$7,COLUMNS(N:$N),">"&$B72&"<",,0)) -> 1996 | O72: =IF(UPPER(TickerAdvfn)="",0,[1]!smfGetADVFNElement(TickerAdvfn,O$7,COLUMNS(O:$S),">"&$B72&"<",,0)) -> 0 | P72: =IF(UPPER(TickerAdvfn)="",0,[1]!smfGetADVFNElement(TickerAdvfn,P$7,COLUMNS(P:$S),">"&$B72&"<",,0)) -> 0 | Q72: =IF(UPPER(TickerAdvfn)="",0,[1]!smfGetADVFNElement(TickerAdvfn,Q$7,COLUMNS(Q:$S),">"&$B72&"<",,0)) -> 0 | R72: =IF(UPPER(TickerAdvfn)="",0,[1]!smfGetADVFNElement(TickerAdvfn,R$7,COLUMNS(R:$S),">"&$B72&"<",,0)) -> 1996 | S72: =IF(UPPER(TickerAdvfn)="",0,[1]!smfGetADVFNElement(TickerAdvfn,S$7,COLUMNS(S:$S),">"&$B72&"<",,0)) -> 0 | T72: 0
B73: other fixed assets | E73: =IF(UPPER(TickerAdvfn)="",0,[1]!smfGetADVFNElement(TickerAdvfn,E$7,COLUMNS(E:$N),">"&$B73&"<",,0)) -> 0 | F73: =IF(UPPER(TickerAdvfn)="",0,[1]!smfGetADVFNElement(TickerAdvfn,F$7,COLUMNS(F:$N),">"&$B73&"<",,0)) -> 0 | G73: =IF(UPPER(TickerAdvfn)="",0,[1]!smfGetADVFNElement(TickerAdvfn,G$7,COLUMNS(G:$N),">"&$B73&"<",,0)) -> 0 | H73: =IF(UPPER(TickerAdvfn)="",0,[1]!smfGetADVFNElement(TickerAdvfn,H$7,COLUMNS(H:$N),">"&$B73&"<",,0)) -> 0 | I73: =IF(UPPER(TickerAdvfn)="",0,[1]!smfGetADVFNElement(TickerAdvfn,I$7,COLUMNS(I:$N),">"&$B73&"<",,0)) -> 0 | J73: =IF(UPPER(TickerAdvfn)="",0,[1]!smfGetADVFNElement(TickerAdvfn,J$7,COLUMNS(J:$N),">"&$B73&"<",,0)) -> 0 | K73: =IF(UPPER(TickerAdvfn)="",0,[1]!smfGetADVFNElement(TickerAdvfn,K$7,COLUMNS(K:$N),">"&$B73&"<",,0)) -> 0 | L73: =IF(UPPER(TickerAdvfn)="",0,[1]!smfGetADVFNElement(TickerAdvfn,L$7,COLUMNS(L:$N),">"&$B73&"<",,0)) -> 0 | M73: =IF(UPPER(TickerAdvfn)="",0,[1]!smfGetADVFNElement(TickerAdvfn,M$7,COLUMNS(M:$N),">"&$B73&"<",,0)) -> 0 | N73: =IF(UPPER(TickerAdvfn)="",0,[1]!smfGetADVFNElement(TickerAdvfn,N$7,COLUMNS(N:$N),">"&$B73&"<",,0)) -> 0 | O73: =IF(UPPER(TickerAdvfn)="",0,[1]!smfGetADVFNElement(TickerAdvfn,O$7,COLUMNS(O:$S),">"&$B73&"<",,0)) -> 12219 | P73: =IF(UPPER(TickerAdvfn)="",0,[1]!smfGetADVFNElement(TickerAdvfn,P$7,COLUMNS(P:$S),">"&$B73&"<",,0)) -> 12430 | Q73: =IF(UPPER(TickerAdvfn)="",0,[1]!smfGetADVFNElement(TickerAdvfn,Q$7,COLUMNS(Q:$S),">"&$B73&"<",,0)) -> 13397 | R73: =IF(UPPER(TickerAdvfn)="",0,[1]!smfGetADVFNElement(TickerAdvfn,R$7,COLUMNS(R:$S),">"&$B73&"<",,0)) -> 0 | S73: =IF(UPPER(TickerAdvfn)="",0,[1]!smfGetADVFNElement(TickerAdvfn,S$7,COLUMNS(S:$S),">"&$B73&"<",,0)) -> 14571 | T73: 14571
B74: total fixed assets | E74: =IF(UPPER(TickerAdvfn)="",0,[1]!smfGetADVFNElement(TickerAdvfn,E$7,COLUMNS(E:$N),">"&$B74&"<",,0)) -> 13541 | F74: =IF(UPPER(TickerAdvfn)="",0,[1]!smfGetADVFNElement(TickerAdvfn,F$7,COLUMNS(F:$N),">"&$B74&"<",,0)) -> 14329 | G74: =IF(UPPER(TickerAdvfn)="",0,[1]!smfGetADVFNElement(TickerAdvfn,G$7,COLUMNS(G:$N),">"&$B74&"<",,0)) -> 15164 | H74: =IF(UPPER(TickerAdvfn)="",0,[1]!smfGetADVFNElement(TickerAdvfn,H$7,COLUMNS(H:$N),">"&$B74&"<",,0)) -> 15862 | I74: =IF(UPPER(TickerAdvfn)="",0,[1]!smfGetADVFNElement(TickerAdvfn,I$7,COLUMNS(I:$N),">"&$B74&"<",,0)) -> 17278 | J74: =IF(UPPER(TickerAdvfn)="",0,[1]!smfGetADVFNElement(TickerAdvfn,J$7,COLUMNS(J:$N),">"&$B74&"<",,0)) -> 19208 | K74: =IF(UPPER(TickerAdvfn)="",0,[1]!smfGetADVFNElement(TickerAdvfn,K$7,COLUMNS(K:$N),">"&$B74&"<",,0)) -> 23487 | L74: =IF(UPPER(TickerAdvfn)="",0,[1]!smfGetADVFNElement(TickerAdvfn,L$7,COLUMNS(L:$N),">"&$B74&"<",,0)) -> 24221 | M74: =IF(UPPER(TickerAdvfn)="",0,[1]!smfGetADVFNElement(TickerAdvfn,M$7,COLUMNS(M:$N),">"&$B74&"<",,0)) -> 24906 | N74: =IF(UPPER(TickerAdvfn)="",0,[1]!smfGetADVFNElement(TickerAdvfn,N$7,COLUMNS(N:$N),">"&$B74&"<",,0)) -> 27326 | O74: =IF(UPPER(TickerAdvfn)="",0,[1]!smfGetADVFNElement(TickerAdvfn,O$7,COLUMNS(O:$S),">"&$B74&"<",,0)) -> 12219 | P74: =IF(UPPER(TickerAdvfn)="",0,[1]!smfGetADVFNElement(TickerAdvfn,P$7,COLUMNS(P:$S),">"&$B74&"<",,0)) -> 12430 | Q74: =IF(UPPER(TickerAdvfn)="",0,[1]!smfGetADVFNElement(TickerAdvfn,Q$7,COLUMNS(Q:$S),">"&$B74&"<",,0)) -> 13397 | R74: =IF(UPPER(TickerAdvfn)="",0,[1]!smfGetADVFNElement(TickerAdvfn,R$7,COLUMNS(R:$S),">"&$B74&"<",,0)) -> 27326 | S74: =IF(UPPER(TickerAdvfn)="",0,[1]!smfGetADVFNElement(TickerAdvfn,S$7,COLUMNS(S:$S),">"&$B74&"<",,0)) -> 14571 | T74: 14571
B75: gross fixed assets | E75: =IF(UPPER(TickerAdvfn)="",0,[1]!smfGetADVFNElement(TickerAdvfn,E$7,COLUMNS(E:$N),">"&$B75&"<",,0)) -> 13541 | F75: =IF(UPPER(TickerAdvfn)="",0,[1]!smfGetADVFNElement(TickerAdvfn,F$7,COLUMNS(F:$N),">"&$B75&"<",,0)) -> 14329 | G75: =IF(UPPER(TickerAdvfn)="",0,[1]!smfGetADVFNElement(TickerAdvfn,G$7,COLUMNS(G:$N),">"&$B75&"<",,0)) -> 15164 | H75: =IF(UPPER(TickerAdvfn)="",0,[1]!smfGetADVFNElement(TickerAdvfn,H$7,COLUMNS(H:$N),">"&$B75&"<",,0)) -> 15862 | I75: =IF(UPPER(TickerAdvfn)="",0,[1]!smfGetADVFNElement(TickerAdvfn,I$7,COLUMNS(I:$N),">"&$B75&"<",,0)) -> 17278 | J75: =IF(UPPER(TickerAdvfn)="",0,[1]!smfGetADVFNElement(TickerAdvfn,J$7,COLUMNS(J:$N),">"&$B75&"<",,0)) -> 19208 | K75: =IF(UPPER(TickerAdvfn)="",0,[1]!smfGetADVFNElement(TickerAdvfn,K$7,COLUMNS(K:$N),">"&$B75&"<",,0)) -> 23487 | L75: =IF(UPPER(TickerAdvfn)="",0,[1]!smfGetADVFNElement(TickerAdvfn,L$7,COLUMNS(L:$N),">"&$B75&"<",,0)) -> 24221 | M75: =IF(UPPER(TickerAdvfn)="",0,[1]!smfGetADVFNElement(TickerAdvfn,M$7,COLUMNS(M:$N),">"&$B75&"<",,0)) -> 24906 | N75: =IF(UPPER(TickerAdvfn)="",0,[1]!smfGetADVFNElement(TickerAdvfn,N$7,COLUMNS(N:$N),">"&$B75&"<",,0)) -> 27326 | O75: =IF(UPPER(TickerAdvfn)="",0,[1]!smfGetADVFNElement(TickerAdvfn,O$7,COLUMNS(O:$S),">"&$B75&"<",,0)) -> 12219 | P75: =IF(UPPER(TickerAdvfn)="",0,[1]!smfGetADVFNElement(TickerAdvfn,P$7,COLUMNS(P:$S),">"&$B75&"<",,0)) -> 12430 | Q75: =IF(UPPER(TickerAdvfn)="",0,[1]!smfGetADVFNElement(TickerAdvfn,Q$7,COLUMNS(Q:$S),">"&$B75&"<",,0)) -> 13397 | R75: =IF(UPPER(TickerAdvfn)="",0,[1]!smfGetADVFNElement(TickerAdvfn,R$7,COLUMNS(R:$S),">"&$B75&"<",,0)) -> 27326 | S75: =IF(UPPER(TickerAdvfn)="",0,[1]!smfGetADVFNElement(TickerAdvfn,S$7,COLUMNS(S:$S),">"&$B75&"<",,0)) -> 14571 | T75: 14571
B76: net fixed assets | E76: =IF(UPPER(TickerAdvfn)="",0,[1]!smfGetADVFNElement(TickerAdvfn,E$7,COLUMNS(E:$N),">"&$B76&"<",,0)) -> 7046 | F76: =IF(UPPER(TickerAdvfn)="",0,[1]!smfGetADVFNElement(TickerAdvfn,F$7,COLUMNS(F:$N),">"&$B76&"<",,0)) -> 7290 | G76: =IF(UPPER(TickerAdvfn)="",0,[1]!smfGetADVFNElement(TickerAdvfn,G$7,COLUMNS(G:$N),">"&$B76&"<",,0)) -> 7682 | H76: =IF(UPPER(TickerAdvfn)="",0,[1]!smfGetADVFNElement(TickerAdvfn,H$7,COLUMNS(H:$N),">"&$B76&"<",,0)) -> 7988 | I76: =IF(UPPER(TickerAdvfn)="",0,[1]!smfGetADVFNElement(TickerAdvfn,I$7,COLUMNS(I:$N),">"&$B76&"<",,0)) -> 8851 | J76: =IF(UPPER(TickerAdvfn)="",0,[1]!smfGetADVFNElement(TickerAdvfn,J$7,COLUMNS(J:$N),">"&$B76&"<",,0)) -> 9997 | K76: =IF(UPPER(TickerAdvfn)="",0,[1]!smfGetADVFNElement(TickerAdvfn,K$7,COLUMNS(K:$N),">"&$B76&"<",,0)) -> 12524 | L76: =IF(UPPER(TickerAdvfn)="",0,[1]!smfGetADVFNElement(TickerAdvfn,L$7,COLUMNS(L:$N),">"&$B76&"<",,0)) -> 12386 | M76: =IF(UPPER(TickerAdvfn)="",0,[1]!smfGetADVFNElement(TickerAdvfn,M$7,COLUMNS(M:$N),">"&$B76&"<",,0)) -> 12539 | N76: =IF(UPPER(TickerAdvfn)="",0,[1]!smfGetADVFNElement(TickerAdvfn,N$7,COLUMNS(N:$N),">"&$B76&"<",,0)) -> 14395 | O76: =IF(UPPER(TickerAdvfn)="",0,[1]!smfGetADVFNElement(TickerAdvfn,O$7,COLUMNS(O:$S),">"&$B76&"<",,0)) -> 12219 | P76: =IF(UPPER(TickerAdvfn)="",0,[1]!smfGetADVFNElement(TickerAdvfn,P$7,COLUMNS(P:$S),">"&$B76&"<",,0)) -> 12430 | Q76: =IF(UPPER(TickerAdvfn)="",0,[1]!smfGetADVFNElement(TickerAdvfn,Q$7,COLUMNS(Q:$S),">"&$B76&"<",,0)) -> 13397 | R76: =IF(UPPER(TickerAdvfn)="",0,[1]!smfGetADVFNElement(TickerAdvfn,R$7,COLUMNS(R:$S),">"&$B76&"<",,0)) -> 14395 | S76: =IF(UPPER(TickerAdvfn)="",0,[1]!smfGetADVFNElement(TickerAdvfn,S$7,COLUMNS(S:$S),">"&$B76&"<",,0)) -> 14571 | T76: 14571
B77: intangibles | E77: =IF(UPPER(TickerAdvfn)="",0,[1]!smfGetADVFNElement(TickerAdvfn,E$7,COLUMNS(E:$N),">"&$B77&"<",,0)) -> 1683 | F77: =IF(UPPER(TickerAdvfn)="",0,[1]!smfGetADVFNElement(TickerAdvfn,F$7,COLUMNS(F:$N),">"&$B77&"<",,0)) -> 1637 | G77: =IF(UPPER(TickerAdvfn)="",0,[1]!smfGetADVFNElement(TickerAdvfn,G$7,COLUMNS(G:$N),">"&$B77&"<",,0)) -> 1765 | H77: =IF(UPPER(TickerAdvfn)="",0,[1]!smfGetADVFNElement(TickerAdvfn,H$7,COLUMNS(H:$N),">"&$B77&"<",,0)) -> 1875 | I77: =IF(UPPER(TickerAdvfn)="",0,[1]!smfGetADVFNElement(TickerAdvfn,I$7,COLUMNS(I:$N),">"&$B77&"<",,0)) -> 387 | J77: =IF(UPPER(TickerAdvfn)="",0,[1]!smfGetADVFNElement(TickerAdvfn,J$7,COLUMNS(J:$N),">"&$B77&"<",,0)) -> 475 | K77: =IF(UPPER(TickerAdvfn)="",0,[1]!smfGetADVFNElement(TickerAdvfn,K$7,COLUMNS(K:$N),">"&$B77&"<",,0)) -> 511 | L77: =IF(UPPER(TickerAdvfn)="",0,[1]!smfGetADVFNElement(TickerAdvfn,L$7,COLUMNS(L:$N),">"&$B77&"<",,0)) -> 465 | M77: =IF(UPPER(TickerAdvfn)="",0,[1]!smfGetADVFNElement(TickerAdvfn,M$7,COLUMNS(M:$N),">"&$B77&"<",,0)) -> 805 | N77: =IF(UPPER(TickerAdvfn)="",0,[1]!smfGetADVFNElement(TickerAdvfn,N$7,COLUMNS(N:$N),">"&$B77&"<",,0)) -> 4368 | O77: =IF(UPPER(TickerAdvfn)="",0,[1]!smfGetADVFNElement(TickerAdvfn,O$7,COLUMNS(O:$S),">"&$B77&"<",,0)) -> 794 | P77: =IF(UPPER(TickerAdvfn)="",0,[1]!smfGetADVFNElement(TickerAdvfn,P$7,COLUMNS(P:$S),">"&$B77&"<",,0)) -> 775 | Q77: =IF(UPPER(TickerAdvfn)="",0,[1]!smfGetADVFNElement(TickerAdvfn,Q$7,COLUMNS(Q:$S),">"&$B77&"<",,0)) -> 4529 | R77: =IF(UPPER(TickerAdvfn)="",0,[1]!smfGetADVFNElement(TickerAdvfn,R$7,COLUMNS(R:$S),">"&$B77&"<",,0)) -> 4368 | S77: =IF(UPPER(TickerAdvfn)="",0,[1]!smfGetADVFNElement(TickerAdvfn,S$7,COLUMNS(S:$S),">"&$B77&"<",,0)) -> 4287 | T77: 4287
B78: other non-current assets | E78: =IF(UPPER(TickerAdvfn)="",0,[1]!smfGetADVFNElement(TickerAdvfn,E$7,COLUMNS(E:$N),">"&$B78&"<",,0)) -> 8644 | F78: =IF(UPPER(TickerAdvfn)="",0,[1]!smfGetADVFNElement(TickerAdvfn,F$7,COLUMNS(F:$N),">"&$B78&"<",,0)) -> 10131 | G78: =IF(UPPER(TickerAdvfn)="",0,[1]!smfGetADVFNElement(TickerAdvfn,G$7,COLUMNS(G:$N),">"&$B78&"<",,0)) -> 12114 | H78: =IF(UPPER(TickerAdvfn)="",0,[1]!smfGetADVFNElement(TickerAdvfn,H$7,COLUMNS(H:$N),">"&$B78&"<",,0)) -> 13648 | I78: =IF(UPPER(TickerAdvfn)="",0,[1]!smfGetADVFNElement(TickerAdvfn,I$7,COLUMNS(I:$N),">"&$B78&"<",,0)) -> 14695 | J78: =IF(UPPER(TickerAdvfn)="",0,[1]!smfGetADVFNElement(TickerAdvfn,J$7,COLUMNS(J:$N),">"&$B78&"<",,0)) -> 16667 | K78: =IF(UPPER(TickerAdvfn)="",0,[1]!smfGetADVFNElement(TickerAdvfn,K$7,COLUMNS(K:$N),">"&$B78&"<",,0)) -> 17542 | L78: =IF(UPPER(TickerAdvfn)="",0,[1]!smfGetADVFNElement(TickerAdvfn,L$7,COLUMNS(L:$N),">"&$B78&"<",,0)) -> 15415 | M78: =IF(UPPER(TickerAdvfn)="",0,[1]!smfGetADVFNElement(TickerAdvfn,M$7,COLUMNS(M:$N),">"&$B78&"<",,0)) -> 13759 | N78: =IF(UPPER(TickerAdvfn)="",0,[1]!smfGetADVFNElement(TickerAdvfn,N$7,COLUMNS(N:$N),">"&$B78&"<",,0)) -> 15318 | O78: =IF(UPPER(TickerAdvfn)="",0,[1]!smfGetADVFNElement(TickerAdvfn,O$7,COLUMNS(O:$S),">"&$B78&"<",,0)) -> 13746 | P78: =IF(UPPER(TickerAdvfn)="",0,[1]!smfGetADVFNElement(TickerAdvfn,P$7,COLUMNS(P:$S),">"&$B78&"<",,0)) -> 14654 | Q78: =IF(UPPER(TickerAdvfn)="",0,[1]!smfGetADVFNElement(TickerAdvfn,Q$7,COLUMNS(Q:$S),">"&$B78&"<",,0)) -> 14393 | R78: =IF(UPPER(TickerAdvfn)="",0,[1]!smfGetADVFNElement(TickerAdvfn,R$7,COLUMNS(R:$S),">"&$B78&"<",,0)) -> 15318 | S78: =IF(UPPER(TickerAdvfn)="",0,[1]!smfGetADVFNElement(TickerAdvfn,S$7,COLUMNS(S:$S),">"&$B78&"<",,0)) -> 15678 | T78: 15678
B79: total non-current assets | E79: =IF(UPPER(TickerAdvfn)="",0,[1]!smfGetADVFNElement(TickerAdvfn,E$7,COLUMNS(E:$N),">"&$B79&"<",,0)) -> 18223 | F79: =IF(UPPER(TickerAdvfn)="",0,[1]!smfGetADVFNElement(TickerAdvfn,F$7,COLUMNS(F:$N),">"&$B79&"<",,0)) -> 19674 | G79: =IF(UPPER(TickerAdvfn)="",0,[1]!smfGetADVFNElement(TickerAdvfn,G$7,COLUMNS(G:$N),">"&$B79&"<",,0)) -> 22235 | H79: =IF(UPPER(TickerAdvfn)="",0,[1]!smfGetADVFNElement(TickerAdvfn,H$7,COLUMNS(H:$N),">"&$B79&"<",,0)) -> 24279 | I79: =IF(UPPER(TickerAdvfn)="",0,[1]!smfGetADVFNElement(TickerAdvfn,I$7,COLUMNS(I:$N),">"&$B79&"<",,0)) -> 27786 | J79: =IF(UPPER(TickerAdvfn)="",0,[1]!smfGetADVFNElement(TickerAdvfn,J$7,COLUMNS(J:$N),">"&$B79&"<",,0)) -> 30655 | K79: =IF(UPPER(TickerAdvfn)="",0,[1]!smfGetADVFNElement(TickerAdvfn,K$7,COLUMNS(K:$N),">"&$B79&"<",,0)) -> 36149 | L79: =IF(UPPER(TickerAdvfn)="",0,[1]!smfGetADVFNElement(TickerAdvfn,L$7,COLUMNS(L:$N),">"&$B79&"<",,0)) -> 33249 | M79: =IF(UPPER(TickerAdvfn)="",0,[1]!smfGetADVFNElement(TickerAdvfn,M$7,COLUMNS(M:$N),">"&$B79&"<",,0)) -> 32210 | N79: =IF(UPPER(TickerAdvfn)="",0,[1]!smfGetADVFNElement(TickerAdvfn,N$7,COLUMNS(N:$N),">"&$B79&"<",,0)) -> 43318 | O79: =IF(UPPER(TickerAdvfn)="",0,[1]!smfGetADVFNElement(TickerAdvfn,O$7,COLUMNS(O:$S),">"&$B79&"<",,0)) -> 31779 | P79: =IF(UPPER(TickerAdvfn)="",0,[1]!smfGetADVFNElement(TickerAdvfn,P$7,COLUMNS(P:$S),">"&$B79&"<",,0)) -> 32856 | Q79: =IF(UPPER(TickerAdvfn)="",0,[1]!smfGetADVFNElement(TickerAdvfn,Q$7,COLUMNS(Q:$S),">"&$B79&"<",,0)) -> 40903 | R79: =IF(UPPER(TickerAdvfn)="",0,[1]!smfGetADVFNElement(TickerAdvfn,R$7,COLUMNS(R:$S),">"&$B79&"<",,0)) -> 43318 | S79: =IF(UPPER(TickerAdvfn)="",0,[1]!smfGetADVFNElement(TickerAdvfn,S$7,COLUMNS(S:$S),">"&$B79&"<",,0)) -> 43699 | T79: 43699
B80: total assets | E80: =IF(UPPER(TickerAdvfn)="",0,[1]!smfGetADVFNElement(TickerAdvfn,E$7,COLUMNS(E:$N),">"&$B80&"<",,0)) -> 32851 | F80: =IF(UPPER(TickerAdvfn)="",0,[1]!smfGetADVFNElement(TickerAdvfn,F$7,COLUMNS(F:$N),">"&$B80&"<",,0)) -> 36465 | G80: =IF(UPPER(TickerAdvfn)="",0,[1]!smfGetADVFNElement(TickerAdvfn,G$7,COLUMNS(G:$N),">"&$B80&"<",,0)) -> 43091 | H80: =IF(UPPER(TickerAdvfn)="",0,[1]!smfGetADVFNElement(TickerAdvfn,H$7,COLUMNS(H:$N),">"&$B80&"<",,0)) -> 47069 | I80: =IF(UPPER(TickerAdvfn)="",0,[1]!smfGetADVFNElement(TickerAdvfn,I$7,COLUMNS(I:$N),">"&$B80&"<",,0)) -> 50879 | J80: =IF(UPPER(TickerAdvfn)="",0,[1]!smfGetADVFNElement(TickerAdvfn,J$7,COLUMNS(J:$N),">"&$B80&"<",,0)) -> 56132 | K80: =IF(UPPER(TickerAdvfn)="",0,[1]!smfGetADVFNElement(TickerAdvfn,K$7,COLUMNS(K:$N),">"&$B80&"<",,0)) -> 67782 | L80: =IF(UPPER(TickerAdvfn)="",0,[1]!smfGetADVFNElement(TickerAdvfn,L$7,COLUMNS(L:$N),">"&$B80&"<",,0)) -> 60038 | M80: =IF(UPPER(TickerAdvfn)="",0,[1]!smfGetADVFNElement(TickerAdvfn,M$7,COLUMNS(M:$N),">"&$B80&"<",,0)) -> 64020 | N80: =IF(UPPER(TickerAdvfn)="",0,[1]!smfGetADVFNElement(TickerAdvfn,N$7,COLUMNS(N:$N),">"&$B80&"<",,0)) -> 81446 | O80: =IF(UPPER(TickerAdvfn)="",0,[1]!smfGetADVFNElement(TickerAdvfn,O$7,COLUMNS(O:$S),">"&$B80&"<",,0)) -> 66387 | P80: =IF(UPPER(TickerAdvfn)="",0,[1]!smfGetADVFNElement(TickerAdvfn,P$7,COLUMNS(P:$S),">"&$B80&"<",,0)) -> 73611 | Q80: =IF(UPPER(TickerAdvfn)="",0,[1]!smfGetADVFNElement(TickerAdvfn,Q$7,COLUMNS(Q:$S),">"&$B80&"<",,0)) -> 77767 | R80: =IF(UPPER(TickerAdvfn)="",0,[1]!smfGetADVFNElement(TickerAdvfn,R$7,COLUMNS(R:$S),">"&$B80&"<",,0)) -> 81446 | S80: =IF(UPPER(TickerAdvfn)="",0,[1]!smfGetADVFNElement(TickerAdvfn,S$7,COLUMNS(S:$S),">"&$B80&"<",,0)) -> 83908 | T80: 83908
A81: Liabilities & Equity
B82: accounts payable | E82: =IF(UPPER(TickerAdvfn)="",0,[1]!smfGetADVFNElement(TickerAdvfn,E$7,COLUMNS(E:$N),">"&$B82&"<",,0)) -> 2269 | F82: =IF(UPPER(TickerAdvfn)="",0,[1]!smfGetADVFNElement(TickerAdvfn,F$7,COLUMNS(F:$N),">"&$B82&"<",,0)) -> 3100 | G82: =IF(UPPER(TickerAdvfn)="",0,[1]!smfGetADVFNElement(TickerAdvfn,G$7,COLUMNS(G:$N),">"&$B82&"<",,0)) -> 3990 | H82: =IF(UPPER(TickerAdvfn)="",0,[1]!smfGetADVFNElement(TickerAdvfn,H$7,COLUMNS(H:$N),">"&$B82&"<",,0)) -> 3471 | I82: =IF(UPPER(TickerAdvfn)="",0,[1]!smfGetADVFNElement(TickerAdvfn,I$7,COLUMNS(I:$N),">"&$B82&"<",,0)) -> 4085 | J82: =IF(UPPER(TickerAdvfn)="",0,[1]!smfGetADVFNElement(TickerAdvfn,J$7,COLUMNS(J:$N),">"&$B82&"<",,0)) -> 4723 | K82: =IF(UPPER(TickerAdvfn)="",0,[1]!smfGetADVFNElement(TickerAdvfn,K$7,COLUMNS(K:$N),">"&$B82&"<",,0)) -> 4827 | L82: =IF(UPPER(TickerAdvfn)="",0,[1]!smfGetADVFNElement(TickerAdvfn,L$7,COLUMNS(L:$N),">"&$B82&"<",,0)) -> 2993 | M82: =IF(UPPER(TickerAdvfn)="",0,[1]!smfGetADVFNElement(TickerAdvfn,M$7,COLUMNS(M:$N),">"&$B82&"<",,0)) -> 5856 | N82: =IF(UPPER(TickerAdvfn)="",0,[1]!smfGetADVFNElement(TickerAdvfn,N$7,COLUMNS(N:$N),">"&$B82&"<",,0)) -> 8161 | O82: =IF(UPPER(TickerAdvfn)="",0,[1]!smfGetADVFNElement(TickerAdvfn,O$7,COLUMNS(O:$S),">"&$B82&"<",,0)) -> 5990 | P82: =IF(UPPER(TickerAdvfn)="",0,[1]!smfGetADVFNElement(TickerAdvfn,P$7,COLUMNS(P:$S),">"&$B82&"<",,0)) -> 6858 | Q82: =IF(UPPER(TickerAdvfn)="",0,[1]!smfGetADVFNElement(TickerAdvfn,Q$7,COLUMNS(Q:$S),">"&$B82&"<",,0)) -> 7524 | R82: =IF(UPPER(TickerAdvfn)="",0,[1]!smfGetADVFNElement(TickerAdvfn,R$7,COLUMNS(R:$S),">"&$B82&"<",,0)) -> 8161 | S82: =IF(UPPER(TickerAdvfn)="",0,[1]!smfGetADVFNElement(TickerAdvfn,S$7,COLUMNS(S:$S),">"&$B82&"<",,0)) -> 8360 | T82: 8360
B83: notes payable | E83: =IF(UPPER(TickerAdvfn)="",0,[1]!smfGetADVFNElement(TickerAdvfn,E$7,COLUMNS(E:$N),">"&$B83&"<",,0)) -> 0 | F83: =IF(UPPER(TickerAdvfn)="",0,[1]!smfGetADVFNElement(TickerAdvfn,F$7,COLUMNS(F:$N),">"&$B83&"<",,0)) -> 0 | G83: =IF(UPPER(TickerAdvfn)="",0,[1]!smfGetADVFNElement(TickerAdvfn,G$7,COLUMNS(G:$N),">"&$B83&"<",,0)) -> 0 | H83: =IF(UPPER(TickerAdvfn)="",0,[1]!smfGetADVFNElement(TickerAdvfn,H$7,COLUMNS(H:$N),">"&$B83&"<",,0)) -> 0 | I83: =IF(UPPER(TickerAdvfn)="",0,[1]!smfGetADVFNElement(TickerAdvfn,I$7,COLUMNS(I:$N),">"&$B83&"<",,0)) -> 0 | J83: =IF(UPPER(TickerAdvfn)="",0,[1]!smfGetADVFNElement(TickerAdvfn,J$7,COLUMNS(J:$N),">"&$B83&"<",,0)) -> 0 | K83: =IF(UPPER(TickerAdvfn)="",0,[1]!smfGetADVFNElement(TickerAdvfn,K$7,COLUMNS(K:$N),">"&$B83&"<",,0)) -> 0 | L83: =IF(UPPER(TickerAdvfn)="",0,[1]!smfGetADVFNElement(TickerAdvfn,L$7,COLUMNS(L:$N),">"&$B83&"<",,0)) -> 0 | M83: =IF(UPPER(TickerAdvfn)="",0,[1]!smfGetADVFNElement(TickerAdvfn,M$7,COLUMNS(M:$N),">"&$B83&"<",,0)) -> 0 | N83: =IF(UPPER(TickerAdvfn)="",0,[1]!smfGetADVFNElement(TickerAdvfn,N$7,COLUMNS(N:$N),">"&$B83&"<",,0)) -> 0 | O83: =IF(UPPER(TickerAdvfn)="",0,[1]!smfGetADVFNElement(TickerAdvfn,O$7,COLUMNS(O:$S),">"&$B83&"<",,0)) -> 0 | P83: =IF(UPPER(TickerAdvfn)="",0,[1]!smfGetADVFNElement(TickerAdvfn,P$7,COLUMNS(P:$S),">"&$B83&"<",,0)) -> 0 | Q83: =IF(UPPER(TickerAdvfn)="",0,[1]!smfGetADVFNElement(TickerAdvfn,Q$7,COLUMNS(Q:$S),">"&$B83&"<",,0)) -> 0 | R83: =IF(UPPER(TickerAdvfn)="",0,[1]!smfGetADVFNElement(TickerAdvfn,R$7,COLUMNS(R:$S),">"&$B83&"<",,0)) -> 0 | S83: =IF(UPPER(TickerAdvfn)="",0,[1]!smfGetADVFNElement(TickerAdvfn,S$7,COLUMNS(S:$S),">"&$B83&"<",,0)) -> 0 | T83: 0
B84: short-term debt | E84: =IF(UPPER(TickerAdvfn)="",0,[1]!smfGetADVFNElement(TickerAdvfn,E$7,COLUMNS(E:$N),">"&$B84&"<",,0)) -> 6087 | F84: =IF(UPPER(TickerAdvfn)="",0,[1]!smfGetADVFNElement(TickerAdvfn,F$7,COLUMNS(F:$N),">"&$B84&"<",,0)) -> 5738 | G84: =IF(UPPER(TickerAdvfn)="",0,[1]!smfGetADVFNElement(TickerAdvfn,G$7,COLUMNS(G:$N),">"&$B84&"<",,0)) -> 7688 | H84: =IF(UPPER(TickerAdvfn)="",0,[1]!smfGetADVFNElement(TickerAdvfn,H$7,COLUMNS(H:$N),">"&$B84&"<",,0)) -> 10068 | I84: =IF(UPPER(TickerAdvfn)="",0,[1]!smfGetADVFNElement(TickerAdvfn,I$7,COLUMNS(I:$N),">"&$B84&"<",,0)) -> 9616 | J84: =IF(UPPER(TickerAdvfn)="",0,[1]!smfGetADVFNElement(TickerAdvfn,J$7,COLUMNS(J:$N),">"&$B84&"<",,0)) -> 10600 | K84: =IF(UPPER(TickerAdvfn)="",0,[1]!smfGetADVFNElement(TickerAdvfn,K$7,COLUMNS(K:$N),">"&$B84&"<",,0)) -> 12701 | L84: =IF(UPPER(TickerAdvfn)="",0,[1]!smfGetADVFNElement(TickerAdvfn,L$7,COLUMNS(L:$N),">"&$B84&"<",,0)) -> 9784 | M84: =IF(UPPER(TickerAdvfn)="",0,[1]!smfGetADVFNElement(TickerAdvfn,M$7,COLUMNS(M:$N),">"&$B84&"<",,0)) -> 7981 | N84: =IF(UPPER(TickerAdvfn)="",0,[1]!smfGetADVFNElement(TickerAdvfn,N$7,COLUMNS(N:$N),">"&$B84&"<",,0)) -> 9648 | O84: =IF(UPPER(TickerAdvfn)="",0,[1]!smfGetADVFNElement(TickerAdvfn,O$7,COLUMNS(O:$S),">"&$B84&"<",,0)) -> 9691 | P84: =IF(UPPER(TickerAdvfn)="",0,[1]!smfGetADVFNElement(TickerAdvfn,P$7,COLUMNS(P:$S),">"&$B84&"<",,0)) -> 8456 | Q84: =IF(UPPER(TickerAdvfn)="",0,[1]!smfGetADVFNElement(TickerAdvfn,Q$7,COLUMNS(Q:$S),">"&$B84&"<",,0)) -> 7508 | R84: =IF(UPPER(TickerAdvfn)="",0,[1]!smfGetADVFNElement(TickerAdvfn,R$7,COLUMNS(R:$S),">"&$B84&"<",,0)) -> 9648 | S84: =IF(UPPER(TickerAdvfn)="",0,[1]!smfGetADVFNElement(TickerAdvfn,S$7,COLUMNS(S:$S),">"&$B84&"<",,0)) -> 10762 | T84: 10762
B85: accrued expenses | E85: =IF(UPPER(TickerAdvfn)="",0,[1]!smfGetADVFNElement(TickerAdvfn,E$7,COLUMNS(E:$N),">"&$B85&"<",,0)) -> 1500 | F85: =IF(UPPER(TickerAdvfn)="",0,[1]!smfGetADVFNElement(TickerAdvfn,F$7,COLUMNS(F:$N),">"&$B85&"<",,0)) -> 1638 | G85: =IF(UPPER(TickerAdvfn)="",0,[1]!smfGetADVFNElement(TickerAdvfn,G$7,COLUMNS(G:$N),">"&$B85&"<",,0)) -> 1847 | H85: =IF(UPPER(TickerAdvfn)="",0,[1]!smfGetADVFNElement(TickerAdvfn,H$7,COLUMNS(H:$N),">"&$B85&"<",,0)) -> 2617 | I85: =IF(UPPER(TickerAdvfn)="",0,[1]!smfGetADVFNElement(TickerAdvfn,I$7,COLUMNS(I:$N),">"&$B85&"<",,0)) -> 2923 | J85: =IF(UPPER(TickerAdvfn)="",0,[1]!smfGetADVFNElement(TickerAdvfn,J$7,COLUMNS(J:$N),">"&$B85&"<",,0)) -> 3178 | K85: =IF(UPPER(TickerAdvfn)="",0,[1]!smfGetADVFNElement(TickerAdvfn,K$7,COLUMNS(K:$N),">"&$B85&"<",,0)) -> 0 | L85: =IF(UPPER(TickerAdvfn)="",0,[1]!smfGetADVFNElement(TickerAdvfn,L$7,COLUMNS(L:$N),">"&$B85&"<",,0)) -> 0 | M85: =IF(UPPER(TickerAdvfn)="",0,[1]!smfGetADVFNElement(TickerAdvfn,M$7,COLUMNS(M:$N),">"&$B85&"<",,0)) -> 0 | N85: =IF(UPPER(TickerAdvfn)="",0,[1]!smfGetADVFNElement(TickerAdvfn,N$7,COLUMNS(N:$N),">"&$B85&"<",,0)) -> 0 | O85: =IF(UPPER(TickerAdvfn)="",0,[1]!smfGetADVFNElement(TickerAdvfn,O$7,COLUMNS(O:$S),">"&$B85&"<",,0)) -> 0 | P85: =IF(UPPER(TickerAdvfn)="",0,[1]!smfGetADVFNElement(TickerAdvfn,P$7,COLUMNS(P:$S),">"&$B85&"<",,0)) -> 0 | Q85: =IF(UPPER(TickerAdvfn)="",0,[1]!smfGetADVFNElement(TickerAdvfn,Q$7,COLUMNS(Q:$S),">"&$B85&"<",,0)) -> 0 | R85: =IF(UPPER(TickerAdvfn)="",0,[1]!smfGetADVFNElement(TickerAdvfn,R$7,COLUMNS(R:$S),">"&$B85&"<",,0)) -> 0 | S85: =IF(UPPER(TickerAdvfn)="",0,[1]!smfGetADVFNElement(TickerAdvfn,S$7,COLUMNS(S:$S),">"&$B85&"<",,0)) -> 0 | T85: 0
B86: accrued liabilities | E86: =IF(UPPER(TickerAdvfn)="",0,[1]!smfGetADVFNElement(TickerAdvfn,E$7,COLUMNS(E:$N),">"&$B86&"<",,0)) -> 120 | F86: =IF(UPPER(TickerAdvfn)="",0,[1]!smfGetADVFNElement(TickerAdvfn,F$7,COLUMNS(F:$N),">"&$B86&"<",,0)) -> 1802 | G86: =IF(UPPER(TickerAdvfn)="",0,[1]!smfGetADVFNElement(TickerAdvfn,G$7,COLUMNS(G:$N),">"&$B86&"<",,0)) -> 1730 | H86: =IF(UPPER(TickerAdvfn)="",0,[1]!smfGetADVFNElement(TickerAdvfn,H$7,COLUMNS(H:$N),">"&$B86&"<",,0)) -> 1845 | I86: =IF(UPPER(TickerAdvfn)="",0,[1]!smfGetADVFNElement(TickerAdvfn,I$7,COLUMNS(I:$N),">"&$B86&"<",,0)) -> 938 | J86: =IF(UPPER(TickerAdvfn)="",0,[1]!smfGetADVFNElement(TickerAdvfn,J$7,COLUMNS(J:$N),">"&$B86&"<",,0)) -> 1126 | K86: =IF(UPPER(TickerAdvfn)="",0,[1]!smfGetADVFNElement(TickerAdvfn,K$7,COLUMNS(K:$N),">"&$B86&"<",,0)) -> 5363 | L86: =IF(UPPER(TickerAdvfn)="",0,[1]!smfGetADVFNElement(TickerAdvfn,L$7,COLUMNS(L:$N),">"&$B86&"<",,0)) -> 4148 | M86: =IF(UPPER(TickerAdvfn)="",0,[1]!smfGetADVFNElement(TickerAdvfn,M$7,COLUMNS(M:$N),">"&$B86&"<",,0)) -> 4550 | N86: =IF(UPPER(TickerAdvfn)="",0,[1]!smfGetADVFNElement(TickerAdvfn,N$7,COLUMNS(N:$N),">"&$B86&"<",,0)) -> 5796 | O86: =IF(UPPER(TickerAdvfn)="",0,[1]!smfGetADVFNElement(TickerAdvfn,O$7,COLUMNS(O:$S),">"&$B86&"<",,0)) -> 4113 | P86: =IF(UPPER(TickerAdvfn)="",0,[1]!smfGetADVFNElement(TickerAdvfn,P$7,COLUMNS(P:$S),">"&$B86&"<",,0)) -> 4447 | Q86: =IF(UPPER(TickerAdvfn)="",0,[1]!smfGetADVFNElement(TickerAdvfn,Q$7,COLUMNS(Q:$S),">"&$B86&"<",,0)) -> 5248 | R86: =IF(UPPER(TickerAdvfn)="",0,[1]!smfGetADVFNElement(TickerAdvfn,R$7,COLUMNS(R:$S),">"&$B86&"<",,0)) -> 5796 | S86: =IF(UPPER(TickerAdvfn)="",0,[1]!smfGetADVFNElement(TickerAdvfn,S$7,COLUMNS(S:$S),">"&$B86&"<",,0)) -> 4800 | T86: 4800
B87: deferred revenues | E87: =IF(UPPER(TickerAdvfn)="",0,[1]!smfGetADVFNElement(TickerAdvfn,E$7,COLUMNS(E:$N),">"&$B87&"<",,0)) -> 0 | F87: =IF(UPPER(TickerAdvfn)="",0,[1]!smfGetADVFNElement(TickerAdvfn,F$7,COLUMNS(F:$N),">"&$B87&"<",,0)) -> 0 | G87: =IF(UPPER(TickerAdvfn)="",0,[1]!smfGetADVFNElement(TickerAdvfn,G$7,COLUMNS(G:$N),">"&$B87&"<",,0)) -> 0 | H87: =IF(UPPER(TickerAdvfn)="",0,[1]!smfGetADVFNElement(TickerAdvfn,H$7,COLUMNS(H:$N),">"&$B87&"<",,0)) -> 0 | I87: =IF(UPPER(TickerAdvfn)="",0,[1]!smfGetADVFNElement(TickerAdvfn,I$7,COLUMNS(I:$N),">"&$B87&"<",,0)) -> 0 | J87: =IF(UPPER(TickerAdvfn)="",0,[1]!smfGetADVFNElement(TickerAdvfn,J$7,COLUMNS(J:$N),">"&$B87&"<",,0)) -> 0 | K87: =IF(UPPER(TickerAdvfn)="",0,[1]!smfGetADVFNElement(TickerAdvfn,K$7,COLUMNS(K:$N),">"&$B87&"<",,0)) -> 0 | L87: =IF(UPPER(TickerAdvfn)="",0,[1]!smfGetADVFNElement(TickerAdvfn,L$7,COLUMNS(L:$N),">"&$B87&"<",,0)) -> 0 | M87: =IF(UPPER(TickerAdvfn)="",0,[1]!smfGetADVFNElement(TickerAdvfn,M$7,COLUMNS(M:$N),">"&$B87&"<",,0)) -> 0 | N87: =IF(UPPER(TickerAdvfn)="",0,[1]!smfGetADVFNElement(TickerAdvfn,N$7,COLUMNS(N:$N),">"&$B87&"<",,0)) -> 0 | O87: =IF(UPPER(TickerAdvfn)="",0,[1]!smfGetADVFNElement(TickerAdvfn,O$7,COLUMNS(O:$S),">"&$B87&"<",,0)) -> 0 | P87: =IF(UPPER(TickerAdvfn)="",0,[1]!smfGetADVFNElement(TickerAdvfn,P$7,COLUMNS(P:$S),">"&$B87&"<",,0)) -> 0 | Q87: =IF(UPPER(TickerAdvfn)="",0,[1]!smfGetADVFNElement(TickerAdvfn,Q$7,COLUMNS(Q:$S),">"&$B87&"<",,0)) -> 0 | R87: =IF(UPPER(TickerAdvfn)="",0,[1]!smfGetADVFNElement(TickerAdvfn,R$7,COLUMNS(R:$S),">"&$B87&"<",,0)) -> 0 | S87: =IF(UPPER(TickerAdvfn)="",0,[1]!smfGetADVFNElement(TickerAdvfn,S$7,COLUMNS(S:$S),">"&$B87&"<",,0)) -> 0 | T87: 0
B88: current deferred income taxes | E88: =IF(UPPER(TickerAdvfn)="",0,[1]!smfGetADVFNElement(TickerAdvfn,E$7,COLUMNS(E:$N),">"&$B88&"<",,0)) -> 70 | F88: =IF(UPPER(TickerAdvfn)="",0,[1]!smfGetADVFNElement(TickerAdvfn,F$7,COLUMNS(F:$N),">"&$B88&"<",,0)) -> 216 | G88: =IF(UPPER(TickerAdvfn)="",0,[1]!smfGetADVFNElement(TickerAdvfn,G$7,COLUMNS(G:$N),">"&$B88&"<",,0)) -> 259 | H88: =IF(UPPER(TickerAdvfn)="",0,[1]!smfGetADVFNElement(TickerAdvfn,H$7,COLUMNS(H:$N),">"&$B88&"<",,0)) -> 528 | I88: =IF(UPPER(TickerAdvfn)="",0,[1]!smfGetADVFNElement(TickerAdvfn,I$7,COLUMNS(I:$N),">"&$B88&"<",,0)) -> 575 | J88: =IF(UPPER(TickerAdvfn)="",0,[1]!smfGetADVFNElement(TickerAdvfn,J$7,COLUMNS(J:$N),">"&$B88&"<",,0)) -> 0 | K88: =IF(UPPER(TickerAdvfn)="",0,[1]!smfGetADVFNElement(TickerAdvfn,K$7,COLUMNS(K:$N),">"&$B88&"<",,0)) -> 0 | L88: =IF(UPPER(TickerAdvfn)="",0,[1]!smfGetADVFNElement(TickerAdvfn,L$7,COLUMNS(L:$N),">"&$B88&"<",,0)) -> 0 | M88: =IF(UPPER(TickerAdvfn)="",0,[1]!smfGetADVFNElement(TickerAdvfn,M$7,COLUMNS(M:$N),">"&$B88&"<",,0)) -> 0 | N88: =IF(UPPER(TickerAdvfn)="",0,[1]!smfGetADVFNElement(TickerAdvfn,N$7,COLUMNS(N:$N),">"&$B88&"<",,0)) -> 0 | O88: =IF(UPPER(TickerAdvfn)="",0,[1]!smfGetADVFNElement(TickerAdvfn,O$7,COLUMNS(O:$S),">"&$B88&"<",,0)) -> 0 | P88: =IF(UPPER(TickerAdvfn)="",0,[1]!smfGetADVFNElement(TickerAdvfn,P$7,COLUMNS(P:$S),">"&$B88&"<",,0)) -> 0 | Q88: =IF(UPPER(TickerAdvfn)="",0,[1]!smfGetADVFNElement(TickerAdvfn,Q$7,COLUMNS(Q:$S),">"&$B88&"<",,0)) -> 0 | R88: =IF(UPPER(TickerAdvfn)="",0,[1]!smfGetADVFNElement(TickerAdvfn,R$7,COLUMNS(R:$S),">"&$B88&"<",,0)) -> 0 | S88: =IF(UPPER(TickerAdvfn)="",0,[1]!smfGetADVFNElement(TickerAdvfn,S$7,COLUMNS(S:$S),">"&$B88&"<",,0)) -> 0 | T88: 0
B89: other current liabilities | E89: =IF(UPPER(TickerAdvfn)="",0,[1]!smfGetADVFNElement(TickerAdvfn,E$7,COLUMNS(E:$N),">"&$B89&"<",,0)) -> 1298 | F89: =IF(UPPER(TickerAdvfn)="",0,[1]!smfGetADVFNElement(TickerAdvfn,F$7,COLUMNS(F:$N),">"&$B89&"<",,0)) -> 127 | G89: =IF(UPPER(TickerAdvfn)="",0,[1]!smfGetADVFNElement(TickerAdvfn,G$7,COLUMNS(G:$N),">"&$B89&"<",,0)) -> 696 | H89: =IF(UPPER(TickerAdvfn)="",0,[1]!smfGetADVFNElement(TickerAdvfn,H$7,COLUMNS(H:$N),">"&$B89&"<",,0)) -> 563 | I89: =IF(UPPER(TickerAdvfn)="",0,[1]!smfGetADVFNElement(TickerAdvfn,I$7,COLUMNS(I:$N),">"&$B89&"<",,0)) -> 1115 | J89: =IF(UPPER(TickerAdvfn)="",0,[1]!smfGetADVFNElement(TickerAdvfn,J$7,COLUMNS(J:$N),">"&$B89&"<",,0)) -> 2618 | K89: =IF(UPPER(TickerAdvfn)="",0,[1]!smfGetADVFNElement(TickerAdvfn,K$7,COLUMNS(K:$N),">"&$B89&"<",,0)) -> 3178 | L89: =IF(UPPER(TickerAdvfn)="",0,[1]!smfGetADVFNElement(TickerAdvfn,L$7,COLUMNS(L:$N),">"&$B89&"<",,0)) -> 2367 | M89: =IF(UPPER(TickerAdvfn)="",0,[1]!smfGetADVFNElement(TickerAdvfn,M$7,COLUMNS(M:$N),">"&$B89&"<",,0)) -> 3633 | N89: =IF(UPPER(TickerAdvfn)="",0,[1]!smfGetADVFNElement(TickerAdvfn,N$7,COLUMNS(N:$N),">"&$B89&"<",,0)) -> 4956 | O89: =IF(UPPER(TickerAdvfn)="",0,[1]!smfGetADVFNElement(TickerAdvfn,O$7,COLUMNS(O:$S),">"&$B89&"<",,0)) -> 3353 | P89: =IF(UPPER(TickerAdvfn)="",0,[1]!smfGetADVFNElement(TickerAdvfn,P$7,COLUMNS(P:$S),">"&$B89&"<",,0)) -> 3749 | Q89: =IF(UPPER(TickerAdvfn)="",0,[1]!smfGetADVFNElement(TickerAdvfn,Q$7,COLUMNS(Q:$S),">"&$B89&"<",,0)) -> 4938 | R89: =IF(UPPER(TickerAdvfn)="",0,[1]!smfGetADVFNElement(TickerAdvfn,R$7,COLUMNS(R:$S),">"&$B89&"<",,0)) -> 4956 | S89: =IF(UPPER(TickerAdvfn)="",0,[1]!smfGetADVFNElement(TickerAdvfn,S$7,COLUMNS(S:$S),">"&$B89&"<",,0)) -> 4927 | T89: 4927
B90: total current liabilities | E90: =IF(UPPER(TickerAdvfn)="",0,[1]!smfGetADVFNElement(TickerAdvfn,E$7,COLUMNS(E:$N),">"&$B90&"<",,0)) -> 11344 | F90: =IF(UPPER(TickerAdvfn)="",0,[1]!smfGetADVFNElement(TickerAdvfn,F$7,COLUMNS(F:$N),">"&$B90&"<",,0)) -> 12621 | G90: =IF(UPPER(TickerAdvfn)="",0,[1]!smfGetADVFNElement(TickerAdvfn,G$7,COLUMNS(G:$N),">"&$B90&"<",,0)) -> 16210 | H90: =IF(UPPER(TickerAdvfn)="",0,[1]!smfGetADVFNElement(TickerAdvfn,H$7,COLUMNS(H:$N),">"&$B90&"<",,0)) -> 19092 | I90: =IF(UPPER(TickerAdvfn)="",0,[1]!smfGetADVFNElement(TickerAdvfn,I$7,COLUMNS(I:$N),">"&$B90&"<",,0)) -> 19252 | J90: =IF(UPPER(TickerAdvfn)="",0,[1]!smfGetADVFNElement(TickerAdvfn,J$7,COLUMNS(J:$N),">"&$B90&"<",,0)) -> 22245 | K90: =IF(UPPER(TickerAdvfn)="",0,[1]!smfGetADVFNElement(TickerAdvfn,K$7,COLUMNS(K:$N),">"&$B90&"<",,0)) -> 26069 | L90: =IF(UPPER(TickerAdvfn)="",0,[1]!smfGetADVFNElement(TickerAdvfn,L$7,COLUMNS(L:$N),">"&$B90&"<",,0)) -> 19292 | M90: =IF(UPPER(TickerAdvfn)="",0,[1]!smfGetADVFNElement(TickerAdvfn,M$7,COLUMNS(M:$N),">"&$B90&"<",,0)) -> 22020 | N90: =IF(UPPER(TickerAdvfn)="",0,[1]!smfGetADVFNElement(TickerAdvfn,N$7,COLUMNS(N:$N),">"&$B90&"<",,0)) -> 28561 | O90: =IF(UPPER(TickerAdvfn)="",0,[1]!smfGetADVFNElement(TickerAdvfn,O$7,COLUMNS(O:$S),">"&$B90&"<",,0)) -> 23147 | P90: =IF(UPPER(TickerAdvfn)="",0,[1]!smfGetADVFNElement(TickerAdvfn,P$7,COLUMNS(P:$S),">"&$B90&"<",,0)) -> 23510 | Q90: =IF(UPPER(TickerAdvfn)="",0,[1]!smfGetADVFNElement(TickerAdvfn,Q$7,COLUMNS(Q:$S),">"&$B90&"<",,0)) -> 25218 | R90: =IF(UPPER(TickerAdvfn)="",0,[1]!smfGetADVFNElement(TickerAdvfn,R$7,COLUMNS(R:$S),">"&$B90&"<",,0)) -> 28561 | S90: =IF(UPPER(TickerAdvfn)="",0,[1]!smfGetADVFNElement(TickerAdvfn,S$7,COLUMNS(S:$S),">"&$B90&"<",,0)) -> 28849 | T90: 28849
B91: long-term debt | E91: =IF(UPPER(TickerAdvfn)="",0,[1]!smfGetADVFNElement(TickerAdvfn,E$7,COLUMNS(E:$N),">"&$B91&"<",,0)) -> 11596 | F91: =IF(UPPER(TickerAdvfn)="",0,[1]!smfGetADVFNElement(TickerAdvfn,F$7,COLUMNS(F:$N),">"&$B91&"<",,0)) -> 14078 | G91: =IF(UPPER(TickerAdvfn)="",0,[1]!smfGetADVFNElement(TickerAdvfn,G$7,COLUMNS(G:$N),">"&$B91&"<",,0)) -> 15837 | H91: =IF(UPPER(TickerAdvfn)="",0,[1]!smfGetADVFNElement(TickerAdvfn,H$7,COLUMNS(H:$N),">"&$B91&"<",,0)) -> 15677 | I91: =IF(UPPER(TickerAdvfn)="",0,[1]!smfGetADVFNElement(TickerAdvfn,I$7,COLUMNS(I:$N),">"&$B91&"<",,0)) -> 17680 | J91: =IF(UPPER(TickerAdvfn)="",0,[1]!smfGetADVFNElement(TickerAdvfn,J$7,COLUMNS(J:$N),">"&$B91&"<",,0)) -> 17829 | K91: =IF(UPPER(TickerAdvfn)="",0,[1]!smfGetADVFNElement(TickerAdvfn,K$7,COLUMNS(K:$N),">"&$B91&"<",,0)) -> 22834 | L91: =IF(UPPER(TickerAdvfn)="",0,[1]!smfGetADVFNElement(TickerAdvfn,L$7,COLUMNS(L:$N),">"&$B91&"<",,0)) -> 21847 | M91: =IF(UPPER(TickerAdvfn)="",0,[1]!smfGetADVFNElement(TickerAdvfn,M$7,COLUMNS(M:$N),">"&$B91&"<",,0)) -> 20437 | N91: =IF(UPPER(TickerAdvfn)="",0,[1]!smfGetADVFNElement(TickerAdvfn,N$7,COLUMNS(N:$N),">"&$B91&"<",,0)) -> 24944 | O91: =IF(UPPER(TickerAdvfn)="",0,[1]!smfGetADVFNElement(TickerAdvfn,O$7,COLUMNS(O:$S),">"&$B91&"<",,0)) -> 19895 | P91: =IF(UPPER(TickerAdvfn)="",0,[1]!smfGetADVFNElement(TickerAdvfn,P$7,COLUMNS(P:$S),">"&$B91&"<",,0)) -> 25926 | Q91: =IF(UPPER(TickerAdvfn)="",0,[1]!smfGetADVFNElement(TickerAdvfn,Q$7,COLUMNS(Q:$S),">"&$B91&"<",,0)) -> 26781 | R91: =IF(UPPER(TickerAdvfn)="",0,[1]!smfGetADVFNElement(TickerAdvfn,R$7,COLUMNS(R:$S),">"&$B91&"<",,0)) -> 24944 | S91: =IF(UPPER(TickerAdvfn)="",0,[1]!smfGetADVFNElement(TickerAdvfn,S$7,COLUMNS(S:$S),">"&$B91&"<",,0)) -> 25191 | T91: 25191
B92: capital lease obligations | E92: =IF(UPPER(TickerAdvfn)="",0,[1]!smfGetADVFNElement(TickerAdvfn,E$7,COLUMNS(E:$N),">"&$B92&"<",,0)) -> 0 | F92: =IF(UPPER(TickerAdvfn)="",0,[1]!smfGetADVFNElement(TickerAdvfn,F$7,COLUMNS(F:$N),">"&$B92&"<",,0)) -> 0 | G92: =IF(UPPER(TickerAdvfn)="",0,[1]!smfGetADVFNElement(TickerAdvfn,G$7,COLUMNS(G:$N),">"&$B92&"<",,0)) -> 0 | H92: =IF(UPPER(TickerAdvfn)="",0,[1]!smfGetADVFNElement(TickerAdvfn,H$7,COLUMNS(H:$N),">"&$B92&"<",,0)) -> 0 | I92: =IF(UPPER(TickerAdvfn)="",0,[1]!smfGetADVFNElement(TickerAdvfn,I$7,COLUMNS(I:$N),">"&$B92&"<",,0)) -> 0 | J92: =IF(UPPER(TickerAdvfn)="",0,[1]!smfGetADVFNElement(TickerAdvfn,J$7,COLUMNS(J:$N),">"&$B92&"<",,0)) -> 0 | K92: =IF(UPPER(TickerAdvfn)="",0,[1]!smfGetADVFNElement(TickerAdvfn,K$7,COLUMNS(K:$N),">"&$B92&"<",,0)) -> 0 | L92: =IF(UPPER(TickerAdvfn)="",0,[1]!smfGetADVFNElement(TickerAdvfn,L$7,COLUMNS(L:$N),">"&$B92&"<",,0)) -> 0 | M92: =IF(UPPER(TickerAdvfn)="",0,[1]!smfGetADVFNElement(TickerAdvfn,M$7,COLUMNS(M:$N),">"&$B92&"<",,0)) -> 0 | N92: =IF(UPPER(TickerAdvfn)="",0,[1]!smfGetADVFNElement(TickerAdvfn,N$7,COLUMNS(N:$N),">"&$B92&"<",,0)) -> 0 | O92: =IF(UPPER(TickerAdvfn)="",0,[1]!smfGetADVFNElement(TickerAdvfn,O$7,COLUMNS(O:$S),">"&$B92&"<",,0)) -> 0 | P92: =IF(UPPER(TickerAdvfn)="",0,[1]!smfGetADVFNElement(TickerAdvfn,P$7,COLUMNS(P:$S),">"&$B92&"<",,0)) -> 0 | Q92: =IF(UPPER(TickerAdvfn)="",0,[1]!smfGetADVFNElement(TickerAdvfn,Q$7,COLUMNS(Q:$S),">"&$B92&"<",,0)) -> 0 | R92: =IF(UPPER(TickerAdvfn)="",0,[1]!smfGetADVFNElement(TickerAdvfn,R$7,COLUMNS(R:$S),">"&$B92&"<",,0)) -> 0 | S92: =IF(UPPER(TickerAdvfn)="",0,[1]!smfGetADVFNElement(TickerAdvfn,S$7,COLUMNS(S:$S),">"&$B92&"<",,0)) -> 0 | T92: 0
B93: deferred income taxes | E93: =IF(UPPER(TickerAdvfn)="",0,[1]!smfGetADVFNElement(TickerAdvfn,E$7,COLUMNS(E:$N),">"&$B93&"<",,0)) -> 401 | F93: =IF(UPPER(TickerAdvfn)="",0,[1]!smfGetADVFNElement(TickerAdvfn,F$7,COLUMNS(F:$N),">"&$B93&"<",,0)) -> 516 | G93: =IF(UPPER(TickerAdvfn)="",0,[1]!smfGetADVFNElement(TickerAdvfn,G$7,COLUMNS(G:$N),">"&$B93&"<",,0)) -> 591 | H93: =IF(UPPER(TickerAdvfn)="",0,[1]!smfGetADVFNElement(TickerAdvfn,H$7,COLUMNS(H:$N),">"&$B93&"<",,0)) -> 877 | I93: =IF(UPPER(TickerAdvfn)="",0,[1]!smfGetADVFNElement(TickerAdvfn,I$7,COLUMNS(I:$N),">"&$B93&"<",,0)) -> 1209 | J93: =IF(UPPER(TickerAdvfn)="",0,[1]!smfGetADVFNElement(TickerAdvfn,J$7,COLUMNS(J:$N),">"&$B93&"<",,0)) -> 0 | K93: =IF(UPPER(TickerAdvfn)="",0,[1]!smfGetADVFNElement(TickerAdvfn,K$7,COLUMNS(K:$N),">"&$B93&"<",,0)) -> 0 | L93: =IF(UPPER(TickerAdvfn)="",0,[1]!smfGetADVFNElement(TickerAdvfn,L$7,COLUMNS(L:$N),">"&$B93&"<",,0)) -> 0 | M93: =IF(UPPER(TickerAdvfn)="",0,[1]!smfGetADVFNElement(TickerAdvfn,M$7,COLUMNS(M:$N),">"&$B93&"<",,0)) -> 0 | N93: =IF(UPPER(TickerAdvfn)="",0,[1]!smfGetADVFNElement(TickerAdvfn,N$7,COLUMNS(N:$N),">"&$B93&"<",,0)) -> 0 | O93: =IF(UPPER(TickerAdvfn)="",0,[1]!smfGetADVFNElement(TickerAdvfn,O$7,COLUMNS(O:$S),">"&$B93&"<",,0)) -> 0 | P93: =IF(UPPER(TickerAdvfn)="",0,[1]!smfGetADVFNElement(TickerAdvfn,P$7,COLUMNS(P:$S),">"&$B93&"<",,0)) -> 0 | Q93: =IF(UPPER(TickerAdvfn)="",0,[1]!smfGetADVFNElement(TickerAdvfn,Q$7,COLUMNS(Q:$S),">"&$B93&"<",,0)) -> 0 | R93: =IF(UPPER(TickerAdvfn)="",0,[1]!smfGetADVFNElement(TickerAdvfn,R$7,COLUMNS(R:$S),">"&$B93&"<",,0)) -> 0 | S93: =IF(UPPER(TickerAdvfn)="",0,[1]!smfGetADVFNElement(TickerAdvfn,S$7,COLUMNS(S:$S),">"&$B93&"<",,0)) -> 0 | T93: 0
B94: other non-current liabilities | E94: =IF(UPPER(TickerAdvfn)="",0,[1]!smfGetADVFNElement(TickerAdvfn,E$7,COLUMNS(E:$N),">"&$B94&"<",,0)) -> 4038 | F94: =IF(UPPER(TickerAdvfn)="",0,[1]!smfGetADVFNElement(TickerAdvfn,F$7,COLUMNS(F:$N),">"&$B94&"<",,0)) -> 3172 | G94: =IF(UPPER(TickerAdvfn)="",0,[1]!smfGetADVFNElement(TickerAdvfn,G$7,COLUMNS(G:$N),">"&$B94&"<",,0)) -> 2986 | H94: =IF(UPPER(TickerAdvfn)="",0,[1]!smfGetADVFNElement(TickerAdvfn,H$7,COLUMNS(H:$N),">"&$B94&"<",,0)) -> 2991 | I94: =IF(UPPER(TickerAdvfn)="",0,[1]!smfGetADVFNElement(TickerAdvfn,I$7,COLUMNS(I:$N),">"&$B94&"<",,0)) -> 5879 | J94: =IF(UPPER(TickerAdvfn)="",0,[1]!smfGetADVFNElement(TickerAdvfn,J$7,COLUMNS(J:$N),">"&$B94&"<",,0)) -> 7175 | K94: =IF(UPPER(TickerAdvfn)="",0,[1]!smfGetADVFNElement(TickerAdvfn,K$7,COLUMNS(K:$N),">"&$B94&"<",,0)) -> 12792 | L94: =IF(UPPER(TickerAdvfn)="",0,[1]!smfGetADVFNElement(TickerAdvfn,L$7,COLUMNS(L:$N),">"&$B94&"<",,0)) -> 10076 | M94: =IF(UPPER(TickerAdvfn)="",0,[1]!smfGetADVFNElement(TickerAdvfn,M$7,COLUMNS(M:$N),">"&$B94&"<",,0)) -> 10699 | N94: =IF(UPPER(TickerAdvfn)="",0,[1]!smfGetADVFNElement(TickerAdvfn,N$7,COLUMNS(N:$N),">"&$B94&"<",,0)) -> 15012 | O94: =IF(UPPER(TickerAdvfn)="",0,[1]!smfGetADVFNElement(TickerAdvfn,O$7,COLUMNS(O:$S),">"&$B94&"<",,0)) -> 10673 | P94: =IF(UPPER(TickerAdvfn)="",0,[1]!smfGetADVFNElement(TickerAdvfn,P$7,COLUMNS(P:$S),">"&$B94&"<",,0)) -> 10739 | Q94: =IF(UPPER(TickerAdvfn)="",0,[1]!smfGetADVFNElement(TickerAdvfn,Q$7,COLUMNS(Q:$S),">"&$B94&"<",,0)) -> 11555 | R94: =IF(UPPER(TickerAdvfn)="",0,[1]!smfGetADVFNElement(TickerAdvfn,R$7,COLUMNS(R:$S),">"&$B94&"<",,0)) -> 15012 | S94: =IF(UPPER(TickerAdvfn)="",0,[1]!smfGetADVFNElement(TickerAdvfn,S$7,COLUMNS(S:$S),">"&$B94&"<",,0)) -> 14852 | T94: 14852
B95: preferred equity outside stock equity | E95: =IF(UPPER(TickerAdvfn)="",0,[1]!smfGetADVFNElement(TickerAdvfn,E$7,COLUMNS(E:$N),">"&$B95&"<",,0)) -> 0 | F95: =IF(UPPER(TickerAdvfn)="",0,[1]!smfGetADVFNElement(TickerAdvfn,F$7,COLUMNS(F:$N),">"&$B95&"<",,0)) -> 0 | G95: =IF(UPPER(TickerAdvfn)="",0,[1]!smfGetADVFNElement(TickerAdvfn,G$7,COLUMNS(G:$N),">"&$B95&"<",,0)) -> 0 | H95: =IF(UPPER(TickerAdvfn)="",0,[1]!smfGetADVFNElement(TickerAdvfn,H$7,COLUMNS(H:$N),">"&$B95&"<",,0)) -> 0 | I95: =IF(UPPER(TickerAdvfn)="",0,[1]!smfGetADVFNElement(TickerAdvfn,I$7,COLUMNS(I:$N),">"&$B95&"<",,0)) -> 0 | J95: =IF(UPPER(TickerAdvfn)="",0,[1]!smfGetADVFNElement(TickerAdvfn,J$7,COLUMNS(J:$N),">"&$B95&"<",,0)) -> 0 | K95: =IF(UPPER(TickerAdvfn)="",0,[1]!smfGetADVFNElement(TickerAdvfn,K$7,COLUMNS(K:$N),">"&$B95&"<",,0)) -> 0 | L95: =IF(UPPER(TickerAdvfn)="",0,[1]!smfGetADVFNElement(TickerAdvfn,L$7,COLUMNS(L:$N),">"&$B95&"<",,0)) -> 0 | M95: =IF(UPPER(TickerAdvfn)="",0,[1]!smfGetADVFNElement(TickerAdvfn,M$7,COLUMNS(M:$N),">"&$B95&"<",,0)) -> 0 | N95: =IF(UPPER(TickerAdvfn)="",0,[1]!smfGetADVFNElement(TickerAdvfn,N$7,COLUMNS(N:$N),">"&$B95&"<",,0)) -> 0 | O95: =IF(UPPER(TickerAdvfn)="",0,[1]!smfGetADVFNElement(TickerAdvfn,O$7,COLUMNS(O:$S),">"&$B95&"<",,0)) -> 0 | P95: =IF(UPPER(TickerAdvfn)="",0,[1]!smfGetADVFNElement(TickerAdvfn,P$7,COLUMNS(P:$S),">"&$B95&"<",,0)) -> 0 | Q95: =IF(UPPER(TickerAdvfn)="",0,[1]!smfGetADVFNElement(TickerAdvfn,Q$7,COLUMNS(Q:$S),">"&$B95&"<",,0)) -> 0 | R95: =IF(UPPER(TickerAdvfn)="",0,[1]!smfGetADVFNElement(TickerAdvfn,R$7,COLUMNS(R:$S),">"&$B95&"<",,0)) -> 0 | S95: =IF(UPPER(TickerAdvfn)="",0,[1]!smfGetADVFNElement(TickerAdvfn,S$7,COLUMNS(S:$S),">"&$B95&"<",,0)) -> 0 | T95: 0
B96: total non-current liabilities | E96: =IF(UPPER(TickerAdvfn)="",0,[1]!smfGetADVFNElement(TickerAdvfn,E$7,COLUMNS(E:$N),">"&$B96&"<",,0)) -> 16035 | F96: =IF(UPPER(TickerAdvfn)="",0,[1]!smfGetADVFNElement(TickerAdvfn,F$7,COLUMNS(F:$N),">"&$B96&"<",,0)) -> 17766 | G96: =IF(UPPER(TickerAdvfn)="",0,[1]!smfGetADVFNElement(TickerAdvfn,G$7,COLUMNS(G:$N),">"&$B96&"<",,0)) -> 19414 | H96: =IF(UPPER(TickerAdvfn)="",0,[1]!smfGetADVFNElement(TickerAdvfn,H$7,COLUMNS(H:$N),">"&$B96&"<",,0)) -> 19545 | I96: =IF(UPPER(TickerAdvfn)="",0,[1]!smfGetADVFNElement(TickerAdvfn,I$7,COLUMNS(I:$N),">"&$B96&"<",,0)) -> 24768 | J96: =IF(UPPER(TickerAdvfn)="",0,[1]!smfGetADVFNElement(TickerAdvfn,J$7,COLUMNS(J:$N),">"&$B96&"<",,0)) -> 25004 | K96: =IF(UPPER(TickerAdvfn)="",0,[1]!smfGetADVFNElement(TickerAdvfn,K$7,COLUMNS(K:$N),">"&$B96&"<",,0)) -> 35626 | L96: =IF(UPPER(TickerAdvfn)="",0,[1]!smfGetADVFNElement(TickerAdvfn,L$7,COLUMNS(L:$N),">"&$B96&"<",,0)) -> 32006 | M96: =IF(UPPER(TickerAdvfn)="",0,[1]!smfGetADVFNElement(TickerAdvfn,M$7,COLUMNS(M:$N),">"&$B96&"<",,0)) -> 31176 | N96: =IF(UPPER(TickerAdvfn)="",0,[1]!smfGetADVFNElement(TickerAdvfn,N$7,COLUMNS(N:$N),">"&$B96&"<",,0)) -> 40002 | O96: =IF(UPPER(TickerAdvfn)="",0,[1]!smfGetADVFNElement(TickerAdvfn,O$7,COLUMNS(O:$S),">"&$B96&"<",,0)) -> 30611 | P96: =IF(UPPER(TickerAdvfn)="",0,[1]!smfGetADVFNElement(TickerAdvfn,P$7,COLUMNS(P:$S),">"&$B96&"<",,0)) -> 36710 | Q96: =IF(UPPER(TickerAdvfn)="",0,[1]!smfGetADVFNElement(TickerAdvfn,Q$7,COLUMNS(Q:$S),">"&$B96&"<",,0)) -> 38387 | R96: =IF(UPPER(TickerAdvfn)="",0,[1]!smfGetADVFNElement(TickerAdvfn,R$7,COLUMNS(R:$S),">"&$B96&"<",,0)) -> 40002 | S96: =IF(UPPER(TickerAdvfn)="",0,[1]!smfGetADVFNElement(TickerAdvfn,S$7,COLUMNS(S:$S),">"&$B96&"<",,0)) -> 40090 | T96: 40090
B97: preferred stock equity | E97: =IF(UPPER(TickerAdvfn)="",0,[1]!smfGetADVFNElement(TickerAdvfn,E$7,COLUMNS(E:$N),">"&$B97&"<",,0)) -> 0 | F97: =IF(UPPER(TickerAdvfn)="",0,[1]!smfGetADVFNElement(TickerAdvfn,F$7,COLUMNS(F:$N),">"&$B97&"<",,0)) -> 0 | G97: =IF(UPPER(TickerAdvfn)="",0,[1]!smfGetADVFNElement(TickerAdvfn,G$7,COLUMNS(G:$N),">"&$B97&"<",,0)) -> 0 | H97: =IF(UPPER(TickerAdvfn)="",0,[1]!smfGetADVFNElement(TickerAdvfn,H$7,COLUMNS(H:$N),">"&$B97&"<",,0)) -> 0 | I97: =IF(UPPER(TickerAdvfn)="",0,[1]!smfGetADVFNElement(TickerAdvfn,I$7,COLUMNS(I:$N),">"&$B97&"<",,0)) -> 0 | J97: =IF(UPPER(TickerAdvfn)="",0,[1]!smfGetADVFNElement(TickerAdvfn,J$7,COLUMNS(J:$N),">"&$B97&"<",,0)) -> 0 | K97: =IF(UPPER(TickerAdvfn)="",0,[1]!smfGetADVFNElement(TickerAdvfn,K$7,COLUMNS(K:$N),">"&$B97&"<",,0)) -> 0 | L97: =IF(UPPER(TickerAdvfn)="",0,[1]!smfGetADVFNElement(TickerAdvfn,L$7,COLUMNS(L:$N),">"&$B97&"<",,0)) -> 0 | M97: =IF(UPPER(TickerAdvfn)="",0,[1]!smfGetADVFNElement(TickerAdvfn,M$7,COLUMNS(M:$N),">"&$B97&"<",,0)) -> 0 | N97: =IF(UPPER(TickerAdvfn)="",0,[1]!smfGetADVFNElement(TickerAdvfn,N$7,COLUMNS(N:$N),">"&$B97&"<",,0)) -> 0 | O97: =IF(UPPER(TickerAdvfn)="",0,[1]!smfGetADVFNElement(TickerAdvfn,O$7,COLUMNS(O:$S),">"&$B97&"<",,0)) -> 0 | P97: =IF(UPPER(TickerAdvfn)="",0,[1]!smfGetADVFNElement(TickerAdvfn,P$7,COLUMNS(P:$S),">"&$B97&"<",,0)) -> 0 | Q97: =IF(UPPER(TickerAdvfn)="",0,[1]!smfGetADVFNElement(TickerAdvfn,Q$7,COLUMNS(Q:$S),">"&$B97&"<",,0)) -> 0 | R97: =IF(UPPER(TickerAdvfn)="",0,[1]!smfGetADVFNElement(TickerAdvfn,R$7,COLUMNS(R:$S),">"&$B97&"<",,0)) -> 0 | S97: =IF(UPPER(TickerAdvfn)="",0,[1]!smfGetADVFNElement(TickerAdvfn,S$7,COLUMNS(S:$S),">"&$B97&"<",,0)) -> 0 | T97: 0
B98: common stock equity | E98: =IF(UPPER(TickerAdvfn)="",0,[1]!smfGetADVFNElement(TickerAdvfn,E$7,COLUMNS(E:$N),">"&$B98&"<",,0)) -> 5472 | F98: =IF(UPPER(TickerAdvfn)="",0,[1]!smfGetADVFNElement(TickerAdvfn,F$7,COLUMNS(F:$N),">"&$B98&"<",,0)) -> 6078 | G98: =IF(UPPER(TickerAdvfn)="",0,[1]!smfGetADVFNElement(TickerAdvfn,G$7,COLUMNS(G:$N),">"&$B98&"<",,0)) -> 7467 | H98: =IF(UPPER(TickerAdvfn)="",0,[1]!smfGetADVFNElement(TickerAdvfn,H$7,COLUMNS(H:$N),">"&$B98&"<",,0)) -> 8432 | I98: =IF(UPPER(TickerAdvfn)="",0,[1]!smfGetADVFNElement(TickerAdvfn,I$7,COLUMNS(I:$N),">"&$B98&"<",,0)) -> 6859 | J98: =IF(UPPER(TickerAdvfn)="",0,[1]!smfGetADVFNElement(TickerAdvfn,J$7,COLUMNS(J:$N),">"&$B98&"<",,0)) -> 8883 | K98: =IF(UPPER(TickerAdvfn)="",0,[1]!smfGetADVFNElement(TickerAdvfn,K$7,COLUMNS(K:$N),">"&$B98&"<",,0)) -> 6087 | L98: =IF(UPPER(TickerAdvfn)="",0,[1]!smfGetADVFNElement(TickerAdvfn,L$7,COLUMNS(L:$N),">"&$B98&"<",,0)) -> 8740 | M98: =IF(UPPER(TickerAdvfn)="",0,[1]!smfGetADVFNElement(TickerAdvfn,M$7,COLUMNS(M:$N),">"&$B98&"<",,0)) -> 10824 | N98: =IF(UPPER(TickerAdvfn)="",0,[1]!smfGetADVFNElement(TickerAdvfn,N$7,COLUMNS(N:$N),">"&$B98&"<",,0)) -> 12883 | O98: =IF(UPPER(TickerAdvfn)="",0,[1]!smfGetADVFNElement(TickerAdvfn,O$7,COLUMNS(O:$S),">"&$B98&"<",,0)) -> 12629 | P98: =IF(UPPER(TickerAdvfn)="",0,[1]!smfGetADVFNElement(TickerAdvfn,P$7,COLUMNS(P:$S),">"&$B98&"<",,0)) -> 13391 | Q98: =IF(UPPER(TickerAdvfn)="",0,[1]!smfGetADVFNElement(TickerAdvfn,Q$7,COLUMNS(Q:$S),">"&$B98&"<",,0)) -> 14162 | R98: =IF(UPPER(TickerAdvfn)="",0,[1]!smfGetADVFNElement(TickerAdvfn,R$7,COLUMNS(R:$S),">"&$B98&"<",,0)) -> 12883 | S98: =IF(UPPER(TickerAdvfn)="",0,[1]!smfGetADVFNElement(TickerAdvfn,S$7,COLUMNS(S:$S),">"&$B98&"<",,0)) -> 14969 | T98: 14969
B99: retained earnings | E99: =IF(UPPER(TickerAdvfn)="",0,[1]!smfGetADVFNElement(TickerAdvfn,E$7,COLUMNS(E:$N),">"&$B99&"<",,0)) -> 7849 | F99: =IF(UPPER(TickerAdvfn)="",0,[1]!smfGetADVFNElement(TickerAdvfn,F$7,COLUMNS(F:$N),">"&$B99&"<",,0)) -> 8450 | G99: =IF(UPPER(TickerAdvfn)="",0,[1]!smfGetADVFNElement(TickerAdvfn,G$7,COLUMNS(G:$N),">"&$B99&"<",,0)) -> 9937 | H99: =IF(UPPER(TickerAdvfn)="",0,[1]!smfGetADVFNElement(TickerAdvfn,H$7,COLUMNS(H:$N),">"&$B99&"<",,0)) -> 11808 | I99: =IF(UPPER(TickerAdvfn)="",0,[1]!smfGetADVFNElement(TickerAdvfn,I$7,COLUMNS(I:$N),">"&$B99&"<",,0)) -> 14593 | J99: =IF(UPPER(TickerAdvfn)="",0,[1]!smfGetADVFNElement(TickerAdvfn,J$7,COLUMNS(J:$N),">"&$B99&"<",,0)) -> 17398 | K99: =IF(UPPER(TickerAdvfn)="",0,[1]!smfGetADVFNElement(TickerAdvfn,K$7,COLUMNS(K:$N),">"&$B99&"<",,0)) -> 19826 | L99: =IF(UPPER(TickerAdvfn)="",0,[1]!smfGetADVFNElement(TickerAdvfn,L$7,COLUMNS(L:$N),">"&$B99&"<",,0)) -> 19711 | M99: =IF(UPPER(TickerAdvfn)="",0,[1]!smfGetADVFNElement(TickerAdvfn,M$7,COLUMNS(M:$N),">"&$B99&"<",,0)) -> 21384 | N99: =IF(UPPER(TickerAdvfn)="",0,[1]!smfGetADVFNElement(TickerAdvfn,N$7,COLUMNS(N:$N),">"&$B99&"<",,0)) -> 25219 | O99: =IF(UPPER(TickerAdvfn)="",0,[1]!smfGetADVFNElement(TickerAdvfn,O$7,COLUMNS(O:$S),">"&$B99&"<",,0)) -> 22640 | P99: =IF(UPPER(TickerAdvfn)="",0,[1]!smfGetADVFNElement(TickerAdvfn,P$7,COLUMNS(P:$S),">"&$B99&"<",,0)) -> 23081 | Q99: =IF(UPPER(TickerAdvfn)="",0,[1]!smfGetADVFNElement(TickerAdvfn,Q$7,COLUMNS(Q:$S),">"&$B99&"<",,0)) -> 24251 | R99: =IF(UPPER(TickerAdvfn)="",0,[1]!smfGetADVFNElement(TickerAdvfn,R$7,COLUMNS(R:$S),">"&$B99&"<",,0)) -> 25219 | S99: =IF(UPPER(TickerAdvfn)="",0,[1]!smfGetADVFNElement(TickerAdvfn,S$7,COLUMNS(S:$S),">"&$B99&"<",,0)) -> 26815 | T99: 26815
B100: total capitalization | E100: =IF(UPPER(TickerAdvfn)="",0,[1]!smfGetADVFNElement(TickerAdvfn,E$7,COLUMNS(E:$N),">"&$B100&"<",,0)) -> 17068 | F100: =IF(UPPER(TickerAdvfn)="",0,[1]!smfGetADVFNElement(TickerAdvfn,F$7,COLUMNS(F:$N),">"&$B100&"<",,0)) -> 20156 | G100: =IF(UPPER(TickerAdvfn)="",0,[1]!smfGetADVFNElement(TickerAdvfn,G$7,COLUMNS(G:$N),">"&$B100&"<",,0)) -> 23304 | H100: =IF(UPPER(TickerAdvfn)="",0,[1]!smfGetADVFNElement(TickerAdvfn,H$7,COLUMNS(H:$N),">"&$B100&"<",,0)) -> 24109 | I100: =IF(UPPER(TickerAdvfn)="",0,[1]!smfGetADVFNElement(TickerAdvfn,I$7,COLUMNS(I:$N),">"&$B100&"<",,0)) -> 24539 | J100: =IF(UPPER(TickerAdvfn)="",0,[1]!smfGetADVFNElement(TickerAdvfn,J$7,COLUMNS(J:$N),">"&$B100&"<",,0)) -> 26712 | K100: =IF(UPPER(TickerAdvfn)="",0,[1]!smfGetADVFNElement(TickerAdvfn,K$7,COLUMNS(K:$N),">"&$B100&"<",,0)) -> 28921 | L100: =IF(UPPER(TickerAdvfn)="",0,[1]!smfGetADVFNElement(TickerAdvfn,L$7,COLUMNS(L:$N),">"&$B100&"<",,0)) -> 30587 | M100: =IF(UPPER(TickerAdvfn)="",0,[1]!smfGetADVFNElement(TickerAdvfn,M$7,COLUMNS(M:$N),">"&$B100&"<",,0)) -> 31261 | N100: =IF(UPPER(TickerAdvfn)="",0,[1]!smfGetADVFNElement(TickerAdvfn,N$7,COLUMNS(N:$N),">"&$B100&"<",,0)) -> 37827 | O100: =IF(UPPER(TickerAdvfn)="",0,[1]!smfGetADVFNElement(TickerAdvfn,O$7,COLUMNS(O:$S),">"&$B100&"<",,0)) -> 32524 | P100: =IF(UPPER(TickerAdvfn)="",0,[1]!smfGetADVFNElement(TickerAdvfn,P$7,COLUMNS(P:$S),">"&$B100&"<",,0)) -> 39317 | Q100: =IF(UPPER(TickerAdvfn)="",0,[1]!smfGetADVFNElement(TickerAdvfn,Q$7,COLUMNS(Q:$S),">"&$B100&"<",,0)) -> 40943 | R100: =IF(UPPER(TickerAdvfn)="",0,[1]!smfGetADVFNElement(TickerAdvfn,R$7,COLUMNS(R:$S),">"&$B100&"<",,0)) -> 37827 | S100: =IF(UPPER(TickerAdvfn)="",0,[1]!smfGetADVFNElement(TickerAdvfn,S$7,COLUMNS(S:$S),">"&$B100&"<",,0)) -> 40160 | T100: 40160
B101: total equity | E101: =IF(UPPER(TickerAdvfn)="",0,[1]!smfGetADVFNElement(TickerAdvfn,E$7,COLUMNS(E:$N),">"&$B101&"<",,0)) -> 5472 | F101: =IF(UPPER(TickerAdvfn)="",0,[1]!smfGetADVFNElement(TickerAdvfn,F$7,COLUMNS(F:$N),">"&$B101&"<",,0)) -> 6078 | G101: =IF(UPPER(TickerAdvfn)="",0,[1]!smfGetADVFNElement(TickerAdvfn,G$7,COLUMNS(G:$N),">"&$B101&"<",,0)) -> 7467 | H101: =IF(UPPER(TickerAdvfn)="",0,[1]!smfGetADVFNElement(TickerAdvfn,H$7,COLUMNS(H:$N),">"&$B101&"<",,0)) -> 8432 | I101: =IF(UPPER(TickerAdvfn)="",0,[1]!smfGetADVFNElement(TickerAdvfn,I$7,COLUMNS(I:$N),">"&$B101&"<",,0)) -> 6859 | J101: =IF(UPPER(TickerAdvfn)="",0,[1]!smfGetADVFNElement(TickerAdvfn,J$7,COLUMNS(J:$N),">"&$B101&"<",,0)) -> 8883 | K101: =IF(UPPER(TickerAdvfn)="",0,[1]!smfGetADVFNElement(TickerAdvfn,K$7,COLUMNS(K:$N),">"&$B101&"<",,0)) -> 6087 | L101: =IF(UPPER(TickerAdvfn)="",0,[1]!smfGetADVFNElement(TickerAdvfn,L$7,COLUMNS(L:$N),">"&$B101&"<",,0)) -> 8740 | M101: =IF(UPPER(TickerAdvfn)="",0,[1]!smfGetADVFNElement(TickerAdvfn,M$7,COLUMNS(M:$N),">"&$B101&"<",,0)) -> 10824 | N101: =IF(UPPER(TickerAdvfn)="",0,[1]!smfGetADVFNElement(TickerAdvfn,N$7,COLUMNS(N:$N),">"&$B101&"<",,0)) -> 12883 | O101: =IF(UPPER(TickerAdvfn)="",0,[1]!smfGetADVFNElement(TickerAdvfn,O$7,COLUMNS(O:$S),">"&$B101&"<",,0)) -> 12629 | P101: =IF(UPPER(TickerAdvfn)="",0,[1]!smfGetADVFNElement(TickerAdvfn,P$7,COLUMNS(P:$S),">"&$B101&"<",,0)) -> 13391 | Q101: =IF(UPPER(TickerAdvfn)="",0,[1]!smfGetADVFNElement(TickerAdvfn,Q$7,COLUMNS(Q:$S),">"&$B101&"<",,0)) -> 14162 | R101: =IF(UPPER(TickerAdvfn)="",0,[1]!smfGetADVFNElement(TickerAdvfn,R$7,COLUMNS(R:$S),">"&$B101&"<",,0)) -> 12883 | S101: =IF(UPPER(TickerAdvfn)="",0,[1]!smfGetADVFNElement(TickerAdvfn,S$7,COLUMNS(S:$S),">"&$B101&"<",,0)) -> 14969 | T101: 14969
B102: total liabilities & stock equity | E102: =IF(UPPER(TickerAdvfn)="",0,[1]!smfGetADVFNElement(TickerAdvfn,E$7,COLUMNS(E:$N),">"&$B102&"<",,0)) -> 32851 | F102: =IF(UPPER(TickerAdvfn)="",0,[1]!smfGetADVFNElement(TickerAdvfn,F$7,COLUMNS(F:$N),">"&$B102&"<",,0)) -> 36465 | G102: =IF(UPPER(TickerAdvfn)="",0,[1]!smfGetADVFNElement(TickerAdvfn,G$7,COLUMNS(G:$N),">"&$B102&"<",,0)) -> 43091 | H102: =IF(UPPER(TickerAdvfn)="",0,[1]!smfGetADVFNElement(TickerAdvfn,H$7,COLUMNS(H:$N),">"&$B102&"<",,0)) -> 47069 | I102: =IF(UPPER(TickerAdvfn)="",0,[1]!smfGetADVFNElement(TickerAdvfn,I$7,COLUMNS(I:$N),">"&$B102&"<",,0)) -> 50879 | J102: =IF(UPPER(TickerAdvfn)="",0,[1]!smfGetADVFNElement(TickerAdvfn,J$7,COLUMNS(J:$N),">"&$B102&"<",,0)) -> 56132 | K102: =IF(UPPER(TickerAdvfn)="",0,[1]!smfGetADVFNElement(TickerAdvfn,K$7,COLUMNS(K:$N),">"&$B102&"<",,0)) -> 67782 | L102: =IF(UPPER(TickerAdvfn)="",0,[1]!smfGetADVFNElement(TickerAdvfn,L$7,COLUMNS(L:$N),">"&$B102&"<",,0)) -> 60038 | M102: =IF(UPPER(TickerAdvfn)="",0,[1]!smfGetADVFNElement(TickerAdvfn,M$7,COLUMNS(M:$N),">"&$B102&"<",,0)) -> 64020 | N102: =IF(UPPER(TickerAdvfn)="",0,[1]!smfGetADVFNElement(TickerAdvfn,N$7,COLUMNS(N:$N),">"&$B102&"<",,0)) -> 81446 | O102: =IF(UPPER(TickerAdvfn)="",0,[1]!smfGetADVFNElement(TickerAdvfn,O$7,COLUMNS(O:$S),">"&$B102&"<",,0)) -> 66387 | P102: =IF(UPPER(TickerAdvfn)="",0,[1]!smfGetADVFNElement(TickerAdvfn,P$7,COLUMNS(P:$S),">"&$B102&"<",,0)) -> 73611 | Q102: =IF(UPPER(TickerAdvfn)="",0,[1]!smfGetADVFNElement(TickerAdvfn,Q$7,COLUMNS(Q:$S),">"&$B102&"<",,0)) -> 77767 | R102: =IF(UPPER(TickerAdvfn)="",0,[1]!smfGetADVFNElement(TickerAdvfn,R$7,COLUMNS(R:$S),">"&$B102&"<",,0)) -> 81446 | S102: =IF(UPPER(TickerAdvfn)="",0,[1]!smfGetADVFNElement(TickerAdvfn,S$7,COLUMNS(S:$S),">"&$B102&"<",,0)) -> 83908 | T102: 83908
B103: working capital | E103: =IF(UPPER(TickerAdvfn)="",0,[1]!smfGetADVFNElement(TickerAdvfn,E$7,COLUMNS(E:$N),">"&$B103&"<",,0)) -> 3284 | F103: =IF(UPPER(TickerAdvfn)="",0,[1]!smfGetADVFNElement(TickerAdvfn,F$7,COLUMNS(F:$N),">"&$B103&"<",,0)) -> 4170 | G103: =IF(UPPER(TickerAdvfn)="",0,[1]!smfGetADVFNElement(TickerAdvfn,G$7,COLUMNS(G:$N),">"&$B103&"<",,0)) -> 4646 | H103: =IF(UPPER(TickerAdvfn)="",0,[1]!smfGetADVFNElement(TickerAdvfn,H$7,COLUMNS(H:$N),">"&$B103&"<",,0)) -> 3698 | I103: =IF(UPPER(TickerAdvfn)="",0,[1]!smfGetADVFNElement(TickerAdvfn,I$7,COLUMNS(I:$N),">"&$B103&"<",,0)) -> 3841 | J103: =IF(UPPER(TickerAdvfn)="",0,[1]!smfGetADVFNElement(TickerAdvfn,J$7,COLUMNS(J:$N),">"&$B103&"<",,0)) -> 3232 | K103: =IF(UPPER(TickerAdvfn)="",0,[1]!smfGetADVFNElement(TickerAdvfn,K$7,COLUMNS(K:$N),">"&$B103&"<",,0)) -> 5564 | L103: =IF(UPPER(TickerAdvfn)="",0,[1]!smfGetADVFNElement(TickerAdvfn,L$7,COLUMNS(L:$N),">"&$B103&"<",,0)) -> 7497 | M103: =IF(UPPER(TickerAdvfn)="",0,[1]!smfGetADVFNElement(TickerAdvfn,M$7,COLUMNS(M:$N),">"&$B103&"<",,0)) -> 9790 | N103: =IF(UPPER(TickerAdvfn)="",0,[1]!smfGetADVFNElement(TickerAdvfn,N$7,COLUMNS(N:$N),">"&$B103&"<",,0)) -> 9567 | O103: =IF(UPPER(TickerAdvfn)="",0,[1]!smfGetADVFNElement(TickerAdvfn,O$7,COLUMNS(O:$S),">"&$B103&"<",,0)) -> 11461 | P103: =IF(UPPER(TickerAdvfn)="",0,[1]!smfGetADVFNElement(TickerAdvfn,P$7,COLUMNS(P:$S),">"&$B103&"<",,0)) -> 17245 | Q103: =IF(UPPER(TickerAdvfn)="",0,[1]!smfGetADVFNElement(TickerAdvfn,Q$7,COLUMNS(Q:$S),">"&$B103&"<",,0)) -> 11646 | R103: =IF(UPPER(TickerAdvfn)="",0,[1]!smfGetADVFNElement(TickerAdvfn,R$7,COLUMNS(R:$S),">"&$B103&"<",,0)) -> 9567 | S103: =IF(UPPER(TickerAdvfn)="",0,[1]!smfGetADVFNElement(TickerAdvfn,S$7,COLUMNS(S:$S),">"&$B103&"<",,0)) -> 11360 | T103: 11360
B104: invested capital | E104: =IF(UPPER(TickerAdvfn)="",0,[1]!smfGetADVFNElement(TickerAdvfn,E$7,COLUMNS(E:$N),">"&$B104&"<",,0)) -> 17068 | F104: =IF(UPPER(TickerAdvfn)="",0,[1]!smfGetADVFNElement(TickerAdvfn,F$7,COLUMNS(F:$N),">"&$B104&"<",,0)) -> 20156 | G104: =IF(UPPER(TickerAdvfn)="",0,[1]!smfGetADVFNElement(TickerAdvfn,G$7,COLUMNS(G:$N),">"&$B104&"<",,0)) -> 23304 | H104: =IF(UPPER(TickerAdvfn)="",0,[1]!smfGetADVFNElement(TickerAdvfn,H$7,COLUMNS(H:$N),">"&$B104&"<",,0)) -> 24109 | I104: =IF(UPPER(TickerAdvfn)="",0,[1]!smfGetADVFNElement(TickerAdvfn,I$7,COLUMNS(I:$N),">"&$B104&"<",,0)) -> 24539 | J104: =IF(UPPER(TickerAdvfn)="",0,[1]!smfGetADVFNElement(TickerAdvfn,J$7,COLUMNS(J:$N),">"&$B104&"<",,0)) -> 26712 | K104: =IF(UPPER(TickerAdvfn)="",0,[1]!smfGetADVFNElement(TickerAdvfn,K$7,COLUMNS(K:$N),">"&$B104&"<",,0)) -> 28921 | L104: =IF(UPPER(TickerAdvfn)="",0,[1]!smfGetADVFNElement(TickerAdvfn,L$7,COLUMNS(L:$N),">"&$B104&"<",,0)) -> 30587 | M104: =IF(UPPER(TickerAdvfn)="",0,[1]!smfGetADVFNElement(TickerAdvfn,M$7,COLUMNS(M:$N),">"&$B104&"<",,0)) -> 31261 | N104: =IF(UPPER(TickerAdvfn)="",0,[1]!smfGetADVFNElement(TickerAdvfn,N$7,COLUMNS(N:$N),">"&$B104&"<",,0)) -> 37827 | O104: =IF(UPPER(TickerAdvfn)="",0,[1]!smfGetADVFNElement(TickerAdvfn,O$7,COLUMNS(O:$S),">"&$B104&"<",,0)) -> 32524 | P104: =IF(UPPER(TickerAdvfn)="",0,[1]!smfGetADVFNElement(TickerAdvfn,P$7,COLUMNS(P:$S),">"&$B104&"<",,0)) -> 39317 | Q104: =IF(UPPER(TickerAdvfn)="",0,[1]!smfGetADVFNElement(TickerAdvfn,Q$7,COLUMNS(Q:$S),">"&$B104&"<",,0)) -> 40943 | R104: =IF(UPPER(TickerAdvfn)="",0,[1]!smfGetADVFNElement(TickerAdvfn,R$7,COLUMNS(R:$S),">"&$B104&"<",,0)) -> 37827 | S104: =IF(UPPER(TickerAdvfn)="",0,[1]!smfGetADVFNElement(TickerAdvfn,S$7,COLUMNS(S:$S),">"&$B104&"<",,0)) -> 40160 | T104: 40160
B105: cash flow | E105: =IF(UPPER(TickerAdvfn)="",0,[1]!smfGetADVFNElement(TickerAdvfn,E$7,COLUMNS(E:$N),">"&$B105&"<",,0)) -> 2018 | F105: =IF(UPPER(TickerAdvfn)="",0,[1]!smfGetADVFNElement(TickerAdvfn,F$7,COLUMNS(F:$N),">"&$B105&"<",,0)) -> 2446 | G105: =IF(UPPER(TickerAdvfn)="",0,[1]!smfGetADVFNElement(TickerAdvfn,G$7,COLUMNS(G:$N),">"&$B105&"<",,0)) -> 3432 | H105: =IF(UPPER(TickerAdvfn)="",0,[1]!smfGetADVFNElement(TickerAdvfn,H$7,COLUMNS(H:$N),">"&$B105&"<",,0)) -> 4331 | I105: =IF(UPPER(TickerAdvfn)="",0,[1]!smfGetADVFNElement(TickerAdvfn,I$7,COLUMNS(I:$N),">"&$B105&"<",,0)) -> 5139 | J105: =IF(UPPER(TickerAdvfn)="",0,[1]!smfGetADVFNElement(TickerAdvfn,J$7,COLUMNS(J:$N),">"&$B105&"<",,0)) -> 5338 | K105: =IF(UPPER(TickerAdvfn)="",0,[1]!smfGetADVFNElement(TickerAdvfn,K$7,COLUMNS(K:$N),">"&$B105&"<",,0)) -> 5537 | L105: =IF(UPPER(TickerAdvfn)="",0,[1]!smfGetADVFNElement(TickerAdvfn,L$7,COLUMNS(L:$N),">"&$B105&"<",,0)) -> 3231 | M105: =IF(UPPER(TickerAdvfn)="",0,[1]!smfGetADVFNElement(TickerAdvfn,M$7,COLUMNS(M:$N),">"&$B105&"<",,0)) -> 4996 | N105: =IF(UPPER(TickerAdvfn)="",0,[1]!smfGetADVFNElement(TickerAdvfn,N$7,COLUMNS(N:$N),">"&$B105&"<",,0)) -> 7455 | O105: =IF(UPPER(TickerAdvfn)="",0,[1]!smfGetADVFNElement(TickerAdvfn,O$7,COLUMNS(O:$S),">"&$B105&"<",,0)) -> 6009 | P105: =IF(UPPER(TickerAdvfn)="",0,[1]!smfGetADVFNElement(TickerAdvfn,P$7,COLUMNS(P:$S),">"&$B105&"<",,0)) -> 6354 | Q105: =IF(UPPER(TickerAdvfn)="",0,[1]!smfGetADVFNElement(TickerAdvfn,Q$7,COLUMNS(Q:$S),">"&$B105&"<",,0)) -> 6796 | R105: =IF(UPPER(TickerAdvfn)="",0,[1]!smfGetADVFNElement(TickerAdvfn,R$7,COLUMNS(R:$S),">"&$B105&"<",,0)) -> 7455 | S105: =IF(UPPER(TickerAdvfn)="",0,[1]!smfGetADVFNElement(TickerAdvfn,S$7,COLUMNS(S:$S),">"&$B105&"<",,0)) -> 7902 | T105: 7902
A107: Cash Flow Statement | C107: =C5 -> Annual | D107: =D5 -> Quarterly | T107: TTM | U107: TTM if Q1 | V107: TTM if Q2 | W107: TTM if Q3 | X107: TTM if Q4
A108: Operating Activities
B109: net income/loss | E109: =IF(UPPER(TickerAdvfn)="",0,[1]!smfGetADVFNElement(TickerAdvfn,E$7,COLUMNS(E:$N),">"&$B109&"<",,0)) -> 798 | F109: =IF(UPPER(TickerAdvfn)="",0,[1]!smfGetADVFNElement(TickerAdvfn,F$7,COLUMNS(F:$N),">"&$B109&"<",,0)) -> 1099 | G109: =IF(UPPER(TickerAdvfn)="",0,[1]!smfGetADVFNElement(TickerAdvfn,G$7,COLUMNS(G:$N),">"&$B109&"<",,0)) -> 2035 | H109: =IF(UPPER(TickerAdvfn)="",0,[1]!smfGetADVFNElement(TickerAdvfn,H$7,COLUMNS(H:$N),">"&$B109&"<",,0)) -> 2854 | I109: =IF(UPPER(TickerAdvfn)="",0,[1]!smfGetADVFNElement(TickerAdvfn,I$7,COLUMNS(I:$N),">"&$B109&"<",,0)) -> 3537 | J109: =IF(UPPER(TickerAdvfn)="",0,[1]!smfGetADVFNElement(TickerAdvfn,J$7,COLUMNS(J:$N),">"&$B109&"<",,0)) -> 3541 | K109: =IF(UPPER(TickerAdvfn)="",0,[1]!smfGetADVFNElement(TickerAdvfn,K$7,COLUMNS(K:$N),">"&$B109&"<",,0)) -> 3557 | L109: =IF(UPPER(TickerAdvfn)="",0,[1]!smfGetADVFNElement(TickerAdvfn,L$7,COLUMNS(L:$N),">"&$B109&"<",,0)) -> 827 | M109: =IF(UPPER(TickerAdvfn)="",0,[1]!smfGetADVFNElement(TickerAdvfn,M$7,COLUMNS(M:$N),">"&$B109&"<",,0)) -> 2758 | N109: =IF(UPPER(TickerAdvfn)="",0,[1]!smfGetADVFNElement(TickerAdvfn,N$7,COLUMNS(N:$N),">"&$B109&"<",,0)) -> 4981 | O109: =IF(UPPER(TickerAdvfn)="",0,[1]!smfGetADVFNElement(TickerAdvfn,O$7,COLUMNS(O:$S),">"&$B109&"<",,0)) -> 1243 | P109: =IF(UPPER(TickerAdvfn)="",0,[1]!smfGetADVFNElement(TickerAdvfn,P$7,COLUMNS(P:$S),">"&$B109&"<",,0)) -> 2265 | Q109: =IF(UPPER(TickerAdvfn)="",0,[1]!smfGetADVFNElement(TickerAdvfn,Q$7,COLUMNS(Q:$S),">"&$B109&"<",,0)) -> 3419 | R109: =IF(UPPER(TickerAdvfn)="",0,[1]!smfGetADVFNElement(TickerAdvfn,R$7,COLUMNS(R:$S),">"&$B109&"<",,0)) -> 4981 | S109: =IF(UPPER(TickerAdvfn)="",0,[1]!smfGetADVFNElement(TickerAdvfn,S$7,COLUMNS(S:$S),">"&$B109&"<",,0)) -> 1611 | T109: =IF($S$6=1,U109,IF($S$6=2,V109,IF($S$6=3,W109,X109))) -> 5349 | U109: =S109+(R109-O109) -> 5349 | V109: =S109+(Q109-O109) -> 3787 | W109: =S109+(P109-O109) -> 2633 | X109: =S109 -> 1611
B110: depreciation | E110: =IF(UPPER(TickerAdvfn)="",0,[1]!smfGetADVFNElement(TickerAdvfn,E$7,COLUMNS(E:$N),">"&$B110&"<",,0)) -> 1220 | F110: =IF(UPPER(TickerAdvfn)="",0,[1]!smfGetADVFNElement(TickerAdvfn,F$7,COLUMNS(F:$N),">"&$B110&"<",,0)) -> 1347 | G110: =IF(UPPER(TickerAdvfn)="",0,[1]!smfGetADVFNElement(TickerAdvfn,G$7,COLUMNS(G:$N),">"&$B110&"<",,0)) -> 1397 | H110: =IF(UPPER(TickerAdvfn)="",0,[1]!smfGetADVFNElement(TickerAdvfn,H$7,COLUMNS(H:$N),">"&$B110&"<",,0)) -> 1477 | I110: =IF(UPPER(TickerAdvfn)="",0,[1]!smfGetADVFNElement(TickerAdvfn,I$7,COLUMNS(I:$N),">"&$B110&"<",,0)) -> 1602 | J110: =IF(UPPER(TickerAdvfn)="",0,[1]!smfGetADVFNElement(TickerAdvfn,J$7,COLUMNS(J:$N),">"&$B110&"<",,0)) -> 1797 | K110: =IF(UPPER(TickerAdvfn)="",0,[1]!smfGetADVFNElement(TickerAdvfn,K$7,COLUMNS(K:$N),">"&$B110&"<",,0)) -> 1980 | L110: =IF(UPPER(TickerAdvfn)="",0,[1]!smfGetADVFNElement(TickerAdvfn,L$7,COLUMNS(L:$N),">"&$B110&"<",,0)) -> 2336 | M110: =IF(UPPER(TickerAdvfn)="",0,[1]!smfGetADVFNElement(TickerAdvfn,M$7,COLUMNS(M:$N),">"&$B110&"<",,0)) -> 2296 | N110: =IF(UPPER(TickerAdvfn)="",0,[1]!smfGetADVFNElement(TickerAdvfn,N$7,COLUMNS(N:$N),">"&$B110&"<",,0)) -> 2527 | O110: =IF(UPPER(TickerAdvfn)="",0,[1]!smfGetADVFNElement(TickerAdvfn,O$7,COLUMNS(O:$S),">"&$B110&"<",,0)) -> 575 | P110: =IF(UPPER(TickerAdvfn)="",0,[1]!smfGetADVFNElement(TickerAdvfn,P$7,COLUMNS(P:$S),">"&$B110&"<",,0)) -> 599 | Q110: =IF(UPPER(TickerAdvfn)="",0,[1]!smfGetADVFNElement(TickerAdvfn,Q$7,COLUMNS(Q:$S),">"&$B110&"<",,0)) -> 658 | R110: =IF(UPPER(TickerAdvfn)="",0,[1]!smfGetADVFNElement(TickerAdvfn,R$7,COLUMNS(R:$S),">"&$B110&"<",,0)) -> 695 | S110: =IF(UPPER(TickerAdvfn)="",0,[1]!smfGetADVFNElement(TickerAdvfn,S$7,COLUMNS(S:$S),">"&$B110&"<",,0)) -> 661 | T110: =IF($S$6=1,U110,IF($S$6=2,V110,IF($S$6=3,W110,X110))) -> 781 | U110: 781 | V110: 744 | W110: 685 | X110: 661
B111: amortization | E111: =IF(UPPER(TickerAdvfn)="",0,[1]!smfGetADVFNElement(TickerAdvfn,E$7,COLUMNS(E:$N),">"&$B111&"<",,0)) -> 0 | F111: =IF(UPPER(TickerAdvfn)="",0,[1]!smfGetADVFNElement(TickerAdvfn,F$7,COLUMNS(F:$N),">"&$B111&"<",,0)) -> 0 | G111: =IF(UPPER(TickerAdvfn)="",0,[1]!smfGetADVFNElement(TickerAdvfn,G$7,COLUMNS(G:$N),">"&$B111&"<",,0)) -> 0 | H111: =IF(UPPER(TickerAdvfn)="",0,[1]!smfGetADVFNElement(TickerAdvfn,H$7,COLUMNS(H:$N),">"&$B111&"<",,0)) -> 0 | I111: =IF(UPPER(TickerAdvfn)="",0,[1]!smfGetADVFNElement(TickerAdvfn,I$7,COLUMNS(I:$N),">"&$B111&"<",,0)) -> 0 | J111: =IF(UPPER(TickerAdvfn)="",0,[1]!smfGetADVFNElement(TickerAdvfn,J$7,COLUMNS(J:$N),">"&$B111&"<",,0)) -> 0 | K111: =IF(UPPER(TickerAdvfn)="",0,[1]!smfGetADVFNElement(TickerAdvfn,K$7,COLUMNS(K:$N),">"&$B111&"<",,0)) -> 0 | L111: =IF(UPPER(TickerAdvfn)="",0,[1]!smfGetADVFNElement(TickerAdvfn,L$7,COLUMNS(L:$N),">"&$B111&"<",,0)) -> 0 | M111: =IF(UPPER(TickerAdvfn)="",0,[1]!smfGetADVFNElement(TickerAdvfn,M$7,COLUMNS(M:$N),">"&$B111&"<",,0)) -> 0 | N111: =IF(UPPER(TickerAdvfn)="",0,[1]!smfGetADVFNElement(TickerAdvfn,N$7,COLUMNS(N:$N),">"&$B111&"<",,0)) -> 0 | O111: =IF(UPPER(TickerAdvfn)="",0,[1]!smfGetADVFNElement(TickerAdvfn,O$7,COLUMNS(O:$S),">"&$B111&"<",,0)) -> 0 | P111: =IF(UPPER(TickerAdvfn)="",0,[1]!smfGetADVFNElement(TickerAdvfn,P$7,COLUMNS(P:$S),">"&$B111&"<",,0)) -> 0 | Q111: =IF(UPPER(TickerAdvfn)="",0,[1]!smfGetADVFNElement(TickerAdvfn,Q$7,COLUMNS(Q:$S),">"&$B111&"<",,0)) -> 0 | R111: =IF(UPPER(TickerAdvfn)="",0,[1]!smfGetADVFNElement(TickerAdvfn,R$7,COLUMNS(R:$S),">"&$B111&"<",,0)) -> 0 | S111: =IF(UPPER(TickerAdvfn)="",0,[1]!smfGetADVFNElement(TickerAdvfn,S$7,COLUMNS(S:$S),">"&$B111&"<",,0)) -> 0 | T111: =IF($S$6=1,U111,IF($S$6=2,V111,IF($S$6=3,W111,X111))) -> 0 | U111: 0 | V111: 0 | W111: 0 | X111: 0
